Workbook

Sheet Main
B2: VCap | C2: Front Office Daily
B5: * Step 1: Connect to the server | E5: * Please sheet(s) to print
E6: Sheet | F6: YES/NO
E7: 1.Summary KWAPFI | F7: NO
E8: 1.Summary YH | F8: YES
E9: 1.Summary MEQESG | F9: NO
E10: 1.Summary A5ESG | F10: NO
B11: * Step 2: Change only if necessary | E11: 1.Summary KWAP | F11: NO
E12: 1.Summary YA | F12: NO
B13: Company: | C13: VCAP ASSET MANAGERS SDN. BHD. | E13: 1.Summary TABA | F13: NO
B14: Value Date: | C14: 2018-01-04 | E14: 2. Portfolio Valuation - YH | F14: NO
E15: 2. Portfolio Valuation - ESG | F15: NO
B16: * Step 3: Refresh Data | E16: 2. Portfolio Valuation - A5ESG | F16: NO
E17: 2. Portfolio Valuation - KWAP | F17: NO
E18: 2. Portfolio Valuation - YA | F18: NO
E19: 2. Portfolio Valuation - TABA | F19: NO
E20: 2. Portfolio Valuation - KWAPFI | F20: NO
E21: 3.Brokerage Details | F21: NO
B22: * Step 4: Print Report | E22: Universe | F22: NO

Sheet InMonthly (hidden)
A1: KHAZANAH | P1: KWAP | AE1: KWAPFI | AT1: MEQESG | BI1: YAMIR-VCAM | BX1: YH-AUR-VCAM | CM1: VCAM-TABA | DB1: ASEAN5ESG
A2: Month | B2: EqtTradingGain | C2: Dividend Recieved | D2: Dividend Receivable | E2: Profit Received | F2: Profit Recievable | G2: Bank Charges Expenses | H2: Mno | I2: Year | J2: Coupon Received | K2: Coupon Receivable | L2: OtherReceived | M2: OtherReceivable | N2: FI Trading Gain | O2: TradingGain | P2: Month | Q2: EqtTradingGain | R2: Dividend Recieved | S2: Dividend Receivable | T2: Profit Received | U2: Profit Recievable | V2: Bank Charges Expenses | W2: Mno | X2: Year | Y2: Coupon Received | Z2: Coupon Receivable | AA2: OtherReceived | AB2: OtherReceivable | AC2: FI Trading Gain | AD2: TradingGain | AE2: Month | AF2: EqtTradingGain | AG2: Dividend Recieved | AH2: Dividend Receivable | AI2: Profit Received | AJ2: Profit Recievable | AK2: Bank Charges Expenses | AL2: Mno | AM2: Year | AN2: Coupon Received | AO2: Coupon Receivable | AP2: OtherReceived | AQ2: OtherReceivable | AR2: FI Trading Gain | AS2: TradingGain | AT2: Month | AU2: EqtTradingGain | AV2: Dividend Recieved | AW2: Dividend Receivable | AX2: Profit Received | AY2: Profit Recievable | AZ2: Bank Charges Expenses | BA2: Mno | BB2: Year | BC2: Coupon Received | BD2: Coupon Receivable | BE2: OtherReceived | BF2: OtherReceivable | BG2: FI Trading Gain | BH2: TradingGain | BI2: Month | BJ2: EqtTradingGain | BK2: Dividend Recieved | BL2: Dividend Receivable | BM2: Profit Received | BN2: Profit Recievable | BO2: Bank Charges Expenses | BP2: Mno | BQ2: Year | BR2: Coupon Received | BS2: Coupon Receivable | BT2: OtherReceived | BU2: OtherReceivable | BV2: FI Trading Gain | BW2: TradingGain | BX2: Month | BY2: EqtTradingGain | BZ2: Dividend Recieved | CA2: Dividend Receivable | CB2: Profit Received | CC2: Profit Recievable | CD2: Bank Charges Expenses | CE2: Mno | CF2: Year | CG2: Coupon Received | CH2: Coupon Receivable | CI2: OtherReceived | CJ2: OtherReceivable | CK2: FI Trading Gain | CL2: TradingGain | CM2: Month | CN2: EqtTradingGain | CO2: Dividend Recieved | CP2: Dividend Receivable | CQ2: Profit Received | CR2: Profit Recievable | CS2: Bank Charges Expenses | CT2: Mno | CU2: Year | CV2: Coupon Received | CW2: Coupon Receivable | CX2: OtherReceived | CY2: OtherReceivable | CZ2: FI Trading Gain | DA2: TradingGain | DB2: Month | DC2: EqtTradingGain | DD2: Dividend Recieved | DE2: Dividend Receivable | DF2: Profit Received | DG2: Profit Recievable | DH2: Bank Charges Expenses | DI2: Mno | DJ2: Year | DK2: Coupon Received | DL2: Coupon Receivable | DM2: OtherReceived | DN2: OtherReceivable | DO2: FI Trading Gain | DP2: TradingGain | DQ2: Amort | DR2: FXGainLoss | DS2: UnrealisedGainLoss | DT2: Bank Charges | DU2: 0 | DV2: 0 | DW2: 0 | DX2: 0 | DY2: 0 | DZ2: 0 | EA2: 0 | EB2: 0 | EC2: 0 | ED2: 0 | EE2: 0 | EF2: 0 | EG2: 0 | EH2: 0 | EI2: 0 | EJ2: 0 | EK2: 0 | EL2: 0 | EM2: 0 | EN2: 0 | EO2: 0 | EP2: 0 | EQ2: 0 | ER2: 0 | ES2: 0 | ET2: 0 | EU2: 0 | EV2: 0 | EW2: 0 | EX2: 0 | EY2: 0 | EZ2: 0 | FA2: 0 | FB2: 0 | FC2: 0 | FD2: 0 | FE2: 0 | FF2: 0 | FG2: 0 | FH2: 0 | FI2: 0 | FJ2: 0 | FK2: 0 | FL2: 0 | FM2: 0 | FN2: 0 | FO2: 0 | FP2: 0 | FQ2: 0 | FR2: 0 | FS2: 0 | FT2: 0 | FU2: 0 | FV2: 0 | FW2: 0 | FX2: 0 | FY2: 0 | FZ2: 0 | GA2: 0 | GB2: 0 | GC2: 0 | GD2: 0 | GE2: 0 | GF2: 0 | GG2: 0 | GH2: 0 | GI2: 0 | GJ2: 0 | GK2: 0 | GL2: 0 | GM2: 0 | GN2: 0 | GO2: 0 | GP2: 0 | GQ2: 0 | GR2: 0 | GS2: 0 | GT2: 0 | GU2: 0 | GV2: 0 | GW2: 0 | GX2: 0 | GY2: 0 | GZ2: 0 | HA2: 0 | HB2: 0 | HC2: 0 | HD2: 0 | HE2: 0 | HF2: 0 | HG2: 0 | HH2: 0 | HI2: 0 | HJ2: 0 | HK2: 0 | HL2: 0 | HM2: 0 | HN2: 0 | HO2: 0 | HP2: 0 | HQ2: 0 | HR2: 0 | HS2: 0 | HT2: 0 | HU2: 0 | HV2: 0 | HW2: 0 | HX2: 0 | HY2: 0 | HZ2: 0 | IA2: 0 | IB2: 0 | IC2: 0 | ID2: 0 | IE2: 0 | IF2: 0 | IG2: 0 | IH2: 0 | II2: 0 | IJ2: 0 | IK2: 0 | IL2: 0 | IM2: 0 | IN2: 0 | IO2: 0 | IP2: 0 | IQ2: 0 | IR2: 0 | IS2: 0 | IT2: 0 | IU2: 0 | IV2: 0 | IW2: 0 | IX2: 0 | IY2: 0 | IZ2: 0 | JA2: 0 | JB2: 0 | JC2: 0 | JD2: 0 | JE2: 0 | JF2: 0 | JG2: 0 | JH2: 0 | JI2: 0 | JJ2: 0 | JK2: 0 | JL2: 0 | JM2: 0 | JN2: 0 | JO2: 0 | JP2: 0 | JQ2: 0 | JR2: 0 | JS2: 0 | JT2: 0 | JU2: 0 | JV2: 0 | JW2: 0 | JX2: 0 | JY2: 0 | JZ2: 0 | KA2: 0 | KB2: 0 | KC2: 0 | KD2: 0 | KE2: 0 | KF2: 0 | KG2: 0 | KH2: 0 | KI2: 0 | KJ2: 0 | KK2: 0 | KL2: 0 | KM2: 0 | KN2: 0 | KO2: 0 | KP2: 0 | KQ2: 0 | KR2: 0 | KS2: 0 | KT2: 0 | KU2: 0 | KV2: 0 | KW2: 0 | KX2: 0 | KY2: 0 | KZ2: 0 | LA2: 0 | LB2: 0 | LC2: 0 | LD2: 0 | LE2: 0 | LF2: 0 | LG2: 0 | LH2: 0 | LI2: 0 | LJ2: 0 | LK2: 0 | LL2: 0 | LM2: 0 | LN2: 0 | LO2: 0 | LP2: 0 | LQ2: 0 | LR2: 0 | LS2: 0 | LT2: 0 | LU2: 0 | LV2: 0 | LW2: 0 | LX2: 0 | LY2: 0 | LZ2: 0 | MA2: 0 | MB2: 0 | MC2: 0 | MD2: 0 | ME2: 0 | MF2: 0 | MG2: 0 | MH2: 0 | MI2: 0 | MJ2: 0 | MK2: 0 | ML2: 0 | MM2: 0 | MN2: 0 | MO2: 0 | MP2: 0 | MQ2: 0 | MR2: 0 | MS2: 0 | MT2: 0 | MU2: 0 | MV2: 0 | MW2: 0 | MX2: 0 | MY2: 0 | MZ2: 0 | NA2: 0 | NB2: 0 | NC2: 0 | ND2: 0 | NE2: 0 | NF2: 0 | NG2: 0 | NH2: 0 | NI2: 0 | NJ2: 0 | NK2: 0 | NL2: 0 | NM2: 0 | NN2: 0 | NO2: 0 | NP2: 0 | NQ2: 0 | NR2: 0 | NS2: 0 | NT2: 0 | NU2: 0 | NV2: 0 | NW2: 0 | NX2: 0 | NY2: 0 | NZ2: 0 | OA2: 0 | OB2: 0 | OC2: 0 | OD2: 0 | OE2: 0 | OF2: 0 | OG2: 0 | OH2: 0 | OI2: 0 | OJ2: 0 | OK2: 0 | OL2: 0 | OM2: 0 | ON2: 0 | OO2: 0 | OP2: 0 | OQ2: 0 | OR2: 0 | OS2: 0 | OT2: 0 | OU2: 0 | OV2: 0 | OW2: 0 | OX2: 0 | OY2: 0 | OZ2: 0 | PA2: 0 | PB2: 0 | PC2: 0 | PD2: 0 | PE2: 0 | PF2: 0 | PG2: 0 | PH2: 0 | PI2: 0 | PJ2: 0 | PK2: 0 | PL2: 0 | PM2: 0 | PN2: 0 | PO2: 0 | PP2: 0 | PQ2: 0 | PR2: 0 | PS2: 0 | PT2: 0 | PU2: 0 | PV2: 0 | PW2: 0 | PX2: 0 | PY2: 0 | PZ2: 0 | QA2: 0 | QB2: 0 | QC2: 0 | QD2: 0 | QE2: 0 | QF2: 0 | QG2: 0 | QH2: 0 | QI2: 0 | QJ2: 0 | QK2: 0 | QL2: 0 | QM2: 0 | QN2: 0 | QO2: 0 | QP2: 0 | QQ2: 0 | QR2: 0 | QS2: 0 | QT2: 0 | QU2: 0 | QV2: 0 | QW2: 0 | QX2: 0 | QY2: 0 | QZ2: 0 | RA2: 0 | RB2: 0 | RC2: 0 | RD2: 0 | RE2: 0 | RF2: 0 | RG2: 0 | RH2: 0 | RI2: 0 | RJ2: 0 | RK2: 0 | RL2: 0 | RM2: 0 | RN2: 0 | RO2: 0 | RP2: 0 | RQ2: 0 | RR2: 0 | RS2: 0 | RT2: 0 | RU2: 0 | RV2: 0 | RW2: 0 | RX2: 0 | RY2: 0 | RZ2: 0 | SA2: 0 | SB2: 0 | SC2: 0 | SD2: 0 | SE2: 0 | SF2: 0 | SG2: 0 | SH2: 0 | SI2: 0 | SJ2: 0 | SK2: 0 | SL2: 0 | SM2: 0 | SN2: 0 | SO2: 0 | SP2: 0 | SQ2: 0 | SR2: 0 | SS2: 0 | ST2: 0 | SU2: 0 | SV2: 0 | SW2: 0 | SX2: 0 | SY2: 0 | SZ2: 0 | TA2: 0 | TB2: 0 | TC2: 0 | TD2: 0 | TE2: 0 | TF2: 0 | TG2: 0 | TH2: 0 | TI2: 0 | TJ2: 0 | TK2: 0 | TL2: 0 | TM2: 0 | TN2: 0 | TO2: 0 | TP2: 0 | TQ2: 0 | TR2: 0 | TS2: 0 | TT2: 0 | TU2: 0 | TV2: 0 | TW2: 0 | TX2: 0 | TY2: 0 | TZ2: 0 | UA2: 0 | UB2: 0 | UC2: 0 | UD2: 0 | UE2: 0 | UF2: 0 | UG2: 0 | UH2: 0 | UI2: 0 | UJ2: 0 | UK2: 0 | UL2: 0 | UM2: 0 | UN2: 0 | UO2: 0 | UP2: 0 | UQ2: 0 | UR2: 0 | US2: 0 | UT2: 0 | UU2: 0 | UV2: 0 | UW2: 0 | UX2: 0 | UY2: 0 | UZ2: 0 | VA2: 0 | VB2: 0 | VC2: 0 | VD2: 0 | VE2: 0 | VF2: 0 | VG2: 0 | VH2: 0 | VI2: 0 | VJ2: 0 | VK2: 0 | VL2: 0 | VM2: 0 | VN2: 0 | VO2: 0 | VP2: 0 | VQ2: 0 | VR2: 0 | VS2: 0 | VT2: 0 | VU2: 0 | VV2: 0 | VW2: 0 | VX2: 0 | VY2: 0 | VZ2: 0 | WA2: 0 | WB2: 0 | WC2: 0 | WD2: 0 | WE2: 0 | WF2: 0 | WG2: 0 | WH2: 0 | WI2: 0 | WJ2: 0 | WK2: 0 | WL2: 0 | WM2: 0 | WN2: 0 | WO2: 0 | WP2: 0 | WQ2: 0 | WR2: 0 | WS2: 0 | WT2: 0 | WU2: 0 | WV2: 0 | WW2: 0 | WX2: 0 | WY2: 0 | WZ2: 0 | XA2: 0 | XB2: 0 | XC2: 0 | XD2: 0 | XE2: 0 | XF2: 0 | XG2: 0 | XH2: 0 | XI2: 0 | XJ2: 0 | XK2: 0 | XL2: 0 | XM2: 0 | XN2: 0 | XO2: 0 | XP2: 0 | XQ2: 0 | XR2: 0 | XS2: 0 | XT2: 0 | XU2: 0 | XV2: 0 | XW2: 0 | XX2: 0 | XY2: 0 | XZ2: 0 | YA2: 0 | YB2: 0 | YC2: 0 | YD2: 0 | YE2: 0 | YF2: 0 | YG2: 0 | YH2: 0 | YI2: 0 | YJ2: 0 | YK2: 0 | YL2: 0 | YM2: 0 | YN2: 0 | YO2: 0 | YP2: 0 | YQ2: 0 | YR2: 0 | YS2: 0 | YT2: 0 | YU2: 0 | YV2: 0 | YW2: 0 | YX2: 0 | YY2: 0 | YZ2: 0 | ZA2: 0 | ZB2: 0 | ZC2: 0 | ZD2: 0 | ZE2: 0 | ZF2: 0 | ZG2: 0 | ZH2: 0 | ZI2: 0 | ZJ2: 0 | ZK2: 0 | ZL2: 0 | ZM2: 0 | ZN2: 0 | ZO2: 0 | ZP2: 0 | ZQ2: 0 | ZR2: 0 | ZS2: 0 | ZT2: 0 | ZU2: 0 | ZV2: 0 | ZW2: 0 | ZX2: 0 | ZY2: 0 | ZZ2: 0
A3: December | B3: 0 | C3: 0 | D3: 0 | E3: 0 | F3: 0 | G3: 0 | H3: 12 | I3: 2017 | J3: 0 | K3: 0 | L3: 0 | M3: 0 | N3: 0 | O3: 0 | P3: December | Q3: 89343873.23 | R3: 84398324.83 | S3: 0 | T3: 17481807.97 | U3: 329718.6 | V3: 0 | W3: 12 | X3: 2017 | Y3: 0 | Z3: 0 | AA3: 10566.56 | AB3: 0 | AC3: 0 | AD3: 89343873.23 | AE3: December | AF3: 0 | AG3: 0 | AH3: 0 | AI3: 2393690.46 | AJ3: 1809.39 | AK3: 0 | AL3: 12 | AM3: 2017 | AN3: 24268197.73 | AO3: 3673131.18 | AP3: 10224.52 | AQ3: 0 | AR3: 5553900 | AS3: 5553900 | AT3: December | AU3: 7469143.15 | AV3: 3779766.67 | AW3: 179794 | AX3: 677816.84 | AY3: 21342.79 | AZ3: 1329761.79 | BA3: 12 | BB3: 2017 | BC3: 0 | BD3: 0 | BE3: 0 | BF3: 0 | BG3: 0 | BH3: 7469143.15 | BI3: December | BJ3: 7706261.16 | BK3: 2495519.17 | BL3: 0 | BM3: 1866024.39 | BN3: 10172.48 | BO3: 635302.56 | BP3: 12 | BQ3: 2017 | BR3: 0 | BS3: 0 | BT3: 1768.44 | BU3: 0 | BV3: 0 | BW3: 7706261.16 | BX3: December | BY3: 171119215.8 | BZ3: 208608646.8 | CA3: 122159.96 | CB3: 52071271.42 | CC3: 1129266.58 | CD3: 42345999.63 | CE3: 12 | CF3: 2017 | CG3: 52047838.39 | CH3: 11720195.07 | CI3: 16144.88 | CJ3: 0 | CK3: 8056700 | CL3: 179175915.8 | CM3: December | CN3: 476693.18 | CO3: 126005.5 | CP3: 0 | CQ3: 38136.55 | CR3: 124.18 | CS3: 65882.01 | CT3: 12 | CU3: 2017 | CV3: 70543.84 | CW3: 59263.22 | CX3: 375.62 | CY3: 0 | CZ3: 0 | DA3: 476693.18 | DB3: December | DC3: 2119.78 | DD3: 15598.76 | DE3: 975.5192878 | DF3: 6821.46 | DG3: 197.13 | DH3: 47518.54 | DI3: 12 | DJ3: 2017 | DK3: 0 | DL3: 0 | DM3: 26033.5 | DN3: 0 | DO3: 0 | DP3: 2119.78 | DQ3: 0 | DR3: 20686.1 | DS3: 95959.51732 | DT3: 176.19 | DU3: 0 | DV3: 0 | DW3: 0 | DX3: 0 | DY3: 0 | DZ3: 0 | EA3: 0 | EB3: 0 | EC3: 0 | ED3: 0 | EE3: 0 | EF3: 0 | EG3: 0 | EH3: 0 | EI3: 0 | EJ3: 0 | EK3: 0 | EL3: 0 | EM3: 0 | EN3: 0 | EO3: 0 | EP3: 0 | EQ3: 0 | ER3: 0 | ES3: 0 | ET3: 0 | EU3: 0 | EV3: 0 | EW3: 0 | EX3: 0 | EY3: 0 | EZ3: 0 | FA3: 0 | FB3: 0 | FC3: 0 | FD3: 0 | FE3: 0 | FF3: 0 | FG3: 0 | FH3: 0 | FI3: 0 | FJ3: 0 | FK3: 0 | FL3: 0 | FM3: 0 | FN3: 0 | FO3: 0 | FP3: 0 | FQ3: 0 | FR3: 0 | FS3: 0 | FT3: 0 | FU3: 0 | FV3: 0 | FW3: 0 | FX3: 0 | FY3: 0 | FZ3: 0 | GA3: 0 | GB3: 0 | GC3: 0 | GD3: 0 | GE3: 0 | GF3: 0 | GG3: 0 | GH3: 0 | GI3: 0 | GJ3: 0 | GK3: 0 | GL3: 0 | GM3: 0 | GN3: 0 | GO3: 0 | GP3: 0 | GQ3: 0 | GR3: 0 | GS3: 0 | GT3: 0 | GU3: 0 | GV3: 0 | GW3: 0 | GX3: 0 | GY3: 0 | GZ3: 0 | HA3: 0 | HB3: 0 | HC3: 0 | HD3: 0 | HE3: 0 | HF3: 0 | HG3: 0 | HH3: 0 | HI3: 0 | HJ3: 0 | HK3: 0 | HL3: 0 | HM3: 0 | HN3: 0 | HO3: 0 | HP3: 0 | HQ3: 0 | HR3: 0 | HS3: 0 | HT3: 0 | HU3: 0 | HV3: 0 | HW3: 0 | HX3: 0 | HY3: 0 | HZ3: 0 | IA3: 0 | IB3: 0 | IC3: 0 | ID3: 0 | IE3: 0 | IF3: 0 | IG3: 0 | IH3: 0 | II3: 0 | IJ3: 0 | IK3: 0 | IL3: 0 | IM3: 0 | IN3: 0 | IO3: 0 | IP3: 0 | IQ3: 0 | IR3: 0 | IS3: 0 | IT3: 0 | IU3: 0 | IV3: 0 | IW3: 0 | IX3: 0 | IY3: 0 | IZ3: 0 | JA3: 0 | JB3: 0 | JC3: 0 | JD3: 0 | JE3: 0 | JF3: 0 | JG3: 0 | JH3: 0 | JI3: 0 | JJ3: 0 | JK3: 0 | JL3: 0 | JM3: 0 | JN3: 0 | JO3: 0 | JP3: 0 | JQ3: 0 | JR3: 0 | JS3: 0 | JT3: 0 | JU3: 0 | JV3: 0 | JW3: 0 | JX3: 0 | JY3: 0 | JZ3: 0 | KA3: 0 | KB3: 0 | KC3: 0 | KD3: 0 | KE3: 0 | KF3: 0 | KG3: 0 | KH3: 0 | KI3: 0 | KJ3: 0 | KK3: 0 | KL3: 0 | KM3: 0 | KN3: 0 | KO3: 0 | KP3: 0 | KQ3: 0 | KR3: 0 | KS3: 0 | KT3: 0 | KU3: 0 | KV3: 0 | KW3: 0 | KX3: 0 | KY3: 0 | KZ3: 0 | LA3: 0 | LB3: 0 | LC3: 0 | LD3: 0 | LE3: 0 | LF3: 0 | LG3: 0 | LH3: 0 | LI3: 0 | LJ3: 0 | LK3: 0 | LL3: 0 | LM3: 0 | LN3: 0 | LO3: 0 | LP3: 0 | LQ3: 0 | LR3: 0 | LS3: 0 | LT3: 0 | LU3: 0 | LV3: 0 | LW3: 0 | LX3: 0 | LY3: 0 | LZ3: 0 | MA3: 0 | MB3: 0 | MC3: 0 | MD3: 0 | ME3: 0 | MF3: 0 | MG3: 0 | MH3: 0 | MI3: 0 | MJ3: 0 | MK3: 0 | ML3: 0 | MM3: 0 | MN3: 0 | MO3: 0 | MP3: 0 | MQ3: 0 | MR3: 0 | MS3: 0 | MT3: 0 | MU3: 0 | MV3: 0 | MW3: 0 | MX3: 0 | MY3: 0 | MZ3: 0 | NA3: 0 | NB3: 0 | NC3: 0 | ND3: 0 | NE3: 0 | NF3: 0 | NG3: 0 | NH3: 0 | NI3: 0 | NJ3: 0 | NK3: 0 | NL3: 0 | NM3: 0 | NN3: 0 | NO3: 0 | NP3: 0 | NQ3: 0 | NR3: 0 | NS3: 0 | NT3: 0 | NU3: 0 | NV3: 0 | NW3: 0 | NX3: 0 | NY3: 0 | NZ3: 0 | OA3: 0 | OB3: 0 | OC3: 0 | OD3: 0 | OE3: 0 | OF3: 0 | OG3: 0 | OH3: 0 | OI3: 0 | OJ3: 0 | OK3: 0 | OL3: 0 | OM3: 0 | ON3: 0 | OO3: 0 | OP3: 0 | OQ3: 0 | OR3: 0 | OS3: 0 | OT3: 0 | OU3: 0 | OV3: 0 | OW3: 0 | OX3: 0 | OY3: 0 | OZ3: 0 | PA3: 0 | PB3: 0 | PC3: 0 | PD3: 0 | PE3: 0 | PF3: 0 | PG3: 0 | PH3: 0 | PI3: 0 | PJ3: 0 | PK3: 0 | PL3: 0 | PM3: 0 | PN3: 0 | PO3: 0 | PP3: 0 | PQ3: 0 | PR3: 0 | PS3: 0 | PT3: 0 | PU3: 0 | PV3: 0 | PW3: 0 | PX3: 0 | PY3: 0 | PZ3: 0 | QA3: 0 | QB3: 0 | QC3: 0 | QD3: 0 | QE3: 0 | QF3: 0 | QG3: 0 | QH3: 0 | QI3: 0 | QJ3: 0 | QK3: 0 | QL3: 0 | QM3: 0 | QN3: 0 | QO3: 0 | QP3: 0 | QQ3: 0 | QR3: 0 | QS3: 0 | QT3: 0 | QU3: 0 | QV3: 0 | QW3: 0 | QX3: 0 | QY3: 0 | QZ3: 0 | RA3: 0 | RB3: 0 | RC3: 0 | RD3: 0 | RE3: 0 | RF3: 0 | RG3: 0 | RH3: 0 | RI3: 0 | RJ3: 0 | RK3: 0 | RL3: 0 | RM3: 0 | RN3: 0 | RO3: 0 | RP3: 0 | RQ3: 0 | RR3: 0 | RS3: 0 | RT3: 0 | RU3: 0 | RV3: 0 | RW3: 0 | RX3: 0 | RY3: 0 | RZ3: 0 | SA3: 0 | SB3: 0 | SC3: 0 | SD3: 0 | SE3: 0 | SF3: 0 | SG3: 0 | SH3: 0 | SI3: 0 | SJ3: 0 | SK3: 0 | SL3: 0 | SM3: 0 | SN3: 0 | SO3: 0 | SP3: 0 | SQ3: 0 | SR3: 0 | SS3: 0 | ST3: 0 | SU3: 0 | SV3: 0 | SW3: 0 | SX3: 0 | SY3: 0 | SZ3: 0 | TA3: 0 | TB3: 0 | TC3: 0 | TD3: 0 | TE3: 0 | TF3: 0 | TG3: 0 | TH3: 0 | TI3: 0 | TJ3: 0 | TK3: 0 | TL3: 0 | TM3: 0 | TN3: 0 | TO3: 0 | TP3: 0 | TQ3: 0 | TR3: 0 | TS3: 0 | TT3: 0 | TU3: 0 | TV3: 0 | TW3: 0 | TX3: 0 | TY3: 0 | TZ3: 0 | UA3: 0 | UB3: 0 | UC3: 0 | UD3: 0 | UE3: 0 | UF3: 0 | UG3: 0 | UH3: 0 | UI3: 0 | UJ3: 0 | UK3: 0 | UL3: 0 | UM3: 0 | UN3: 0 | UO3: 0 | UP3: 0 | UQ3: 0 | UR3: 0 | US3: 0 | UT3: 0 | UU3: 0 | UV3: 0 | UW3: 0 | UX3: 0 | UY3: 0 | UZ3: 0 | VA3: 0 | VB3: 0 | VC3: 0 | VD3: 0 | VE3: 0 | VF3: 0 | VG3: 0 | VH3: 0 | VI3: 0 | VJ3: 0 | VK3: 0 | VL3: 0 | VM3: 0 | VN3: 0 | VO3: 0 | VP3: 0 | VQ3: 0 | VR3: 0 | VS3: 0 | VT3: 0 | VU3: 0 | VV3: 0 | VW3: 0 | VX3: 0 | VY3: 0 | VZ3: 0 | WA3: 0 | WB3: 0 | WC3: 0 | WD3: 0 | WE3: 0 | WF3: 0 | WG3: 0 | WH3: 0 | WI3: 0 | WJ3: 0 | WK3: 0 | WL3: 0 | WM3: 0 | WN3: 0 | WO3: 0 | WP3: 0 | WQ3: 0 | WR3: 0 | WS3: 0 | WT3: 0 | WU3: 0 | WV3: 0 | WW3: 0 | WX3: 0 | WY3: 0 | WZ3: 0 | XA3: 0 | XB3: 0 | XC3: 0 | XD3: 0 | XE3: 0 | XF3: 0 | XG3: 0 | XH3: 0 | XI3: 0 | XJ3: 0 | XK3: 0 | XL3: 0 | XM3: 0 | XN3: 0 | XO3: 0 | XP3: 0 | XQ3: 0 | XR3: 0 | XS3: 0 | XT3: 0 | XU3: 0 | XV3: 0 | XW3: 0 | XX3: 0 | XY3: 0 | XZ3: 0 | YA3: 0 | YB3: 0 | YC3: 0 | YD3: 0 | YE3: 0 | YF3: 0 | YG3: 0 | YH3: 0 | YI3: 0 | YJ3: 0 | YK3: 0 | YL3: 0 | YM3: 0 | YN3: 0 | YO3: 0 | YP3: 0 | YQ3: 0 | YR3: 0 | YS3: 0 | YT3: 0 | YU3: 0 | YV3: 0 | YW3: 0 | YX3: 0 | YY3: 0 | YZ3: 0 | ZA3: 0 | ZB3: 0 | ZC3: 0 | ZD3: 0 | ZE3: 0 | ZF3: 0 | ZG3: 0 | ZH3: 0 | ZI3: 0 | ZJ3: 0 | ZK3: 0 | ZL3: 0 | ZM3: 0 | ZN3: 0 | ZO3: 0 | ZP3: 0 | ZQ3: 0 | ZR3: 0 | ZS3: 0 | ZT3: 0 | ZU3: 0 | ZV3: 0 | ZW3: 0 | ZX3: 0 | ZY3: 0 | ZZ3: 0
A4: January | B4: 0 | C4: 0 | D4: 0 | E4: 0 | F4: 0 | G4: 0 | H4: 1 | I4: 2018 | J4: 0 | K4: 0 | L4: 0 | M4: 0 | N4: 0 | O4: 0 | P4: January | Q4: 89650240.79 | R4: 84548324.83 | S4: 150000 | T4: 17642075.97 | U4: 242512.61 | V4: 0 | W4: 1 | X4: 2018 | Y4: 0 | Z4: 0 | AA4: 11136.24 | AB4: 0 | AC4: 0 | AD4: 89650240.79 | AE4: January | AF4: 0 | AG4: 0 | AH4: 0 | AI4: 2396922.76 | AJ4: 389.52 | AK4: 0 | AL4: 1 | AM4: 2018 | AN4: 24268197.73 | AO4: 3847944.63 | AP4: 10342.07 | AQ4: 0 | AR4: 5553900 | AS4: 5553900 | AT4: January | AU4: 12344952.2 | AV4: 3783545.47 | AW4: 183572.8 | AX4: 704940.15 | AY4: 13607.23 | AZ4: 1396986.51 | BA4: 1 | BB4: 2018 | BC4: 0 | BD4: 0 | BE4: 0 | BF4: 0 | BG4: 0 | BH4: 12344952.2 | BI4: January | BJ4: 7706261.16 | BK4: 2495519.17 | BL4: 0 | BM4: 1878341.99 | BN4: 4287.76 | BO4: 635313.16 | BP4: 1 | BQ4: 2018 | BR4: 0 | BS4: 0 | BT4: 1894.82 | BU4: 0 | BV4: 0 | BW4: 7706261.16 | BX4: January | BY4: 172081636.4 | BZ4: 208884076.8 | CA4: 397589.96 | CB4: 52802852.32 | CC4: 532129.01 | CD4: 42346020.83 | CE4: 1 | CF4: 2018 | CG4: 52047838.39 | CH4: 12300896.36 | CI4: 16651.44 | CJ4: 0 | CK4: 8056700 | CL4: 180138336.4 | CM4: January | CN4: 543413.07 | CO4: 126005.5 | CP4: 0 | CQ4: 38302.13 | CR4: 208.36 | CS4: 65887.31 | CT4: 1 | CU4: 2018 | CV4: 70543.84 | CW4: 61123.76 | CX4: 385.46 | CY4: 0 | CZ4: 0 | DA4: 543413.07 | DB4: January | DC4: 2119.78 | DD4: 15598.76 | DE4: 985.0187266 | DF4: 7099.74 | DG4: 37.95 | DH4: 53929.53 | DI4: 1 | DJ4: 2018 | DK4: 0 | DL4: 0 | DM4: 26033.5 | DN4: 0 | DO4: 0 | DP4: 2119.78 | DQ4: 0 | DR4: 26527.53 | DS4: 117180.3456 | DT4: 177.25 | DU4: 0 | DV4: 0 | DW4: 0 | DX4: 0 | DY4: 0 | DZ4: 0 | EA4: 0 | EB4: 0 | EC4: 0 | ED4: 0 | EE4: 0 | EF4: 0 | EG4: 0 | EH4: 0 | EI4: 0 | EJ4: 0 | EK4: 0 | EL4: 0 | EM4: 0 | EN4: 0 | EO4: 0 | EP4: 0 | EQ4: 0 | ER4: 0 | ES4: 0 | ET4: 0 | EU4: 0 | EV4: 0 | EW4: 0 | EX4: 0 | EY4: 0 | EZ4: 0 | FA4: 0 | FB4: 0 | FC4: 0 | FD4: 0 | FE4: 0 | FF4: 0 | FG4: 0 | FH4: 0 | FI4: 0 | FJ4: 0 | FK4: 0 | FL4: 0 | FM4: 0 | FN4: 0 | FO4: 0 | FP4: 0 | FQ4: 0 | FR4: 0 | FS4: 0 | FT4: 0 | FU4: 0 | FV4: 0 | FW4: 0 | FX4: 0 | FY4: 0 | FZ4: 0 | GA4: 0 | GB4: 0 | GC4: 0 | GD4: 0 | GE4: 0 | GF4: 0 | GG4: 0 | GH4: 0 | GI4: 0 | GJ4: 0 | GK4: 0 | GL4: 0 | GM4: 0 | GN4: 0 | GO4: 0 | GP4: 0 | GQ4: 0 | GR4: 0 | GS4: 0 | GT4: 0 | GU4: 0 | GV4: 0 | GW4: 0 | GX4: 0 | GY4: 0 | GZ4: 0 | HA4: 0 | HB4: 0 | HC4: 0 | HD4: 0 | HE4: 0 | HF4: 0 | HG4: 0 | HH4: 0 | HI4: 0 | HJ4: 0 | HK4: 0 | HL4: 0 | HM4: 0 | HN4: 0 | HO4: 0 | HP4: 0 | HQ4: 0 | HR4: 0 | HS4: 0 | HT4: 0 | HU4: 0 | HV4: 0 | HW4: 0 | HX4: 0 | HY4: 0 | HZ4: 0 | IA4: 0 | IB4: 0 | IC4: 0 | ID4: 0 | IE4: 0 | IF4: 0 | IG4: 0 | IH4: 0 | II4: 0 | IJ4: 0 | IK4: 0 | IL4: 0 | IM4: 0 | IN4: 0 | IO4: 0 | IP4: 0 | IQ4: 0 | IR4: 0 | IS4: 0 | IT4: 0 | IU4: 0 | IV4: 0 | IW4: 0 | IX4: 0 | IY4: 0 | IZ4: 0 | JA4: 0 | JB4: 0 | JC4: 0 | JD4: 0 | JE4: 0 | JF4: 0 | JG4: 0 | JH4: 0 | JI4: 0 | JJ4: 0 | JK4: 0 | JL4: 0 | JM4: 0 | JN4: 0 | JO4: 0 | JP4: 0 | JQ4: 0 | JR4: 0 | JS4: 0 | JT4: 0 | JU4: 0 | JV4: 0 | JW4: 0 | JX4: 0 | JY4: 0 | JZ4: 0 | KA4: 0 | KB4: 0 | KC4: 0 | KD4: 0 | KE4: 0 | KF4: 0 | KG4: 0 | KH4: 0 | KI4: 0 | KJ4: 0 | KK4: 0 | KL4: 0 | KM4: 0 | KN4: 0 | KO4: 0 | KP4: 0 | KQ4: 0 | KR4: 0 | KS4: 0 | KT4: 0 | KU4: 0 | KV4: 0 | KW4: 0 | KX4: 0 | KY4: 0 | KZ4: 0 | LA4: 0 | LB4: 0 | LC4: 0 | LD4: 0 | LE4: 0 | LF4: 0 | LG4: 0 | LH4: 0 | LI4: 0 | LJ4: 0 | LK4: 0 | LL4: 0 | LM4: 0 | LN4: 0 | LO4: 0 | LP4: 0 | LQ4: 0 | LR4: 0 | LS4: 0 | LT4: 0 | LU4: 0 | LV4: 0 | LW4: 0 | LX4: 0 | LY4: 0 | LZ4: 0 | MA4: 0 | MB4: 0 | MC4: 0 | MD4: 0 | ME4: 0 | MF4: 0 | MG4: 0 | MH4: 0 | MI4: 0 | MJ4: 0 | MK4: 0 | ML4: 0 | MM4: 0 | MN4: 0 | MO4: 0 | MP4: 0 | MQ4: 0 | MR4: 0 | MS4: 0 | MT4: 0 | MU4: 0 | MV4: 0 | MW4: 0 | MX4: 0 | MY4: 0 | MZ4: 0 | NA4: 0 | NB4: 0 | NC4: 0 | ND4: 0 | NE4: 0 | NF4: 0 | NG4: 0 | NH4: 0 | NI4: 0 | NJ4: 0 | NK4: 0 | NL4: 0 | NM4: 0 | NN4: 0 | NO4: 0 | NP4: 0 | NQ4: 0 | NR4: 0 | NS4: 0 | NT4: 0 | NU4: 0 | NV4: 0 | NW4: 0 | NX4: 0 | NY4: 0 | NZ4: 0 | OA4: 0 | OB4: 0 | OC4: 0 | OD4: 0 | OE4: 0 | OF4: 0 | OG4: 0 | OH4: 0 | OI4: 0 | OJ4: 0 | OK4: 0 | OL4: 0 | OM4: 0 | ON4: 0 | OO4: 0 | OP4: 0 | OQ4: 0 | OR4: 0 | OS4: 0 | OT4: 0 | OU4: 0 | OV4: 0 | OW4: 0 | OX4: 0 | OY4: 0 | OZ4: 0 | PA4: 0 | PB4: 0 | PC4: 0 | PD4: 0 | PE4: 0 | PF4: 0 | PG4: 0 | PH4: 0 | PI4: 0 | PJ4: 0 | PK4: 0 | PL4: 0 | PM4: 0 | PN4: 0 | PO4: 0 | PP4: 0 | PQ4: 0 | PR4: 0 | PS4: 0 | PT4: 0 | PU4: 0 | PV4: 0 | PW4: 0 | PX4: 0 | PY4: 0 | PZ4: 0 | QA4: 0 | QB4: 0 | QC4: 0 | QD4: 0 | QE4: 0 | QF4: 0 | QG4: 0 | QH4: 0 | QI4: 0 | QJ4: 0 | QK4: 0 | QL4: 0 | QM4: 0 | QN4: 0 | QO4: 0 | QP4: 0 | QQ4: 0 | QR4: 0 | QS4: 0 | QT4: 0 | QU4: 0 | QV4: 0 | QW4: 0 | QX4: 0 | QY4: 0 | QZ4: 0 | RA4: 0 | RB4: 0 | RC4: 0 | RD4: 0 | RE4: 0 | RF4: 0 | RG4: 0 | RH4: 0 | RI4: 0 | RJ4: 0 | RK4: 0 | RL4: 0 | RM4: 0 | RN4: 0 | RO4: 0 | RP4: 0 | RQ4: 0 | RR4: 0 | RS4: 0 | RT4: 0 | RU4: 0 | RV4: 0 | RW4: 0 | RX4: 0 | RY4: 0 | RZ4: 0 | SA4: 0 | SB4: 0 | SC4: 0 | SD4: 0 | SE4: 0 | SF4: 0 | SG4: 0 | SH4: 0 | SI4: 0 | SJ4: 0 | SK4: 0 | SL4: 0 | SM4: 0 | SN4: 0 | SO4: 0 | SP4: 0 | SQ4: 0 | SR4: 0 | SS4: 0 | ST4: 0 | SU4: 0 | SV4: 0 | SW4: 0 | SX4: 0 | SY4: 0 | SZ4: 0 | TA4: 0 | TB4: 0 | TC4: 0 | TD4: 0 | TE4: 0 | TF4: 0 | TG4: 0 | TH4: 0 | TI4: 0 | TJ4: 0 | TK4: 0 | TL4: 0 | TM4: 0 | TN4: 0 | TO4: 0 | TP4: 0 | TQ4: 0 | TR4: 0 | TS4: 0 | TT4: 0 | TU4: 0 | TV4: 0 | TW4: 0 | TX4: 0 | TY4: 0 | TZ4: 0 | UA4: 0 | UB4: 0 | UC4: 0 | UD4: 0 | UE4: 0 | UF4: 0 | UG4: 0 | UH4: 0 | UI4: 0 | UJ4: 0 | UK4: 0 | UL4: 0 | UM4: 0 | UN4: 0 | UO4: 0 | UP4: 0 | UQ4: 0 | UR4: 0 | US4: 0 | UT4: 0 | UU4: 0 | UV4: 0 | UW4: 0 | UX4: 0 | UY4: 0 | UZ4: 0 | VA4: 0 | VB4: 0 | VC4: 0 | VD4: 0 | VE4: 0 | VF4: 0 | VG4: 0 | VH4: 0 | VI4: 0 | VJ4: 0 | VK4: 0 | VL4: 0 | VM4: 0 | VN4: 0 | VO4: 0 | VP4: 0 | VQ4: 0 | VR4: 0 | VS4: 0 | VT4: 0 | VU4: 0 | VV4: 0 | VW4: 0 | VX4: 0 | VY4: 0 | VZ4: 0 | WA4: 0 | WB4: 0 | WC4: 0 | WD4: 0 | WE4: 0 | WF4: 0 | WG4: 0 | WH4: 0 | WI4: 0 | WJ4: 0 | WK4: 0 | WL4: 0 | WM4: 0 | WN4: 0 | WO4: 0 | WP4: 0 | WQ4: 0 | WR4: 0 | WS4: 0 | WT4: 0 | WU4: 0 | WV4: 0 | WW4: 0 | WX4: 0 | WY4: 0 | WZ4: 0 | XA4: 0 | XB4: 0 | XC4: 0 | XD4: 0 | XE4: 0 | XF4: 0 | XG4: 0 | XH4: 0 | XI4: 0 | XJ4: 0 | XK4: 0 | XL4: 0 | XM4: 0 | XN4: 0 | XO4: 0 | XP4: 0 | XQ4: 0 | XR4: 0 | XS4: 0 | XT4: 0 | XU4: 0 | XV4: 0 | XW4: 0 | XX4: 0 | XY4: 0 | XZ4: 0 | YA4: 0 | YB4: 0 | YC4: 0 | YD4: 0 | YE4: 0 | YF4: 0 | YG4: 0 | YH4: 0 | YI4: 0 | YJ4: 0 | YK4: 0 | YL4: 0 | YM4: 0 | YN4: 0 | YO4: 0 | YP4: 0 | YQ4: 0 | YR4: 0 | YS4: 0 | YT4: 0 | YU4: 0 | YV4: 0 | YW4: 0 | YX4: 0 | YY4: 0 | YZ4: 0 | ZA4: 0 | ZB4: 0 | ZC4: 0 | ZD4: 0 | ZE4: 0 | ZF4: 0 | ZG4: 0 | ZH4: 0 | ZI4: 0 | ZJ4: 0 | ZK4: 0 | ZL4: 0 | ZM4: 0 | ZN4: 0 | ZO4: 0 | ZP4: 0 | ZQ4: 0 | ZR4: 0 | ZS4: 0 | ZT4: 0 | ZU4: 0 | ZV4: 0 | ZW4: 0 | ZX4: 0 | ZY4: 0 | ZZ4: 0

Sheet 2. Portfolio KNB - Strategy (hidden)
K1: =SUMIFS(InTBYTD!F:F,InTBYTD!C:C,$AH$2,InTBYTD!A:A,ValueDate,InTBYTD!K:K,"CSH") -> 0 | L1: =COUNTIF(InPos!B:B,$AH$2)+9 -> 1900-01-09 | M1: =IF(ISNA(MATCH($AH$2,InPos!B:B,0)),1,MATCH($AH$2,InPos!B:B,0))-1 -> 0 | O1: =SUMIFS(InTWRR!$D:$D,InTWRR!$A:$A,$AH$2,InTWRR!$B:$B,ValueDate) -> 0 | Q1: =SUM(InPos!M:M) -> 490871549297 | AA1: =COUNTIFS(InPosCsh!B:B,"BND",InPosCsh!C:C,$AH$2)+ROW(A196) -> 196 | AG1: =IF(ISNA(MATCH($AH$2,InPosCsh!C:C,0))=TRUE,1,MATCH($AH$2,InPosCsh!C:C,0))-1 -> 0 | AH1: =SUM(K197:K245) -> 0 | AJ1: =COUNTIFS(InPos!O:O,"WHF",InPos!B:B,$AH$2)+ROW(B250) -> 1900-09-06 | AK1: =IF(ISNA(MATCH($AH$2&"WHF",InPos!B:B&InPos!O:O,0)),1,MATCH($AH$2&"WHF",InPos!B:B&InPos!O:O,0))-1 -> 00:00:00
B2: =VLOOKUP($AH$2,Reference!A:B,2,0) -> KHAZANAH Fund - Non ESG Domestic Equities | D2: ALL | AG2: Fund code | AH2: KHAZANAH
B3: ="HOLDINGS REPORT AS AT " & TEXT(ValueDate,"dd-mmm-yyyy") -> HOLDINGS REPORT AS AT 04-Jan-2018 | AG3: ESG
B4: CLOSING KLCI: | C4: =InIndex!C10 -> 1803.45
B5: CLOSING FBM100: | C5: =InIndex!C18 -> 12686.71
B7: Security Code | C7: Security Name | D7: Long Name | E7: ESG | G7: Quantity | H7: Average Cost (RM) | I7: Total Cost (RM) | J7: Market Price (RM) | K7: Market Value (RM) | L7: Unrealised Gain/(Loss) (RM) | M7: % Gain /(Loss) | N7: % Equity | O7: % NAV | P7: Unit Issued | Q7: % of Paid Up Capital | R7: Sector | S7: Div Yield (Cost) | T7: Div Yield (Mkt) | U7: EPS | V7: PE | W7: P/BV | AB7: EPS (weighted MV) | AC7: BPS (weighted MV) | AD7: DPS (weighted MV) | AE7: EQT DIV Yield (Cost) | AF7: EQT DIV Yield (Mkt)
E8: Rating | F8: Score | J8: Current* | Y8: EPS | Z8: BPS | AA8: DPS
B9: Equity | D9: LONG_COMP_NAME
S10: =IF(ISNA(VLOOKUP(C10,UniverseRange,5,0))=TRUE,"",IF(VLOOKUP(C10,UniverseRange,5,0)=0,"",VLOOKUP(C10,UniverseRange,5,0))) ->  | T10: =IF(ISNA(VLOOKUP(C10,UniverseRange,6,0))=TRUE,"",IF(VLOOKUP(C10,UniverseRange,6,0)=0,"",VLOOKUP(C10,UniverseRange,6,0))) ->  | U10: =IF(ISNA(VLOOKUP(C10,UniverseRange,7,0))=TRUE,"",IF(VLOOKUP(C10,UniverseRange,7,0)=0,"",VLOOKUP(C10,UniverseRange,7,0))) ->  | V10: =IF(ISNA(VLOOKUP(D10,UniverseRange,8,0))=TRUE,"",VLOOKUP(D10,UniverseRange,8,0)) ->  | W10: =IF(ISNA(VLOOKUP(C10,UniverseRange,9,0))=TRUE,"",IF(VLOOKUP(C10,UniverseRange,9,0)=0,"",VLOOKUP(C10,UniverseRange,9,0))) -> 
B11: In-Kind Shares
A13: 0 | B13: 0821EA | C13: =IF(A13=0,"",OFFSET(Top,$A13,2)) ->  | D13: =IF(A13=0,"",OFFSET(Top,$A13,3)) ->  | E13: =IF(ISNA(VLOOKUP(C13,UniverseRange,3,0))=TRUE,"",VLOOKUP(C13,UniverseRange,3,0)) ->  | F13: =IF(ISNA(VLOOKUP(C13,UniverseRange,4,0))=TRUE,"",VLOOKUP(C13,UniverseRange,4,0)) ->  | G13: =IF(A13=0,"",OFFSET(Top,$A13,6)) ->  | H13: =IF(OR(G13=0,I13=0,G13="",I13=""),"",I13/G13) ->  | I13: =IF(A13=0,"",OFFSET(Top,$A13,7)) ->  | J13: =IF(A13=0,"",OFFSET(Top,$A13,10)) ->  | K13: =IF(A13=0,"",OFFSET(Top,$A13,8)) ->  | L13: =IF(A13=0,"",OFFSET(Top,$A13,11)) ->  | M13: =IF(OR(I13=0,I13=""),"",L13/I13) ->  | N13: =IF(OR($K$194=0,K13=""),"",K13/$K$194) ->  | O13: =IF(OR($K$266=0,K13=""),"",K13/$K$266) ->  | P13: =IF(OR(A13=0,A13=""),"",OFFSET(Top,$A13,12)/1000) ->  | Q13: =IF(OR(P13=0,P13=""),"",G13/P13/1000) ->  | R13: =IF(A13=0,"",OFFSET(Top,$A13,9)) ->  | S13: =IF(OR(H13=0,H13="",AA13=""),"",AA13/H13) ->  | T13: =IF(OR(J13=0,J13="",AA13=""),"",AA13/J13) ->  | U13: =IF(Y13="","",Y13) -> 0 | V13: =IF(OR(J13=0,J13="",Y13="",Y13=0),"",J13/Y13) ->  | W13: =IF(OR(J13=0,J13="",Z13="",Z13=0),"",J13/Z13) ->  | Y13: =IF(OR(B13=0,RIGHT(B13,2)="OR"),"",VLOOKUP(TEXT(B13,"0000"),Valuations!$E:$S,2,FALSE)) -> 0 | Z13: =IF(OR(B13=0,RIGHT(B13,2)="OR"),"",VLOOKUP(TEXT(B13,"0000"),Valuations!$E:$S,3,FALSE)) -> 0 | AA13: =IF(OR(B13=0,RIGHT(B13,2)="OR"),"",VLOOKUP(TEXT(B13,"0000"),Valuations!$E:$S,4,FALSE)) -> 0 | AB13: =IF(OR($K$32=0,$K$32="",K13="",U13=""),"",U13*K13/$K$32) ->  | AC13: =IF(OR($K$32=0,$K$32="",K13="",V13=""),"",V13*K13/$K$32) ->  | AD13: =IF(OR($K$32=0,$K$32="",K13="",W13=""),"",W13*K13/$K$32) ->  | AE13: =IF(OR($I$32=0,$I$32="",I13="",S13=""),"",S13*I13/$I$32) ->  | AF13: =IF(OR($K$32=0,$K$32="",K13="",T13=""),"",T13*K13/$K$32) ->  | AI13: =IF(ISNA(MATCH($AH$2&$B13,InPos!$S:$S,0))=TRUE,,MATCH($AH$2&$B13,InPos!$S:$S,0)-1) -> 0
A14: 0 | B14: 0824EA | AI14: =IF(ISNA(MATCH($AH$2&$B14,InPos!$S:$S,0))=TRUE,,MATCH($AH$2&$B14,InPos!$S:$S,0)-1) -> 0
A15: 0 | B15: 1911-11-02 | U15: 0 | Y15: 0 | Z15: 4.136666667 | AA15: 0 | AI15: =IF(ISNA(MATCH($AH$2&$B15,InPos!$S:$S,0))=TRUE,,MATCH($AH$2&$B15,InPos!$S:$S,0)-1) -> 0
A21: 0 | AI21: =IF(ISNA(MATCH($AH$2&$B21,InPos!$S:$S,0))=TRUE,,MATCH($AH$2&$B21,InPos!$S:$S,0)-1) -> 0
A22: 0 | AI22: =IF(ISNA(MATCH($AH$2&$B22,InPos!$S:$S,0))=TRUE,,MATCH($AH$2&$B22,InPos!$S:$S,0)-1) -> 0
A23: 0 | AI23: =IF(ISNA(MATCH($AH$2&$B23,InPos!$S:$S,0))=TRUE,,MATCH($AH$2&$B23,InPos!$S:$S,0)-1) -> 0
A24: 0 | AI24: =IF(ISNA(MATCH($AH$2&$B24,InPos!$S:$S,0))=TRUE,,MATCH($AH$2&$B24,InPos!$S:$S,0)-1) -> 0
A25: 0 | AI25: =IF(ISNA(MATCH($AH$2&$B25,InPos!$S:$S,0))=TRUE,,MATCH($AH$2&$B25,InPos!$S:$S,0)-1) -> 0
A26: 0 | AI26: =IF(ISNA(MATCH($AH$2&$B26,InPos!$S:$S,0))=TRUE,,MATCH($AH$2&$B26,InPos!$S:$S,0)-1) -> 0
A30: 0 | AI30: =IF(ISNA(MATCH($AH$2&$B30,InPos!$S:$S,0))=TRUE,,MATCH($AH$2&$B30,InPos!$S:$S,0)-1) -> 0
A31: 0 | AI31: =IF(ISNA(MATCH($AH$2&$B31,InPos!$S:$S,0))=TRUE,,MATCH($AH$2&$B31,InPos!$S:$S,0)-1) -> 0
A32: 0 | B32: Total In-Kind Shares | G32: =SUM(G13:G30) -> 0 | I32: =SUM(I13:I30) -> 0 | K32: =SUM(K13:K30) -> 0 | L32: =SUM(L13:L30) -> 0 | M32: =L32/I32 ->  | N32: =IF($K$194=0,0,K32/$K$194) -> 0 | O32: =IF($K$266=0,0,K32/$K$266) -> 0 | S32: =SUM(AE13:AE30) -> 0 | T32: =SUM(AF13:AF30) -> 0 | U32: =SUM(AB13:AB30) -> 0 | V32: =SUM(AC13:AC30) -> 0 | W32: =SUM(AD13:AD30) -> 0 | AI32: =IF(ISNA(MATCH($AH$2&$B32,InPos!$S:$S,0))=TRUE,,MATCH($AH$2&$B32,InPos!$S:$S,0)-1) -> 0
A33: 0 | AI33: =IF(ISNA(MATCH($AH$2&$B33,InPos!$S:$S,0))=TRUE,,MATCH($AH$2&$B33,InPos!$S:$S,0)-1) -> 0
A34: 0 | B34: Core | AI34: =IF(ISNA(MATCH($AH$2&$B34,InPos!$S:$S,0))=TRUE,,MATCH($AH$2&$B34,InPos!$S:$S,0)-1) -> 0
A35: 0 | S35: =IF(ISNA(VLOOKUP(C35,UniverseRange,5,0))=TRUE,"",IF(VLOOKUP(C35,UniverseRange,5,0)=0,"",VLOOKUP(C35,UniverseRange,5,0))) ->  | T35: =IF(ISNA(VLOOKUP(C35,UniverseRange,6,0))=TRUE,"",IF(VLOOKUP(C35,UniverseRange,6,0)=0,"",VLOOKUP(C35,UniverseRange,6,0))) ->  | U35: =IF(ISNA(VLOOKUP(C35,UniverseRange,7,0))=TRUE,"",IF(VLOOKUP(C35,UniverseRange,7,0)=0,"",VLOOKUP(C35,UniverseRange,7,0))) ->  | V35: =IF(ISNA(VLOOKUP(D35,UniverseRange,8,0))=TRUE,"",VLOOKUP(D35,UniverseRange,8,0)) ->  | W35: =IF(ISNA(VLOOKUP(C35,UniverseRange,9,0))=TRUE,"",IF(VLOOKUP(C35,UniverseRange,9,0)=0,"",VLOOKUP(C35,UniverseRange,9,0))) ->  | AI35: =IF(ISNA(MATCH($AH$2&$B35,InPos!$S:$S,0))=TRUE,,MATCH($AH$2&$B35,InPos!$S:$S,0)-1) -> 0
A36: 0 | B36: 1903-02-28 | C36: =IF(A36=0,"",OFFSET(Top,$A36,2)) ->  | D36: =IF(A36=0,"",OFFSET(Top,$A36,3)) ->  | E36: =IF(ISNA(VLOOKUP(C36,UniverseRange,3,0))=TRUE,"",VLOOKUP(C36,UniverseRange,3,0)) ->  | F36: =IF(ISNA(VLOOKUP(C36,UniverseRange,4,0))=TRUE,"",VLOOKUP(C36,UniverseRange,4,0)) ->  | G36: =IF(A36=0,"",OFFSET(Top,$A36,6)) ->  | H36: =IF(OR(G36=0,I36=0,G36="",I36=""),"",I36/G36) ->  | I36: =IF(A36=0,"",OFFSET(Top,$A36,7)) ->  | J36: =IF(A36=0,"",OFFSET(Top,$A36,10)) ->  | K36: =IF(A36=0,"",OFFSET(Top,$A36,8)) ->  | L36: =IF(A36=0,"",OFFSET(Top,$A36,11)) ->  | M36: =IF(OR(I36=0,I36=""),"",L36/I36) ->  | N36: =IF(OR($K$194=0,K36=""),"",K36/$K$194) ->  | O36: =IF(OR($K$266=0,K36=""),"",K36/$K$266) ->  | P36: =IF(OR(A36=0,A36=""),"",OFFSET(Top,$A36,12)/1000) ->  | Q36: =IF(OR(P36=0,P36=""),"",G36/P36/1000) ->  | R36: =IF(A36=0,"",OFFSET(Top,$A36,9)) ->  | S36: =IF(OR(H36=0,H36="",AA36=""),"",AA36/H36) ->  | T36: =IF(OR(J36=0,J36="",AA36=""),"",AA36/J36) ->  | U36: =IF(Y36="","",Y36) -> 0.64 | V36: =IF(OR(J36=0,J36="",Y36="",Y36=0),"",J36/Y36) ->  | W36: =IF(OR(J36=0,J36="",Z36="",Z36=0),"",J36/Z36) ->  | Y36: =IF(OR(B36=0,RIGHT(B36,2)="OR"),"",VLOOKUP(TEXT(B36,"0000"),Valuations!$E:$S,2,FALSE)) -> 0.64 | Z36: =IF(OR(B36=0,RIGHT(B36,2)="OR"),"",VLOOKUP(TEXT(B36,"0000"),Valuations!$E:$S,3,FALSE)) -> 6.5 | AA36: =IF(OR(B36=0,RIGHT(B36,2)="OR"),"",VLOOKUP(TEXT(B36,"0000"),Valuations!$E:$S,4,FALSE)) -> 0.47 | AB36: =IF(OR($K$112=0,$K$112="",K36="",U36=""),"",U36*K36/$K$112) ->  | AC36: =IF(OR($K$112=0,$K$112="",K36="",V36=""),"",V36*K36/$K$112) ->  | AD36: =IF(OR($K$112=0,$K$112="",K36="",W36=""),"",W36*K36/$K$112) ->  | AE36: =IF(OR($I$112=0,$I$112="",I36="",S36=""),"",S36*I36/$I$112) ->  | AF36: =IF(OR($K$112=0,$K$112="",K36="",T36=""),"",T36*K36/$K$112) ->  | AI36: =IF(ISNA(MATCH($AH$2&$B36,InPos!$S:$S,0))=TRUE,,MATCH($AH$2&$B36,InPos!$S:$S,0)-1) -> 0
A37: 0 | B37: 1911-06-28 | U37: 0.3748862128 | Y37: 0.3748862128 | Z37: 5.24696208 | AA37: 0.2249317277 | AI37: =IF(ISNA(MATCH($AH$2&$B37,InPos!$S:$S,0))=TRUE,,MATCH($AH$2&$B37,InPos!$S:$S,0)-1) -> 0
A38: 0 | B38: 1915-12-06 | U38: 1.078862195 | Y38: 1.078862195 | Z38: 9.439800562 | AA38: 0.3819752047 | AI38: =IF(ISNA(MATCH($AH$2&$B38,InPos!$S:$S,0))=TRUE,,MATCH($AH$2&$B38,InPos!$S:$S,0)-1) -> 0
A39: 0 | B39: 1903-07-18 | U39: 1.29535356 | Y39: 1.29535356 | Z39: 8.642768835 | AA39: 0.6199206835 | AI39: =IF(ISNA(MATCH($AH$2&$B39,InPos!$S:$S,0))=TRUE,,MATCH($AH$2&$B39,InPos!$S:$S,0)-1) -> 0
A40: 0 | B40: 1905-05-14 | U40: 0.1800618638 | Y40: 0.1800618638 | Z40: 0.9105047252 | AA40: 0.1047032722 | AI40: =IF(ISNA(MATCH($AH$2&$B40,InPos!$S:$S,0))=TRUE,,MATCH($AH$2&$B40,InPos!$S:$S,0)-1) -> 0
A41: 0 | B41: 1910-05-21 | U41: 0.3859999891 | Y41: 0.3859999891 | Z41: 3.726 | AA41: 0.3729999895 | AI41: =IF(ISNA(MATCH($AH$2&$B41,InPos!$S:$S,0))=TRUE,,MATCH($AH$2&$B41,InPos!$S:$S,0)-1) -> 0
A42: 0 | B42: 1902-10-11 | U42: 0.4722669644 | Y42: 0.4722669644 | Z42: 5.23756007 | AA42: 0.2174866506 | AI42: =IF(ISNA(MATCH($AH$2&$B42,InPos!$S:$S,0))=TRUE,,MATCH($AH$2&$B42,InPos!$S:$S,0)-1) -> 0
A43: 0 | B43: 1914-03-07 | U43: 0.08951505804 | Y43: 0.08951505804 | Z43: 1.052590998 | AA43: 0.08258893846 | AI43: =IF(ISNA(MATCH($AH$2&$B43,InPos!$S:$S,0))=TRUE,,MATCH($AH$2&$B43,InPos!$S:$S,0)-1) -> 0
A44: 0 | B44: 1914-04-14 | U44: 0.177523779 | Y44: 0.177523779 | Z44: 2.498752518 | AA44: 0.03096927766 | AI44: =IF(ISNA(MATCH($AH$2&$B44,InPos!$S:$S,0))=TRUE,,MATCH($AH$2&$B44,InPos!$S:$S,0)-1) -> 0
A45: 0 | B45: 5235SS | U45: 0.405 | Y45: 0.405 | Z45: 7.57 | AA45: 0.3659933098 | AI45: =IF(ISNA(MATCH($AH$2&$B45,InPos!$S:$S,0))=TRUE,,MATCH($AH$2&$B45,InPos!$S:$S,0)-1) -> 0
A46: 0 | B46: 1907-02-05 | U46: 0.2538160842 | Y46: 0.2538160842 | Z46: 8.107440205 | AA46: 0.1776712589 | AI46: =IF(ISNA(MATCH($AH$2&$B46,InPos!$S:$S,0))=TRUE,,MATCH($AH$2&$B46,InPos!$S:$S,0)-1) -> 0
A47: 0 | B47: 1914-04-08 | U47: 0.08337083254 | Y47: 0.08337083254 | Z47: 1.159724394 | AA47: 0.0828374567 | AI47: =IF(ISNA(MATCH($AH$2&$B47,InPos!$S:$S,0))=TRUE,,MATCH($AH$2&$B47,InPos!$S:$S,0)-1) -> 0
A48: 0 | B48: 1914-05-30 | U48: 0.1106106 | Y48: 0.1106106 | Z48: 1.237 | AA48: 0.077 | AI48: =IF(ISNA(MATCH($AH$2&$B48,InPos!$S:$S,0))=TRUE,,MATCH($AH$2&$B48,InPos!$S:$S,0)-1) -> 0
A49: 0 | B49: 1914-03-03 | U49: 0.07437369791 | Y49: 0.07437369791 | Z49: 0.4820783085 | AA49: 0.07300821259 | AI49: =IF(ISNA(MATCH($AH$2&$B49,InPos!$S:$S,0))=TRUE,,MATCH($AH$2&$B49,InPos!$S:$S,0)-1) -> 0
A50: 0 | B50: 1913-12-27 | U50: 0.1187121014 | Y50: 0.1187121014 | Z50: 1.511805706 | AA50: 0.1200080024 | AI50: =IF(ISNA(MATCH($AH$2&$B50,InPos!$S:$S,0))=TRUE,,MATCH($AH$2&$B50,InPos!$S:$S,0)-1) -> 0
A51: 0 | B51: 1914-03-29 | U51: 0.3887023813 | Y51: 0.3887023813 | Z51: 3.095740988 | AA51: 0.2260064298 | AI51: =IF(ISNA(MATCH($AH$2&$B51,InPos!$S:$S,0))=TRUE,,MATCH($AH$2&$B51,InPos!$S:$S,0)-1) -> 0
A52: 0 | B52: 1919-05-21 | U52: 0.4171773548 | Y52: 0.4171773548 | Z52: 2.25 | AA52: 0.303 | AI52: =IF(ISNA(MATCH($AH$2&$B52,InPos!$S:$S,0))=TRUE,,MATCH($AH$2&$B52,InPos!$S:$S,0)-1) -> 0
A53: 0 | B53: 1914-01-09 | U53: 0.08406652142 | Y53: 0.08406652142 | Z53: 0.8069466888 | AA53: 0.08900255677 | AI53: =IF(ISNA(MATCH($AH$2&$B53,InPos!$S:$S,0))=TRUE,,MATCH($AH$2&$B53,InPos!$S:$S,0)-1) -> 0
A54: 0 | B54: 1914-01-06 | U54: 0.08344240456 | Y54: 0.08344240456 | Z54: 1.238196414 | AA54: 0.07104878543 | AI54: =IF(ISNA(MATCH($AH$2&$B54,InPos!$S:$S,0))=TRUE,,MATCH($AH$2&$B54,InPos!$S:$S,0)-1) -> 0
A55: 0 | B55: 1919-06-09 | U55: 0.143 | Y55: 0.143 | Z55: 0.5657205082 | AA55: 0.113 | AI55: =IF(ISNA(MATCH($AH$2&$B55,InPos!$S:$S,0))=TRUE,,MATCH($AH$2&$B55,InPos!$S:$S,0)-1) -> 0
A56: 0 | B56: 1914-01-13 | U56: 0.08042288832 | Y56: 0.08042288832 | Z56: 1.147816391 | AA56: 0.07999722271 | AI56: =IF(ISNA(MATCH($AH$2&$B56,InPos!$S:$S,0))=TRUE,,MATCH($AH$2&$B56,InPos!$S:$S,0)-1) -> 0
A57: 0 | B57: 1916-08-27 | U57: 0.1710000005 | Y57: 0.1710000005 | Z57: 1.588000004 | AA57: 0.1660000004 | AI57: =IF(ISNA(MATCH($AH$2&$B57,InPos!$S:$S,0))=TRUE,,MATCH($AH$2&$B57,InPos!$S:$S,0)-1) -> 0
A58: 0 | B58: 1923-08-08 | U58: 0.727440752 | Y58: 0.727440752 | Z58: 5.47 | AA58: 0.553 | AI58: =IF(ISNA(MATCH($AH$2&$B58,InPos!$S:$S,0))=TRUE,,MATCH($AH$2&$B58,InPos!$S:$S,0)-1) -> 0
A59: 0 | B59: 1913-12-26 | U59: 0.1226980895 | Y59: 0.1226980895 | Z59: 0.635 | AA59: 0.06997943958 | AI59: =IF(ISNA(MATCH($AH$2&$B59,InPos!$S:$S,0))=TRUE,,MATCH($AH$2&$B59,InPos!$S:$S,0)-1) -> 0
A60: 0 | B60: 1916-09-26 | U60: 0.4535968622 | Y60: 0.4535968622 | Z60: 3.246038091 | AA60: 0.1109536072 | AI60: =IF(ISNA(MATCH($AH$2&$B60,InPos!$S:$S,0))=TRUE,,MATCH($AH$2&$B60,InPos!$S:$S,0)-1) -> 0
A61: 0 | AI61: =IF(ISNA(MATCH($AH$2&$B61,InPos!$S:$S,0))=TRUE,,MATCH($AH$2&$B61,InPos!$S:$S,0)-1) -> 0
A62: 0 | AI62: =IF(ISNA(MATCH($AH$2&$B62,InPos!$S:$S,0))=TRUE,,MATCH($AH$2&$B62,InPos!$S:$S,0)-1) -> 0
A63: 0 | AI63: =IF(ISNA(MATCH($AH$2&$B63,InPos!$S:$S,0))=TRUE,,MATCH($AH$2&$B63,InPos!$S:$S,0)-1) -> 0
A64: 0 | AI64: =IF(ISNA(MATCH($AH$2&$B64,InPos!$S:$S,0))=TRUE,,MATCH($AH$2&$B64,InPos!$S:$S,0)-1) -> 0
A65: 0 | AI65: =IF(ISNA(MATCH($AH$2&$B65,InPos!$S:$S,0))=TRUE,,MATCH($AH$2&$B65,InPos!$S:$S,0)-1) -> 0
A66: 0 | AI66: =IF(ISNA(MATCH($AH$2&$B66,InPos!$S:$S,0))=TRUE,,MATCH($AH$2&$B66,InPos!$S:$S,0)-1) -> 0
A67: 0 | AI67: =IF(ISNA(MATCH($AH$2&$B67,InPos!$S:$S,0))=TRUE,,MATCH($AH$2&$B67,InPos!$S:$S,0)-1) -> 0
A68: 0 | AI68: =IF(ISNA(MATCH($AH$2&$B68,InPos!$S:$S,0))=TRUE,,MATCH($AH$2&$B68,InPos!$S:$S,0)-1) -> 0
A69: 0 | AI69: =IF(ISNA(MATCH($AH$2&$B69,InPos!$S:$S,0))=TRUE,,MATCH($AH$2&$B69,InPos!$S:$S,0)-1) -> 0
A70: 0 | AI70: =IF(ISNA(MATCH($AH$2&$B70,InPos!$S:$S,0))=TRUE,,MATCH($AH$2&$B70,InPos!$S:$S,0)-1) -> 0
A71: 0 | AI71: =IF(ISNA(MATCH($AH$2&$B71,InPos!$S:$S,0))=TRUE,,MATCH($AH$2&$B71,InPos!$S:$S,0)-1) -> 0
A72: 0 | AI72: =IF(ISNA(MATCH($AH$2&$B72,InPos!$S:$S,0))=TRUE,,MATCH($AH$2&$B72,InPos!$S:$S,0)-1) -> 0
A73: 0 | AI73: =IF(ISNA(MATCH($AH$2&$B73,InPos!$S:$S,0))=TRUE,,MATCH($AH$2&$B73,InPos!$S:$S,0)-1) -> 0
A74: 0 | AI74: =IF(ISNA(MATCH($AH$2&$B74,InPos!$S:$S,0))=TRUE,,MATCH($AH$2&$B74,InPos!$S:$S,0)-1) -> 0
A75: 0 | AI75: =IF(ISNA(MATCH($AH$2&$B75,InPos!$S:$S,0))=TRUE,,MATCH($AH$2&$B75,InPos!$S:$S,0)-1) -> 0
A76: 0 | AI76: =IF(ISNA(MATCH($AH$2&$B76,InPos!$S:$S,0))=TRUE,,MATCH($AH$2&$B76,InPos!$S:$S,0)-1) -> 0
A77: 0 | AI77: =IF(ISNA(MATCH($AH$2&$B77,InPos!$S:$S,0))=TRUE,,MATCH($AH$2&$B77,InPos!$S:$S,0)-1) -> 0
A78: 0 | AI78: =IF(ISNA(MATCH($AH$2&$B78,InPos!$S:$S,0))=TRUE,,MATCH($AH$2&$B78,InPos!$S:$S,0)-1) -> 0
A79: 0 | AI79: =IF(ISNA(MATCH($AH$2&$B79,InPos!$S:$S,0))=TRUE,,MATCH($AH$2&$B79,InPos!$S:$S,0)-1) -> 0
A80: 0 | AI80: =IF(ISNA(MATCH($AH$2&$B80,InPos!$S:$S,0))=TRUE,,MATCH($AH$2&$B80,InPos!$S:$S,0)-1) -> 0
A81: 0 | AI81: =IF(ISNA(MATCH($AH$2&$B81,InPos!$S:$S,0))=TRUE,,MATCH($AH$2&$B81,InPos!$S:$S,0)-1) -> 0
A82: 0 | AI82: =IF(ISNA(MATCH($AH$2&$B82,InPos!$S:$S,0))=TRUE,,MATCH($AH$2&$B82,InPos!$S:$S,0)-1) -> 0
A83: 0 | AI83: =IF(ISNA(MATCH($AH$2&$B83,InPos!$S:$S,0))=TRUE,,MATCH($AH$2&$B83,InPos!$S:$S,0)-1) -> 0
A84: 0 | AI84: =IF(ISNA(MATCH($AH$2&$B84,InPos!$S:$S,0))=TRUE,,MATCH($AH$2&$B84,InPos!$S:$S,0)-1) -> 0
A85: 0 | AI85: =IF(ISNA(MATCH($AH$2&$B85,InPos!$S:$S,0))=TRUE,,MATCH($AH$2&$B85,InPos!$S:$S,0)-1) -> 0
A86: 0 | AI86: =IF(ISNA(MATCH($AH$2&$B86,InPos!$S:$S,0))=TRUE,,MATCH($AH$2&$B86,InPos!$S:$S,0)-1) -> 0
A87: 0 | AI87: =IF(ISNA(MATCH($AH$2&$B87,InPos!$S:$S,0))=TRUE,,MATCH($AH$2&$B87,InPos!$S:$S,0)-1) -> 0
A88: 0 | AI88: =IF(ISNA(MATCH($AH$2&$B88,InPos!$S:$S,0))=TRUE,,MATCH($AH$2&$B88,InPos!$S:$S,0)-1) -> 0
A89: 0 | AI89: =IF(ISNA(MATCH($AH$2&$B89,InPos!$S:$S,0))=TRUE,,MATCH($AH$2&$B89,InPos!$S:$S,0)-1) -> 0
A90: 0 | AI90: =IF(ISNA(MATCH($AH$2&$B90,InPos!$S:$S,0))=TRUE,,MATCH($AH$2&$B90,InPos!$S:$S,0)-1) -> 0
A91: 0 | AI91: =IF(ISNA(MATCH($AH$2&$B91,InPos!$S:$S,0))=TRUE,,MATCH($AH$2&$B91,InPos!$S:$S,0)-1) -> 0
A92: 0 | AI92: =IF(ISNA(MATCH($AH$2&$B92,InPos!$S:$S,0))=TRUE,,MATCH($AH$2&$B92,InPos!$S:$S,0)-1) -> 0
A93: 0 | AI93: =IF(ISNA(MATCH($AH$2&$B93,InPos!$S:$S,0))=TRUE,,MATCH($AH$2&$B93,InPos!$S:$S,0)-1) -> 0
A94: 0 | AI94: =IF(ISNA(MATCH($AH$2&$B94,InPos!$S:$S,0))=TRUE,,MATCH($AH$2&$B94,InPos!$S:$S,0)-1) -> 0
A95: 0 | AI95: =IF(ISNA(MATCH($AH$2&$B95,InPos!$S:$S,0))=TRUE,,MATCH($AH$2&$B95,InPos!$S:$S,0)-1) -> 0
A96: 0 | AI96: =IF(ISNA(MATCH($AH$2&$B96,InPos!$S:$S,0))=TRUE,,MATCH($AH$2&$B96,InPos!$S:$S,0)-1) -> 0
A97: 0 | AI97: =IF(ISNA(MATCH($AH$2&$B97,InPos!$S:$S,0))=TRUE,,MATCH($AH$2&$B97,InPos!$S:$S,0)-1) -> 0
A98: 0 | AI98: =IF(ISNA(MATCH($AH$2&$B98,InPos!$S:$S,0))=TRUE,,MATCH($AH$2&$B98,InPos!$S:$S,0)-1) -> 0
A99: 0 | AI99: =IF(ISNA(MATCH($AH$2&$B99,InPos!$S:$S,0))=TRUE,,MATCH($AH$2&$B99,InPos!$S:$S,0)-1) -> 0
A100: 0 | AI100: =IF(ISNA(MATCH($AH$2&$B100,InPos!$S:$S,0))=TRUE,,MATCH($AH$2&$B100,InPos!$S:$S,0)-1) -> 0
A101: 0 | AI101: =IF(ISNA(MATCH($AH$2&$B101,InPos!$S:$S,0))=TRUE,,MATCH($AH$2&$B101,InPos!$S:$S,0)-1) -> 0
A102: 0 | AI102: =IF(ISNA(MATCH($AH$2&$B102,InPos!$S:$S,0))=TRUE,,MATCH($AH$2&$B102,InPos!$S:$S,0)-1) -> 0
A103: 0 | AI103: =IF(ISNA(MATCH($AH$2&$B103,InPos!$S:$S,0))=TRUE,,MATCH($AH$2&$B103,InPos!$S:$S,0)-1) -> 0
A104: 0 | AI104: =IF(ISNA(MATCH($AH$2&$B104,InPos!$S:$S,0))=TRUE,,MATCH($AH$2&$B104,InPos!$S:$S,0)-1) -> 0
A105: 0 | AI105: =IF(ISNA(MATCH($AH$2&$B105,InPos!$S:$S,0))=TRUE,,MATCH($AH$2&$B105,InPos!$S:$S,0)-1) -> 0
A106: 0 | AI106: =IF(ISNA(MATCH($AH$2&$B106,InPos!$S:$S,0))=TRUE,,MATCH($AH$2&$B106,InPos!$S:$S,0)-1) -> 0
A107: 0 | AI107: =IF(ISNA(MATCH($AH$2&$B107,InPos!$S:$S,0))=TRUE,,MATCH($AH$2&$B107,InPos!$S:$S,0)-1) -> 0
A108: 0 | AI108: =IF(ISNA(MATCH($AH$2&$B108,InPos!$S:$S,0))=TRUE,,MATCH($AH$2&$B108,InPos!$S:$S,0)-1) -> 0
A109: 0 | AI109: =IF(ISNA(MATCH($AH$2&$B109,InPos!$S:$S,0))=TRUE,,MATCH($AH$2&$B109,InPos!$S:$S,0)-1) -> 0
A110: 0 | AI110: =IF(ISNA(MATCH($AH$2&$B110,InPos!$S:$S,0))=TRUE,,MATCH($AH$2&$B110,InPos!$S:$S,0)-1) -> 0
A111: 0 | AI111: =IF(ISNA(MATCH($AH$2&$B111,InPos!$S:$S,0))=TRUE,,MATCH($AH$2&$B111,InPos!$S:$S,0)-1) -> 0
A112: 0 | B112: Total Core | E112: =IF(F112=0,"",IF(F112>=96,"A",IF(F112>=76,"B",IF(F112>=26,"C",IF(F112>=6,"D","F"))))) ->  | F112: =+(SUMPRODUCT(F36:F110,K36:K110))/(K112) ->  | G112: =SUM(G36:G110) -> 0 | I112: =SUM(I36:I110) -> 0 | K112: =SUM(K36:K110) -> 0 | L112: =SUM(L36:L110) -> 0 | M112: =L112/I112 ->  | N112: =IF($K$194=0,0,K112/$K$194) -> 0 | O112: =IF($K$266=0,0,K112/$K$266) -> 0 | S112: =SUM(AE36:AE110) -> 0 | T112: =SUM(AF36:AF110) -> 0 | U112: =SUM(AB36:AB110) -> 0 | V112: =SUM(AC36:AC110) -> 0 | W112: =SUM(AD36:AD110) -> 0 | AI112: =IF(ISNA(MATCH($AH$2&$B112,InPos!$S:$S,0))=TRUE,,MATCH($AH$2&$B112,InPos!$S:$S,0)-1) -> 0
A113: 0 | R113: =IF(A113=0,"",OFFSET(Top,$A113,9)) ->  | AI113: =IF(ISNA(MATCH($AH$2&$B113,InPos!$S:$S,0))=TRUE,,MATCH($AH$2&$B113,InPos!$S:$S,0)-1) -> 0
A114: 0 | B114: Trading | AI114: =IF(ISNA(MATCH($AH$2&$B114,InPos!$S:$S,0))=TRUE,,MATCH($AH$2&$B114,InPos!$S:$S,0)-1) -> 0
A115: 0 | D115: =IF(A115=0,"",OFFSET(Top,$A115,3)) ->  | P115: =IF(OR(A115=0,A115=""),"",OFFSET(Top,$A115,12)/1000) ->  | AI115: =IF(ISNA(MATCH($AH$2&$B115,InPos!$S:$S,0))=TRUE,,MATCH($AH$2&$B115,InPos!$S:$S,0)-1) -> 0
A116: 0 | B116: 1919-01-07 | C116: =IF(A116=0,"",OFFSET(Top,$A116,2)) ->  | D116: =IF(A116=0,"",OFFSET(Top,$A116,3)) ->  | E116: =IF(ISNA(VLOOKUP(C116,UniverseRange,3,0))=TRUE,"",VLOOKUP(C116,UniverseRange,3,0)) ->  | F116: =IF(ISNA(VLOOKUP(C116,UniverseRange,4,0))=TRUE,"",VLOOKUP(C116,UniverseRange,4,0)) ->  | G116: =IF(A116=0,"",OFFSET(Top,$A116,6)) ->  | H116: =IF(OR(G116=0,I116=0,G116="",I116=""),"",I116/G116) ->  | I116: =IF(A116=0,"",OFFSET(Top,$A116,7)) ->  | J116: =IF(A116=0,"",OFFSET(Top,$A116,10)) ->  | K116: =IF(A116=0,"",OFFSET(Top,$A116,8)) ->  | L116: =IF(A116=0,"",OFFSET(Top,$A116,11)) ->  | M116: =IF(OR(I116=0,I116=""),"",L116/I116) ->  | N116: =IF(OR($K$194=0,K116=""),"",K116/$K$194) ->  | O116: =IF(OR($K$266=0,K116=""),"",K116/$K$266) ->  | P116: =IF(OR(A116=0,A116=""),"",OFFSET(Top,$A116,12)/1000) ->  | Q116: =IF(OR(P116=0,P116=""),"",G116/P116/1000) ->  | R116: =IF(A116=0,"",OFFSET(Top,$A116,9)) ->  | S116: =IF(OR(H116=0,H116="",AA116=""),"",AA116/H116) ->  | T116: =IF(OR(J116=0,J116="",AA116=""),"",AA116/J116) ->  | U116: =IF(Y116="","",Y116) -> 0.23 | V116: =IF(OR(J116=0,J116="",Y116="",Y116=0),"",J116/Y116) ->  | W116: =IF(OR(J116=0,J116="",Z116="",Z116=0),"",J116/Z116) ->  | Y116: =IF(OR(B116=0,RIGHT(B116,2)="OR"),"",VLOOKUP(TEXT(B116,"0000"),Valuations!$E:$S,2,FALSE)) -> 0.23 | Z116: =IF(OR(B116=0,RIGHT(B116,2)="OR"),"",VLOOKUP(TEXT(B116,"0000"),Valuations!$E:$S,3,FALSE)) -> 0.07 | AA116: =IF(OR(B116=0,RIGHT(B116,2)="OR"),"",VLOOKUP(TEXT(B116,"0000"),Valuations!$E:$S,4,FALSE)) -> 0.22 | AB116: =IF(OR($K$192=0,$K$192="",K116="",U116=""),"",U116*K116/$K$192) ->  | AC116: =IF(OR($K$192=0,$K$192="",K116="",V116=""),"",V116*K116/$K$192) ->  | AD116: =IF(OR($K$192=0,$K$192="",K116="",W116=""),"",W116*K116/$K$192) ->  | AE116: =IF(OR($I$192=0,$I$192="",I116="",S116=""),"",S116*I116/$I$192) ->  | AF116: =IF(OR($K$192=0,$K$192="",K116="",T116=""),"",T116*K116/$K$192) ->  | AI116: =IF(ISNA(MATCH($AH$2&$B116,InPos!$S:$S,0))=TRUE,,MATCH($AH$2&$B116,InPos!$S:$S,0)-1) -> 0
A117: 0 | B117: 1913-12-16 | U117: 0.2366601341 | Y117: 0.2366601341 | Z117: 2.311712761 | AA117: 0.047 | AI117: =IF(ISNA(MATCH($AH$2&$B117,InPos!$S:$S,0))=TRUE,,MATCH($AH$2&$B117,InPos!$S:$S,0)-1) -> 0
A118: 0 | B118: 1909-02-17 | U118: 0.2107509036 | Y118: 0.2107509036 | Z118: 2.76851187 | AA118: 0.09900042447 | AI118: =IF(ISNA(MATCH($AH$2&$B118,InPos!$S:$S,0))=TRUE,,MATCH($AH$2&$B118,InPos!$S:$S,0)-1) -> 0
A119: 0 | B119: 1902-12-01 | U119: 0.5978408192 | Y119: 0.5978408192 | Z119: 7.662020657 | AA119: 0.04967519569 | AI119: =IF(ISNA(MATCH($AH$2&$B119,InPos!$S:$S,0))=TRUE,,MATCH($AH$2&$B119,InPos!$S:$S,0)-1) -> 0
A120: 0 | B120: 1903-03-16 | U120: 0.1722743312 | Y120: 0.1722743312 | Z120: 1.888 | AA120: 0.069 | AI120: =IF(ISNA(MATCH($AH$2&$B120,InPos!$S:$S,0))=TRUE,,MATCH($AH$2&$B120,InPos!$S:$S,0)-1) -> 0
A121: 0 | B121: 1923-09-20 | U121: 0.2819065537 | Y121: 0.2819065537 | Z121: 1.748071764 | AA121: 0.1525975246 | AI121: =IF(ISNA(MATCH($AH$2&$B121,InPos!$S:$S,0))=TRUE,,MATCH($AH$2&$B121,InPos!$S:$S,0)-1) -> 0
A122: 0 | B122: 1914-10-11 | U122: 0.2925000067 | Y122: 0.2925000067 | Z122: 2.883500066 | AA122: 0.1237500028 | AI122: =IF(ISNA(MATCH($AH$2&$B122,InPos!$S:$S,0))=TRUE,,MATCH($AH$2&$B122,InPos!$S:$S,0)-1) -> 0
A123: 0 | B123: 1912-10-20 | U123: 0.1249999534 | Y123: 0.1249999534 | Z123: 1.51025 | AA123: 0.09899996313 | AI123: =IF(ISNA(MATCH($AH$2&$B123,InPos!$S:$S,0))=TRUE,,MATCH($AH$2&$B123,InPos!$S:$S,0)-1) -> 0
A124: 0 | B124: 1910-06-12 | U124: 0.6161127991 | Y124: 0.6161127991 | Z124: 6.739372803 | AA124: 0.2000092746 | AI124: =IF(ISNA(MATCH($AH$2&$B124,InPos!$S:$S,0))=TRUE,,MATCH($AH$2&$B124,InPos!$S:$S,0)-1) -> 0
A125: 0 | B125: 1914-04-07 | U125: 0.3267804436 | Y125: 0.3267804436 | Z125: 3.615882111 | AA125: 0.102081366 | AI125: =IF(ISNA(MATCH($AH$2&$B125,InPos!$S:$S,0))=TRUE,,MATCH($AH$2&$B125,InPos!$S:$S,0)-1) -> 0
A126: 0 | B126: 1913-09-23 | U126: 0.3572186551 | Y126: 0.3572186551 | Z126: 6.145998103 | AA126: 0.1899995142 | AI126: =IF(ISNA(MATCH($AH$2&$B126,InPos!$S:$S,0))=TRUE,,MATCH($AH$2&$B126,InPos!$S:$S,0)-1) -> 0
A127: 0 | B127: 1922-06-19 | U127: 0.08866402455 | Y127: 0.08866402455 | Z127: 0.2010022954 | AA127: 0.0008913405435 | AI127: =IF(ISNA(MATCH($AH$2&$B127,InPos!$S:$S,0))=TRUE,,MATCH($AH$2&$B127,InPos!$S:$S,0)-1) -> 0
A128: 0 | B128: 1906-04-09 | U128: 0.4251242616 | Y128: 0.4251242616 | Z128: 5.851882914 | AA128: 0.1064773558 | AI128: =IF(ISNA(MATCH($AH$2&$B128,InPos!$S:$S,0))=TRUE,,MATCH($AH$2&$B128,InPos!$S:$S,0)-1) -> 0
A129: 0 | B129: 1919-10-16 | U129: 0.383698654 | Y129: 0.383698654 | Z129: 2.09996903 | AA129: 0.1539362457 | AI129: =IF(ISNA(MATCH($AH$2&$B129,InPos!$S:$S,0))=TRUE,,MATCH($AH$2&$B129,InPos!$S:$S,0)-1) -> 0
A130: 0 | B130: 1914-04-06 | U130: 0.0511398301 | Y130: 0.0511398301 | Z130: 1.034258562 | AA130: 0.01715613536 | AI130: =IF(ISNA(MATCH($AH$2&$B130,InPos!$S:$S,0))=TRUE,,MATCH($AH$2&$B130,InPos!$S:$S,0)-1) -> 0
A131: 0 | B131: 1919-12-03 | U131: 0.06835050798 | Y131: 0.06835050798 | Z131: 0.3085522548 | AA131: 0.01884151651 | AI131: =IF(ISNA(MATCH($AH$2&$B131,InPos!$S:$S,0))=TRUE,,MATCH($AH$2&$B131,InPos!$S:$S,0)-1) -> 0
A132: 0 | B132: 1916-10-21 | U132: 0.2321543594 | Y132: 0.2321543594 | Z132: 0.9037350008 | AA132: 0.1108065158 | AI132: =IF(ISNA(MATCH($AH$2&$B132,InPos!$S:$S,0))=TRUE,,MATCH($AH$2&$B132,InPos!$S:$S,0)-1) -> 0
A133: 0 | B133: 1913-11-09 | U133: 0.4467329545 | Y133: 0.4467329545 | Z133: 0.5175 | AA133: 0.147 | AI133: =IF(ISNA(MATCH($AH$2&$B133,InPos!$S:$S,0))=TRUE,,MATCH($AH$2&$B133,InPos!$S:$S,0)-1) -> 0
A134: 0 | B134: 1913-11-17 | U134: 0.232715132 | Y134: 0.232715132 | Z134: 1.498861885 | AA134: 0.1099165382 | AI134: =IF(ISNA(MATCH($AH$2&$B134,InPos!$S:$S,0))=TRUE,,MATCH($AH$2&$B134,InPos!$S:$S,0)-1) -> 0
A135: 0 | B135: 1913-11-20 | U135: 0.4567323925 | Y135: 0.4567323925 | Z135: 3.958 | AA135: 0.0002194611385 | AI135: =IF(ISNA(MATCH($AH$2&$B135,InPos!$S:$S,0))=TRUE,,MATCH($AH$2&$B135,InPos!$S:$S,0)-1) -> 0
A136: 0 | B136: 1919-11-06 | U136: 0.2336157561 | Y136: 0.2336157561 | Z136: 1.061790434 | AA136: 0.01203017856 | AI136: =IF(ISNA(MATCH($AH$2&$B136,InPos!$S:$S,0))=TRUE,,MATCH($AH$2&$B136,InPos!$S:$S,0)-1) -> 0
A137: 0 | B137: 1919-04-22 | U137: 0.1591981876 | Y137: 0.1591981876 | Z137: 0.7365002964 | AA137: 0.106500038 | AI137: =IF(ISNA(MATCH($AH$2&$B137,InPos!$S:$S,0))=TRUE,,MATCH($AH$2&$B137,InPos!$S:$S,0)-1) -> 0
A138: 0 | B138: 1909-05-09 | U138: 0.1481439325 | Y138: 0.1481439325 | Z138: 1.212068712 | AA138: 0.0397605891 | AI138: =IF(ISNA(MATCH($AH$2&$B138,InPos!$S:$S,0))=TRUE,,MATCH($AH$2&$B138,InPos!$S:$S,0)-1) -> 0
A139: 0 | AI139: =IF(ISNA(MATCH($AH$2&$B139,InPos!$S:$S,0))=TRUE,,MATCH($AH$2&$B139,InPos!$S:$S,0)-1) -> 0
A140: 0 | AI140: =IF(ISNA(MATCH($AH$2&$B140,InPos!$S:$S,0))=TRUE,,MATCH($AH$2&$B140,InPos!$S:$S,0)-1) -> 0
A141: 0 | AI141: =IF(ISNA(MATCH($AH$2&$B141,InPos!$S:$S,0))=TRUE,,MATCH($AH$2&$B141,InPos!$S:$S,0)-1) -> 0
A142: 0 | AI142: =IF(ISNA(MATCH($AH$2&$B142,InPos!$S:$S,0))=TRUE,,MATCH($AH$2&$B142,InPos!$S:$S,0)-1) -> 0
A143: 0 | AI143: =IF(ISNA(MATCH($AH$2&$B143,InPos!$S:$S,0))=TRUE,,MATCH($AH$2&$B143,InPos!$S:$S,0)-1) -> 0
A144: 0 | AI144: =IF(ISNA(MATCH($AH$2&$B144,InPos!$S:$S,0))=TRUE,,MATCH($AH$2&$B144,InPos!$S:$S,0)-1) -> 0
A145: 0 | AI145: =IF(ISNA(MATCH($AH$2&$B145,InPos!$S:$S,0))=TRUE,,MATCH($AH$2&$B145,InPos!$S:$S,0)-1) -> 0
A146: 0 | AI146: =IF(ISNA(MATCH($AH$2&$B146,InPos!$S:$S,0))=TRUE,,MATCH($AH$2&$B146,InPos!$S:$S,0)-1) -> 0
A147: 0 | AI147: =IF(ISNA(MATCH($AH$2&$B147,InPos!$S:$S,0))=TRUE,,MATCH($AH$2&$B147,InPos!$S:$S,0)-1) -> 0
A148: 0 | AI148: =IF(ISNA(MATCH($AH$2&$B148,InPos!$S:$S,0))=TRUE,,MATCH($AH$2&$B148,InPos!$S:$S,0)-1) -> 0
A149: 0 | AI149: =IF(ISNA(MATCH($AH$2&$B149,InPos!$S:$S,0))=TRUE,,MATCH($AH$2&$B149,InPos!$S:$S,0)-1) -> 0
A150: 0 | AI150: =IF(ISNA(MATCH($AH$2&$B150,InPos!$S:$S,0))=TRUE,,MATCH($AH$2&$B150,InPos!$S:$S,0)-1) -> 0
A151: 0 | AI151: =IF(ISNA(MATCH($AH$2&$B151,InPos!$S:$S,0))=TRUE,,MATCH($AH$2&$B151,InPos!$S:$S,0)-1) -> 0
A152: 0 | AI152: =IF(ISNA(MATCH($AH$2&$B152,InPos!$S:$S,0))=TRUE,,MATCH($AH$2&$B152,InPos!$S:$S,0)-1) -> 0
A153: 0 | AI153: =IF(ISNA(MATCH($AH$2&$B153,InPos!$S:$S,0))=TRUE,,MATCH($AH$2&$B153,InPos!$S:$S,0)-1) -> 0
A154: 0 | AI154: =IF(ISNA(MATCH($AH$2&$B154,InPos!$S:$S,0))=TRUE,,MATCH($AH$2&$B154,InPos!$S:$S,0)-1) -> 0
A155: 0 | AI155: =IF(ISNA(MATCH($AH$2&$B155,InPos!$S:$S,0))=TRUE,,MATCH($AH$2&$B155,InPos!$S:$S,0)-1) -> 0
A156: 0 | AI156: =IF(ISNA(MATCH($AH$2&$B156,InPos!$S:$S,0))=TRUE,,MATCH($AH$2&$B156,InPos!$S:$S,0)-1) -> 0
A157: 0 | AI157: =IF(ISNA(MATCH($AH$2&$B157,InPos!$S:$S,0))=TRUE,,MATCH($AH$2&$B157,InPos!$S:$S,0)-1) -> 0
A158: 0 | AI158: =IF(ISNA(MATCH($AH$2&$B158,InPos!$S:$S,0))=TRUE,,MATCH($AH$2&$B158,InPos!$S:$S,0)-1) -> 0
A159: 0 | AI159: =IF(ISNA(MATCH($AH$2&$B159,InPos!$S:$S,0))=TRUE,,MATCH($AH$2&$B159,InPos!$S:$S,0)-1) -> 0
A160: 0 | AI160: =IF(ISNA(MATCH($AH$2&$B160,InPos!$S:$S,0))=TRUE,,MATCH($AH$2&$B160,InPos!$S:$S,0)-1) -> 0
A161: 0 | AI161: =IF(ISNA(MATCH($AH$2&$B161,InPos!$S:$S,0))=TRUE,,MATCH($AH$2&$B161,InPos!$S:$S,0)-1) -> 0
A162: 0 | AI162: =IF(ISNA(MATCH($AH$2&$B162,InPos!$S:$S,0))=TRUE,,MATCH($AH$2&$B162,InPos!$S:$S,0)-1) -> 0
A163: 0 | AI163: =IF(ISNA(MATCH($AH$2&$B163,InPos!$S:$S,0))=TRUE,,MATCH($AH$2&$B163,InPos!$S:$S,0)-1) -> 0
A164: 0 | AI164: =IF(ISNA(MATCH($AH$2&$B164,InPos!$S:$S,0))=TRUE,,MATCH($AH$2&$B164,InPos!$S:$S,0)-1) -> 0
A165: 0 | AI165: =IF(ISNA(MATCH($AH$2&$B165,InPos!$S:$S,0))=TRUE,,MATCH($AH$2&$B165,InPos!$S:$S,0)-1) -> 0
A166: 0 | AI166: =IF(ISNA(MATCH($AH$2&$B166,InPos!$S:$S,0))=TRUE,,MATCH($AH$2&$B166,InPos!$S:$S,0)-1) -> 0
A167: 0 | AI167: =IF(ISNA(MATCH($AH$2&$B167,InPos!$S:$S,0))=TRUE,,MATCH($AH$2&$B167,InPos!$S:$S,0)-1) -> 0
A168: 0 | AI168: =IF(ISNA(MATCH($AH$2&$B168,InPos!$S:$S,0))=TRUE,,MATCH($AH$2&$B168,InPos!$S:$S,0)-1) -> 0
A169: 0 | AI169: =IF(ISNA(MATCH($AH$2&$B169,InPos!$S:$S,0))=TRUE,,MATCH($AH$2&$B169,InPos!$S:$S,0)-1) -> 0
A170: 0 | AI170: =IF(ISNA(MATCH($AH$2&$B170,InPos!$S:$S,0))=TRUE,,MATCH($AH$2&$B170,InPos!$S:$S,0)-1) -> 0
A171: 0 | AI171: =IF(ISNA(MATCH($AH$2&$B171,InPos!$S:$S,0))=TRUE,,MATCH($AH$2&$B171,InPos!$S:$S,0)-1) -> 0
A172: 0 | AI172: =IF(ISNA(MATCH($AH$2&$B172,InPos!$S:$S,0))=TRUE,,MATCH($AH$2&$B172,InPos!$S:$S,0)-1) -> 0
A173: 0 | AI173: =IF(ISNA(MATCH($AH$2&$B173,InPos!$S:$S,0))=TRUE,,MATCH($AH$2&$B173,InPos!$S:$S,0)-1) -> 0
A174: 0 | AI174: =IF(ISNA(MATCH($AH$2&$B174,InPos!$S:$S,0))=TRUE,,MATCH($AH$2&$B174,InPos!$S:$S,0)-1) -> 0
A175: 0 | AI175: =IF(ISNA(MATCH($AH$2&$B175,InPos!$S:$S,0))=TRUE,,MATCH($AH$2&$B175,InPos!$S:$S,0)-1) -> 0
A176: 0 | AI176: =IF(ISNA(MATCH($AH$2&$B176,InPos!$S:$S,0))=TRUE,,MATCH($AH$2&$B176,InPos!$S:$S,0)-1) -> 0
A177: 0 | AI177: =IF(ISNA(MATCH($AH$2&$B177,InPos!$S:$S,0))=TRUE,,MATCH($AH$2&$B177,InPos!$S:$S,0)-1) -> 0
A178: 0 | AI178: =IF(ISNA(MATCH($AH$2&$B178,InPos!$S:$S,0))=TRUE,,MATCH($AH$2&$B178,InPos!$S:$S,0)-1) -> 0
A179: 0 | AI179: =IF(ISNA(MATCH($AH$2&$B179,InPos!$S:$S,0))=TRUE,,MATCH($AH$2&$B179,InPos!$S:$S,0)-1) -> 0
A180: 0 | AI180: =IF(ISNA(MATCH($AH$2&$B180,InPos!$S:$S,0))=TRUE,,MATCH($AH$2&$B180,InPos!$S:$S,0)-1) -> 0
A181: 0 | AI181: =IF(ISNA(MATCH($AH$2&$B181,InPos!$S:$S,0))=TRUE,,MATCH($AH$2&$B181,InPos!$S:$S,0)-1) -> 0
A182: 0 | AI182: =IF(ISNA(MATCH($AH$2&$B182,InPos!$S:$S,0))=TRUE,,MATCH($AH$2&$B182,InPos!$S:$S,0)-1) -> 0
A183: 0 | AI183: =IF(ISNA(MATCH($AH$2&$B183,InPos!$S:$S,0))=TRUE,,MATCH($AH$2&$B183,InPos!$S:$S,0)-1) -> 0
A184: 0 | AI184: =IF(ISNA(MATCH($AH$2&$B184,InPos!$S:$S,0))=TRUE,,MATCH($AH$2&$B184,InPos!$S:$S,0)-1) -> 0
A185: 0 | AI185: =IF(ISNA(MATCH($AH$2&$B185,InPos!$S:$S,0))=TRUE,,MATCH($AH$2&$B185,InPos!$S:$S,0)-1) -> 0
A186: 0 | AI186: =IF(ISNA(MATCH($AH$2&$B186,InPos!$S:$S,0))=TRUE,,MATCH($AH$2&$B186,InPos!$S:$S,0)-1) -> 0
A187: 0 | AI187: =IF(ISNA(MATCH($AH$2&$B187,InPos!$S:$S,0))=TRUE,,MATCH($AH$2&$B187,InPos!$S:$S,0)-1) -> 0
A188: 0 | AI188: =IF(ISNA(MATCH($AH$2&$B188,InPos!$S:$S,0))=TRUE,,MATCH($AH$2&$B188,InPos!$S:$S,0)-1) -> 0
A189: 0 | AI189: =IF(ISNA(MATCH($AH$2&$B189,InPos!$S:$S,0))=TRUE,,MATCH($AH$2&$B189,InPos!$S:$S,0)-1) -> 0
A190: 0 | AI190: =IF(ISNA(MATCH($AH$2&$B190,InPos!$S:$S,0))=TRUE,,MATCH($AH$2&$B190,InPos!$S:$S,0)-1) -> 0
AI191: =IF(ISNA(MATCH($AH$2&$B191,InPos!$S:$S,0))=TRUE,,MATCH($AH$2&$B191,InPos!$S:$S,0)-1) -> 0
B192: Total Trading | E192: =IF(F192=0,"",IF(F192>=96,"A",IF(F192>=76,"B",IF(F192>=26,"C",IF(F192>=6,"D","F"))))) ->  | F192: =+(SUMPRODUCT(F116:F190,K116:K190))/(K192) ->  | G192: =SUM(G116:G190) -> 0 | I192: =SUM(I116:I190) -> 0 | K192: =SUM(K116:K190) -> 0 | L192: =SUM(L116:L190) -> 0 | M192: =L192/I192 ->  | N192: =IF($K$194=0,0,K192/$K$194) -> 0 | O192: =IF($K$266=0,0,K192/$K$266) -> 0 | S192: =SUM(AE116:AE190) -> 0 | T192: =SUM(AF116:AF190) -> 0 | U192: =SUM(AB116:AB190) -> 0 | V192: =SUM(AC116:AC190) -> 0 | W192: =SUM(AD116:AD190) -> 0 | AI192: =IF(ISNA(MATCH($AH$2&$B192,InPos!$S:$S,0))=TRUE,,MATCH($AH$2&$B192,InPos!$S:$S,0)-1) -> 0
AI193: =IF(ISNA(MATCH($AH$2&$B193,InPos!$S:$S,0))=TRUE,,MATCH($AH$2&$B193,InPos!$S:$S,0)-1) -> 0
B194: TOTAL EQUITY | E194: =IF(F194=0,"",IF(F194>=96,"A",IF(F194>=76,"B",IF(F194>=26,"C",IF(F194>=6,"D","F"))))) ->  | F194: =($F$112*$K$112+$F$192*$K$192)/($K$112+$K$192) ->  | G194: =G$32+G$112+G$192 -> 0 | I194: =I$32+I$112+I$192 -> 0 | K194: =K$32+K$112+K$192 -> 0 | L194: =L$32+L$112+L$192 -> 0 | M194: =L194/I194 ->  | N194: =IF(K194=0,0,1) -> 0 | O194: =IF(K266=0,0,K194/K266) -> 0 | S194: =S32*(I32/$I$194)+S112*(I112/$I$194)+S192*(I192/$I$194) ->  | T194: =T32*(K32/$K$194)+T112*(K112/$K$194)+T192*(K192/$K$194) ->  | U194: =U32*(K32/$K$194)+U112*(K112/$K$194)+U192*(K192/$K$194) ->  | V194: =V32*(K32/$K$194)+V112*(K112/$K$194)+V192*(K192/$K$194) ->  | W194: =W32*(K32/$K$194)+W112*(K112/$K$194)+W192*(K192/$K$194) ->  | AI194: =IF(ISNA(MATCH($AH$2&$B194,InPos!$S:$S,0))=TRUE,,MATCH($AH$2&$B194,InPos!$S:$S,0)-1) -> 0
AI195: =IF(ISNA(MATCH($AH$2&$B195,InPos!$S:$S,0))=TRUE,,MATCH($AH$2&$B195,InPos!$S:$S,0)-1) -> 0
B196: Fixed Income | N196: % FI | S196: YTM (Cost) | T196: YTM (MV) | AE196: FI YTM (Cost) | AF196: FI YTM (MV) | AI196: =IF(ISNA(MATCH($AH$2&$B196,InPos!$S:$S,0))=TRUE,,MATCH($AH$2&$B196,InPos!$S:$S,0)-1) -> 0
A197: 0 | B197: =OFFSET(TopBond,$A197,5) -> 00:00:00 | C197: =IF(A197=0,"",OFFSET(TopBond,$A197,3)) ->  | G197: =OFFSET(TopBond,$A197,7) -> 0 | H197: =IF(OR(G197=0,I197=0,G197="",I197=""),"",I197/G197*100) ->  | I197: =OFFSET(TopBond,$A197,8) -> 0 | J197: =OFFSET(TopBond,$A197,11) -> 0 | K197: =OFFSET(TopBond,$A197,9)-OFFSET(TopBond,$A197,13)-OFFSET(TopBond,$A197,14) -> 0 | L197: =K197-I197 -> 0 | M197: =IF(I197=0,0,L197/I197) -> 0 | N197: =IF($K$248=0,0,K197/$K$248) -> 0 | O197: =IF(FundCode="KHAZANAH",K197/$K$266,IF($O$1=0,0,K197/$O$1)) ->  | R197: =IF(A197=0,"",OFFSET(TopBond,$A197,10)) ->  | S197: =OFFSET(TopBond,$A197,16) -> 0 | T197: =OFFSET(TopBond,$A197,17) -> 0 | AE197: =IF(OR($I$248=0,$I$248="",I197="",S197=""),"",S197*I197/$I$248) ->  | AF197: =IF(OR($K$248=0,$K$248="",K197="",T197=""),"",T197*K197/$K$248) ->  | AI197: =IF(ISNA(MATCH($AH$2&$B197,InPos!$S:$S,0))=TRUE,,MATCH($AH$2&$B197,InPos!$S:$S,0)-1) -> 0
A198: 0 | B198: 00:00:00 | G198: 0 | I198: 0 | J198: 0 | K198: 0 | L198: 0 | M198: 0 | N198: 0 | O198: 0 | S198: 0 | T198: 0 | AI198: =IF(ISNA(MATCH($AH$2&$B198,InPos!$S:$S,0))=TRUE,,MATCH($AH$2&$B198,InPos!$S:$S,0)-1) -> 0
A199: 0 | B199: 00:00:00 | G199: 0 | I199: 0 | J199: 0 | K199: 0 | L199: 0 | M199: 0 | N199: 0 | O199: 0 | S199: 0 | T199: 0 | AI199: =IF(ISNA(MATCH($AH$2&$B199,InPos!$S:$S,0))=TRUE,,MATCH($AH$2&$B199,InPos!$S:$S,0)-1) -> 0
A200: 0 | B200: 00:00:00 | G200: 0 | I200: 0 | J200: 0 | K200: 0 | L200: 0 | M200: 0 | N200: 0 | O200: 0 | S200: 0 | T200: 0 | AI200: =IF(ISNA(MATCH($AH$2&$B200,InPos!$S:$S,0))=TRUE,,MATCH($AH$2&$B200,InPos!$S:$S,0)-1) -> 0
A201: 0 | B201: 00:00:00 | G201: 0 | I201: 0 | J201: 0 | K201: 0 | L201: 0 | M201: 0 | N201: 0 | O201: 0 | S201: 0 | T201: 0 | AI201: =IF(ISNA(MATCH($AH$2&$B201,InPos!$S:$S,0))=TRUE,,MATCH($AH$2&$B201,InPos!$S:$S,0)-1) -> 0
A202: 0 | B202: 00:00:00 | G202: 0 | I202: 0 | J202: 0 | K202: 0 | L202: 0 | M202: 0 | N202: 0 | O202: 0 | S202: 0 | T202: 0 | AI202: =IF(ISNA(MATCH($AH$2&$B202,InPos!$S:$S,0))=TRUE,,MATCH($AH$2&$B202,InPos!$S:$S,0)-1) -> 0
A203: 0 | B203: 00:00:00 | G203: 0 | I203: 0 | J203: 0 | K203: 0 | L203: 0 | M203: 0 | N203: 0 | O203: 0 | S203: 0 | T203: 0 | AI203: =IF(ISNA(MATCH($AH$2&$B203,InPos!$S:$S,0))=TRUE,,MATCH($AH$2&$B203,InPos!$S:$S,0)-1) -> 0
A204: 0 | B204: 00:00:00 | G204: 0 | I204: 0 | J204: 0 | K204: 0 | L204: 0 | M204: 0 | N204: 0 | O204: 0 | S204: 0 | T204: 0 | AI204: =IF(ISNA(MATCH($AH$2&$B204,InPos!$S:$S,0))=TRUE,,MATCH($AH$2&$B204,InPos!$S:$S,0)-1) -> 0
A205: 0 | B205: 00:00:00 | G205: 0 | I205: 0 | J205: 0 | K205: 0 | L205: 0 | M205: 0 | N205: 0 | O205: 0 | S205: 0 | T205: 0 | AI205: =IF(ISNA(MATCH($AH$2&$B205,InPos!$S:$S,0))=TRUE,,MATCH($AH$2&$B205,InPos!$S:$S,0)-1) -> 0
A206: 0 | B206: 00:00:00 | G206: 0 | I206: 0 | J206: 0 | K206: 0 | L206: 0 | M206: 0 | N206: 0 | O206: 0 | S206: 0 | T206: 0 | AI206: =IF(ISNA(MATCH($AH$2&$B206,InPos!$S:$S,0))=TRUE,,MATCH($AH$2&$B206,InPos!$S:$S,0)-1) -> 0
A207: 0 | B207: 00:00:00 | G207: 0 | I207: 0 | J207: 0 | K207: 0 | L207: 0 | M207: 0 | N207: 0 | O207: 0 | S207: 0 | T207: 0
A208: 0 | B208: 00:00:00 | G208: 0 | I208: 0 | J208: 0 | K208: 0 | L208: 0 | M208: 0 | N208: 0 | O208: 0 | S208: 0 | T208: 0
A209: 0 | B209: 00:00:00 | G209: 0 | I209: 0 | J209: 0 | K209: 0 | L209: 0 | M209: 0 | N209: 0 | O209: 0 | S209: 0 | T209: 0
A210: 0 | B210: 00:00:00 | G210: 0 | I210: 0 | J210: 0 | K210: 0 | L210: 0 | M210: 0 | N210: 0 | O210: 0 | S210: 0 | T210: 0
... 51 more rows

Sheet Income Status (hidden)
B2: =VLOOKUP(K2,Reference!A:B,2,0) -> Malaysian ESG Opportunity Fund | J2: Fund Code | K2: MEQESG
B3: Income Status as at 19-May-2016
C6: MTD | D6: YTD | E6: Inception | K6: End of Year | L6: End of Month | M6: Current Date
B7: Capital Gain | C7: =M8-L8 -> 0 | D7: =M8-K8 -> 0 | E7: =M8 -> 0 | J7: Date | K7: 2015-12-31 | L7: 2016-04-30 | M7: 2016-05-19
B8: Dividend Income | C8: =M9-L9 -> 0 | D8: =M9-K9 -> 0 | E8: =M9 -> 0 | J8: Capital Gain | K8: =-SUMIFS(InTBYTD!$F:$F,InTBYTD!$C:$C,$K$2,InTBYTD!$A:$A,K7,InTBYTD!$K:$K,"RG") -> 0 | L8: =-SUMIFS(InTBYTD!$F:$F,InTBYTD!$C:$C,$K$2,InTBYTD!$A:$A,L7,InTBYTD!$K:$K,"RG") -> 0 | M8: =-SUMIFS(InTBYTD!$F:$F,InTBYTD!$C:$C,$K$2,InTBYTD!$A:$A,M7,InTBYTD!$K:$K,"RG") -> 0
B9: Interest Income | C9: 0 | D9: =M10-K10 -> 0 | E9: 0 | J9: Dividend Income | K9: =-SUMIFS(InTBYTD!$F:$F,InTBYTD!$C:$C,$K$2,InTBYTD!$A:$A,K7,InTBYTD!$K:$K,"DI",InTBYTD!$L:$L,"<>0")-SUMIFS(InTBYTD!$F:$F,InTBYTD!$C:$C,$K$2,InTBYTD!$A:$A,K7,InTBYTD!$E:$E,799130) -> 0 | L9: =-SUMIFS(InTBYTD!$F:$F,InTBYTD!$C:$C,$K$2,InTBYTD!$A:$A,L7,InTBYTD!$K:$K,"DI",InTBYTD!$L:$L,"<>0")-SUMIFS(InTBYTD!$F:$F,InTBYTD!$C:$C,$K$2,InTBYTD!$A:$A,L7,InTBYTD!$E:$E,799130) -> 0 | M9: =-SUMIFS(InTBYTD!$F:$F,InTBYTD!$C:$C,$K$2,InTBYTD!$A:$A,M7,InTBYTD!$K:$K,"DI",InTBYTD!$L:$L,"<>0")-SUMIFS(InTBYTD!$F:$F,InTBYTD!$C:$C,$K$2,InTBYTD!$A:$A,M7,InTBYTD!$E:$E,799130) -> 0
B10: Coupon Received | C10: =M11-L11 -> 0 | D10: =M11-K11 -> 0 | E10: =M11 -> 0 | J10: Interest Income | K10: =-SUMIFS(InTBYTD!$F:$F,InTBYTD!$C:$C,$K$2,InTBYTD!$A:$A,K7,InTBYTD!$K:$K,"INC",InTBYTD!$L:$L,"CSH") -> 0 | L10: =-SUMIFS(InTBYTD!$F:$F,InTBYTD!$C:$C,$K$2,InTBYTD!$A:$A,L7,InTBYTD!$K:$K,"INC",InTBYTD!$L:$L,"CSH") -> 0 | M10: =-SUMIFS(InTBYTD!$F:$F,InTBYTD!$C:$C,$K$2,InTBYTD!$A:$A,M7,InTBYTD!$K:$K,"INC",InTBYTD!$L:$L,"CSH") -> 0
B11: Coupon Receivable | C11: =M12 -> 0 | D11: =M12 -> 0 | E11: =M12 -> 0 | J11: Coupon Received | K11: =-SUMIFS(InTBYTD!$F:$F,InTBYTD!$C:$C,$K$2,InTBYTD!$A:$A,K7,InTBYTD!$E:$E,">=630100",InTBYTD!$E:$E,"<=630140") -> 0 | L11: =-SUMIFS(InTBYTD!$F:$F,InTBYTD!$C:$C,$K$2,InTBYTD!$A:$A,L7,InTBYTD!$E:$E,">=630100",InTBYTD!$E:$E,"<=630140") -> 0 | M11: =-SUMIFS(InTBYTD!$F:$F,InTBYTD!$C:$C,$K$2,InTBYTD!$A:$A,M7,InTBYTD!$E:$E,">=630100",InTBYTD!$E:$E,"<=630140") -> 0
B12: Other Income | C12: =M13-L13 -> 0 | D12: 0 | E12: 0 | J12: Coupon Receivable | K12: =-SUMIFS(InTBYTD!$F:$F,InTBYTD!$C:$C,$K$2,InTBYTD!$A:$A,K7,InTBYTD!$E:$E,">=639100",InTBYTD!$E:$E,"<=639140") -> 0 | L12: =-SUMIFS(InTBYTD!$F:$F,InTBYTD!$C:$C,$K$2,InTBYTD!$A:$A,L7,InTBYTD!$E:$E,">=639100",InTBYTD!$E:$E,"<=639140") -> 0 | M12: =-SUMIFS(InTBYTD!$F:$F,InTBYTD!$C:$C,$K$2,InTBYTD!$A:$A,M7,InTBYTD!$E:$E,">=639100",InTBYTD!$E:$E,"<=639140") -> 0
B13: Gross Income | C13: =SUM(C7:C12)-$L$12 -> 0 | D13: =SUM(D7:D12)-$K$12 -> 0 | E13: =SUM(E7:E12) -> 0 | J13: Other Income | K13: =-SUMIFS(InTBYTD!$F:$F,InTBYTD!$C:$C,$K$2,InTBYTD!$A:$A,K7,InTBYTD!$K:$K,"DI",InTBYTD!$L:$L,0) -> 0 | L13: =-SUMIFS(InTBYTD!$F:$F,InTBYTD!$C:$C,$K$2,InTBYTD!$A:$A,L7,InTBYTD!$K:$K,"DI",InTBYTD!$L:$L,0) -> 0 | M13: =-SUMIFS(InTBYTD!$F:$F,InTBYTD!$C:$C,$K$2,InTBYTD!$A:$A,M7,InTBYTD!$K:$K,"DI",InTBYTD!$L:$L,0) -> 0

Sheet InPosCsh (hidden)
AC1: =IF(S1="MYR",1,IF(S1="USD",SUMIFS(InCurr!D:D,InCurr!B:B,"USD",InCurr!C:C,"MYR",InCurr!E:E,3),SUMIFS(InCurr!D:D,InCurr!B:B,"USD",InCurr!C:C,"MYR",InCurr!E:E,3)/SUMIFS(InCurr!D:D,InCurr!B:B,"USD",InCurr!C:C,S1,InCurr!E:E,3))) ->  | AD1: =IFERROR(U1*AC1,0) -> 0 | AE1: =IFERROR(N1*AC1,0) -> 0 | AF1: =IFERROR(O1*AC1,0) -> 0 | AG1: =IF(B1="BND",(Y1-ValueDate)/365,"") ->  | AH1: =IF(B1="BND",DURATION(ValueDate,Y1,Z1,R1,AA1,AB1),"") ->  | AI1: =IF(B1="BND",PRODUCT(Q1*J1),"") ->  | AJ1: =IF(B1="BND",AG1*J1,"") ->  | AK1: =IF(B1="BND",Z1*J1,"") ->  | AL1: =IF(B1="BND",AH1*J1,"") -> 
A2: HistoryDate | B2: qProductType | C2: qFundCode | D2: StockName | E2: Description | F2: qStockCode | G2: qMasterID | H2: UnitFaceValue | I2: CostFC | J2: MarketValueFC | K2: SectorName | L2: PriceCurr | M2: UnrealisedGainsStock | N2: AccruedInterest | O2: LastMarketValue | P2: IssuedSize | Q2: PurchaseYTM | R2: ValueYTM | S2: StockCurrency | T2: CostSC | U2: MarketValueSC | V2: RatingAgency | W2: qRank | X2: Rating | Y2: MaturityDate | Z2: Coupon | AA2: Frequency | AB2: ExcelBasis | AC2: ForAsean | AD2: MVinMYR | AE2: AIInMYR | AF2: KMVinMYR | AG2: Maturity | AH2: Duration | AI2: PriceYTMxMVFC | AJ2: MatxMVFC | AK2: CouponxMVFC | AL2: DurationxMVFC
A3: 2018-01-04 | B3: BND | C3: KWAPFI | D3: MBSB (SCSM) IMTN 4.700% 10.12.2021 | E3: MBSB (SCSM) IMTN 4.700% 10.12.2021 | F3: VK140379 | G3: BND*150400007 | H3: 5000000 | I3: 4956000 | J3: 5010095.89 | K3: FINANCIALS | L3: 99.88 | M3: 21903.54 | N3: 16095.89 | O3: 0 | P3: 3000000000 | Q3: 0.04856704 | R3: 0.04733 | S3: MYR | T3: 4956000 | U3: 5010095.89 | V3: RAM | W3: 122 | X3: AA1 | Y3: 2021-12-10 | Z3: 0.047 | AA3: 2 | AB3: 3 | AC3: 1 | AD3: 5010095.89 | AE3: 16095.89 | AF3: 0 | AG3: 3.934246575 | AH3: 3.624185346 | AI3: 243325.5275 | AJ3: 19710952.6 | AK3: 235474.5068 | AL3: 18157516.11
A4: 2018-01-04 | B4: BND | C4: KWAPFI | D4: MBSB (SCSM) IMTN 4.900% 08.12.2023 | E4: MBSB (SCSM) IMTN 4.900% 08.12.2023 | F4: VM140377 | G4: BND*150400008 | H4: 5000000 | I4: 4952500 | J4: 5022680.82 | K4: FINANCIALS | L4: 100.118 | M4: 40792.58 | N4: 16780.82 | O4: 0 | P4: 3000000000 | Q4: 0.05036919 | R4: 0.04876 | S4: MYR | T4: 4952500 | U4: 5022680.82 | V4: RAM | W4: 122 | X4: AA1 | Y4: 2023-12-08 | Z4: 0.049 | AA4: 2 | AB4: 3 | AC4: 1 | AD4: 5022680.82 | AE4: 16780.82 | AF4: 0 | AG4: 5.928767123 | AH4: 5.197055298 | AI4: 252988.3645 | AJ4: 29778304.92 | AK4: 246111.3602 | AL4: 26103149.96
A5: 2018-01-04 | B5: BND | C5: KWAPFI | D5: AMAN IMTN 4.700% 08.05.2030 | E5: AMAN IMTN 4.700% 08.05.2030 - Tranche No 42 | F5: VS150073 | G5: BND*150500003 | H5: 5000000 | I5: 5000000 | J5: 4981242.47 | K5: CONSTRUCTION | L5: 98.878 | M5: -56100 | N5: 37342.47 | O5: 0 | P5: 10000000000 | Q5: 0.047 | R5: 0.04821 | S5: MYR | T5: 5000000 | U5: 4981242.47 | V5: MARC | W5: 115 | X5: AAA | Y5: 2030-05-08 | Z5: 0.047 | AA5: 2 | AB5: 3 | AC5: 1 | AD5: 4981242.47 | AE5: 37342.47 | AF5: 0 | AG5: 12.34794521 | AH5: 9.416929169 | AI5: 234118.3961 | AJ5: 61508109.07 | AK5: 234118.3961 | AL5: 46908007.51
A6: 2018-01-04 | B6: BND | C6: KWAPFI | D6: RHBBANK MTN 3653D 15/0040 4.75% 08.05.2025 | E6: RHBBANK MTN 3653D 15/0040 4.75% 08.05.2025 | F6: UN150040 | G6: BND*150500004 | H6: 15000000 | I6: 15000000 | J6: 15110669.18 | K6: FINANCIALS | L6: 99.983 | M6: -2550 | N6: 113219.18 | O6: 0 | P6: 5000000000 | Q6: 0.0475 | R6: 0.04755 | S6: MYR | T6: 15000000 | U6: 15110669.18 | V6: RAM | W6: 128 | X6: AA3 | Y6: 2025-05-08 | Z6: 0.0475 | AA6: 2 | AB6: 3 | AC6: 1 | AD6: 15110669.18 | AE6: 113219.18 | AF6: 0 | AG6: 7.345205479 | AH6: 6.240015172 | AI6: 717756.786 | AJ6: 110990970.1 | AK6: 717756.786 | AL6: 94290804.95
A7: 2018-01-04 | B7: BND | C7: KWAPFI | D7: BESRAYA 4.960% 28.07.2023 | E7: BESRAYA 4.960% 28.07.2023 | F7: PP110035 | G7: BND*150500014 | H7: 10000000 | I7: 10221000 | J7: 10271427.03 | K7: INDUSTRIALS | L7: 100.556 | M7: -103270.99 | N7: 215827.03 | O7: 0 | P7: 700000000 | Q7: 0.04632213 | R7: 0.04844 | S7: MYR | T7: 10221000 | U7: 10271427.03 | V7: RAM | W7: 128 | X7: AA3 | Y7: 2023-07-28 | Z7: 0.0496 | AA7: 2 | AB7: 1 | AC7: 1 | AD7: 10271427.03 | AE7: 215827.03 | AF7: 0 | AG7: 5.564383562 | AH7: 4.830319767 | AI7: 475794.3782 | AJ7: 57154159.72 | AK7: 509462.7807 | AL7: 49614277.02
A8: 2018-01-04 | B8: BND | C8: KWAPFI | D8: UOBM 4.65% 8.05.2025 | E8: UOBM 4.65% 8.05.2025 | F8: PN150008 | G8: BND*150500019 | H8: 5000000 | I8: 5009000 | J8: 5055245.21 | K8: FINANCIALS | L8: 100.366 | M8: 11541.13 | N8: 36945.21 | O8: 0 | P8: 1000000000 | Q8: 0.04627154 | R8: 0.04481 | S8: MYR | T8: 5009000 | U8: 5055245.21 | V8: RAM | W8: 122 | X8: AA1 | Y8: 2025-05-08 | Z8: 0.0465 | AA8: 2 | AB8: 3 | AC8: 1 | AD8: 5055245.21 | AE8: 36945.21 | AF8: 0 | AG8: 7.345205479 | AH8: 6.267700835 | AI8: 233913.9809 | AJ8: 37131814.82 | AK8: 235068.9023 | AL8: 31684764.62
A9: 2018-01-04 | B9: BND | C9: KWAPFI | D9: PUBLIC SUB-NOTES 4.77% 27.10.2023 | E9: PUBLIC SUB-NOTES 4.77% 27.10.2023 | F9: UN130096 | G9: BND*150500020 | H9: 15000000 | I9: 15151500 | J9: 15175888.36 | K9: FINANCIALS | L9: 100.297 | M9: -65046.8 | N9: 131338.36 | O9: 0 | P9: 10000000000 | Q9: 0.04623908 | R9: 0.04387 | S9: MYR | T9: 15151500 | U9: 15175888.36 | V9: RAM | W9: 122 | X9: AA1 | Y9: 2023-10-27 | Z9: 0.0477 | AA9: 2 | AB9: 3 | AC9: 1 | AD9: 15175888.36 | AE9: 131338.36 | AF9: 0 | AG9: 5.81369863 | AH9: 5.10741309 | AI9: 701719.1159 | AJ9: 88228041.37 | AK9: 723889.8748 | AL9: 77509530.87
A10: 2018-01-04 | B10: BND | C10: KWAPFI | D10: K-PROHAWK IMTN 5.200% 22.12.2025 | E10: K-PROHAWK IMTN 5.200% 22.12.2025 | F10: VO140417 | G10: BND*150700010 | H10: 5000000 | I10: 5195500 | J10: 5161272.6 | K10: INDUSTRIALS | L10: 103.026 | M10: -6458.59 | N10: 9972.6 | O10: 0 | P10: 900000000 | Q10: 0.0471982 | R10: 0.04739 | S10: MYR | T10: 5195500 | U10: 5161272.6 | V10: RAM | W10: 125 | X10: AA2 | Y10: 2025-12-22 | Z10: 0.052 | AA10: 2 | AB10: 3 | AC10: 1 | AD10: 5161272.6 | AE10: 9972.6 | AF10: 0 | AG10: 7.969863014 | AH10: 6.6338241 | AI10: 243602.7764 | AJ10: 41134635.6 | AK10: 268386.1752 | AL10: 34238974.56
A11: 2018-01-04 | B11: BND | C11: KWAPFI | D11: SEB IMTN 5.040% 25.04.2031 | E11: SEB IMTN 5.040% 25.04.2031 | F11: VS160109 | G11: BND*160700034 | H11: 15000000 | I11: 15264000 | J11: 15036028.77 | K11: POWER | L11: 99.246 | M11: -358456.52 | N11: 149128.77 | O11: 0 | P11: 15000000000 | Q11: 0.04870774 | R11: 0.05118 | S11: MYR | T11: 15264000 | U11: 15036028.77 | V11: RAM | W11: 122 | X11: AA1 | Y11: 2031-04-25 | Z11: 0.0504 | AA11: 2 | AB11: 3 | AC11: 1 | AD11: 15036028.77 | AE11: 149128.77 | AF11: 0 | AG11: 13.31232877 | AH11: 9.742883732 | AI11: 732370.98 | AJ11: 200164558.3 | AK11: 757815.85 | AL11: 146494280.1
A12: 2018-01-04 | B12: BND | C12: KWAPFI | D12: SARAWAKHIDRO IMTN 4.61% 09.08.2030 | E12: SARAWAKHIDRO IMTN 4.61% 09.08.2030 | F12: VR160244 | G12: BND*160800006 | H12: 15000000 | I12: 15076500 | J12: 14919544.52 | K12: POWER | L12: 97.607 | M12: -429222.77 | N12: 278494.52 | O12: 0 | P12: 5540000000 | Q12: 0.04560272 | R12: 0.04866 | S12: MYR | T12: 15076500 | U12: 14919544.52 | V12: RAM | W12: 115 | X12: AAA | Y12: 2030-08-09 | Z12: 0.0461 | AA12: 2 | AB12: 3 | AC12: 1 | AD12: 14919544.52 | AE12: 278494.52 | AF12: 0 | AG12: 12.60273973 | AH12: 9.470558032 | AI12: 680371.8113 | AJ12: 188027136.4 | AK12: 687791.0024 | AL12: 141296412.2
A13: 2018-01-04 | B13: BND | C13: KWAPFI | D13: SARAWAKHIDRO IMTN 4.67% 11.08.2031 | E13: SARAWAKHIDRO IMTN 4.67% 11.08.2031 | F13: VS160243 | G13: BND*160800008 | H13: 10000000 | I13: 10075000 | J13: 9944779.45 | K13: POWER | L13: 97.567 | M13: -312833.69 | N13: 188079.45 | O13: 0 | P13: 5540000000 | Q13: 0.0460023 | R13: 0.04917 | S13: MYR | T13: 10075000 | U13: 9944779.45 | V13: RAM | W13: 115 | X13: AAA | Y13: 2031-08-11 | Z13: 0.0467 | AA13: 2 | AB13: 3 | AC13: 1 | AD13: 9944779.45 | AE13: 188079.45 | AF13: 0 | AG13: 13.60821918 | AH13: 9.978526237 | AI13: 457482.7277 | AJ13: 135330738.4 | AK13: 464421.2003 | AL13: 99234242.67
A14: 2018-01-04 | B14: BND | C14: KWAPFI | D14: SAMALAJU IMTN 5.45% 28.12.2027 - Issue No.5 | E14: SAMALAJU IMTN 5.45% 28.12.2027 - Issue No.5 | F14: VP150349 | G14: BND*160800019 | H14: 5000000 | I14: 5329000 | J14: 5204872.6 | K14: TRANSPORTATION & LOGISTIC | L14: 103.978 | M14: -98997.6 | N14: 5972.6 | O14: 0 | P14: 950000000 | Q14: 0.04695301 | R14: 0.0494 | S14: MYR | T14: 5329000 | U14: 5204872.6 | V14: RAM | W14: 122 | X14: AA1 | Y14: 2027-12-28 | Z14: 0.0545 | AA14: 2 | AB14: 3 | AC14: 1 | AD14: 5204872.6 | AE14: 5972.6 | AF14: 0 | AG14: 9.98630137 | AH14: 7.869318517 | AI14: 244384.4352 | AJ14: 51977426.38 | AK14: 283665.5567 | AL14: 40958800.33
A15: 2018-01-04 | B15: BND | C15: KWAPFI | D15: LDF3 IMTN 6.230% 21.08.2037 | E15: LDF3 IMTN 6.230% 21.08.2037 | F15: VY160268 | G15: BND*160800025 | H15: 5000000 | I15: 5118000 | J15: 5600462.33 | K15: INDUSTRIALS | L15: 109.705 | M15: 371690.42 | N15: 115212.33 | O15: 0 | P15: 3640000000 | Q15: 0.06030281 | R15: 0.0542 | S15: MYR | T15: 5118000 | U15: 5600462.33 | V15: MARC | W15: 128 | X15: AA- | Y15: 2037-08-21 | Z15: 0.0623 | AA15: 2 | AB15: 3 | AC15: 1 | AD15: 5600462.33 | AE15: 115212.33 | AF15: 0 | AG15: 19.64109589 | AH15: 11.72201968 | AI15: 337723.6158 | AJ15: 109999217.7 | AK15: 348908.8032 | AL15: 65648729.67
A16: 2018-01-04 | B16: BND | C16: KWAPFI | D16: LDF3 IMTN 6.430% 23.08.2039 | E16: LDF3 IMTN 6.430% 23.08.2039 | F16: VZ160270 | G16: BND*160800027 | H16: 5000000 | I16: 5121500 | J16: 5683510.96 | K16: INDUSTRIALS | L16: 111.292 | M16: 447011.23 | N16: 118910.96 | O16: 0 | P16: 3640000000 | Q16: 0.06229783 | R16: 0.05528 | S16: MYR | T16: 5121500 | U16: 5683510.96 | V16: MARC | W16: 128 | X16: AA- | Y16: 2039-08-23 | Z16: 0.0643 | AA16: 2 | AB16: 3 | AC16: 1 | AD16: 5683510.96 | AE16: 118910.96 | AF16: 0 | AG16: 21.64657534 | AH16: 12.22387711 | AI16: 354070.3996 | AJ16: 123028548.2 | AK16: 365449.7547 | AL16: 69474539.51
A17: 2018-01-04 | B17: BND | C17: KWAPFI | D17: MGS 2/2016 4.736% 15.3.2046 | E17: MGS 2/2016 4.736% 15.3.2046 | F17: MZ160002 | G17: BND*160900008 | H17: 20000000 | I17: 21002000 | J17: 19942056.35 | K17: GOV | L17: 98.245 | M17: -1329319.48 | N17: 293056.35 | O17: 0 | P17: 999999990000 | Q17: 0.04430087 | R17: 0.0485 | S17: MYR | T17: 21002000 | U17: 19942056.35 | V17: RAM | W17: 10 | X17: GOVT | Y17: 2046-03-15 | Z17: 0.04736 | AA17: 2 | AB17: 1 | AC17: 1 | AD17: 19942056.35 | AE17: 293056.35 | AF17: 0 | AG17: 28.2109589 | AH17: 15.50069924 | AI17: 883450.4459 | AJ17: 562584532.2 | AK17: 944455.7887 | AL17: 309115817.7
A18: 2018-01-04 | B18: BND | C18: KWAPFI | D18: WESTPORTS IMTN 4.580% 31.03.2028 | E18: WESTPORTS IMTN 4.580% 31.03.2028 | F18: VS130118 | G18: BND*160900016 | H18: 5000000 | I18: 5025000 | J18: 4942016.48 | K18: TRANSPORTATION & LOGISTIC | L18: 97.645 | M18: -140321.48 | N18: 59766.48 | O18: 0 | P18: 2000000000 | Q18: 0.04523629 | R18: 0.04874 | S18: MYR | T18: 5025000 | U18: 4942016.48 | V18: MARC | W18: 122 | X18: AA+ | Y18: 2028-03-31 | Z18: 0.0458 | AA18: 2 | AB18: 1 | AC18: 1 | AD18: 4942016.48 | AE18: 59766.48 | AF18: 0 | AG18: 10.24383562 | AH18: 8.157897863 | AI18: 223558.4907 | AJ18: 50625204.43 | AK18: 226344.3548 | AL18: 40316465.68
A19: 2018-01-04 | B19: BND | C19: KWAPFI | D19: K-PROHAWK IMTN 5.240% 27.12.2030 | E19: K-PROHAWK IMTN 5.240% 27.12.2030 | F19: VV130177 | G19: BND*170100007 | H19: 5000000 | I19: 5035000 | J19: 5091492.47 | K19: OTHERS | L19: 101.715 | M19: 52284.7 | N19: 5742.47 | O19: 0 | P19: 900000000 | Q19: 0.05168424 | R19: 0.05058 | S19: MYR | T19: 5035000 | U19: 5091492.47 | V19: RAM | W19: 125 | X19: AA2 | Y19: 2030-12-27 | Z19: 0.0524 | AA19: 2 | AB19: 3 | AC19: 1 | AD19: 5091492.47 | AE19: 5742.47 | AF19: 0 | AG19: 12.98630137 | AH19: 9.598468097 | AI19: 263149.9188 | AJ19: 66119655.64 | AK19: 266794.2054 | AL19: 48870528.04
A20: 2018-01-04 | B20: BND | C20: KWAPFI | D20: LDF3 IMTN 6.130% 22.08.2036 | E20: LDF3 IMTN 6.130% 22.08.2036 | F20: VX160267 | G20: BND*170200001 | H20: 5000000 | I20: 5438000 | J20: 5582363.01 | K20: INDUSTRIALS | L20: 109.38 | M20: 43094.79 | N20: 113363.01 | O20: 0 | P20: 3640000000000 | Q20: 0.05398608 | R20: 0.05329 | S20: MYR | T20: 5438000 | U20: 5582363.01 | V20: MARC | W20: 128 | X20: AA- | Y20: 2036-08-22 | Z20: 0.0613 | AA20: 2 | AB20: 3 | AC20: 1 | AD20: 5582363.01 | AE20: 113363.01 | AF20: 0 | AG20: 18.64383562 | AH20: 11.45778452 | AI20: 301369.896 | AJ20: 104076658.3 | AK20: 342198.8525 | AL20: 63961512.49
A21: 2018-01-04 | B21: BND | C21: KWAPFI | D21: BGSM MGMT IMTN 5.450% 28.06.2024 - Issue No 10 | E21: BGSM MGMT IMTN 5.450% 28.06.2024 - Issue No 10 | F21: VN140164 | G21: BND*170200009 | H21: 10000000 | I21: 10256000 | J21: 10413545.21 | K21: OTHERS | L21: 104.016 | M21: 170778.12 | N21: 11945.21 | O21: 0 | P21: 330000000 | Q21: 0.05028017 | R21: 0.04723 | S21: MYR | T21: 10256000 | U21: 10413545.21 | V21: RAM | W21: 128 | X21: AA3 | Y21: 2024-06-28 | Z21: 0.0545 | AA21: 2 | AB21: 3 | AC21: 1 | AD21: 10413545.21 | AE21: 11945.21 | AF21: 0 | AG21: 6.484931507 | AH21: 5.562546235 | AI21: 523594.8235 | AJ21: 67531127.43 | AK21: 567538.2139 | AL21: 57925826.7
A22: 2018-01-04 | B22: BND | C22: KWAPFI | D22: BGSM MGMT IMTN 5.600% 27.12.2023 - Issue No 9 | E22: BGSM MGMT IMTN 5.600% 27.12.2023 - Issue No 9 | F22: VN130387 | G22: BND*170200010 | H22: 10000000 | I22: 10370000 | J22: 10479973.97 | K22: TELCO | L22: 104.677 | M22: 137408.5 | N22: 12273.97 | O22: 0 | P22: 373000000 | Q22: 0.04954876 | R22: 0.04693 | S22: MYR | T22: 10370000 | U22: 10479973.97 | V22: RAM | W22: 128 | X22: AA3 | Y22: 2023-12-28 | Z22: 0.056 | AA22: 2 | AB22: 3 | AC22: 1 | AD22: 10479973.97 | AE22: 12273.97 | AF22: 0 | AG22: 5.983561644 | AH22: 5.181120043 | AI22: 519269.715 | AJ22: 62707570.28 | AK22: 586878.5423 | AL22: 54298003.19
A23: 2018-01-04 | B23: BND | C23: KWAPFI | D23: MGS 2/2016 4.736% 15.3.2046 | E23: MGS 2/2016 4.736% 15.3.2046 | F23: MZ160002 | G23: BND*170200023 | H23: 10000000 | I23: 10073400 | J23: 9971028.18 | K23: GOV | L23: 98.245 | M23: -247400.53 | N23: 146528.18 | O23: 0 | P23: 999999990000 | Q23: 0.04689351 | R23: 0.0485 | S23: MYR | T23: 10073400 | U23: 9971028.18 | V23: RAM | W23: 10 | X23: GOVT | Y23: 2046-03-15 | Z23: 0.04736 | AA23: 2 | AB23: 1 | AC23: 1 | AD23: 9971028.18 | AE23: 146528.18 | AF23: 0 | AG23: 28.2109589 | AH23: 15.50069924 | AI23: 467576.5097 | AJ23: 281292266.2 | AK23: 472227.8946 | AL23: 154557908.9
A24: 2018-01-04 | B24: BND | C24: KWAPFI | D24: LDF3 IMTN 6.130% 22.08.2036 | E24: LDF3 IMTN 6.130% 22.08.2036 | F24: VX160267 | G24: BND*170300002 | H24: 5000000 | I24: 5429500 | J24: 5582363.01 | K24: INDUSTRIALS | L24: 109.38 | M24: 50132.19 | N24: 113363.01 | O24: 0 | P24: 3640000000000 | Q24: 0.05410036 | R24: 0.05329 | S24: MYR | T24: 5429500 | U24: 5582363.01 | V24: MARC | W24: 128 | X24: AA- | Y24: 2036-08-22 | Z24: 0.0613 | AA24: 2 | AB24: 3 | AC24: 1 | AD24: 5582363.01 | AE24: 113363.01 | AF24: 0 | AG24: 18.64383562 | AH24: 11.45778452 | AI24: 302007.8485 | AJ24: 104076658.3 | AK24: 342198.8525 | AL24: 63961512.49
A25: 2018-01-04 | B25: BND | C25: KWAPFI | D25: LDF3 IMTN 6.230% 21.08.2037 | E25: LDF3 IMTN 6.230% 21.08.2037 | F25: VY160268 | G25: BND*170300003 | H25: 5000000 | I25: 5451000 | J25: 5600462.33 | K25: INDUSTRIALS | L25: 109.705 | M25: 44449.55 | N25: 115212.33 | O25: 0 | P25: 3640000000 | Q25: 0.05489937 | R25: 0.0542 | S25: MYR | T25: 5451000 | U25: 5600462.33 | V25: MARC | W25: 128 | X25: AA- | Y25: 2037-08-21 | Z25: 0.0623 | AA25: 2 | AB25: 3 | AC25: 1 | AD25: 5600462.33 | AE25: 115212.33 | AF25: 0 | AG25: 19.64109589 | AH25: 11.72201968 | AI25: 307461.8536 | AJ25: 109999217.7 | AK25: 348908.8032 | AL25: 65648729.67
A26: 2018-01-04 | B26: BND | C26: KWAPFI | D26: TENAGA IMTN 03.08.2037 | E26: TENAGA IMTN 03.08.2037 | F26: VX170228 | G26: BND*170800001 | H26: 20000000 | I26: 20000000 | J26: 20662945.21 | K26: UTILITIES | L26: 101.115 | M26: 223000 | N26: 439945.21 | O26: 0 | P26: 5000000000 | Q26: 0.0518 | R26: 0.05089 | S26: MYR | T26: 20000000 | U26: 20662945.21 | V26: RAM | W26: 115 | X26: AAA | Y26: 2037-08-03 | Z26: 0.0518 | AA26: 2 | AB26: 3 | AC26: 1 | AD26: 20662945.21 | AE26: 439945.21 | AF26: 0 | AG26: 19.59178082 | AH26: 12.3061581 | AI26: 1070340.562 | AJ26: 404823893.7 | AK26: 1070340.562 | AL26: 254281470.6
A27: 2018-01-04 | B27: BND | C27: KWAPFI | D27: MGS 3/2017 4.762% 07.04.2037 | E27: MGS 3/2017 4.762% 07.04.2037 | F27: MX170003 | G27: BND*170800037 | H27: 10000000 | I27: 10291000 | J27: 10346461.96 | K27: GOV | L27: 102.3 | M27: -57482.56 | N27: 116461.96 | O27: 0 | P27: 999999990000 | Q27: 0.04536019 | R27: 0.0458 | S27: MYR | T27: 10291000 | U27: 10346461.96 | V27: RAM | W27: 10 | X27: GOVT | Y27: 2037-04-07 | Z27: 0.04762 | AA27: 2 | AB27: 1 | AC27: 1 | AD27: 10346461.96 | AE27: 116461.96 | AF27: 0 | AG27: 19.26849315 | AH27: 12.75096985 | AI27: 469317.4803 | AJ27: 199360731.4 | AK27: 492698.5185 | AL27: 131927424.5
A28: 2018-01-04 | B28: BND | C28: KWAPFI | D28: MGS 3/2017 4.762% 07.04.2037 | E28: MGS 3/2017 4.762% 07.04.2037 | F28: MX170003 | G28: BND*170800039 | H28: 40000000 | I28: 41164000 | J28: 41385847.83 | K28: GOV | L28: 102.3 | M28: -230392.76 | N28: 465847.83 | O28: 0 | P28: 999999990000 | Q28: 0.0453593 | R28: 0.0458 | S28: MYR | T28: 41164000 | U28: 41385847.83 | V28: RAM | W28: 10 | X28: GOVT | Y28: 2037-04-07 | Z28: 0.04762 | AA28: 2 | AB28: 1 | AC28: 1 | AD28: 41385847.83 | AE28: 465847.83 | AF28: 0 | AG28: 19.26849315 | AH28: 12.75096985 | AI28: 1877233.087 | AJ28: 797442925.4 | AK28: 1970794.074 | AL28: 527709698
A29: 2018-01-04 | B29: BND | C29: KWAPFI | D29: MGS 3/2017 4.762% 07.04.2037 | E29: MGS 3/2017 4.762% 07.04.2037 | F29: MX170003 | G29: BND*170900005 | H29: 20000000 | I29: 20727000 | J29: 20692923.91 | K29: GOV | L29: 102.3 | M29: -258902.92 | N29: 232923.91 | O29: 0 | P29: 999999990000 | Q29: 0.04480878 | R29: 0.0458 | S29: MYR | T29: 20727000 | U29: 20692923.91 | V29: RAM | W29: 10 | X29: GOVT | Y29: 2037-04-07 | Z29: 0.04762 | AA29: 2 | AB29: 1 | AC29: 1 | AD29: 20692923.91 | AE29: 232923.91 | AF29: 0 | AG29: 19.26849315 | AH29: 12.75096985 | AI29: 927224.675 | AJ29: 398721462.6 | AK29: 985397.0366 | AL29: 263854848.9
A30: 2018-01-04 | B30: BND | C30: KWAPFI | D30: MMC CORP IMTN 5.950% 12.11.2027 | E30: MMC CORP IMTN 5.950% 12.11.2027 | F30: VP150259 | G30: BND*171000006 | H30: 10000000 | I30: 10432000 | J30: 10533397.26 | K30: POWER | L30: 104.47 | M30: 22650.45 | N30: 86397.26 | O30: 0 | P30: 600000000 | Q30: 0.05388284 | R30: 0.05359 | S30: MYR | T30: 10432000 | U30: 10533397.26 | V30: MARC | W30: 128 | X30: AA- | Y30: 2027-11-12 | Z30: 0.0595 | AA30: 2 | AB30: 3 | AC30: 1 | AD30: 10533397.26 | AE30: 86397.26 | AF30: 0 | AG30: 9.860273973 | AH30: 7.591719731 | AI30: 567569.3592 | AJ30: 103862182.8 | AK30: 626737.137 | AL30: 79966599.81
A31: 2018-01-04 | B31: BND | C31: KWAPFI | D31: SPG IMTN 5.530% 31.10.2034 | E31: SPG IMTN 5.530% 31.10.2034 | F31: VU170363 | G31: BND*171000012 | H31: 5000000 | I31: 5000000 | J31: 5066447.26 | K31: POWER | L31: 100.329 | M31: 16450 | N31: 49997.26 | O31: 0 | P31: 4000000000 | Q31: 0.0553 | R31: 0.05499 | S31: MYR | T31: 5000000 | U31: 5066447.26 | V31: MARC | W31: 128 | X31: AA- | Y31: 2034-10-31 | Z31: 0.0553 | AA31: 2 | AB31: 3 | AC31: 1 | AD31: 5066447.26 | AE31: 49997.26 | AF31: 0 | AG31: 16.83287671 | AH31: 11.06426284 | AI31: 280174.5335 | AJ31: 85282882.1 | AK31: 280174.5335 | AL31: 56056504.17
A32: 2018-01-04 | B32: BND | C32: KWAPFI | D32: SPG IMTN 5.570% 30.04.2035 | E32: SPG IMTN 5.570% 30.04.2035 | F32: VV170362 | G32: BND*171000013 | H32: 5000000 | I32: 5000000 | J32: 5065908.9 | K32: POWER | L32: 100.311 | M32: 15550 | N32: 50358.9 | O32: 0 | P32: 4000000000 | Q32: 0.0557 | R32: 0.05541 | S32: MYR | T32: 5000000 | U32: 5065908.9 | V32: MARC | W32: 128 | X32: AA- | Y32: 2035-04-30 | Z32: 0.0557 | AA32: 2 | AB32: 3 | AC32: 1 | AD32: 5065908.9 | AE32: 50358.9 | AF32: 0 | AG32: 17.32876712 | AH32: 11.23039068 | AI32: 282171.1257 | AJ32: 87785955.6 | AK32: 282171.1257 | AL32: 56892136.12
A33: 2018-01-04 | B33: BND | C33: KWAPFI | D33: SPG IMTN 5.610% 31.10.2035 | E33: SPG IMTN 5.610% 31.10.2035 | F33: VV170361 | G33: BND*171000014 | H33: 5000000 | I33: 5000000 | J33: 5069320.55 | K33: POWER | L33: 100.372 | M33: 18600 | N33: 50720.55 | O33: 0 | P33: 4000000000 | Q33: 0.0561 | R33: 0.05576 | S33: MYR | T33: 5000000 | U33: 5069320.55 | V33: MARC | W33: 128 | X33: AA- | Y33: 2035-10-31 | Z33: 0.0561 | AA33: 2 | AB33: 3 | AC33: 1 | AD33: 5069320.55 | AE33: 50720.55 | AF33: 0 | AG33: 17.83287671 | AH33: 11.39140521 | AI33: 284388.8829 | AJ33: 90400568.38 | AK33: 284388.8829 | AL33: 57746684.53
A34: 2018-01-04 | B34: BND | C34: KWAPFI | D34: SPG IMTN 5.610% 31.10.2035 | E34: SPG IMTN 5.610% 31.10.2035 | F34: VV170361 | G34: BND*171000015 | H34: 5000000 | I34: 5000000 | J34: 5069320.55 | K34: POWER | L34: 100.372 | M34: 18600 | N34: 50720.55 | O34: 0 | P34: 4000000000 | Q34: 0.0561 | R34: 0.05576 | S34: MYR | T34: 5000000 | U34: 5069320.55 | V34: MARC | W34: 128 | X34: AA- | Y34: 2035-10-31 | Z34: 0.0561 | AA34: 2 | AB34: 3 | AC34: 1 | AD34: 5069320.55 | AE34: 50720.55 | AF34: 0 | AG34: 17.83287671 | AH34: 11.39140521 | AI34: 284388.8829 | AJ34: 90400568.38 | AK34: 284388.8829 | AL34: 57746684.53
A35: 2018-01-04 | B35: BND | C35: VCAM-TABA | D35: BPMB IMTN 4.98% 02.03.2032 - Issue No 12 | E35: BPMB IMTN 4.98% 02.03.2032 - Issue No 12 | F35: VS170042 | G35: BND*170200025 | H35: 1000000 | I35: 1000000 | J35: 1021080.06 | K35: FINANCIALS | L35: 100.397 | M35: 3970 | N35: 17110.06 | O35: 0 | P35: 7000000000 | Q35: 0.0498 | R35: 0.0494 | S35: MYR | T35: 1000000 | U35: 1021080.06 | V35: RAM | W35: 115 | X35: AAA | Y35: 2032-03-02 | Z35: 0.0498 | AA35: 2 | AB35: 1 | AC35: 1 | AD35: 1021080.06 | AE35: 17110.06 | AF35: 0 | AG35: 14.16712329 | AH35: 10.161885 | AI35: 50849.78699 | AJ35: 14465767.1 | AK35: 50849.78699 | AL35: 10376098.15
A36: 2018-01-04 | B36: BND | C36: VCAM-TABA | D36: LDF3 IMTN 5.950% 23.08.2034 | E36: LDF3 IMTN 5.950% 23.08.2034 | F36: VV160265 | G36: BND*170400002 | H36: 2000000 | I36: 2153800 | J36: 2197653.7 | K36: INDUSTRIALS | L36: 107.682 | M36: 4048.95 | N36: 44013.7 | O36: 0 | P36: 3640000000 | Q36: 0.05268637 | R36: 0.05251 | S36: MYR | T36: 2153800 | U36: 2197653.7 | V36: MARC | W36: 128 | X36: AA- | Y36: 2034-08-23 | Z36: 0.0595 | AA36: 2 | AB36: 3 | AC36: 1 | AD36: 2197653.7 | AE36: 44013.7 | AF36: 0 | AG36: 16.64383562 | AH36: 10.79557924 | AI36: 115786.396 | AJ36: 36577386.92 | AK36: 130760.3952 | AL36: 23724944.66
A37: 2018-01-04 | B37: BND | C37: YH-AUR-VCAM | D37: RHBINVB MTN 3653D 16.4.2025 | E37: RHBINVB MTN 3653D 16.4.2025 | F37: UN150035 | G37: BND*150400003J | H37: 30000000 | I37: 30000000 | J37: 30447747.95 | K37: FINANCIALS | L37: 100.394 | M37: 118200 | N37: 329547.95 | O37: 0 | P37: 1000000000 | Q37: 0.0495 | R37: 0.04762 | S37: MYR | T37: 30000000 | U37: 30447747.95 | V37: RAM | W37: 128 | X37: AA3 | Y37: 2025-04-16 | Z37: 0.0495 | AA37: 2 | AB37: 3 | AC37: 1 | AD37: 30447747.95 | AE37: 329547.95 | AF37: 0 | AG37: 7.284931507 | AH37: 6.144425789 | AI37: 1507163.524 | AJ37: 221809758.4 | AK37: 1507163.524 | AL37: 187083927.7
A38: 2018-01-04 | B38: BND | C38: YH-AUR-VCAM | D38: RHBBANK MTN 3653D 15/0040 4.75% 08.05.2025 | E38: RHBBANK MTN 3653D 15/0040 4.75% 08.05.2025 | F38: UN150040 | G38: BND*150500005J | H38: 35000000 | I38: 35000000 | J38: 35258228.08 | K38: FINANCIALS | L38: 99.983 | M38: -5950 | N38: 264178.08 | O38: 0 | P38: 5000000000 | Q38: 0.0475 | R38: 0.04755 | S38: MYR | T38: 35000000 | U38: 35258228.08 | V38: RAM | W38: 128 | X38: AA3 | Y38: 2025-05-08 | Z38: 0.0475 | AA38: 2 | AB38: 3 | AC38: 1 | AD38: 35258228.08 | AE38: 264178.08 | AF38: 0 | AG38: 7.345205479 | AH38: 6.240015172 | AI38: 1674765.834 | AJ38: 258978930.1 | AK38: 1674765.834 | AL38: 220011878.2
A39: 2018-01-04 | B39: BND | C39: YH-AUR-VCAM | D39: PLUS BERHAD IMTN 4.720% 12.01.2026 - Series 1 (10) | E39: PLUS BERHAD IMTN 4.720% 12.01.2026 - Series 1 (10) | F39: VR120013 | G39: BND*150500010J | H39: 5000000 | I39: 5105500 | J39: 5161593.84 | K39: TRANSPORTATION & LOGISTIC | L39: 100.943 | M39: -36769.65 | N39: 114443.84 | O39: 0 | P39: 23350000000000 | Q39: 0.04468493 | R39: 0.04578 | S39: MYR | T39: 5105500 | U39: 5161593.84 | V39: MARC | W39: 115 | X39: AAA | Y39: 2026-01-12 | Z39: 0.0472 | AA39: 2 | AB39: 3 | AC39: 1 | AD39: 5161593.84 | AE39: 114443.84 | AF39: 0 | AG39: 8.02739726 | AH39: 6.625272693 | AI39: 230645.4594 | AJ39: 41434164.25 | AK39: 243627.2292 | AL39: 34196966.72
A40: 2018-01-04 | B40: BND | C40: YH-AUR-VCAM | D40: PLUS BERHAD IMTN 4.720% 12.01.2026 - Series 1 (10) | E40: PLUS BERHAD IMTN 4.720% 12.01.2026 - Series 1 (10) | F40: VR120013 | G40: BND*150500011J | H40: 10000000 | I40: 10211000 | J40: 10323187.67 | K40: TRANSPORTATION & LOGISTIC | L40: 100.943 | M40: -73539.31 | N40: 228887.67 | O40: 0 | P40: 23350000000000 | Q40: 0.04468493 | R40: 0.04578 | S40: MYR | T40: 10211000 | U40: 10323187.67 | V40: MARC | W40: 115 | X40: AAA | Y40: 2026-01-12 | Z40: 0.0472 | AA40: 2 | AB40: 3 | AC40: 1 | AD40: 10323187.67 | AE40: 228887.67 | AF40: 0 | AG40: 8.02739726 | AH40: 6.625272693 | AI40: 461290.9184 | AJ40: 82868328.42 | AK40: 487254.458 | AL40: 68393933.37
A41: 2018-01-04 | B41: BND | C41: YH-AUR-VCAM | D41: PLUS BERHAD IMTN 4.720% 12.01.2026 - Series 1 (10) | E41: PLUS BERHAD IMTN 4.720% 12.01.2026 - Series 1 (10) | F41: VR120013 | G41: BND*150500012J | H41: 10000000 | I41: 10211000 | J41: 10323187.67 | K41: TRANSPORTATION & LOGISTIC | L41: 100.943 | M41: -73539.31 | N41: 228887.67 | O41: 0 | P41: 23350000000000 | Q41: 0.04468493 | R41: 0.04578 | S41: MYR | T41: 10211000 | U41: 10323187.67 | V41: MARC | W41: 115 | X41: AAA | Y41: 2026-01-12 | Z41: 0.0472 | AA41: 2 | AB41: 3 | AC41: 1 | AD41: 10323187.67 | AE41: 228887.67 | AF41: 0 | AG41: 8.02739726 | AH41: 6.625272693 | AI41: 461290.9184 | AJ41: 82868328.42 | AK41: 487254.458 | AL41: 68393933.37
A42: 2018-01-04 | B42: BND | C42: YH-AUR-VCAM | D42: IHSAN IMTN 4.300% 17.06.2022 - 7 Years | E42: IHSAN IMTN 4.300% 17.06.2022 - First Sukuk Ihsan | F42: VK150137 | G42: BND*150600007J | H42: 17000000 | I42: 17000000 | J42: 17230887.95 | K42: FINANCIALS | L42: 99.002 | M42: -169660 | N42: 400547.95 | O42: 0 | P42: 1000000000 | Q42: 0.04299959 | R42: 0.04547 | S42: MYR | T42: 17000000 | U42: 17230887.95 | V42: RAM | W42: 115 | X42: AAA | Y42: 2022-06-17 | Z42: 0.043 | AA42: 1 | AB42: 3 | AC42: 1 | AD42: 17230887.95 | AE42: 400547.95 | AF42: 0 | AG42: 4.452054795 | AH42: 4.051208411 | AI42: 740921.1172 | AJ42: 76712857.31 | AK42: 740928.1818 | AL42: 69805918.19
A43: 2018-01-04 | B43: BND | C43: YH-AUR-VCAM | D43: MMC CORP IMTN 5.800% 12.11.2025 | E43: MMC CORP IMTN 5.800% 12.11.2025 | F43: VN150260 | G43: BND*151100008 | H43: 25000000 | I43: 25000000 | J43: 26048297.95 | K43: DIVERSIFIED | L43: 103.351 | M43: 837750 | N43: 210547.95 | O43: 0 | P43: 1500000000 | Q43: 0.058 | R43: 0.05272 | S43: MYR | T43: 25000000 | U43: 26048297.95 | V43: MARC | W43: 128 | X43: AA- | Y43: 2025-11-12 | Z43: 0.058 | AA43: 2 | AB43: 3 | AC43: 1 | AD43: 26048297.95 | AE43: 210547.95 | AF43: 0 | AG43: 7.860273973 | AH43: 6.396444957 | AI43: 1510801.281 | AJ43: 204746758.4 | AK43: 1510801.281 | AL43: 166616504.1
A44: 2018-01-04 | B44: BND | C44: YH-AUR-VCAM | D44: SAMALAJU IMTN 5.25% 26.12.2025 - Issue No. 3 | E44: SAMALAJU IMTN 5.25% 26.12.2025 - Issue No. 3 | F44: VN150347 | G44: BND*151200008 | H44: 5000000 | I44: 5000000 | J44: 5168303.42 | K44: TRANSPORTATION & LOGISTIC | L44: 103.251 | M44: 162550 | N44: 5753.42 | O44: 0 | P44: 950000000 | Q44: 0.05249952 | R44: 0.04755 | S44: MYR | T44: 5000000 | U44: 5168303.42 | V44: RAM | W44: 122 | X44: AA1 | Y44: 2025-12-26 | Z44: 0.0525 | AA44: 2 | AB44: 3 | AC44: 1 | AD44: 5168303.42 | AE44: 5753.42 | AF44: 0 | AG44: 7.980821918 | AH44: 6.635441133 | AI44: 271333.4488 | AJ44: 41247309.21 | AK44: 271335.9296 | AL44: 34293973.1
A45: 2018-01-04 | B45: BND | C45: YH-AUR-VCAM | D45: SAMALAJU IMTN 5.35% 28.12.2026 - Issue No. 4 | E45: SAMALAJU IMTN 5.35% 28.12.2026 - Issue No. 4 | F45: VO150348 | G45: BND*151200009 | H45: 5000000 | I45: 5000000 | J45: 5182713.01 | K45: TRANSPORTATION & LOGISTIC | L45: 103.537 | M45: 176850 | N45: 5863.01 | O45: 0 | P45: 950000000 | Q45: 0.0535 | R45: 0.04859 | S45: MYR | T45: 5000000 | U45: 5182713.01 | V45: RAM | W45: 122 | X45: AA1 | Y45: 2026-12-28 | Z45: 0.0535 | AA45: 2 | AB45: 3 | AC45: 1 | AD45: 5182713.01 | AE45: 5863.01 | AF45: 0 | AG45: 8.98630137 | AH45: 7.275122752 | AI45: 277275.146 | AJ45: 46573421.02 | AK45: 277275.146 | AL45: 37704873.34
A46: 2018-01-04 | B46: BND | C46: YH-AUR-VCAM | D46: SAMALAJU IMTN 5.65% 28.12.2029 - Issue No. 7 | E46: SAMALAJU IMTN 5.65% 28.12.2029 - Issue No. 7 | F46: VR150351 | G46: BND*151200010 | H46: 5000000 | I46: 5000000 | J46: 5242141.78 | K46: TRANSPORTATION & LOGISTIC | L46: 104.719 | M46: 235950 | N46: 6191.78 | O46: 0 | P46: 950000000 | Q46: 0.0565 | R46: 0.05118 | S46: MYR | T46: 5000000 | U46: 5242141.78 | V46: RAM | W46: 122 | X46: AA1 | Y46: 2029-12-28 | Z46: 0.0565 | AA46: 2 | AB46: 3 | AC46: 1 | AD46: 5242141.78 | AE46: 6191.78 | AF46: 0 | AG46: 11.9890411 | AH46: 8.93633983 | AI46: 296181.0106 | AJ46: 62848253.23 | AK46: 296181.0106 | AL46: 46845560.38
A47: 2018-01-04 | B47: BND | C47: YH-AUR-VCAM | D47: SAMALAJU IMTN 5.15% 27.12.2024 - Issue No. 2 | E47: SAMALAJU IMTN 5.15% 27.12.2024 - Issue No. 2 | F47: VM150346 | G47: BND*151200011 | H47: 5000000 | I47: 5000000 | J47: 5153043.84 | K47: TRANSPORTATION & LOGISTIC | L47: 102.948 | M47: 147400 | N47: 5643.84 | O47: 0 | P47: 950000000 | Q47: 0.05149975 | R47: 0.0465 | S47: MYR | T47: 5000000 | U47: 5153043.84 | V47: RAM | W47: 122 | X47: AA1 | Y47: 2024-12-27 | Z47: 0.0515 | AA47: 2 | AB47: 3 | AC47: 1 | AD47: 5153043.84 | AE47: 5643.84 | AF47: 0 | AG47: 6.983561644 | AH47: 5.961017072 | AI47: 265380.4695 | AJ47: 35986599.31 | AK47: 265381.7578 | AL47: 30717382.3
A48: 2018-01-04 | B48: BND | C48: YH-AUR-VCAM | D48: SAMALAJU IMTN 5.55% 28.12.2018 - Issue No. 6 | E48: SAMALAJU IMTN 5.55% 28.12.2018 - Issue No. 6 | F48: VQ150350 | G48: BND*151200012 | H48: 5000000 | I48: 5000000 | J48: 5224182.19 | K48: TRANSPORTATION & LOGISTIC | L48: 104.362 | M48: 218100 | N48: 6082.19 | O48: 0 | P48: 950000000 | Q48: 0.0555 | R48: 0.05028 | S48: MYR | T48: 5000000 | U48: 5224182.19 | V48: RAM | W48: 122 | X48: AA1 | Y48: 2028-12-28 | Z48: 0.0555 | AA48: 2 | AB48: 3 | AC48: 1 | AD48: 5224182.19 | AE48: 6082.19 | AF48: 0 | AG48: 10.9890411 | AH48: 8.422602423 | AI48: 289942.1115 | AJ48: 57408752.78 | AK48: 289942.1115 | AL48: 44001209.57
A49: 2018-01-04 | B49: BND | C49: YH-AUR-VCAM | D49: JAMB.KEDUA IMTN 4.520% 28.07.2031 | E49: JAMB.KEDUA IMTN 4.520% 28.07.2031 | F49: VS160236 | G49: BND*160700043 | H49: 5000000 | I49: 5000000 | J49: 4993887.67 | K49: INDUSTRIALS | L49: 97.884 | M49: -105800 | N49: 99687.67 | O49: 0 | P49: 4600000000000 | Q49: 0.0452 | R49: 0.04733 | S49: MYR | T49: 5000000 | U49: 4993887.67 | V49: RAM | W49: 100 | X49: GG | Y49: 2031-07-28 | Z49: 0.0452 | AA49: 2 | AB49: 3 | AC49: 1 | AD49: 4993887.67 | AE49: 99687.67 | AF49: 0 | AG49: 13.56986301 | AH49: 10.04036197 | AI49: 225723.7227 | AJ49: 67766371.59 | AK49: 225723.7227 | AL49: 50140439.85
A50: 2018-01-04 | B50: BND | C50: YH-AUR-VCAM | D50: MGS 2/2016 4.736% 15.3.2046 | E50: MGS 2/2016 4.736% 15.3.2046 | F50: MZ160002 | G50: BND*160700046 | H50: 40000000 | I50: 41484000 | J50: 39884112.71 | K50: GOV | L50: 98.245 | M50: -2149848.75 | N50: 586112.71 | O50: 0 | P50: 999999990000 | Q50: 0.04507547 | R50: 0.0485 | S50: MYR | T50: 41484000 | U50: 39884112.71 | V50: RAM | W50: 10 | X50: GOVT | Y50: 2046-03-15 | Z50: 0.04736 | AA50: 2 | AB50: 1 | AC50: 1 | AD50: 39884112.71 | AE50: 586112.71 | AF50: 0 | AG50: 28.2109589 | AH50: 15.50069924 | AI50: 1797795.126 | AJ50: 1125169065 | AK50: 1888911.578 | AL50: 618231635.6
A51: 2018-01-04 | B51: BND | C51: YH-AUR-VCAM | D51: SARAWAKHIDRO IMTN 4.61% 09.08.2030 | E51: SARAWAKHIDRO IMTN 4.61% 09.08.2030 | F51: VR160244 | G51: BND*160800007 | H51: 15000000 | I51: 15076500 | J51: 14919544.52 | K51: POWER | L51: 97.607 | M51: -429222.77 | N51: 278494.52 | O51: 0 | P51: 5540000000 | Q51: 0.04560272 | R51: 0.04866 | S51: MYR | T51: 15076500 | U51: 14919544.52 | V51: RAM | W51: 115 | X51: AAA | Y51: 2030-08-09 | Z51: 0.0461 | AA51: 2 | AB51: 3 | AC51: 1 | AD51: 14919544.52 | AE51: 278494.52 | AF51: 0 | AG51: 12.60273973 | AH51: 9.470558032 | AI51: 680371.8113 | AJ51: 188027136.4 | AK51: 687791.0024 | AL51: 141296412.2
A52: 2018-01-04 | B52: BND | C52: YH-AUR-VCAM | D52: LDF3 IMTN 5.340% 23.08.2028 | E52: LDF3 IMTN 5.340% 23.08.2028 | F52: VP160259 | G52: BND*160800020 | H52: 5000000 | I52: 5089000 | J52: 5276553.42 | K52: INDUSTRIALS | L52: 103.556 | M52: 96756.17 | N52: 98753.42 | O52: 0 | P52: 3640000000 | Q52: 0.05139414 | R52: 0.04906 | S52: MYR | T52: 5089000 | U52: 5276553.42 | V52: MARC | W52: 128 | X52: AA- | Y52: 2028-08-23 | Z52: 0.0534 | AA52: 2 | AB52: 3 | AC52: 1 | AD52: 5276553.42 | AE52: 98753.42 | AF52: 0 | AG52: 10.64109589 | AH52: 8.144064017 | AI52: 271183.9252 | AJ52: 56148310.91 | AK52: 281767.9526 | AL52: 42972588.84
A53: 2018-01-04 | B53: BND | C53: YH-AUR-VCAM | D53: LDF3 IMTN 5.770% 23.08.2032 | E53: LDF3 IMTN 5.770% 23.08.2032 | F53: VT160263 | G53: BND*160800021 | H53: 5000000 | I53: 5105000 | J53: 5420105.48 | K53: INDUSTRIALS | L53: 106.268 | M53: 214602 | N53: 106705.48 | O53: 0 | P53: 3640000000 | Q53: 0.05569986 | R53: 0.05154 | S53: MYR | T53: 5105000 | U53: 5420105.48 | V53: MARC | W53: 128 | X53: AA- | Y53: 2032-08-23 | Z53: 0.0577 | AA53: 2 | AB53: 3 | AC53: 1 | AD53: 5420105.48 | AE53: 106705.48 | AF53: 0 | AG53: 14.64383562 | AH53: 10.02923012 | AI53: 301899.1164 | AJ53: 79371133.67 | AK53: 312740.0862 | AL53: 54359485.15
A54: 2018-01-04 | B54: BND | C54: YH-AUR-VCAM | D54: LDF3 IMTN 5.950% 23.08.2034 | E54: LDF3 IMTN 5.950% 23.08.2034 | F54: VV160265 | G54: BND*160800022 | H54: 5000000 | I54: 5111500 | J54: 5494134.25 | K54: INDUSTRIALS | L54: 107.682 | M54: 278076.59 | N54: 110034.25 | O54: 0 | P54: 3640000000 | Q54: 0.05749515 | R54: 0.05251 | S54: MYR | T54: 5111500 | U54: 5494134.25 | V54: MARC | W54: 128 | X54: AA- | Y54: 2034-08-23 | Z54: 0.0595 | AA54: 2 | AB54: 3 | AC54: 1 | AD54: 5494134.25 | AE54: 110034.25 | AF54: 0 | AG54: 16.64383562 | AH54: 10.79557924 | AI54: 315886.0728 | AJ54: 91443467.31 | AK54: 326900.9879 | AL54: 59312361.64
A55: 2018-01-04 | B55: BND | C55: YH-AUR-VCAM | D55: LDF3 IMTN 6.040% 23.08.2035 | E55: LDF3 IMTN 6.040% 23.08.2035 | F55: VW160266 | G55: BND*160800023 | H55: 5000000 | I55: 5114000 | J55: 5534848.63 | K55: INDUSTRIALS | L55: 108.463 | M55: 314276.34 | N55: 111698.63 | O55: 0 | P55: 3640000000 | Q55: 0.05839783 | R55: 0.05295 | S55: MYR | T55: 5114000 | U55: 5534848.63 | V55: MARC | W55: 128 | X55: AA- | Y55: 2035-08-23 | Z55: 0.0604 | AA55: 2 | AB55: 3 | AC55: 1 | AD55: 5534848.63 | AE55: 111698.63 | AF55: 0 | AG55: 17.64383562 | AH55: 11.13863521 | AI55: 323223.1494 | AJ55: 97655959.39 | AK55: 334304.8573 | AL55: 61650659.85
A56: 2018-01-04 | B56: BND | C56: YH-AUR-VCAM | D56: LDF3 IMTN 6.130% 22.08.2036 | E56: LDF3 IMTN 6.130% 22.08.2036 | F56: VX160267 | G56: BND*160800024 | H56: 5000000 | I56: 5116000 | J56: 5582363.01 | K56: INDUSTRIALS | L56: 109.38 | M56: 357787.22 | N56: 113363.01 | O56: 0 | P56: 3640000000000 | Q56: 0.0593039 | R56: 0.05329 | S56: MYR | T56: 5116000 | U56: 5582363.01 | V56: MARC | W56: 128 | X56: AA- | Y56: 2036-08-23 | Z56: 0.0613 | AA56: 2 | AB56: 3 | AC56: 1 | AD56: 5582363.01 | AE56: 113363.01 | AF56: 0 | AG56: 18.64657534 | AH56: 11.46052425 | AI56: 331055.8977 | AJ56: 104091952.5 | AK56: 342198.8525 | AL56: 63976806.63
A57: 2018-01-04 | B57: BND | C57: YH-AUR-VCAM | D57: MGS 3/2016 3.9% 30.11.2026 | E57: MGS 3/2016 3.9% 30.11.2026 | F57: MO160003 | G57: BND*160800028 | H57: 50000000 | I57: 51372500 | J57: 50214357.14 | K57: GOV | L57: 100.043 | M57: -1197259.74 | N57: 192857.14 | O57: 0 | P57: 999999990000 | Q57: 0.03577552 | R57: 0.03894 | S57: MYR | T57: 51372500 | U57: 50214357.14 | V57: RAM | W57: 10 | X57: GOVT | Y57: 2026-11-30 | Z57: 0.039 | AA57: 2 | AB57: 1 | AC57: 1 | AD57: 50214357.14 | AE57: 192857.14 | AF57: 0 | AG57: 8.909589041 | AH57: 7.58010082 | AI57: 1796444.738 | AJ57: 447389286.1 | AK57: 1958359.928 | AL57: 380629889.8
A58: 2018-01-04 | B58: BND | C58: YH-AUR-VCAM | D58: MGS 3/2016 3.9% 30.11.2026 | E58: MGS 3/2016 3.9% 30.11.2026 | F58: MO160003 | G58: BND*160800032 | H58: 10000000 | I58: 10294000 | J58: 10042871.43 | K58: GOV | L58: 100.043 | M58: -256955.94 | N58: 38571.43 | O58: 0 | P58: 999999990000 | Q58: 0.0355477 | R58: 0.03894 | S58: MYR | T58: 10294000 | U58: 10042871.43 | V58: RAM | W58: 10 | X58: GOVT | Y58: 2026-11-30 | Z58: 0.039 | AA58: 2 | AB58: 1 | AC58: 1 | AD58: 10042871.43 | AE58: 38571.43 | AF58: 0 | AG58: 8.909589041 | AH58: 7.58010082 | AI58: 357000.9807 | AJ58: 89477857.23 | AK58: 391671.9858 | AL58: 76125977.97
A59: 2018-01-04 | B59: BND | C59: YH-AUR-VCAM | D59: MGS 4/2011 4.232% 30.06.2031 | E59: MGS 4/2011 4.232% 30.06.2031 | F59: MX110004 | G59: BND*160800033 | H59: 30000000 | I59: 31203000 | J59: 30056235.91 | K59: GOV | L59: 100.129 | M59: -1082316.27 | N59: 17535.91 | O59: 0 | P59: 999999990000 | Q59: 0.03873674 | R59: 0.04219 | S59: MYR | T59: 31203000 | U59: 30056235.91 | V59: RAM | W59: 10 | X59: GOVT | Y59: 2031-06-30 | Z59: 0.04232 | AA59: 2 | AB59: 1 | AC59: 1 | AD59: 30056235.91 | AE59: 17535.91 | AF59: 0 | AG59: 13.49315068 | AH59: 10.41153598 | AI59: 1164280.596 | AJ59: 405553320.2 | AK59: 1271979.904 | AL59: 312931581.5
A60: 2018-01-04 | B60: BND | C60: YH-AUR-VCAM | D60: CAGAMAS MTN 3.750% 18.10.2019 | E60: CAGAMAS MTN 3.750% 18.10.2019 | F60: UG160121 | G60: BND*161000002 | H60: 10000000 | I60: 10000000 | J60: 10053409.59 | K60: FINANCIALS | L60: 99.743 | M60: -25700 | N60: 79109.59 | O60: 0 | P60: 20000000000 | Q60: 0.03749933 | R60: 0.03898 | S60: MYR | T60: 10000000 | U60: 10053409.59 | V60: MARC | W60: 115 | X60: AAA | Y60: 2019-10-18 | Z60: 0.0375 | AA60: 2 | AB60: 3 | AC60: 1 | AD60: 10053409.59 | AE60: 79109.59 | AF60: 0 | AG60: 1.78630137 | AH60: 1.73167244 | AI60: 376996.1238 | AJ60: 17958419.32 | AK60: 377002.8596 | AL60: 17409212.32
A61: 2018-01-04 | B61: BND | C61: YH-AUR-VCAM | D61: LDF3 IMTN 6.040% 23.08.2035 | E61: LDF3 IMTN 6.040% 23.08.2035 | F61: VW160266 | G61: BND*170200003 | H61: 5000000 | I61: 5409500 | J61: 5534848.63 | K61: INDUSTRIALS | L61: 108.463 | M61: 25999.48 | N61: 111698.63 | O61: 0 | P61: 3640000000 | Q61: 0.0533848 | R61: 0.05295 | S61: MYR | T61: 5409500 | U61: 5534848.63 | V61: MARC | W61: 128 | X61: AA- | Y61: 2035-08-23 | Z61: 0.0604 | AA61: 2 | AB61: 3 | AC61: 1 | AD61: 5534848.63 | AE61: 111698.63 | AF61: 0 | AG61: 17.64383562 | AH61: 11.13863521 | AI61: 295476.7871 | AJ61: 97655959.39 | AK61: 334304.8573 | AL61: 61650659.85
A62: 2018-01-04 | B62: BND | C62: YH-AUR-VCAM | D62: BGSM MGMT IMTN 5.600% 27.12.2023 - Issue No 9 | E62: BGSM MGMT IMTN 5.600% 27.12.2023 - Issue No 9 | F62: VN130387 | G62: BND*170200011 | H62: 5000000 | I62: 5185000 | J62: 5239986.99 | K62: TELCO | L62: 104.677 | M62: 68704.25 | N62: 6136.99 | O62: 0 | P62: 373000000 | Q62: 0.04954876 | R62: 0.04693 | S62: MYR | T62: 5185000 | U62: 5239986.99 | V62: RAM | W62: 128 | X62: AA3 | Y62: 2023-12-28 | Z62: 0.056 | AA62: 2 | AB62: 3 | AC62: 1 | AD62: 5239986.99 | AE62: 6136.99 | AF62: 0 | AG62: 5.983561644 | AH62: 5.181120043 | AI62: 259634.8578 | AJ62: 31353785.17 | AK62: 293439.2714 | AL62: 27149001.62
A63: 2018-01-04 | B63: BND | C63: YH-AUR-VCAM | D63: BPMB IMTN 4.98% 02.03.2032 - Issue No 12 | E63: BPMB IMTN 4.98% 02.03.2032 - Issue No 12 | F63: VS170042 | G63: BND*170200024 | H63: 9000000 | I63: 9000000 | J63: 9189720.5 | K63: FINANCIALS | L63: 100.397 | M63: 35730 | N63: 153990.5 | O63: 0 | P63: 7000000000 | Q63: 0.0498 | R63: 0.0494 | S63: MYR | T63: 9000000 | U63: 9189720.5 | V63: RAM | W63: 115 | X63: AAA | Y63: 2032-03-02 | Z63: 0.0498 | AA63: 2 | AB63: 1 | AC63: 1 | AD63: 9189720.5 | AE63: 153990.5 | AF63: 0 | AG63: 14.16712329 | AH63: 10.161885 | AI63: 457648.0809 | AJ63: 130191903.3 | AK63: 457648.0809 | AL63: 93384882.95
A64: 2018-01-04 | B64: BND | C64: YH-AUR-VCAM | D64: LDF3 IMTN 5.950% 23.08.2034 | E64: LDF3 IMTN 5.950% 23.08.2034 | F64: VV160265 | G64: BND*170300004 | H64: 35000000 | I64: 37775500 | J64: 38458939.73 | K64: INDUSTRIALS | L64: 107.682 | M64: -4551.87 | N64: 770239.73 | O64: 0 | P64: 3640000000 | Q64: 0.05249973 | R64: 0.05251 | S64: MYR | T64: 37775500 | U64: 38458939.73 | V64: MARC | W64: 128 | X64: AA- | Y64: 2034-08-23 | Z64: 0.0595 | AA64: 2 | AB64: 3 | AC64: 1 | AD64: 38458939.73 | AE64: 770239.73 | AF64: 0 | AG64: 16.64383562 | AH64: 10.79557924 | AI64: 2019083.952 | AJ64: 640104270.8 | AK64: 2288306.914 | AL64: 415186531.3
A65: 2018-01-04 | B65: BND | C65: YH-AUR-VCAM | D65: LDF3 IMTN 5.950% 23.08.2034 | E65: LDF3 IMTN 5.950% 23.08.2034 | F65: VV160265 | G65: BND*170400003 | H65: 8000000 | I65: 8615200 | J65: 8790614.79 | K65: INDUSTRIALS | L65: 107.682 | M65: 16195.8 | N65: 176054.79 | O65: 0 | P65: 3640000000 | Q65: 0.05268637 | R65: 0.05251 | S65: MYR | T65: 8615200 | U65: 8790614.79 | V65: MARC | W65: 128 | X65: AA- | Y65: 2034-08-23 | Z65: 0.0595 | AA65: 2 | AB65: 3 | AC65: 1 | AD65: 8790614.79 | AE65: 176054.79 | AF65: 0 | AG65: 16.64383562 | AH65: 10.79557924 | AI65: 463145.5834 | AJ65: 146309547.5 | AK65: 523041.58 | AL65: 94899778.52
A66: 2018-01-04 | B66: BND | C66: YH-AUR-VCAM | D66: YTL POWER IMTN 5.050% 0.05.2027 | E66: YTL POWER IMTN 5.050% 0.05.2027 | F66: VN170154 | G66: BND*170500001 | H66: 50000000 | I66: 50000000 | J66: 51029821.92 | K66: UTILITIES | L66: 101.188 | M66: 594000 | N66: 435821.92 | O66: 0 | P66: 2500000000 | Q66: 0.0505 | R66: 0.04889 | S66: MYR | T66: 50000000 | U66: 51029821.92 | V66: RAM | W66: 122 | X66: AA1 | Y66: 2027-05-03 | Z66: 0.0505 | AA66: 2 | AB66: 3 | AC66: 1 | AD66: 51029821.92 | AE66: 435821.92 | AF66: 0 | AG66: 9.331506849 | AH66: 7.504495972 | AI66: 2577006.007 | AJ66: 476185132.8 | AK66: 2577006.007 | AL66: 382953093.1
A67: 2018-01-04 | B67: BND | C67: YH-AUR-VCAM | D67: LDF3 IMTN 5.640% 22.08.2031 | E67: LDF3 IMTN 5.640% 22.08.2031 | F67: VS160262 | G67: BND*170500004 | H67: 5000000 | I67: 5308500 | J67: 5368851.37 | K67: CONSTRUCTION | L67: 105.291 | M67: -33888.44 | N67: 104301.37 | O67: 0 | P67: 185000000 | Q67: 0.05029025 | R67: 0.05096 | S67: MYR | T67: 5308500 | U67: 5368851.37 | V67: MARC | W67: 128 | X67: AA- | Y67: 2031-08-22 | Z67: 0.0564 | AA67: 2 | AB67: 3 | AC67: 1 | AD67: 5368851.37 | AE67: 104301.37 | AF67: 0 | AG67: 13.63835616 | AH67: 9.613852167 | AI67: 270000.8776 | AJ67: 73222307.18 | AK67: 302803.2173 | AL67: 51615343.38
A68: 2018-01-04 | B68: BND | C68: YH-AUR-VCAM | D68: LDF3 IMTN 5.770% 23.08.2032 | E68: LDF3 IMTN 5.770% 23.08.2032 | F68: VT160263 | G68: BND*170500005 | H68: 45000000 | I68: 48424500 | J68: 48780949.32 | K68: INDUSTRIALS | L68: 106.268 | M68: -502470.09 | N68: 960349.32 | O68: 0 | P68: 3640000000 | Q68: 0.05049398 | R68: 0.05154 | S68: MYR | T68: 48424500 | U68: 48780949.32 | V68: MARC | W68: 128 | X68: AA- | Y68: 2032-08-23 | Z68: 0.0577 | AA68: 2 | AB68: 3 | AC68: 1 | AD68: 48780949.32 | AE68: 960349.32 | AF68: 0 | AG68: 14.64383562 | AH68: 10.02923012 | AI68: 2463144.279 | AJ68: 714340203.1 | AK68: 2814660.776 | AL68: 489235366.4
A69: 2018-01-04 | B69: BND | C69: YH-AUR-VCAM | D69: LDF3 IMTN 5.950% 23.08.2034 | E69: LDF3 IMTN 5.950% 23.08.2034 | F69: VV160265 | G69: BND*170500006 | H69: 20000000 | I69: 21842000 | J69: 21976536.99 | K69: INDUSTRIALS | L69: 107.682 | M69: -260401.06 | N69: 440136.99 | O69: 0 | P69: 3640000000 | Q69: 0.05139334 | R69: 0.05251 | S69: MYR | T69: 21842000 | U69: 21976536.99 | V69: MARC | W69: 128 | X69: AA- | Y69: 2034-08-23 | Z69: 0.0595 | AA69: 2 | AB69: 3 | AC69: 1 | AD69: 21976536.99 | AE69: 440136.99 | AF69: 0 | AG69: 16.64383562 | AH69: 10.79557924 | AI69: 1129447.638 | AJ69: 365773869.1 | AK69: 1307603.951 | AL69: 237249446.5
A70: 2018-01-04 | B70: BND | C70: YH-AUR-VCAM | D70: GII MURABAHAH 4/2017 4.895% 08.05.2047 | E70: GII MURABAHAH 4/2017 4.895% 08.05.2047 | F70: GZ170004 | G70: BND*170500008 | H70: 100000000 | I70: 100172000 | J70: 100203281.8 | K70: GOV | L70: 99.419 | M70: -744935.68 | N70: 784281.77 | O70: 0 | P70: 999999999999 | Q70: 0.04884017 | R70: 0.04932 | S70: MYR | T70: 100172000 | U70: 100203281.8 | V70: RAM | W70: 10 | X70: GOVT | Y70: 2047-05-08 | Z70: 0.04895 | AA70: 2 | AB70: 1 | AC70: 1 | AD70: 100203281.8 | AE70: 784281.77 | AF70: 0 | AG70: 29.35890411 | AH70: 15.70706853 | AI70: 4893945.316 | AJ70: 2941858541 | AK70: 4904950.643 | AL70: 1573899814
A71: 2018-01-04 | B71: BND | C71: YH-AUR-VCAM | D71: GII MURABAHAH 4/2017 4.895% 08.05.2047 | E71: GII MURABAHAH 4/2017 4.895% 08.05.2047 | F71: GZ170004 | G71: BND*170500009 | H71: 100000000 | I71: 100094000 | J71: 100203281.8 | K71: GOV | L71: 99.419 | M71: -667861.59 | N71: 784281.77 | O71: 0 | P71: 999999999999 | Q71: 0.04888984 | R71: 0.04932 | S71: MYR | T71: 100094000 | U71: 100203281.8 | V71: RAM | W71: 10 | X71: GOVT | Y71: 2047-05-08 | Z71: 0.04895 | AA71: 2 | AB71: 1 | AC71: 1 | AD71: 100203281.8 | AE71: 784281.77 | AF71: 0 | AG71: 29.35890411 | AH71: 15.70706853 | AI71: 4898922.413 | AJ71: 2941858541 | AK71: 4904950.643 | AL71: 1573899814
A72: 2018-01-04 | B72: BND | C72: YH-AUR-VCAM | D72: LDF3 IMTN 5.860% 23.08.2033 | E72: LDF3 IMTN 5.860% 23.08.2033 | F72: VU160264 | G72: BND*170500019 | H72: 30000000 | I72: 32604000 | J72: 32722319.18 | K72: INDUSTRIALS | L72: 106.907 | M72: -465340.78 | N72: 650219.18 | O72: 0 | P72: 300000000 | Q72: 0.05069384 | R72: 0.05208 | S72: MYR | T72: 32604000 | U72: 32722319.18 | V72: MARC | W72: 128 | X72: AA- | Y72: 2033-08-23 | Z72: 0.0586 | AA72: 2 | AB72: 3 | AC72: 1 | AD72: 32722319.18 | AE72: 650219.18 | AF72: 0 | AG72: 15.64383562 | AH72: 10.42519655 | AI72: 1658820.013 | AJ72: 511902582.2 | AK72: 1917527.904 | AL72: 341136609
A73: 2018-01-04 | B73: BND | C73: YH-AUR-VCAM | D73: DANAINFRA IMTN 5.100% 25.05.2037 - Tranche No 65 | E73: DANAINFRA IMTN 5.100% 25.05.2037 - Tranche No 65 | F73: VX170162 | G73: BND*170500021 | H73: 15000000 | I73: 15000000 | J73: 15346189.73 | K73: INDUSTRIALS | L73: 101.763 | M73: 264450 | N73: 81739.73 | O73: 0 | P73: 46000000000 | Q73: 0.051 | R73: 0.04957 | S73: MYR | T73: 15000000 | U73: 15346189.73 | V73: RAM | W73: 100 | X73: GG | Y73: 2037-05-25 | Z73: 0.051 | AA73: 2 | AB73: 3 | AC73: 1 | AD73: 15346189.73 | AE73: 81739.73 | AF73: 0 | AG73: 19.4 | AH73: 12.53314269 | AI73: 782655.6762 | AJ73: 297716080.8 | AK73: 782655.6762 | AL73: 192335985.6
A74: 2018-01-04 | B74: BND | C74: YH-AUR-VCAM | D74: TENAGA IMTN 03.08.2037 | E74: TENAGA IMTN 03.08.2037 | F74: VX170228 | G74: BND*170800002 | H74: 40000000 | I74: 40000000 | J74: 41325890.41 | K74: UTILITIES | L74: 101.115 | M74: 446000 | N74: 879890.41 | O74: 0 | P74: 5000000000 | Q74: 0.0518 | R74: 0.05089 | S74: MYR | T74: 40000000 | U74: 41325890.41 | V74: RAM | W74: 115 | X74: AAA | Y74: 2037-08-03 | Z74: 0.0518 | AA74: 2 | AB74: 3 | AC74: 1 | AD74: 41325890.41 | AE74: 879890.41 | AF74: 0 | AG74: 19.59178082 | AH74: 12.3061581 | AI74: 2140681.123 | AJ74: 809647787.2 | AK74: 2140681.123 | AL74: 508562941
A75: 2018-01-04 | B75: BND | C75: YH-AUR-VCAM | D75: IHSAN IMTN 4.600% 08.08.2024 - Second Sukuk Ihsan | E75: IHSAN IMTN 4.600% 08.08.2024 - Second Sukuk Ihsan | F75: VK170233 | G75: BND*170800004 | H75: 13000000 | I75: 13000000 | J75: 13185303.42 | K75: FINANCIALS | L75: 99.535 | M75: -60450 | N75: 245753.42 | O75: 0 | P75: 1000000000 | Q75: 0.046 | R75: 0.04679 | S75: MYR | T75: 13000000 | U75: 13185303.42 | V75: RAM | W75: 115 | X75: AAA | Y75: 2024-08-08 | Z75: 0.046 | AA75: 1 | AB75: 3 | AC75: 1 | AD75: 13185303.42 | AE75: 245753.42 | AF75: 0 | AG75: 6.597260274 | AH75: 5.730733591 | AI75: 606523.9573 | AJ75: 86986878.45 | AK75: 606523.9573 | AL75: 75561461.21
A76: 2018-01-04 | B76: BND | C76: YH-AUR-VCAM | D76: PRASARANA SUKUK MURABAHAH 5.23% 13.09.2047 - S6 | E76: PRASARANA SUKUK MURABAHAH 5.23% 13.09.2047 - S6 | F76: VZ170266 | G76: BND*170900006 | H76: 10000000 | I76: 10030000 | J76: 10150615.07 | K76: OTHERS | L76: 99.887 | M76: -40414.26 | N76: 160482.19 | O76: 1432.88 | P76: 10000000000 | Q76: 0.05210095 | R76: 0.05237 | S76: MYR | T76: 10030000 | U76: 10150615.07 | V76: N/A | W76: 100 | X76: GG | Y76: 2047-09-13 | Z76: 0.0523 | AA76: 2 | AB76: 3 | AC76: 1 | AD76: 10150615.07 | AE76: 160482.19 | AF76: 1432.88 | AG76: 29.70958904 | AH76: 15.1341348 | AI76: 528856.6882 | AJ76: 301570602.2 | AK76: 530877.1682 | AL76: 153620776.7
A77: 2018-01-04 | B77: BND | C77: YH-AUR-VCAM | D77: PRASARANA SUKUK MURABAHAH 5.11% 12.09.2042 - S5 | E77: PRASARANA SUKUK MURABAHAH 5.11% 12.09.2042 - S5 | F77: VZ170265 | G77: BND*170900007 | H77: 20000000 | I77: 20056000 | J77: 20314800 | K77: OTHERS | L77: 99.992 | M77: -55853.42 | N77: 313600 | O77: 2800 | P77: 10000000000 | Q77: 0.05090037 | R77: 0.0511 | S77: MYR | T77: 20056000 | U77: 20314800 | V77: N/A | W77: 100 | X77: GG | Y77: 2042-09-12 | Z77: 0.0511 | AA77: 2 | AB77: 3 | AC77: 1 | AD77: 20314800 | AE77: 313600 | AF77: 2800 | AG77: 24.70410959 | AH77: 14.07262034 | AI77: 1034030.836 | AJ77: 501859045.5 | AK77: 1038086.28 | AL77: 285882467.7
A78: 2018-01-04 | B78: BND | C78: YH-AUR-VCAM | D78: AMBANK MTN 3651D 15.10.2027 (SUB-NOTES) | E78: AMBANK MTN 3651D 15.10.2027 (SUB-NOTES) | F78: UN170161 | G78: BND*171000007 | H78: 60000000 | I78: 60000000 | J78: 60652430.77 | K78: FINANCIALS | L78: 99.997 | M78: -1800 | N78: 654230.77 | O78: 0 | P78: 570000000 | Q78: 0.04899979 | R78: 0.04899 | S78: MYR | T78: 60000000 | U78: 60652430.77 | V78: RAM | W78: 128 | X78: AA3 | Y78: 2027-10-15 | Z78: 0.049 | AA78: 2 | AB78: 1 | AC78: 1 | AD78: 60652430.77 | AE78: 654230.77 | AF78: 0 | AG78: 9.783561644 | AH78: 7.80095907 | AI78: 2971956.371 | AJ78: 593396795.3 | AK78: 2971969.108 | AL78: 473147130
A79: 2018-01-04 | B79: BND | C79: YH-AUR-VCAM | D79: SPG IMTN 5.040% 28.04.2028 | E79: SPG IMTN 5.040% 28.04.2028 | F79: VO170353 | G79: BND*171000016 | H79: 5000000 | I79: 5000000 | J79: 5047567.12 | K79: POWER | L79: 100.04 | M79: 2000 | N79: 45567.12 | O79: 0 | P79: 4000000000 | Q79: 0.0504 | R79: 0.05034 | S79: MYR | T79: 5000000 | U79: 5047567.12 | V79: MARC | W79: 128 | X79: AA- | Y79: 2028-04-28 | Z79: 0.0504 | AA79: 2 | AB79: 3 | AC79: 1 | AD79: 5047567.12 | AE79: 45567.12 | AF79: 0 | AG79: 10.32054795 | AH79: 8.094209795 | AI79: 254397.3828 | AJ79: 52093658.47 | AK79: 254397.3828 | AL79: 40856067.22
A80: 2018-01-04 | B80: BND | C80: YH-AUR-VCAM | D80: SPG IMTN 5.060% 31.10.2028 | E80: SPG IMTN 5.060% 31.10.2028 | F80: VO170354 | G80: BND*171000017 | H80: 5000000 | I80: 5000000 | J80: 5043297.95 | K80: POWER | L80: 99.951 | M80: -2450 | N80: 45747.95 | O80: 0 | P80: 4000000000 | Q80: 0.0506 | R80: 0.05065 | S80: MYR | T80: 5000000 | U80: 5043297.95 | V80: MARC | W80: 128 | X80: AA- | Y80: 2028-10-31 | Z80: 0.0506 | AA80: 2 | AB80: 3 | AC80: 1 | AD80: 5043297.95 | AE80: 45747.95 | AF80: 0 | AG80: 10.83013699 | AH80: 8.389727071 | AI80: 255190.8763 | AJ80: 54619607.66 | AK80: 255190.8763 | AL80: 42311893.34
A81: 2018-01-04 | B81: BND | C81: YH-AUR-VCAM | D81: SPG IMTN 5.090% 30.04.2029 | E81: SPG IMTN 5.090% 30.04.2029 | F81: VP170355 | G81: BND*171000018 | H81: 5000000 | I81: 5000000 | J81: 5046069.18 | K81: POWER | L81: 100.001 | M81: 50 | N81: 46019.18 | O81: 0 | P81: 4000000000 | Q81: 0.0509 | R81: 0.05089 | S81: MYR | T81: 5000000 | U81: 5046069.18 | V81: MARC | W81: 128 | X81: AA- | Y81: 2029-04-30 | Z81: 0.0509 | AA81: 2 | AB81: 3 | AC81: 1 | AD81: 5046069.18 | AE81: 46019.18 | AF81: 0 | AG81: 11.3260274 | AH81: 8.666205414 | AI81: 256844.9213 | AJ81: 57151917.78 | AK81: 256844.9213 | AL81: 43730272.05
A82: 2018-01-04 | B82: BND | C82: YH-AUR-VCAM | D82: SPG IMTN 5.210% 31.10.2030 | E82: SPG IMTN 5.210% 31.10.2030 | F82: VQ170358 | G82: BND*171000019 | H82: 5000000 | I82: 5000000 | J82: 5054604.11 | K82: POWER | L82: 100.15 | M82: 7500 | N82: 47104.11 | O82: 0 | P82: 4000000000 | Q82: 0.0521 | R82: 0.05193 | S82: MYR | T82: 5000000 | U82: 5054604.11 | V82: MARC | W82: 128 | X82: AA- | Y82: 2030-10-31 | Z82: 0.0521 | AA82: 2 | AB82: 3 | AC82: 1 | AD82: 5054604.11 | AE82: 47104.11 | AF82: 0 | AG82: 12.83013699 | AH82: 9.427548425 | AI82: 263344.8741 | AJ82: 64851263.14 | AK82: 263344.8741 | AL82: 47652525.02
A83: 2018-01-04 | B83: BND | C83: YH-AUR-VCAM | D83: SPG IMTN 5.250% 30.04.2031 | E83: SPG IMTN 5.250% 30.04.2031 | F83: VR170359 | G83: BND*171000020 | H83: 5000000 | I83: 5000000 | J83: 5060365.75 | K83: POWER | L83: 100.258 | M83: 12900 | N83: 47465.75 | O83: 0 | P83: 4000000000 | Q83: 0.0525 | R83: 0.05222 | S83: MYR | T83: 5000000 | U83: 5060365.75 | V83: MARC | W83: 128 | X83: AA- | Y83: 2031-04-30 | Z83: 0.0525 | AA83: 2 | AB83: 3 | AC83: 1 | AD83: 5060365.75 | AE83: 47465.75 | AF83: 0 | AG83: 13.3260274 | AH83: 9.664308306 | AI83: 265669.2019 | AJ83: 67434572.62 | AK83: 265669.2019 | AL83: 48904934.75
A84: 2018-01-04 | B84: BND | C84: YH-AUR-VCAM | D84: SPG IMTN 5.290% 31.10.2031 | E84: SPG IMTN 5.290% 31.10.2031 | F84: VR170360 | G84: BND*171000021 | H84: 5000000 | I84: 5000000 | J84: 5059127.4 | K84: POWER | L84: 100.226 | M84: 11300 | N84: 47827.4 | O84: 0 | P84: 4000000000 | Q84: 0.0529 | R84: 0.05266 | S84: MYR | T84: 5000000 | U84: 5059127.4 | V84: MARC | W84: 128 | X84: AA- | Y84: 2031-10-31 | Z84: 0.0529 | AA84: 2 | AB84: 3 | AC84: 1 | AD84: 5059127.4 | AE84: 47827.4 | AF84: 0 | AG84: 13.83013699 | AH84: 9.889146745 | AI84: 267627.8395 | AJ84: 69968424.97 | AK84: 267627.8395 | AL84: 50030453.26
A85: 2018-01-04 | B85: BND | C85: YH-AUR-VCAM | D85: SPG IMTN 5.330% 30.04.2032 | E85: SPG IMTN 5.330% 30.04.2032 | F85: VS170368 | G85: BND*171000022 | H85: 5000000 | I85: 5000000 | J85: 5060189.04 | K85: POWER | L85: 100.24 | M85: 12000 | N85: 48189.04 | O85: 0 | P85: 4000000000 | Q85: 0.0533 | R85: 0.05305 | S85: MYR | T85: 5000000 | U85: 5060189.04 | V85: MARC | W85: 128 | X85: AA- | Y85: 2032-04-30 | Z85: 0.0533 | AA85: 2 | AB85: 3 | AC85: 1 | AD85: 5060189.04 | AE85: 48189.04 | AF85: 0 | AG85: 14.32876712 | AH85: 10.10615073 | AI85: 269708.0758 | AJ85: 72506270.35 | AK85: 269708.0758 | AL85: 51139033.16
A86: 2018-01-04 | B86: BND | C86: YH-AUR-VCAM | D86: SPG IMTN 5.370% 29.10.2032 | E86: SPG IMTN 5.370% 29.10.2032 | F86: VS170367 | G86: BND*171000023 | H86: 10000000 | I86: 10000000 | J86: 10108401.37 | K86: POWER | L86: 100.113 | M86: 11300 | N86: 97101.37 | O86: 0 | P86: 4000000000 | Q86: 0.0537 | R86: 0.05358 | S86: MYR | T86: 10000000 | U86: 10108401.37 | V86: MARC | W86: 128 | X86: AA- | Y86: 2032-10-29 | Z86: 0.0537 | AA86: 2 | AB86: 3 | AC86: 1 | AD86: 10108401.37 | AE86: 97101.37 | AF86: 0 | AG86: 14.82739726 | AH86: 10.3053402 | AI86: 542821.1536 | AJ86: 149881282.8 | AK86: 542821.1536 | AL86: 104170515
A87: 2018-01-04 | B87: BND | C87: YH-AUR-VCAM | D87: SPG IMTN 5.410% 29.04.2033 | E87: SPG IMTN 5.410% 29.04.2033 | F87: VT170366 | G87: BND*171000024 | H87: 5000000 | I87: 5000000 | J87: 5057262.33 | K87: POWER | L87: 100.167 | M87: 8350 | N87: 48912.33 | O87: 0 | P87: 4000000000 | Q87: 0.0541 | R87: 0.05393 | S87: MYR | T87: 5000000 | U87: 5057262.33 | V87: MARC | W87: 128 | X87: AA- | Y87: 2033-04-29 | Z87: 0.0541 | AA87: 2 | AB87: 3 | AC87: 1 | AD87: 5057262.33 | AE87: 48912.33 | AF87: 0 | AG87: 15.3260274 | AH87: 10.50594681 | AI87: 273597.8921 | AJ87: 77507741.02 | AK87: 273597.8921 | AL87: 53131329.04
A88: 2018-01-04 | B88: BND | C88: YH-AUR-VCAM | D88: SPG IMTN 5.450% 31.10.2033 | E88: SPG IMTN 5.450% 31.10.2033 | F88: VT170365 | G88: BND*171000025 | H88: 5000000 | I88: 5000000 | J88: 5061473.97 | K88: POWER | L88: 100.244 | M88: 12200 | N88: 49273.97 | O88: 0 | P88: 4000000000 | Q88: 0.0545 | R88: 0.05426 | S88: MYR | T88: 5000000 | U88: 5061473.97 | V88: MARC | W88: 128 | X88: AA- | Y88: 2033-10-31 | Z88: 0.0545 | AA88: 2 | AB88: 3 | AC88: 1 | AD88: 5061473.97 | AE88: 49273.97 | AF88: 0 | AG88: 15.83287671 | AH88: 10.70442075 | AI88: 275850.3314 | AJ88: 80137693.35 | AK88: 275850.3314 | AL88: 54180146.99
A89: 2018-01-04 | B89: BND | C89: YH-AUR-VCAM | D89: SPG IMTN 5.490% 28.04.2034 | E89: SPG IMTN 5.490% 28.04.2034 | F89: VU170364 | G89: BND*171000026 | H89: 5000000 | I89: 5000000 | J89: 5063635.62 | K89: POWER | L89: 100.28 | M89: 14000 | N89: 49635.62 | O89: 0 | P89: 4000000000 | Q89: 0.0549 | R89: 0.05463 | S89: MYR | T89: 5000000 | U89: 5063635.62 | V89: MARC | W89: 128 | X89: AA- | Y89: 2034-04-28 | Z89: 0.0549 | AA89: 2 | AB89: 3 | AC89: 1 | AD89: 5063635.62 | AE89: 49635.62 | AF89: 0 | AG89: 16.32328767 | AH89: 10.87993469 | AI89: 277993.5955 | AJ89: 82655180.89 | AK89: 277993.5955 | AL89: 55092024.85
A90: 2018-01-04 | B90: BND | C90: YH-AUR-VCAM | D90: SPG IMTN 5.130% 31.10.2029 | E90: SPG IMTN 5.130% 31.10.2029 | F90: VP170356 | G90: BND*171000027 | H90: 5000000 | I90: 5000000 | J90: 5050830.82 | K90: POWER | L90: 100.089 | M90: 4450 | N90: 46380.82 | O90: 0 | P90: 4000000000 | Q90: 0.0513 | R90: 0.05119 | S90: MYR | T90: 5000000 | U90: 5050830.82 | V90: MARC | W90: 128 | X90: AA- | Y90: 2029-10-31 | Z90: 0.0513 | AA90: 2 | AB90: 3 | AC90: 1 | AD90: 5050830.82 | AE90: 46380.82 | AF90: 0 | AG90: 11.83013699 | AH90: 8.929914184 | AI90: 259107.6211 | AJ90: 59752020.5 | AK90: 259107.6211 | AL90: 45103485.78
A91: 2018-01-04 | B91: BND | C91: YH-AUR-VCAM | D91: MGS 4/2013 3.844% 15.04.2033 | E91: MGS 4/2013 3.844% 15.04.2033 | F91: MX130004 | G91: BND*171100010 | H91: 20000000 | I91: 18080000 | J91: 18973191.21 | K91: GOV | L91: 94 | M91: 708760.46 | N91: 107716.48 | O91: 65474.73 | P91: 4500000000 | Q91: 0.0472776 | R91: 0.04387 | S91: MYR | T91: 18080000 | U91: 18973191.21 | V91: RAM | W91: 10 | X91: GOVT | Y91: 2033-04-15 | Z91: 0.03844 | AA91: 2 | AB91: 1 | AC91: 1 | AD91: 18973191.21 | AE91: 107716.48 | AF91: 65474.73 | AG91: 15.28767123 | AH91: 11.45870615 | AI91: 897006.9447 | AJ91: 290055909.5 | AK91: 729329.4701 | AL91: 217408222.9
A92: 2018-01-04 | B92: BND | C92: YH-AUR-VCAM | D92: SEB IMTN 5.320% 03.12.2032 | E92: SEB IMTN 5.320% 03.12.2032 | F92: VS170389 | G92: BND*171200001 | H92: 50000000 | I92: 50205000 | J92: 50576917.81 | K92: POWER | L92: 100.702 | M92: 149053.99 | N92: 218630.14 | O92: 7287.67 | P92: 15000000000 | Q92: 0.05280041 | R92: 0.05251 | S92: MYR | T92: 50205000 | U92: 50576917.81 | V92: RAM | W92: 122 | X92: AA1 | Y92: 2032-12-03 | Z92: 0.0532 | AA92: 2 | AB92: 3 | AC92: 1 | AD92: 50576917.81 | AE92: 218630.14 | AF92: 7287.67 | AG92: 14.92328767 | AH92: 10.44809134 | AI92: 2670481.997 | AJ92: 754773894 | AK92: 2690692.027 | AL92: 528432256.9
A93: 2018-01-04 | B93: BND | C93: YH-AUR-VCAM | D93: MGS 3/2017 4.762% 07.04.2037 | E93: MGS 3/2017 4.762% 07.04.2037 | F93: MX170003 | G93: BND*171200015 | H93: 10000000 | I93: 10231000 | J93: 10347741.76 | K93: GOV | L93: 102.3 | M93: -978.24 | N93: 2616.49 | O93: 115125.27 | P93: 999999990000 | Q93: 0.04579667 | R93: 0.0458 | S93: MYR | T93: 10231000 | U93: 10347741.76 | V93: RAM | W93: 10 | X93: GOVT | Y93: 2037-04-07 | Z93: 0.04762 | AA93: 2 | AB93: 1 | AC93: 1 | AD93: 10347741.76 | AE93: 2616.49 | AF93: 115125.27 | AG93: 19.26849315 | AH93: 12.75096985 | AI93: 473892.1146 | AJ93: 199385391.2 | AK93: 492759.4626 | AL93: 131943743.2
A94: 2018-01-04 | B94: CSH | C94: ASEAN5ESG | D94: PUBLIC INVESTMENT BANK BERHAD | E94: Using PIVB invest in Short Term MM Conventional | F94: RDC*MYR*PIVB | G94: CSH*180100033 | H94: 553000 | I94: 137836.49 | J94: 138100.48 | K94: OTHERS | L94: 0 | M94: 0 | N94: 23.08 | O94: 0 | P94: 0 | Q94: 0.0305 | R94: 0 | S94: MYR | T94: 553000 | U94: 553092.42 | Y94: 2018-01-05 | AC94: 1 | AD94: 553092.42 | AE94: 23.08 | AF94: 0
A95: 2018-01-04 | B95: CSH | C95: ASEAN5ESG | D95: PUBLIC INVESTMENT BANK BERHAD | E95: Using PIVB invest in Short Term MM Conventional | F95: RDC*MYR*PIVB | G95: CSH*180100057 | H95: 701000 | I95: 175031.21 | J95: 175046.08 | K95: OTHERS | L95: 0 | M95: 0 | N95: 14.87 | O95: 0 | P95: 0 | Q95: 0.031 | R95: 0 | S95: MYR | T95: 701000 | U95: 701059.54 | Y95: 2018-01-08 | AC95: 1 | AD95: 701059.54 | AE95: 14.87 | AF95: 0
A96: 2018-01-04 | B96: CSH | C96: KWAP | D96: HONG LEONG BANK BERHAD | E96: Using HLB invest in Short Term MM Conventional | F96: RDC*MYR*HLB | G96: CSH*171100414 | H96: 5000000 | I96: 5000000 | J96: 5020301.37 | K96: OTHERS | L96: 0 | M96: 0 | N96: 20301.37 | O96: 0 | P96: 0 | Q96: 0.039 | R96: 0 | S96: MYR | T96: 5000000 | U96: 5020301.37 | Y96: 2018-01-05 | AC96: 1 | AD96: 5020301.37 | AE96: 20301.37 | AF96: 0
A97: 2018-01-04 | B97: CSH | C97: KWAP | D97: KAF INVESTMENT BANK BERHAD | E97: Using KAF invest in Short Term MM Conventional | F97: RDC*MYR*KAF | G97: CSH*171100415 | H97: 15000000 | I97: 15000000 | J97: 15060904.11 | K97: OTHERS | L97: 0 | M97: 0 | N97: 60904.11 | O97: 0 | P97: 0 | Q97: 0.039 | R97: 0 | S97: MYR | T97: 15000000 | U97: 15060904.11 | Y97: 2018-01-05 | AC97: 1 | AD97: 15060904.11 | AE97: 60904.11 | AF97: 0
A98: 2018-01-04 | B98: CSH | C98: KWAP | D98: KENANGA INVESTMENT BANK BHD | E98: Using KNGINV invest in Short Term MM Conventional | F98: RDC*MYR*KNGINV | G98: CSH*171100416 | H98: 10009000 | I98: 10009000 | J98: 10049639.28 | K98: OTHERS | L98: 0 | M98: 0 | N98: 40639.28 | O98: 0 | P98: 0 | Q98: 0.039 | R98: 0 | S98: MYR | T98: 10009000 | U98: 10049639.28 | Y98: 2018-01-05 | AC98: 1 | AD98: 10049639.28 | AE98: 40639.28 | AF98: 0
A99: 2018-01-04 | B99: CSH | C99: KWAP | D99: KAF INVESTMENT BANK BERHAD | E99: Using KAF invest in Short Term MM Conventional | F99: RDC*MYR*KAF | G99: CSH*171200265 | H99: 25975000 | I99: 25975000 | J99: 26016631.16 | K99: OTHERS | L99: 0 | M99: 0 | N99: 41631.16 | O99: 0 | P99: 0 | Q99: 0.039 | R99: 0 | S99: MYR | T99: 25975000 | U99: 26016631.16 | Y99: 2018-01-08 | AC99: 1 | AD99: 26016631.16 | AE99: 41631.16 | AF99: 0
A100: 2018-01-04 | B100: CSH | C100: KWAP | D100: KAF INVESTMENT BANK BERHAD | E100: Using KAF invest in Short Term MM Conventional | F100: RDC*MYR*KAF | G100: CSH*171200282 | H100: 12864000 | I100: 12864000 | J100: 12883243.13 | K100: OTHERS | L100: 0 | M100: 0 | N100: 19243.13 | O100: 0 | P100: 0 | Q100: 0.039 | R100: 0 | S100: MYR | T100: 12864000 | U100: 12883243.13 | Y100: 2018-01-09 | AC100: 1 | AD100: 12883243.13 | AE100: 19243.13 | AF100: 0
A101: 2018-01-04 | B101: CSH | C101: KWAP | D101: KENANGA INVESTMENT BANK BHD | E101: Using KNGINV invest in Short Term MM Conventional | F101: RDC*MYR*KNGINV | G101: CSH*171200308 | H101: 2371000 | I101: 2371000 | J101: 2373533.4 | K101: OTHERS | L101: 0 | M101: 0 | N101: 2533.4 | O101: 0 | P101: 0 | Q101: 0.039 | R101: 0 | S101: MYR | T101: 2371000 | U101: 2373533.4 | Y101: 2018-01-10 | AC101: 1 | AD101: 2373533.4 | AE101: 2533.4 | AF101: 0
A102: 2018-01-04 | B102: CSH | C102: KWAP | D102: KENANGA INVESTMENT BANK BHD | E102: Using KNGINV invest in Short Term MM Conventional | F102: RDC*MYR*KNGINV | G102: CSH*171200329 | H102: 2824000 | I102: 2824000 | J102: 2826715.68 | K102: OTHERS | L102: 0 | M102: 0 | N102: 2715.68 | O102: 0 | P102: 0 | Q102: 0.039 | R102: 0 | S102: MYR | T102: 2824000 | U102: 2826715.68 | Y102: 2018-01-11 | AC102: 1 | AD102: 2826715.68 | AE102: 2715.68 | AF102: 0
A103: 2018-01-04 | B103: CSH | C103: KWAP | D103: KENANGA INVESTMENT BANK BHD | E103: Using KNGINV invest in Short Term MM Conventional | F103: RDC*MYR*KNGINV | G103: CSH*171200348 | H103: 10000000 | I103: 10000000 | J103: 10008547.95 | K103: OTHERS | L103: 0 | M103: 0 | N103: 8547.95 | O103: 0 | P103: 0 | Q103: 0.039 | R103: 0 | S103: MYR | T103: 10000000 | U103: 10008547.95 | Y103: 2018-01-10 | AC103: 1 | AD103: 10008547.95 | AE103: 8547.95 | AF103: 0
A104: 2018-01-04 | B104: CSH | C104: KWAP | D104: PUBLIC INVESTMENT BANK BERHAD | E104: Using PIVB invest in Short Term MM Conventional | F104: RDC*MYR*PIVB | G104: CSH*171200349 | H104: 16333000 | I104: 16333000 | J104: 16346961.36 | K104: OTHERS | L104: 0 | M104: 0 | N104: 13961.36 | O104: 0 | P104: 0 | Q104: 0.039 | R104: 0 | S104: MYR | T104: 16333000 | U104: 16346961.36 | Y104: 2018-01-10 | AC104: 1 | AD104: 16346961.36 | AE104: 13961.36 | AF104: 0
A105: 2018-01-04 | B105: CSH | C105: KWAP | D105: KAF INVESTMENT BANK BERHAD | E105: Using KAF invest in Short Term MM Conventional | F105: RDC*MYR*KAF | G105: CSH*171200367 | H105: 13977000 | I105: 13977000 | J105: 13987454.03 | K105: OTHERS | L105: 0 | M105: 0 | N105: 10454.03 | O105: 0 | P105: 0 | Q105: 0.039 | R105: 0 | S105: MYR | T105: 13977000 | U105: 13987454.03 | Y105: 2018-01-12 | AC105: 1 | AD105: 13987454.03 | AE105: 10454.03 | AF105: 0
A106: 2018-01-04 | B106: CSH | C106: KWAP | D106: KENANGA INVESTMENT BANK BHD | E106: Using KNGINV invest in Short Term MM Conventional | F106: RDC*MYR*KNGINV | G106: CSH*171200368 | H106: 20000000 | I106: 20000000 | J106: 20014958.9 | K106: OTHERS | L106: 0 | M106: 0 | N106: 14958.9 | O106: 0 | P106: 0 | Q106: 0.039 | R106: 0 | S106: MYR | T106: 20000000 | U106: 20014958.9 | Y106: 2018-01-12 | AC106: 1 | AD106: 20014958.9 | AE106: 14958.9 | AF106: 0
A107: 2018-01-04 | B107: CSH | C107: KWAP | D107: KAF INVESTMENT BANK BERHAD | E107: Using KAF invest in Short Term MM Conventional | F107: RDC*MYR*KAF | G107: CSH*180100016 | H107: 3771000 | I107: 3771000 | J107: 3772022.82 | K107: OTHERS | L107: 0 | M107: 0 | N107: 1022.82 | O107: 0 | P107: 0 | Q107: 0.033 | R107: 0 | S107: MYR | T107: 3771000 | U107: 3772022.82 | Y107: 2018-01-15 | AC107: 1 | AD107: 3772022.82 | AE107: 1022.82 | AF107: 0
A108: 2018-01-04 | B108: CSH | C108: KWAP | D108: KENANGA INVESTMENT BANK BHD | E108: Using KNGINV invest in Short Term MM Conventional | F108: RDC*MYR*KNGINV | G108: CSH*180100034 | H108: 26438000 | I108: 26438000 | J108: 26442780.57 | K108: OTHERS | L108: 0 | M108: 0 | N108: 4780.57 | O108: 0 | P108: 0 | Q108: 0.033 | R108: 0 | S108: MYR | T108: 26438000 | U108: 26442780.57 | Y108: 2018-01-16 | AC108: 1 | AD108: 26442780.57 | AE108: 4780.57 | AF108: 0
A109: 2018-01-04 | B109: CSH | C109: KWAP | D109: KENANGA INVESTMENT BANK BHD | E109: Using KNGINV invest in Short Term MM Conventional | F109: RDC*MYR*KNGINV | G109: CSH*180100058 | H109: 9057000 | I109: 9057000 | J109: 9057818.85 | K109: OTHERS | L109: 0 | M109: 0 | N109: 818.85 | O109: 0 | P109: 0 | Q109: 0.033 | R109: 0 | S109: MYR | T109: 9057000 | U109: 9057818.85 | Y109: 2018-01-17 | AC109: 1 | AD109: 9057818.85 | AE109: 818.85 | AF109: 0
A110: 2018-01-04 | B110: CSH | C110: KWAPFI | D110: KENANGA INVESTMENT BANK BHD | E110: Using KNGINV invest in Short Term MM Conventional | F110: RDC*MYR*KNGINV | G110: CSH*180100059 | H110: 4443000 | I110: 4443000 | J110: 4443389.52 | K110: OTHERS | L110: 0 | M110: 0 | N110: 389.52 | O110: 0 | P110: 0 | Q110: 0.032 | R110: 0 | S110: MYR | T110: 4443000 | U110: 4443389.52 | Y110: 2018-01-11 | AC110: 1 | AD110: 4443389.52 | AE110: 389.52 | AF110: 0
A111: 2018-01-04 | B111: CSH | C111: MEQESG | D111: KENANGA INVESTMENT BANK BHD | E111: Using KNGINV invest in Short Term MM Conventional | F111: RDC*MYR*KNGINV | G111: CSH*171200370 | H111: 10268000 | I111: 10268000 | J111: 10275679.9 | K111: OTHERS | L111: 0 | M111: 0 | N111: 7679.9 | O111: 0 | P111: 0 | Q111: 0.039 | R111: 0 | S111: MYR | T111: 10268000 | U111: 10275679.9 | Y111: 2018-01-05 | AC111: 1 | AD111: 10275679.9 | AE111: 7679.9 | AF111: 0
A112: 2018-01-04 | B112: CSH | C112: MEQESG | D112: KENANGA INVESTMENT BANK BHD | E112: Using KNGINV invest in Short Term MM Conventional | F112: RDC*MYR*KNGINV | G112: CSH*180100017 | H112: 8219000 | I112: 8219000 | J112: 8221127.93 | K112: OTHERS | L112: 0 | M112: 0 | N112: 2127.93 | O112: 0 | P112: 0 | Q112: 0.0315 | R112: 0 | S112: MYR | T112: 8219000 | U112: 8221127.93 | Y112: 2018-01-08 | AC112: 1 | AD112: 8221127.93 | AE112: 2127.93 | AF112: 0
A113: 2018-01-04 | B113: CSH | C113: MEQESG | D113: KENANGA INVESTMENT BANK BHD | E113: Using KNGINV invest in Short Term MM Conventional | F113: RDC*MYR*KNGINV | G113: CSH*180100035 | H113: 7617000 | I113: 7617000 | J113: 7618335.58 | K113: OTHERS | L113: 0 | M113: 0 | N113: 1335.58 | O113: 0 | P113: 0 | Q113: 0.032 | R113: 0 | S113: MYR | T113: 7617000 | U113: 7618335.58 | Y113: 2018-01-09 | AC113: 1 | AD113: 7618335.58 | AE113: 1335.58 | AF113: 0
A114: 2018-01-04 | B114: CSH | C114: MEQESG | D114: KENANGA INVESTMENT BANK BHD | E114: Using KNGINV invest in Short Term MM Conventional | F114: RDC*MYR*KNGINV | G114: CSH*180100060 | H114: 28103000 | I114: 28103000 | J114: 28105463.82 | K114: OTHERS | L114: 0 | M114: 0 | N114: 2463.82 | O114: 0 | P114: 0 | Q114: 0.032 | R114: 0 | S114: MYR | T114: 28103000 | U114: 28105463.82 | Y114: 2018-01-10 | AC114: 1 | AD114: 28105463.82 | AE114: 2463.82 | AF114: 0
A115: 2018-01-04 | B115: CSH | C115: VCAM | D115: KAF INVESTMENT BANK BERHAD | E115: Using KAF invest in Short Term MM Conventional | F115: RDC*MYR*KAF | G115: CSH*171200078 | H115: 4812000 | I115: 4812000 | J115: 4826337.12 | K115: OTHERS | L115: 0 | M115: 0 | N115: 14337.12 | O115: 0 | P115: 0 | Q115: 0.0375 | R115: 0 | S115: MYR | T115: 4812000 | U115: 4826337.12 | Y115: 2018-01-11 | AC115: 1 | AD115: 4826337.12 | AE115: 14337.12 | AF115: 0
A116: 2018-01-04 | B116: CSH | C116: VCAM | D116: KAF INVESTMENT BANK BERHAD | E116: Using KAF invest in Short Term MM Conventional | F116: RDC*MYR*KAF | G116: CSH*171200352 | H116: 15573000 | I116: 15573000 | J116: 15586311.72 | K116: OTHERS | L116: 0 | M116: 0 | N116: 13311.72 | O116: 0 | P116: 0 | Q116: 0.039 | R116: 0 | S116: MYR | T116: 15573000 | U116: 15586311.72 | Y116: 2018-01-11 | AC116: 1 | AD116: 15586311.72 | AE116: 13311.72 | AF116: 0
A117: 2018-01-04 | B117: CSH | C117: VCAMOPR | D117: MALAYAN BANKING BERHAD | E117: Using MBB invest in Short Term MM Conventional | F117: RDC*MYR*MBB | G117: CSH*180100061 | H117: 704000 | I117: 704000 | J117: 704057.86 | K117: OTHERS | L117: 0 | M117: 0 | N117: 57.86 | O117: 0 | P117: 0 | Q117: 0.03 | R117: 0 | S117: MYR | T117: 704000 | U117: 704057.86 | Y117: 2018-01-11 | AC117: 1 | AD117: 704057.86 | AE117: 57.86 | AF117: 0
A118: 2018-01-04 | B118: CSH | C118: VCAM-TABA | D118: BANK ISLAM MALAYSIA BERHAD | E118: Using BIMB invest in Short Term MM Islamic | F118: RDI*MYR*BIMB | G118: CSH*180100036 | H118: 1289000 | I118: 1289000 | J118: 1289208.36 | K118: OTHERS | L118: 0 | M118: 0 | N118: 208.36 | O118: 0 | P118: 0 | Q118: 0.0295 | R118: 0 | S118: MYR | T118: 1289000 | U118: 1289208.36 | Y118: 2018-01-08 | AC118: 1 | AD118: 1289208.36 | AE118: 208.36 | AF118: 0
A119: 2018-01-04 | B119: CSH | C119: YAMIR-VCAM | D119: KENANGA INVESTMENT BANK BHD | E119: Using KNGINV invest in Short Term MM Conventional | F119: RDC*MYR*KNGINV | G119: CSH*171200372 | H119: 3001000 | I119: 3001000 | J119: 3003244.58 | K119: OTHERS | L119: 0 | M119: 0 | N119: 2244.58 | O119: 0 | P119: 0 | Q119: 0.039 | R119: 0 | S119: MYR | T119: 3001000 | U119: 3003244.58 | Y119: 2018-01-05 | AC119: 1 | AD119: 3003244.58 | AE119: 2244.58 | AF119: 0
A120: 2018-01-04 | B120: CSH | C120: YAMIR-VCAM | D120: KAF INVESTMENT BANK BERHAD | E120: Using KAF invest in Short Term MM Conventional | F120: RDC*MYR*KAF | G120: CSH*180100018 | H120: 3524000 | I120: 3524000 | J120: 3524926.86 | K120: OTHERS | L120: 0 | M120: 0 | N120: 926.86 | O120: 0 | P120: 0 | Q120: 0.032 | R120: 0 | S120: MYR | T120: 3524000 | U120: 3524926.86 | Y120: 2018-01-08 | AC120: 1 | AD120: 3524926.86 | AE120: 926.86 | AF120: 0
A121: 43104 | B121: CSH | C121: YAMIR-VCAM | D121: KENANGA INVESTMENT BANK BHD | E121: Using KNGINV invest in Short Term MM Conventional | F121: RDC*MYR*KNGINV | G121: CSH*180100037 | H121: 3154000 | I121: 3154000 | J121: 3154553.03 | K121: OTHERS | L121: 0 | M121: 0 | N121: 553.03 | O121: 0 | P121: 0 | Q121: 0.032 | R121: 0 | S121: MYR | T121: 3154000 | U121: 3154553.03 | Y121: 2018-01-09 | AC121: 1 | AD121: 3154553.03 | AE121: 553.03 | AF121: 0
A122: 43104 | B122: CSH | C122: YAMIR-VCAM | D122: KENANGA INVESTMENT BANK BHD | E122: Using KNGINV invest in Short Term MM Conventional | F122: RDC*MYR*KNGINV | G122: CSH*180100062 | H122: 6425000 | I122: 6425000 | J122: 6425563.29 | K122: OTHERS | L122: 0 | M122: 0 | N122: 563.29 | O122: 0 | P122: 0 | Q122: 0.032 | R122: 0 | S122: MYR | T122: 6425000 | U122: 6425563.29 | Y122: 2018-01-10 | AC122: 1 | AD122: 6425563.29 | AE122: 563.29 | AF122: 0
A123: 43104 | B123: CSH | C123: YH-AUR-VCAM | D123: HONG LEONG BANK BERHAD | E123: Using HLB invest in Short Term MM Conventional | F123: RDC*MYR*HLB | G123: CSH*171100419 | H123: 25000000 | I123: 25000000 | J123: 25101506.85 | K123: OTHERS | L123: 0 | M123: 0 | N123: 101506.85 | O123: 0 | P123: 0 | Q123: 0.039 | R123: 0 | S123: MYR | T123: 25000000 | U123: 25101506.85 | Y123: 2018-01-05 | AC123: 1 | AD123: 25101506.85 | AE123: 101506.85 | AF123: 0
A124: 43104 | B124: CSH | C124: YH-AUR-VCAM | D124: KENANGA INVESTMENT BANK BHD | E124: Using KNGINV invest in Short Term MM Conventional | F124: RDC*MYR*KNGINV | G124: CSH*171100420 | H124: 19280000 | I124: 19280000 | J124: 19358282.08 | K124: OTHERS | L124: 0 | M124: 0 | N124: 78282.08 | O124: 0 | P124: 0 | Q124: 0.039 | R124: 0 | S124: MYR | T124: 19280000 | U124: 19358282.08 | Y124: 2018-01-05 | AC124: 1 | AD124: 19358282.08 | AE124: 78282.08 | AF124: 0
A125: 43104 | B125: CSH | C125: YH-AUR-VCAM | D125: KAF INVESTMENT BANK BERHAD | E125: Using KAF invest in Short Term MM Conventional | F125: RDC*MYR*KAF | G125: CSH*171100463 | H125: 25444000 | I125: 25444000 | J125: 25541872.26 | K125: OTHERS | L125: 0 | M125: 0 | N125: 97872.26 | O125: 0 | P125: 0 | Q125: 0.039 | R125: 0 | S125: MYR | T125: 25444000 | U125: 25541872.26 | Y125: 2018-01-08 | AC125: 1 | AD125: 25541872.26 | AE125: 97872.26 | AF125: 0
A126: 43104 | B126: CSH | C126: YH-AUR-VCAM | D126: KAF INVESTMENT BANK BERHAD | E126: Using KAF invest in Short Term MM Conventional | F126: RDC*MYR*KAF | G126: CSH*171200018 | H126: 52099000 | I126: 52099000 | J126: 52270284.38 | K126: OTHERS | L126: 0 | M126: 0 | N126: 171284.38 | O126: 0 | P126: 0 | Q126: 0.0375 | R126: 0 | S126: MYR | T126: 52099000 | U126: 52270284.38 | Y126: 2018-01-09 | AC126: 1 | AD126: 52270284.38 | AE126: 171284.38 | AF126: 0
A127: 43104 | B127: CSH | C127: YH-AUR-VCAM | D127: KAF INVESTMENT BANK BERHAD | E127: Using KAF invest in Short Term MM Conventional | F127: RDC*MYR*KAF | G127: CSH*171200286 | H127: 22751000 | I127: 22751000 | J127: 22785033 | K127: OTHERS | L127: 0 | M127: 0 | N127: 34033 | O127: 0 | P127: 0 | Q127: 0.039 | R127: 0 | S127: MYR | T127: 22751000 | U127: 22785033 | Y127: 2018-01-10 | AC127: 1 | AD127: 22785033 | AE127: 34033 | AF127: 0
A128: 43104 | B128: CSH | C128: YH-AUR-VCAM | D128: KENANGA INVESTMENT BANK BHD | E128: Using KNGINV invest in Short Term MM Conventional | F128: RDC*MYR*KNGINV | G128: CSH*171200315 | H128: 11008000 | I128: 11008000 | J128: 11019761.97 | K128: OTHERS | L128: 0 | M128: 0 | N128: 11761.97 | O128: 0 | P128: 0 | Q128: 0.039 | R128: 0 | S128: MYR | T128: 11008000 | U128: 11019761.97 | Y128: 2018-01-11 | AC128: 1 | AD128: 11019761.97 | AE128: 11761.97 | AF128: 0
A129: 43104 | B129: CSH | C129: YH-AUR-VCAM | D129: PUBLIC INVESTMENT BANK BERHAD | E129: Using PIVB invest in Short Term MM Conventional | F129: RDC*MYR*PIVB | G129: CSH*171200333 | H129: 7837000 | I129: 7837000 | J129: 7844536.4 | K129: OTHERS | L129: 0 | M129: 0 | N129: 7536.4 | O129: 0 | P129: 0 | Q129: 0.039 | R129: 0 | S129: MYR | T129: 7837000 | U129: 7844536.4 | Y129: 2018-01-12 | AC129: 1 | AD129: 7844536.4 | AE129: 7536.4 | AF129: 0
A130: 43104 | B130: CSH | C130: YH-AUR-VCAM | D130: KAF INVESTMENT BANK BERHAD | E130: Using KAF invest in Short Term MM Conventional | F130: RDC*MYR*KAF | G130: CSH*171200373 | H130: 2340000 | I130: 2340000 | J130: 2341750.19 | K130: OTHERS | L130: 0 | M130: 0 | N130: 1750.19 | O130: 0 | P130: 0 | Q130: 0.039 | R130: 0 | S130: MYR | T130: 2340000 | U130: 2341750.19 | Y130: 2018-01-08 | AC130: 1 | AD130: 2341750.19 | AE130: 1750.19 | AF130: 0
A131: 43104 | B131: CSH | C131: YH-AUR-VCAM | D131: KAF INVESTMENT BANK BERHAD | E131: Using KAF invest in Short Term MM Conventional | F131: RDC*MYR*KAF | G131: CSH*180100019 | H131: 23908000 | I131: 23908000 | J131: 23914484.64 | K131: OTHERS | L131: 0 | M131: 0 | N131: 6484.64 | O131: 0 | P131: 0 | Q131: 0.033 | R131: 0 | S131: MYR | T131: 23908000 | U131: 23914484.64 | Y131: 2018-01-15 | AC131: 1 | AD131: 23914484.64 | AE131: 6484.64 | AF131: 0
A132: 43104 | B132: CSH | C132: YH-AUR-VCAM | D132: KENANGA INVESTMENT BANK BHD | E132: Using KNGINV invest in Short Term MM Conventional | F132: RDC*MYR*KNGINV | G132: CSH*180100020 | H132: 30000000 | I132: 30000000 | J132: 30007890.41 | K132: OTHERS | L132: 0 | M132: 0 | N132: 7890.41 | O132: 0 | P132: 0 | Q132: 0.032 | R132: 0 | S132: MYR | T132: 30000000 | U132: 30007890.41 | Y132: 2018-01-15 | AC132: 1 | AD132: 30007890.41 | AE132: 7890.41 | AF132: 0
A133: 43104 | B133: CSH | C133: YH-AUR-VCAM | D133: KAF INVESTMENT BANK BERHAD | E133: Using KAF invest in Short Term MM Conventional | F133: RDC*MYR*KAF | G133: CSH*180100038 | H133: 46253000 | I133: 46253000 | J133: 46261363.56 | K133: OTHERS | L133: 0 | M133: 0 | N133: 8363.56 | O133: 0 | P133: 0 | Q133: 0.033 | R133: 0 | S133: MYR | T133: 46253000 | U133: 46261363.56 | Y133: 2018-01-16 | AC133: 1 | AD133: 46261363.56 | AE133: 8363.56 | AF133: 0
A134: 43104 | B134: CSH | C134: YH-AUR-VCAM | D134: KAF INVESTMENT BANK BERHAD | E134: Using KAF invest in Short Term MM Conventional | F134: RDC*MYR*KAF | G134: CSH*180100063 | H134: 59321000 | I134: 59321000 | J134: 59326363.27 | K134: OTHERS | L134: 0 | M134: 0 | N134: 5363.27 | O134: 0 | P134: 0 | Q134: 0.033 | R134: 0 | S134: MYR | T134: 59321000 | U134: 59326363.27 | Y134: 2018-01-17 | AC134: 1 | AD134: 59326363.27 | AE134: 5363.27 | AF134: 0

Sheet 2. Portfolio Valuation - YH
J1: =SUMIFS(InTBYTD!F:F,InTBYTD!C:C,FundCode,InTBYTD!A:A,ValueDate,InTBYTD!K:K,"CSH") -> 5915307.34 | K1: =COUNTIFS(InPos!B:B,FundCode,InPos!O:O,"EQT")+9 -> 53 | L1: =IF(ISNA(MATCH(FundCode,InPos!B:B,0)),1,MATCH(FundCode,InPos!B:B,0))-1 -> 88 | M1: =SUM(J10:J200) -> 1292186719 | N1: =SUMIFS(InTWRR!$D:$D,InTWRR!$A:$A,FundCode,InTWRR!$B:$B,ValueDate) -> 2967586021 | P1: =SUM(InPos!M:M) -> 490871549297 | Z1: =COUNTIFS(InPosCsh!B:B,"BND",InPosCsh!C:C,FundCode)+ROW(B204) -> 261 | AF1: =IF(ISNA(MATCH(FundCode,InPosCsh!C:C,0)),1,MATCH(FundCode,InPosCsh!C:C,0))-1 -> 36 | AG1: =SUM(J205:J300) -> 1069827980 | AI1: =COUNTIFS(InPos!O:O,"WHF",InPos!B:B,FundCode)+ROW(B304) -> 305 | AJ1: =IF(ISNA(MATCH(FundCode&"WHF",InPos!B:B&InPos!O:O,0)),1,MATCH(FundCode&"WHF",InPos!B:B&InPos!O:O,0))-1 -> 132
B2: =VLOOKUP(FundCode,Reference!A:B,2,0) -> YAYASAN HASANAH (AUR-VCAM) Fund | D2: ALL | AF2: Fund code | AG2: YH-AUR-VCAM
B3: ="HOLDINGS REPORT AS AT " & TEXT(ValueDate,"dd-mmm-yyyy") -> HOLDINGS REPORT AS AT 04-Jan-2018 | AF3: ESG
B4: CLOSING KLCI: | C4: =InIndex!C10 -> 1803.45
B5: CLOSING FBM100: | C5: =InIndex!C18 -> 12686.71
B7: Security Code | C7: Security Name | D7: Long Name | E7: Rating | F7: Quantity | G7: Average Cost (RM) | H7: Total Cost (RM) | I7: Market Price (RM) | J7: Market Value (RM) | K7: Unrealised Gain/(Loss) (RM) | L7: % Gain /(Loss) | M7: % Equity | N7: % NAV | O7: Unit Issued | P7: % of Paid Up Capital | Q7: Sector | R7: Div Yield (Cost) | S7: Div Yield (Mkt) | T7: EPS | U7: PE | V7: P/BV | AA7: EPS (weighted MV) | AB7: BPS (weighted MV) | AC7: DPS (weighted MV) | AD7: EQT DIV Yield (Cost) | AE7: EQT DIV Yield (Mkt)
I8: Current* | X8: EPS | Y8: BPS | Z8: DPS
B9: Equity | D9: LONG_COMP_NAME | E9: ESG
A10: 91 | B10: =OFFSET(Top,$A10,4) -> 1066 | C10: =OFFSET(Top,$A10,2) -> RHBBANK | D10: =OFFSET(Top,$A10,3) -> RHB BANK BERHAD | E10: =IF(ISNA(VLOOKUP(TEXT(B10,"0"),UniverseRange,2,0))=TRUE,"",VLOOKUP(TEXT(B10,"0"),UniverseRange,2,0)) -> 2.9 | F10: =OFFSET(Top,$A10,6) -> 20789500 | G10: =IF(OR(F10=0,H10=0,F10="",H10=""),"",H10/F10) -> 5.662312704 | H10: =OFFSET(Top,$A10,7) -> 117716650 | I10: =OFFSET(Top,$A10,10) -> 5.2 | J10: =OFFSET(Top,$A10,8) -> 108105400 | K10: =OFFSET(Top,$A10,11) -> -9611249.97 | L10: =IF(H10=0,0,K10/H10) -> -0.08164732833 | M10: =IF(SumTotalMarketValue=0,0,J10/SumTotalMarketValue) -> 0.08366081962 | N10: =IF(FundCode="KHAZANAH",J10/$J$320,IF(NAVValue=0,0,J10/NAVValue)) -> 0.0364287334 | O10: =OFFSET(Top,$A10,12)/1000 -> 4010045.621 | P10: =IF(O10=0,0,F10/O10/1000) -> 0.005184354984 | Q10: =OFFSET(Top,$A10,9) -> FINANCIALS | R10: =IF(OR(G10=0,G10="",Z10=""),"",Z10/G10) -> 0.02649094245 | S10: =IF(OR(I10=0,I10="",Z10=""),"",Z10/I10) -> 0.02884615385 | T10: =IF(X10="","",X10) -> 0.48 | U10: =IF(OR(I10=0,I10="",X10="",X10=0),"",I10/X10) -> 10.83333333 | V10: =IF(OR(I10=0,I10="",Y10="",Y10=0),"",I10/Y10) -> 0.9885931559 | X10: =IF(OR(B10=0,RIGHT(B10,2)="OR"),"",IFERROR(VLOOKUP(TEXT(B10,"0000"),Valuations!$E:$S,2,FALSE),"")) -> 0.48 | Y10: =IF(OR(B10=0,RIGHT(B10,2)="OR"),"",IFERROR(VLOOKUP(TEXT(B10,"0000"),Valuations!$E:$S,3,FALSE),"")) -> 5.26 | Z10: =IF(OR(B10=0,RIGHT(B10,2)="OR"),"",IFERROR(VLOOKUP(TEXT(B10,"0000"),Valuations!$E:$S,4,FALSE),"")) -> 0.15 | AA10: =IF(OR($J$202=0,$J$202="",J10="",T10=""),"",T10*J10/$J$202) -> 0.04015719342 | AB10: =IF(OR($J$202=0,$J$202="",J10="",U10=""),"",U10*J10/$J$202) -> 0.9063255459 | AC10: =IF(OR($J$202=0,$J$202="",J10="",V10=""),"",V10*J10/$J$202) -> 0.08270651369 | AD10: =IF(OR($H$202=0,$H$202="",H10="",R10=""),"",R10*H10/$H$202) -> 0.001957933047 | AE10: =IF(OR($J$202=0,$J$202="",J10="",S10=""),"",S10*J10/$J$202) -> 0.002413292874
A11: 119 | B11: 5284 | C11: LCTITAN | D11: LOTTE CHEMICAL TITAN HOLDING BERHAD | F11: 21572100 | G11: 6.556184404 | H11: 141430665.6 | I11: 5.01 | J11: 108076221 | K11: -33354444.58 | L11: -0.2358360151 | M11: 0.08363823852 | N11: 0.03641890083 | O11: 2307791.5 | P11: 0.009347508213 | Q11: BASIC MATERIALS | X11: =IF(OR(B11=0,RIGHT(B11,2)="OR"),"",IFERROR(VLOOKUP(TEXT(B11,"0000"),Valuations!$E:$S,2,FALSE),"")) ->  | Y11: =IF(OR(B11=0,RIGHT(B11,2)="OR"),"",IFERROR(VLOOKUP(TEXT(B11,"0000"),Valuations!$E:$S,3,FALSE),"")) ->  | Z11: =IF(OR(B11=0,RIGHT(B11,2)="OR"),"",IFERROR(VLOOKUP(TEXT(B11,"0000"),Valuations!$E:$S,4,FALSE),"")) ->  | AA11: =IF(OR($J$202=0,$J$202="",J11="",T11=""),"",T11*J11/$J$202) ->  | AB11: =IF(OR($J$202=0,$J$202="",J11="",U11=""),"",U11*J11/$J$202) ->  | AC11: =IF(OR($J$202=0,$J$202="",J11="",V11=""),"",V11*J11/$J$202) ->  | AD11: =IF(OR($H$202=0,$H$202="",H11="",R11=""),"",R11*H11/$H$202) ->  | AE11: =IF(OR($J$202=0,$J$202="",J11="",S11=""),"",S11*J11/$J$202) -> 
A12: 124 | B12: 6947 | C12: DIGI | D12: Digi.com Berhad | E12: 3.7 | F12: 20384800 | G12: 5.946751371 | H12: 121223337.3 | I12: 4.9 | J12: 99885520 | K12: -21337817.35 | L12: -0.1760207054 | M12: 0.07729960271 | N12: 0.03365884571 | O12: 7775000 | P12: 0.002621839228 | Q12: TELCO | R12: 0.03699498874 | S12: 0.04489795918 | T12: 0.23 | U12: 21.30434783 | V12: 70 | X12: =IF(OR(B12=0,RIGHT(B12,2)="OR"),"",IFERROR(VLOOKUP(TEXT(B12,"0000"),Valuations!$E:$S,2,FALSE),"")) -> 0.23 | Y12: =IF(OR(B12=0,RIGHT(B12,2)="OR"),"",IFERROR(VLOOKUP(TEXT(B12,"0000"),Valuations!$E:$S,3,FALSE),"")) -> 0.07 | Z12: =IF(OR(B12=0,RIGHT(B12,2)="OR"),"",IFERROR(VLOOKUP(TEXT(B12,"0000"),Valuations!$E:$S,4,FALSE),"")) -> 0.22 | AA12: 0.01777890862 | AB12: 1.646817623 | AC12: 5.41097219 | AD12: 0.002815734285 | AE12: 0.003470594408
A13: 93 | B13: 1171 | C13: MBSB | D13: Malaysia Building Society Bhd | E13: 2.6 | F13: 74977815 | G13: 1.393162749 | H13: 104456298.8 | I13: 1.14 | J13: 85474709.1 | K13: -18981589.73 | L13: -0.1817180002 | M13: 0.06614733602 | N13: 0.02880277387 | O13: 5924425.2 | P13: 0.01265571131 | Q13: FINANCIALS | R13: 0.01435582456 | S13: 0.01754385965 | T13: 0.05 | U13: 22.8 | V13: 0.9827586207 | X13: =IF(OR(B13=0,RIGHT(B13,2)="OR"),"",IFERROR(VLOOKUP(TEXT(B13,"0000"),Valuations!$E:$S,2,FALSE),"")) -> 0.05 | Y13: =IF(OR(B13=0,RIGHT(B13,2)="OR"),"",IFERROR(VLOOKUP(TEXT(B13,"0000"),Valuations!$E:$S,3,FALSE),"")) -> 1.16 | Z13: =IF(OR(B13=0,RIGHT(B13,2)="OR"),"",IFERROR(VLOOKUP(TEXT(B13,"0000"),Valuations!$E:$S,4,FALSE),"")) -> 0.02 | AA13: 0.003307366801 | AB13: 1.508159261 | AC13: 0.06500686471 | AD13: 0.0009415108063 | AE13: 0.001160479579
A14: 97 | B14: 3336 | C14: IJM | D14: IJM Corporation Bhd | E14: 2.1 | F14: 26170300 | G14: 3.543738006 | H14: 92740686.73 | I14: 3 | J14: 78510900 | K14: -14229786.73 | L14: -0.1534362881 | M14: 0.06075816974 | N14: 0.02645614969 | O14: 3628600.12 | P14: 0.007212230374 | Q14: INDUSTRIALS | R14: 0.03104066944 | S14: 0.03666666667 | T14: 0.17 | U14: 17.64705882 | V14: 1.25 | X14: =IF(OR(B14=0,RIGHT(B14,2)="OR"),"",IFERROR(VLOOKUP(TEXT(B14,"0000"),Valuations!$E:$S,2,FALSE),"")) -> 0.17 | Y14: =IF(OR(B14=0,RIGHT(B14,2)="OR"),"",IFERROR(VLOOKUP(TEXT(B14,"0000"),Valuations!$E:$S,3,FALSE),"")) -> 2.4 | Z14: =IF(OR(B14=0,RIGHT(B14,2)="OR"),"",IFERROR(VLOOKUP(TEXT(B14,"0000"),Valuations!$E:$S,4,FALSE),"")) -> 0.11 | AA14: 0.01032888886 | AB14: 1.072202995 | AC14: 0.07594771217 | AD14: 0.001807440126 | AE14: 0.002227799557
A15: 95 | B15: 1961 | C15: IOICORP | D15: IOI Corporation Berhad | E15: 2.7 | F15: 16039200 | G15: 4.653844071 | H15: 74643935.83 | I15: 4.6 | J15: 73780320 | K15: -863615.83 | L15: -0.01156980564 | M15: 0.05709725918 | N15: 0.02486206616 | O15: 6283859.995 | P15: 0.002552443882 | Q15: CONSUMER GOODS | R15: 0.02148761292 | S15: 0.02173913043 | T15: 0.17 | U15: 27.05882353 | V15: 4.035087719 | X15: =IF(OR(B15=0,RIGHT(B15,2)="OR"),"",IFERROR(VLOOKUP(TEXT(B15,"0000"),Valuations!$E:$S,2,FALSE),"")) -> 0.17 | Y15: =IF(OR(B15=0,RIGHT(B15,2)="OR"),"",IFERROR(VLOOKUP(TEXT(B15,"0000"),Valuations!$E:$S,3,FALSE),"")) -> 1.14 | Z15: =IF(OR(B15=0,RIGHT(B15,2)="OR"),"",IFERROR(VLOOKUP(TEXT(B15,"0000"),Valuations!$E:$S,4,FALSE),"")) -> 0.1 | AA15: 0.009706534061 | AB15: 1.54498466 | AC15: 0.2303924493 | AD15: 0.001007036556 | AE15: 0.001241244765
A16: 94 | B16: 1295 | C16: PBBANK | D16: Public Bank Berhad | E16: 2.1 | F16: 3500000 | G16: 19.30422371 | H16: 67564782.99 | I16: 20.74 | J16: 72590000 | K16: 5025217.01 | L16: 0.07437627692 | M16: 0.056176092 | N16: 0.024460959 | O16: 3882138.347 | P16: 0.0009015649849 | Q16: FINANCIALS | R16: 0.03056325957 | S16: 0.02844744455 | T16: 1.34 | U16: 15.47761194 | V16: 2.346153846 | X16: =IF(OR(B16=0,RIGHT(B16,2)="OR"),"",IFERROR(VLOOKUP(TEXT(B16,"0000"),Valuations!$E:$S,2,FALSE),"")) -> 1.34 | Y16: =IF(OR(B16=0,RIGHT(B16,2)="OR"),"",IFERROR(VLOOKUP(TEXT(B16,"0000"),Valuations!$E:$S,3,FALSE),"")) -> 8.84 | Z16: =IF(OR(B16=0,RIGHT(B16,2)="OR"),"",IFERROR(VLOOKUP(TEXT(B16,"0000"),Valuations!$E:$S,4,FALSE),"")) -> 0.59 | AA16: 0.07527596328 | AB16: 0.8694717523 | AC16: 0.1317977543 | AD16: 0.001296530057 | AE16: 0.001598066262
A17: 90 | B17: 1015 | C17: AMBANK | D17: AMMB Holdings Berhad | E17: 1.7 | F17: 14780700 | G17: 5.977411144 | H17: 88350320.89 | I17: 4.59 | J17: 67843413 | K17: -20506907.89 | L17: -0.2321090369 | M17: 0.05250279391 | N17: 0.02286148153 | O17: 3014184.844 | P17: 0.004903713861 | Q17: FINANCIALS | R17: 0.02844040604 | S17: 0.03703703704 | T17: 0.42 | U17: 10.92857143 | V17: 0.9125248509 | X17: =IF(OR(B17=0,RIGHT(B17,2)="OR"),"",IFERROR(VLOOKUP(TEXT(B17,"0000"),Valuations!$E:$S,2,FALSE),"")) -> 0.42 | Y17: =IF(OR(B17=0,RIGHT(B17,2)="OR"),"",IFERROR(VLOOKUP(TEXT(B17,"0000"),Valuations!$E:$S,3,FALSE),"")) -> 5.03 | Z17: =IF(OR(B17=0,RIGHT(B17,2)="OR"),"",IFERROR(VLOOKUP(TEXT(B17,"0000"),Valuations!$E:$S,4,FALSE),"")) -> 0.17 | AA17: 0.02205117344 | AB17: 0.5737805335 | AC17: 0.04791010419 | AD17: 0.001577634725 | AE17: 0.001944547923
A18: 98 | B18: 3794 | C18: LAFMSIA | D18: Lafarge Malaysia Bhd | E18: 0 | F18: 10208500 | G18: 10.0275374 | H18: 102366115.6 | I18: 6.29 | J18: 64211465 | K18: -38154650.59 | L18: -0.3727273461 | M18: 0.04969209485 | N18: 0.02163760866 | O18: 849695.476 | P18: 0.01201430429 | Q18: INDUSTRIALS | R18: 0.03490388376 | S18: 0.05564387917 | T18: 0.36 | U18: 17.47222222 | V18: 1.686327078 | X18: =IF(OR(B18=0,RIGHT(B18,2)="OR"),"",IFERROR(VLOOKUP(TEXT(B18,"0000"),Valuations!$E:$S,2,FALSE),"")) -> 0.36 | Y18: =IF(OR(B18=0,RIGHT(B18,2)="OR"),"",IFERROR(VLOOKUP(TEXT(B18,"0000"),Valuations!$E:$S,3,FALSE),"")) -> 3.73 | Z18: =IF(OR(B18=0,RIGHT(B18,2)="OR"),"",IFERROR(VLOOKUP(TEXT(B18,"0000"),Valuations!$E:$S,4,FALSE),"")) -> 0.35 | AA18: 0.01788915415 | AB18: 0.8682313239 | AC18: 0.0837971251 | AD18: =IF(OR($H$202=0,$H$202="",H18="",R18=""),"",R18*H18/$H$202) -> 0.002243326625 | AE18: 0.002765060922
A19: 96 | B19: 2593 | C19: UMCCA | D19: United Malacca Bhd | F19: 6323600 | G19: 6.337489481 | H19: 40075748.48 | I19: 6.59 | J19: 41672524 | K19: 1596775.52 | L19: 0.03984393506 | M19: 0.03224961485 | N19: 0.01404256649 | O19: 209594.901 | P19: 0.0301705813 | Q19: CONSUMER GOODS | R19: 0.02524659023 | S19: 0.02427921093 | T19: 0.22 | U19: 29.95454545 | V19: 0.8066095471 | X19: =IF(OR(B19=0,RIGHT(B19,2)="OR"),"",IFERROR(VLOOKUP(TEXT(B19,"0000"),Valuations!$E:$S,2,FALSE),"")) -> 0.22 | Y19: =IF(OR(B19=0,RIGHT(B19,2)="OR"),"",IFERROR(VLOOKUP(TEXT(B19,"0000"),Valuations!$E:$S,3,FALSE),"")) -> 8.17 | Z19: =IF(OR(B19=0,RIGHT(B19,2)="OR"),"",IFERROR(VLOOKUP(TEXT(B19,"0000"),Valuations!$E:$S,4,FALSE),"")) -> 0.16 | AA19: 0.007094915267 | AB19: 0.966022554 | AC19: 0.02601284723 | AD19: =IF(OR($H$202=0,$H$202="",H19="",R19=""),"",R19*H19/$H$202) -> 0.0006352532663 | AE19: 0.0007829952013
A20: 112 | B20: 5218 | C20: SAPNRG | D20: Sapura Energy Berhad | E20: 1.4 | F20: 58169900 | G20: 1.928944424 | H20: 112206504.3 | I20: 0.715 | J20: 41591478.5 | K20: -70615025.76 | L20: -0.6293309486 | M20: 0.0321868952 | N20: 0.01401525624 | O20: 5992155.087 | P20: 0.009707675979 | Q20: OIL & GAS | R20: 0.01555254761 | S20: 0.04195804196 | T20: 0.16 | U20: 4.46875 | V20: 0.3704663212 | X20: =IF(OR(B20=0,RIGHT(B20,2)="OR"),"",IFERROR(VLOOKUP(TEXT(B20,"0000"),Valuations!$E:$S,2,FALSE),"")) -> 0.16 | Y20: =IF(OR(B20=0,RIGHT(B20,2)="OR"),"",IFERROR(VLOOKUP(TEXT(B20,"0000"),Valuations!$E:$S,3,FALSE),"")) -> 1.93 | Z20: =IF(OR(B20=0,RIGHT(B20,2)="OR"),"",IFERROR(VLOOKUP(TEXT(B20,"0000"),Valuations!$E:$S,4,FALSE),"")) -> 0.03 | AA20: 0.005149903232 | AB20: 0.1438351879 | AC20: 0.01192416066 | AD20: 0.00109567589 | AE20: 0.001350499099
A21: 122 | B21: 6033 | C21: PETGAS | D21: Petronas Gas Berhad | E21: 2.1 | F21: 2213600 | G21: 19.52201333 | H21: 43213928.7 | I21: 18.1 | J21: 40066160 | K21: -3147768.7 | L21: -0.07284153037 | M21: 0.03100647872 | N21: 0.01350126322 | O21: 1978731.915 | P21: 0.001118696264 | Q21: UTILITIES | R21: 0.0317590194 | S21: 0.03425414365 | T21: 0.92 | U21: 19.67391304 | V21: 2.924071082 | X21: =IF(OR(B21=0,RIGHT(B21,2)="OR"),"",IFERROR(VLOOKUP(TEXT(B21,"0000"),Valuations!$E:$S,2,FALSE),"")) -> 0.92 | Y21: =IF(OR(B21=0,RIGHT(B21,2)="OR"),"",IFERROR(VLOOKUP(TEXT(B21,"0000"),Valuations!$E:$S,3,FALSE),"")) -> 6.19 | Z21: =IF(OR(B21=0,RIGHT(B21,2)="OR"),"",IFERROR(VLOOKUP(TEXT(B21,"0000"),Valuations!$E:$S,4,FALSE),"")) -> 0.62 | AA21: 0.02852596042 | AB21: 0.6100187661 | AC21: 0.09066514779 | AD21: 0.0008616945952 | AE21: 0.001062100376
A22: 92 | B22: 1155 | C22: MAYBANK | D22: Malayan Banking Berhad | E22: 3.3 | F22: 4000000 | G22: 8.806256665 | H22: 35225026.66 | I22: 9.8 | J22: 39200000 | K22: 3974973.34 | L22: 0.1128451478 | M22: 0.03033617311 | N22: 0.01320938963 | O22: 10789494.08 | P22: 0.0003707310066 | Q22: FINANCIALS | R22: 0.05337114484 | S22: 0.04795918367 | T22: 0.64 | U22: 15.3125 | V22: 1.507692308 | X22: =IF(OR(B22=0,RIGHT(B22,2)="OR"),"",IFERROR(VLOOKUP(TEXT(B22,"0000"),Valuations!$E:$S,2,FALSE),"")) -> 0.64 | Y22: =IF(OR(B22=0,RIGHT(B22,2)="OR"),"",IFERROR(VLOOKUP(TEXT(B22,"0000"),Valuations!$E:$S,3,FALSE),"")) -> 6.5 | Z22: =IF(OR(B22=0,RIGHT(B22,2)="OR"),"",IFERROR(VLOOKUP(TEXT(B22,"0000"),Valuations!$E:$S,4,FALSE),"")) -> 0.47 | AA22: 0.01941515079 | AB22: 0.4645226508 | AC22: 0.04573761485 | AD22: 0.001180376032 | AE22: 0.001454898098
A23: 100 | B23: 4677 | C23: YTL | D23: YTL Corporation Berhad | E23: 2.2 | F23: 26783976 | G23: 1.62180296 | H23: 43438331.56 | I23: 1.34 | J23: 35890527.84 | K23: -7547803.72 | L23: -0.1737590614 | M23: 0.02777503229 | N23: 0.01209418281 | O23: 10910559.43 | P23: 0.00245486734 | Q23: UTILITIES | R23: 0.06165977154 | S23: 0.07462686567 | T23: 0.13 | U23: 10.30769231 | V23: 0.924137931 | X23: =IF(OR(B23=0,RIGHT(B23,2)="OR"),"",IFERROR(VLOOKUP(TEXT(B23,"0000"),Valuations!$E:$S,2,FALSE),"")) -> 0.13 | Y23: =IF(OR(B23=0,RIGHT(B23,2)="OR"),"",IFERROR(VLOOKUP(TEXT(B23,"0000"),Valuations!$E:$S,3,FALSE),"")) -> 1.45 | Z23: =IF(OR(B23=0,RIGHT(B23,2)="OR"),"",IFERROR(VLOOKUP(TEXT(B23,"0000"),Valuations!$E:$S,4,FALSE),"")) -> 0.1 | AA23: 0.003610754198 | AB23: 0.2862964867 | AC23: 0.02566796087 | AD23: 0.001681657624 | AE23: 0.002072763604
A24: 115 | B24: 5248 | C24: BAUTO | D24: Bermaz Auto Berhad | E24: 1.4 | F24: 14029600 | G24: 2.103822869 | H24: 29515793.32 | I24: 2.2 | J24: 30865120 | K24: 1349326.68 | L24: 0.04571541294 | M24: 0.02388595978 | N24: 0.0104007499 | O24: 1156546.088 | P24: 0.01213060175 | Q24: CONSUMER SERVICES | R24: 0.06654552628 | S24: 0.06363636364 | T24: 0.17 | U24: 12.94117647 | V24: 4.782608696 | X24: =IF(OR(B24=0,RIGHT(B24,2)="OR"),"",IFERROR(VLOOKUP(TEXT(B24,"0000"),Valuations!$E:$S,2,FALSE),"")) -> 0.17 | Y24: =IF(OR(B24=0,RIGHT(B24,2)="OR"),"",IFERROR(VLOOKUP(TEXT(B24,"0000"),Valuations!$E:$S,3,FALSE),"")) -> 0.46 | Z24: =IF(OR(B24=0,RIGHT(B24,2)="OR"),"",IFERROR(VLOOKUP(TEXT(B24,"0000"),Valuations!$E:$S,4,FALSE),"")) -> 0.14 | AA24: 0.004060613163 | AB24: 0.3091124207 | AC24: 0.114237199 | AD24: 0.00123320665 | AE24: 0.001520015623
A25: 109 | B25: 5210 | C25: ARMADA | D25: Bumi Armada Bhd | E25: 2.4 | F25: 33500000 | G25: 0.8155074648 | H25: 27319500.07 | I25: 0.79 | J25: 26465000 | K25: -854500.07 | L25: -0.03127802734 | M25: 0.02048078626 | N25: 0.008918022869 | O25: 5866269.344 | P25: 0.005710614027 | Q25: OIL & GAS | R25: 0.0245246069 | S25: 0.0253164557 | T25: 0.04 | U25: 19.75 | V25: 0.8404255319 | X25: =IF(OR(B25=0,RIGHT(B25,2)="OR"),"",IFERROR(VLOOKUP(TEXT(B25,"0000"),Valuations!$E:$S,2,FALSE),"")) -> 0.04 | Y25: =IF(OR(B25=0,RIGHT(B25,2)="OR"),"",IFERROR(VLOOKUP(TEXT(B25,"0000"),Valuations!$E:$S,3,FALSE),"")) -> 0.94 | Z25: =IF(OR(B25=0,RIGHT(B25,2)="OR"),"",IFERROR(VLOOKUP(TEXT(B25,"0000"),Valuations!$E:$S,4,FALSE),"")) -> 0.02 | AA25: 0.0008192314505 | AB25: 0.4044955287 | AC25: 0.01721257569 | AD25: 0.0004206659264 | AE25: 0.000518500918
A26: 128 | B26: 8206 | C26: ECOWLD | D26: Eco World Development Group Bhd | E26: 1.4 | F26: 16913900 | G26: 1.624568929 | H26: 27477796.41 | I26: 1.39 | J26: 23510321 | K26: -3967475.41 | L26: -0.1443884128 | M26: 0.01819421347 | N26: 0.007922372202 | O26: 2944368.381 | P26: 0.005744491793 | Q26: FINANCIALS | R26: 0 | S26: 0 | T26: 0.05 | U26: 27.8 | V26: 1.168067227 | X26: =IF(OR(B26=0,RIGHT(B26,2)="OR"),"",IFERROR(VLOOKUP(TEXT(B26,"0000"),Valuations!$E:$S,2,FALSE),"")) -> 0.05 | Y26: =IF(OR(B26=0,RIGHT(B26,2)="OR"),"",IFERROR(VLOOKUP(TEXT(B26,"0000"),Valuations!$E:$S,3,FALSE),"")) -> 1.19 | Z26: =IF(OR(B26=0,RIGHT(B26,2)="OR"),"",IFERROR(VLOOKUP(TEXT(B26,"0000"),Valuations!$E:$S,4,FALSE),"")) -> 0 | AA26: 0.0009097106733 | AB26: 0.5057991343 | AC26: 0.02125206447 | AD26: 0 | AE26: 0
A27: 121 | B27: 5398 | C27: GAMUDA | D27: Gamuda Berhad | E27: 1.8 | F27: 4590500 | G27: 5.108075266 | H27: 23448619.51 | I27: 4.96 | J27: 22768880 | K27: -679739.51 | L27: -0.02898846603 | M27: 0.01762042565 | N27: 0.007672525696 | O27: 2455550.726 | P27: 0.001869438066 | Q27: INDUSTRIALS | R27: 0.02349221453 | S27: 0.02419354839 | T27: 0.27 | U27: 18.37037037 | V27: 1.803636364 | X27: =IF(OR(B27=0,RIGHT(B27,2)="OR"),"",IFERROR(VLOOKUP(TEXT(B27,"0000"),Valuations!$E:$S,2,FALSE),"")) -> 0.27 | Y27: =IF(OR(B27=0,RIGHT(B27,2)="OR"),"",IFERROR(VLOOKUP(TEXT(B27,"0000"),Valuations!$E:$S,3,FALSE),"")) -> 2.75 | Z27: =IF(OR(B27=0,RIGHT(B27,2)="OR"),"",IFERROR(VLOOKUP(TEXT(B27,"0000"),Valuations!$E:$S,4,FALSE),"")) -> 0.12 | AA27: 0.004757514924 | AB27: 0.3236937452 | AC27: 0.03178084044 | AD27: 0.0003458627347 | AE27: 0.0004263006205
A28: 101 | B28: 5015 | C28: APM | D28: APM AUTOMOTIVE HOLDINGS BHD | E28: 0 | F28: 5895700 | G28: 4.856047479 | H28: 28629799.12 | I28: 3.72 | J28: 21932004 | K28: -6697795.12 | L28: -0.233944887 | M28: 0.0169727824 | N28: 0.007390520054 | O28: 201600 | P28: 0.02924454365 | Q28: CONSUMER SERVICES | R28: 0.03088931907 | S28: 0.04032258065 | T28: 0.3 | U28: 12.4 | V28: 0.6 | X28: =IF(OR(B28=0,RIGHT(B28,2)="OR"),"",IFERROR(VLOOKUP(TEXT(B28,"0000"),Valuations!$E:$S,2,FALSE),"")) -> 0.3 | Y28: =IF(OR(B28=0,RIGHT(B28,2)="OR"),"",IFERROR(VLOOKUP(TEXT(B28,"0000"),Valuations!$E:$S,3,FALSE),"")) -> 6.2 | Z28: =IF(OR(B28=0,RIGHT(B28,2)="OR"),"",IFERROR(VLOOKUP(TEXT(B28,"0000"),Valuations!$E:$S,4,FALSE),"")) -> 0.15 | AA28: 0.00509183472 | AB28: 0.2104625018 | AC28: 0.01018366944 | AD28: 0.0005552507692 | AE28: 0.0006843863871
A29: 88 | B29: 0821EA | C29: MYETFDJ | D29: MYETF DOW JONES ISLAMIC MARKET MALAYSIA | E29: 0 | F29: 15000000 | G29: 1.19 | H29: 17850000 | I29: 1.175 | J29: 17625000 | K29: -225000 | L29: -0.01260504202 | M29: 0.01363966967 | N29: 0.005939170718 | O29: 273100 | P29: 0.05492493592 | Q29: FINANCIALS | R29: 0 | S29: 0 | T29: 0 | X29: =IF(OR(B29=0,RIGHT(B29,2)="OR"),"",IFERROR(VLOOKUP(TEXT(B29,"0000"),Valuations!$E:$S,2,FALSE),"")) -> 0 | Y29: =IF(OR(B29=0,RIGHT(B29,2)="OR"),"",IFERROR(VLOOKUP(TEXT(B29,"0000"),Valuations!$E:$S,3,FALSE),"")) -> 0 | Z29: =IF(OR(B29=0,RIGHT(B29,2)="OR"),"",IFERROR(VLOOKUP(TEXT(B29,"0000"),Valuations!$E:$S,4,FALSE),"")) -> 0 | AA29: 0 | AD29: 0 | AE29: 0
A30: 108 | B30: 5202 | C30: MSM | D30: MSM Malaysia Holdings Bhd | E30: 0 | F30: 4265200 | G30: 5.366495435 | H30: 22889176.33 | I30: 4.1 | J30: 17487320 | K30: -5401856.33 | L30: -0.2360004682 | M30: 0.0135331216 | N30: 0.005892776107 | O30: 702980 | P30: 0.006067313437 | Q30: CONSUMER GOODS | R30: 0.03354144286 | S30: 0.04390243902 | T30: 0.3 | U30: 13.66666667 | V30: 1.353135314 | X30: =IF(OR(B30=0,RIGHT(B30,2)="OR"),"",IFERROR(VLOOKUP(TEXT(B30,"0000"),Valuations!$E:$S,2,FALSE),"")) -> 0.3 | Y30: =IF(OR(B30=0,RIGHT(B30,2)="OR"),"",IFERROR(VLOOKUP(TEXT(B30,"0000"),Valuations!$E:$S,3,FALSE),"")) -> 3.03 | Z30: =IF(OR(B30=0,RIGHT(B30,2)="OR"),"",IFERROR(VLOOKUP(TEXT(B30,"0000"),Valuations!$E:$S,4,FALSE),"")) -> 0.18 | AA30: 0.004059936481 | AB30: 0.1849526619 | AC30: 0.01831214474 | AD30: 0.0004820304115 | AE30: 0.000594137046
A31: 99 | B31: 3816 | C31: MISC | D31: MISC Bhd | E31: 3.3 | F31: 2281900 | G31: 8.025765691 | H31: 18313994.73 | I31: 7.4 | J31: 16886060 | K31: -1427934.73 | L31: -0.0779695938 | M31: 0.01306781733 | N31: 0.005690166984 | O31: 4463793.103 | P31: 0.0005112020085 | Q31: INDUSTRIALS | R31: 0.01619783146 | S31: 0.01756756757 | T31: 0.53 | U31: 13.96226415 | V31: 0.8883553421 | X31: =IF(OR(B31=0,RIGHT(B31,2)="OR"),"",IFERROR(VLOOKUP(TEXT(B31,"0000"),Valuations!$E:$S,2,FALSE),"")) -> 0.53 | Y31: =IF(OR(B31=0,RIGHT(B31,2)="OR"),"",IFERROR(VLOOKUP(TEXT(B31,"0000"),Valuations!$E:$S,3,FALSE),"")) -> 8.33 | Z31: =IF(OR(B31=0,RIGHT(B31,2)="OR"),"",IFERROR(VLOOKUP(TEXT(B31,"0000"),Valuations!$E:$S,4,FALSE),"")) -> 0.13 | AA31: 0.006925943186 | AB31: 0.1824563175 | AC31: 0.01160886534 | AD31: 0.0001862526643 | AE31: 0.0002295697639
A32: 118 | B32: 5264 | C32: MALAKOF | D32: MALAKOFF CORPORATION BERHAD | F32: 17433100 | G32: 1.795258496 | H32: 31296920.89 | I32: 0.94 | J32: 16387114 | K32: -14909806.89 | L32: -0.4763985231 | M32: 0.01268169202 | N32: 0.005522035043 | O32: 5000000 | P32: 0.00348662 | Q32: UTILITIES | R32: 0.04456182782 | S32: 0.08510638298 | T32: 0.09 | U32: 10.44444444 | V32: 0.7768595041 | X32: =IF(OR(B32=0,RIGHT(B32,2)="OR"),"",IFERROR(VLOOKUP(TEXT(B32,"0000"),Valuations!$E:$S,2,FALSE),"")) -> 0.09 | Y32: =IF(OR(B32=0,RIGHT(B32,2)="OR"),"",IFERROR(VLOOKUP(TEXT(B32,"0000"),Valuations!$E:$S,3,FALSE),"")) -> 1.21 | Z32: =IF(OR(B32=0,RIGHT(B32,2)="OR"),"",IFERROR(VLOOKUP(TEXT(B32,"0000"),Valuations!$E:$S,4,FALSE),"")) -> 0.08 | AA32: 0.001141352282 | AB32: 0.1324532278 | AC32: 0.009851892974 | AD32: 0.0008756431239 | AE32: 0.001079292938
A33: 126 | B33: 7229 | C33: FAVCO | D33: Favelle Favco Berhad | E33: 1 | F33: 5224600 | G33: 2.86726393 | H33: 14980307.13 | I33: 2.63 | J33: 13740698 | K33: -1239609.13 | L33: -0.08274924668 | M33: 0.0106336784 | N33: 0.004630261062 | O33: 221402.763 | P33: 0.02359771815 | Q33: INDUSTRIALS | R33: 0.05231468175 | S33: 0.05703422053 | T33: 0.36 | U33: 7.305555556 | V33: 1.148471616 | X33: =IF(OR(B33=0,RIGHT(B33,2)="OR"),"",IFERROR(VLOOKUP(TEXT(B33,"0000"),Valuations!$E:$S,2,FALSE),"")) -> 0.36 | Y33: =IF(OR(B33=0,RIGHT(B33,2)="OR"),"",IFERROR(VLOOKUP(TEXT(B33,"0000"),Valuations!$E:$S,3,FALSE),"")) -> 2.29 | Z33: =IF(OR(B33=0,RIGHT(B33,2)="OR"),"",IFERROR(VLOOKUP(TEXT(B33,"0000"),Valuations!$E:$S,4,FALSE),"")) -> 0.15 | AA33: 0.003828124224 | AB33: 0.0776849283 | AC33: 0.01221247781 | AD33: 0.0004920472834 | AE33: 0.0006064835589
A34: 106 | B34: 5120 | C34: AMFIRST | D34: AMFIRST Reits | E34: 0 | F34: 20252700 | G34: 0.9203291462 | H34: 18639150.1 | I34: 0.675 | J34: 13670572.5 | K34: -4968577.6 | L34: -0.2665667465 | M34: 0.01057940954 | N34: 0.004606630576 | O34: 686401.6 | P34: 0.02950561304 | Q34: FINANCIALS | R34: 0.07605974481 | S34: 0.1037037037 | T34: 0.08 | U34: 8.4375 | V34: 0.5443548387 | X34: =IF(OR(B34=0,RIGHT(B34,2)="OR"),"",IFERROR(VLOOKUP(TEXT(B34,"0000"),Valuations!$E:$S,2,FALSE),"")) -> 0.08 | Y34: =IF(OR(B34=0,RIGHT(B34,2)="OR"),"",IFERROR(VLOOKUP(TEXT(B34,"0000"),Valuations!$E:$S,3,FALSE),"")) -> 1.24 | Z34: =IF(OR(B34=0,RIGHT(B34,2)="OR"),"",IFERROR(VLOOKUP(TEXT(B34,"0000"),Valuations!$E:$S,4,FALSE),"")) -> 0.07 | AA34: 0.0008463527631 | AB34: 0.08926376799 | AC34: 0.005758952773 | AD34: 0.0008901096367 | AE34: 0.001097123952
A35: 123 | B35: 6084 | C35: STAR | D35: STAR Media Group Berhad | E35: 0 | F35: 8925300 | G35: 2.429905264 | H35: 21687633.45 | I35: 1.47 | J35: 13120191 | K35: -8567442.45 | L35: -0.3950381433 | M35: 0.01015347922 | N35: 0.004421166196 | O35: 738563.602 | P35: 0.01208467351 | Q35: CONSUMER SERVICES | R35: 0.07407696205 | S35: 0.1224489796 | T35: 0.17 | U35: 8.647058824 | V35: 0.9363057325 | X35: =IF(OR(B35=0,RIGHT(B35,2)="OR"),"",IFERROR(VLOOKUP(TEXT(B35,"0000"),Valuations!$E:$S,2,FALSE),"")) -> 0.17 | Y35: =IF(OR(B35=0,RIGHT(B35,2)="OR"),"",IFERROR(VLOOKUP(TEXT(B35,"0000"),Valuations!$E:$S,3,FALSE),"")) -> 1.57 | Z35: =IF(OR(B35=0,RIGHT(B35,2)="OR"),"",IFERROR(VLOOKUP(TEXT(B35,"0000"),Valuations!$E:$S,4,FALSE),"")) -> 0.18 | AA35: 0.001726091468 | AB35: 0.08779773209 | AC35: 0.009506760799 | AD35: 0.001008690338 | AE35: 0.00124328317
A36: 117 | B36: 5255 | C36: ICON | D36: ICON OFFSHORE BHD | E36: 1.5 | F36: 47148200 | G36: 0.4640816856 | H36: 21880616.13 | I36: 0.275 | J36: 12965755 | K36: -8914861.13 | L36: -0.4074319058 | M36: 0.01003396399 | N36: 0.004369125245 | O36: 1177185.1 | P36: 0.04005164523 | Q36: OIL & GAS | R36: 0.0215479307 | S36: 0.03636363636 | T36: 0.01 | U36: 27.5 | V36: 0.5288461538 | X36: =IF(OR(B36=0,RIGHT(B36,2)="OR"),"",IFERROR(VLOOKUP(TEXT(B36,"0000"),Valuations!$E:$S,2,FALSE),"")) -> 0.01 | Y36: =IF(OR(B36=0,RIGHT(B36,2)="OR"),"",IFERROR(VLOOKUP(TEXT(B36,"0000"),Valuations!$E:$S,3,FALSE),"")) -> 0.52 | Z36: =IF(OR(B36=0,RIGHT(B36,2)="OR"),"",IFERROR(VLOOKUP(TEXT(B36,"0000"),Valuations!$E:$S,4,FALSE),"")) -> 0.01 | AA36: 0.0001003396399 | AB36: 0.2759340096 | AC36: 0.005306423262 | AD36: 0.000296024496 | AE36: 0.0003648714177
A37: 125 | B37: 7081 | C37: PHARMA | D37: Pharmaniaga Berhad | E37: 0 | F37: 3010200 | G37: 6.543963384 | H37: 19698638.58 | I37: 4.22 | J37: 12703044 | K37: -6995594.58 | L37: -0.3551308661 | M37: 0.00983065668 | N37: 0.004280598409 | O37: 259821.032 | P37: 0.01158566717 | Q37: HEALTHCARE | R37: 0.03056251819 | S37: 0.04739336493 | T37: 0.36 | U37: 11.72222222 | V37: 1.990566038 | X37: =IF(OR(B37=0,RIGHT(B37,2)="OR"),"",IFERROR(VLOOKUP(TEXT(B37,"0000"),Valuations!$E:$S,2,FALSE),"")) -> 0.36 | Y37: =IF(OR(B37=0,RIGHT(B37,2)="OR"),"",IFERROR(VLOOKUP(TEXT(B37,"0000"),Valuations!$E:$S,3,FALSE),"")) -> 2.12 | Z37: =IF(OR(B37=0,RIGHT(B37,2)="OR"),"",IFERROR(VLOOKUP(TEXT(B37,"0000"),Valuations!$E:$S,4,FALSE),"")) -> 0.2 | AA37: 0.003539036405 | AB37: 0.1152371422 | AC37: 0.01956857132 | AD37: 0.0003779965886 | AE37: 0.0004659078995
A38: 116 | B38: 5249 | C38: IOIPG | D38: IOI Properties Group Bhd | E38: 1.9 | F38: 4896400 | G38: 1.994841624 | H38: 9767542.53 | I38: 1.89 | J38: 9254196 | K38: -513346.53 | L38: -0.05255636496 | M38: 0.007161655405 | N38: 0.003118425527 | O38: 5506145.375 | P38: 0.0008892609378 | Q38: FINANCIALS | R38: 0.035090505 | S38: 0.03703703704 | T38: 0.21 | U38: 9 | V38: 0.7078651685 | X38: =IF(OR(B38=0,RIGHT(B38,2)="OR"),"",IFERROR(VLOOKUP(TEXT(B38,"0000"),Valuations!$E:$S,2,FALSE),"")) -> 0.21 | Y38: =IF(OR(B38=0,RIGHT(B38,2)="OR"),"",IFERROR(VLOOKUP(TEXT(B38,"0000"),Valuations!$E:$S,3,FALSE),"")) -> 2.67 | Z38: =IF(OR(B38=0,RIGHT(B38,2)="OR"),"",IFERROR(VLOOKUP(TEXT(B38,"0000"),Valuations!$E:$S,4,FALSE),"")) -> 0.07 | AA38: 0.001503947635 | AB38: 0.06445489865 | AC38: 0.005069486411 | AD38: 0.0002151976193 | AE38: 0.0002652464965
A39: 110 | B39: 5211 | C39: SUNWAY | D39: Sunway Bhd | E39: 2.6 | F39: 4666666 | G39: 1.567754941 | H39: 7316188.68 | I39: 1.8 | J39: 8399998.8 | K39: 1083810.12 | L39: 0.1481386235 | M39: 0.006500607596 | N39: 0.002830583087 | O39: 4918545.398 | P39: 0.0009487898601 | Q39: FINANCIALS | R39: 0.05102838326 | S39: 0.04444444444 | T39: 0.27 | U39: 6.666666667 | V39: 0.5660377358 | X39: =IF(OR(B39=0,RIGHT(B39,2)="OR"),"",IFERROR(VLOOKUP(TEXT(B39,"0000"),Valuations!$E:$S,2,FALSE),"")) -> 0.27 | Y39: =IF(OR(B39=0,RIGHT(B39,2)="OR"),"",IFERROR(VLOOKUP(TEXT(B39,"0000"),Valuations!$E:$S,3,FALSE),"")) -> 3.18 | Z39: =IF(OR(B39=0,RIGHT(B39,2)="OR"),"",IFERROR(VLOOKUP(TEXT(B39,"0000"),Valuations!$E:$S,4,FALSE),"")) -> 0.08 | AA39: 0.001755164051 | AB39: 0.04333738397 | AC39: 0.003679589205 | AD39: 0.0002344008808 | AE39: 0.0002889158932
A40: 107 | B40: 5127 | C40: ARREIT | D40: AMANAH RAYA REITS | E40: 0 | F40: 8730700 | G40: 0.9052122659 | H40: 7903136.73 | I40: 0.905 | J40: 7901283.5 | K40: -1853.23 | L40: -0.0002344929695 | M40: 0.006114660818 | N40: 0.002662528885 | O40: 573219.858 | P40: 0.01523097966 | Q40: FINANCIALS | R40: 0.08837706139 | S40: 0.08839779006 | T40: 0.08 | U40: 11.3125 | V40: 0.7869565217 | X40: =IF(OR(B40=0,RIGHT(B40,2)="OR"),"",IFERROR(VLOOKUP(TEXT(B40,"0000"),Valuations!$E:$S,2,FALSE),"")) -> 0.08 | Y40: =IF(OR(B40=0,RIGHT(B40,2)="OR"),"",IFERROR(VLOOKUP(TEXT(B40,"0000"),Valuations!$E:$S,3,FALSE),"")) -> 1.15 | Z40: =IF(OR(B40=0,RIGHT(B40,2)="OR"),"",IFERROR(VLOOKUP(TEXT(B40,"0000"),Valuations!$E:$S,4,FALSE),"")) -> 0.08 | AA40: 0.0004891728655 | AB40: 0.06917210051 | AC40: 0.004811972209 | AD40: 0.000438532299 | AE40: 0.0005405225033
A41: 127 | B41: 7250 | C41: UZMA | D41: Uzma Berhad | E41: 1.3 | F41: 5314400 | G41: 1.879306266 | H41: 9987385.22 | I41: 1.35 | J41: 7174440 | K41: -2812945.22 | L41: -0.281649817 | M41: 0.005552169741 | N41: 0.00241760136 | O41: 320028.5 | P41: 0.01660602103 | Q41: OIL & GAS | R41: 0.005321112466 | S41: 0.007407407407 | T41: 0.17 | U41: 7.941176471 | V41: 1.391752577 | X41: =IF(OR(B41=0,RIGHT(B41,2)="OR"),"",IFERROR(VLOOKUP(TEXT(B41,"0000"),Valuations!$E:$S,2,FALSE),"")) -> 0.17 | Y41: =IF(OR(B41=0,RIGHT(B41,2)="OR"),"",IFERROR(VLOOKUP(TEXT(B41,"0000"),Valuations!$E:$S,3,FALSE),"")) -> 0.97 | Z41: =IF(OR(B41=0,RIGHT(B41,2)="OR"),"",IFERROR(VLOOKUP(TEXT(B41,"0000"),Valuations!$E:$S,4,FALSE),"")) -> 0.01 | AA41: 0.0009438688559 | AB41: 0.04409075971 | AC41: 0.007727246547 | AD41: 3.336697014e-05 | AE41: 4.112718327e-05
A42: 105 | B42: 5110 | C42: UOAREIT | D42: UOA Reits | E42: 0 | F42: 4080500 | G42: 1.653208886 | H42: 6745918.86 | I42: 1.6 | J42: 6528800 | K42: -217118.86 | L42: -0.03218521665 | M42: 0.005052520588 | N42: 0.002200037321 | O42: 422871.776 | P42: 0.009649497156 | Q42: FINANCIALS | R42: 0.07258610875 | S42: 0.075 | T42: 0.12 | U42: 13.33333333 | V42: 1.059602649 | X42: =IF(OR(B42=0,RIGHT(B42,2)="OR"),"",IFERROR(VLOOKUP(TEXT(B42,"0000"),Valuations!$E:$S,2,FALSE),"")) -> 0.12 | Y42: =IF(OR(B42=0,RIGHT(B42,2)="OR"),"",IFERROR(VLOOKUP(TEXT(B42,"0000"),Valuations!$E:$S,3,FALSE),"")) -> 1.51 | Z42: =IF(OR(B42=0,RIGHT(B42,2)="OR"),"",IFERROR(VLOOKUP(TEXT(B42,"0000"),Valuations!$E:$S,4,FALSE),"")) -> 0.12 | AA42: 0.0006063024705 | AB42: 0.06736694117 | AC42: 0.005353664199 | AD42: 0.0003074377277 | AE42: 0.0003789390441
A43: 113 | B43: 5230 | C43: TUNEPRO | D43: Tune Protect Group Berhad | E43: 2 | F43: 5684300 | G43: 1.272958079 | H43: 7235875.61 | I43: 1.12 | J43: 6366416 | K43: -869459.61 | L43: -0.1201595573 | M43: 0.004926854538 | N43: 0.002145318099 | O43: 751759.98 | P43: 0.007561322964 | Q43: FINANCIALS | R43: 0.2121043924 | S43: 0.2410714286 | T43: 0.14 | U43: 8 | V43: 1.964912281 | X43: =IF(OR(B43=0,RIGHT(B43,2)="OR"),"",IFERROR(VLOOKUP(TEXT(B43,"0000"),Valuations!$E:$S,2,FALSE),"")) -> 0.14 | Y43: =IF(OR(B43=0,RIGHT(B43,2)="OR"),"",IFERROR(VLOOKUP(TEXT(B43,"0000"),Valuations!$E:$S,3,FALSE),"")) -> 0.57 | Z43: =IF(OR(B43=0,RIGHT(B43,2)="OR"),"",IFERROR(VLOOKUP(TEXT(B43,"0000"),Valuations!$E:$S,4,FALSE),"")) -> 0.27 | AA43: 0.0006897596353 | AB43: 0.03941483631 | AC43: 0.009680836987 | AD43: 0.0009636144148 | AE43: 0.001187723862
A44: 103 | B44: 5070 | C44: PRTASCO | D44: Protasco Berhad | E44: 1.2 | F44: 5252625 | G44: 1.430039013 | H44: 7511458.67 | I44: 1.18 | J44: 6198097.5 | K44: -1313361.17 | L44: -0.1748476864 | M44: 0.004796595886 | N44: 0.002088599103 | O44: 424692.914 | P44: 0.01236805425 | Q44: INDUSTRIALS | R44: 0.06992816217 | S44: 0.08474576271 | T44: 0.24 | U44: 4.916666667 | V44: 0.8309859155 | X44: =IF(OR(B44=0,RIGHT(B44,2)="OR"),"",IFERROR(VLOOKUP(TEXT(B44,"0000"),Valuations!$E:$S,2,FALSE),"")) -> 0.24 | Y44: =IF(OR(B44=0,RIGHT(B44,2)="OR"),"",IFERROR(VLOOKUP(TEXT(B44,"0000"),Valuations!$E:$S,3,FALSE),"")) -> 1.42 | Z44: =IF(OR(B44=0,RIGHT(B44,2)="OR"),"",IFERROR(VLOOKUP(TEXT(B44,"0000"),Valuations!$E:$S,4,FALSE),"")) -> 0.1 | AA44: 0.001151183013 | AB44: 0.02358326311 | AC44: 0.003985903624 | AD44: =IF(OR($H$202=0,$H$202="",H44="",R44=""),"",R44*H44/$H$202) -> 0.0003297910988 | AE44: 0.0004064911768
A45: 89 | B45: 0824EA | C45: MYETFID | D45: MyETF MSCI Malaysia Islamic Dividend | E45: 0 | F45: 5100000 | G45: 1.06 | H45: 5406000 | I45: 1.175 | J45: 5992500 | K45: 586500 | L45: 0.108490566 | M45: 0.004637487688 | N45: 0.002019318044 | O45: 45200 | P45: 0.1128318584 | Q45: FINANCIALS | R45: 0 | S45: 0 | T45: 0 | X45: =IF(OR(B45=0,RIGHT(B45,2)="OR"),"",IFERROR(VLOOKUP(TEXT(B45,"0000"),Valuations!$E:$S,2,FALSE),"")) -> 0 | Y45: =IF(OR(B45=0,RIGHT(B45,2)="OR"),"",IFERROR(VLOOKUP(TEXT(B45,"0000"),Valuations!$E:$S,3,FALSE),"")) -> 0 | Z45: =IF(OR(B45=0,RIGHT(B45,2)="OR"),"",IFERROR(VLOOKUP(TEXT(B45,"0000"),Valuations!$E:$S,4,FALSE),"")) -> 0 | AA45: 0 | AD45: 0 | AE45: 0
A46: 114 | B46: 5247 | C46: KAREX | D46: KAREX BERHAD | F46: 3654400 | G46: 1.740869653 | H46: 6361834.06 | I46: 1.29 | J46: 4714176 | K46: -1647658.06 | L46: -0.2589910464 | M46: 0.003648215797 | N46: 0.001588555805 | O46: 1002375 | P46: 0.003645741364 | Q46: BASIC MATERIALS | X46: =IF(OR(B46=0,RIGHT(B46,2)="OR"),"",IFERROR(VLOOKUP(TEXT(B46,"0000"),Valuations!$E:$S,2,FALSE),"")) ->  | Y46: =IF(OR(B46=0,RIGHT(B46,2)="OR"),"",IFERROR(VLOOKUP(TEXT(B46,"0000"),Valuations!$E:$S,3,FALSE),"")) ->  | Z46: =IF(OR(B46=0,RIGHT(B46,2)="OR"),"",IFERROR(VLOOKUP(TEXT(B46,"0000"),Valuations!$E:$S,4,FALSE),"")) -> 
A47: 129 | B47: 8583 | C47: MAHSING | D47: Mah Sing Group Berhad | E47: 0 | F47: 2964000 | G47: 1.5236475 | H47: 4516091.19 | I47: 1.49 | J47: 4416360 | K47: -99731.19 | L47: -0.02208351997 | M47: 0.003417741365 | N47: 0.001488199489 | O47: 2426033.253 | P47: 0.001221747475 | Q47: FINANCIALS | R47: 0.04594238497 | S47: 0.04697986577 | T47: 0.16 | U47: 9.3125 | V47: 0.9254658385 | X47: =IF(OR(B47=0,RIGHT(B47,2)="OR"),"",IFERROR(VLOOKUP(TEXT(B47,"0000"),Valuations!$E:$S,2,FALSE),"")) -> 0.16 | Y47: =IF(OR(B47=0,RIGHT(B47,2)="OR"),"",IFERROR(VLOOKUP(TEXT(B47,"0000"),Valuations!$E:$S,3,FALSE),"")) -> 1.61 | Z47: =IF(OR(B47=0,RIGHT(B47,2)="OR"),"",IFERROR(VLOOKUP(TEXT(B47,"0000"),Valuations!$E:$S,4,FALSE),"")) -> 0.07 | AA47: 0.0005468386184 | AB47: 0.03182771646 | AC47: 0.003163002878 | AD47: 0.0001302683081 | AE47: 0.0001605650306
A48: 130 | B48: 8664 | C48: SPSETIA | D48: S P Setia Berhad | E48: 1.8 | F48: 1221960 | G48: 3.201015901 | H48: 3911513.39 | I48: 3.36 | J48: 4105785.6 | K48: 194272.21 | L48: 0.04966676338 | M48: 0.003177393437 | N48: 0.001383543921 | O48: 3427783.043 | P48: 0.0003564869727 | Q48: FINANCIALS | R48: 0.04373611514 | S48: 0.04166666667 | T48: 0.23 | U48: 14.60869565 | V48: 1.098039216 | X48: =IF(OR(B48=0,RIGHT(B48,2)="OR"),"",IFERROR(VLOOKUP(TEXT(B48,"0000"),Valuations!$E:$S,2,FALSE),"")) -> 0.23 | Y48: =IF(OR(B48=0,RIGHT(B48,2)="OR"),"",IFERROR(VLOOKUP(TEXT(B48,"0000"),Valuations!$E:$S,3,FALSE),"")) -> 3.06 | Z48: =IF(OR(B48=0,RIGHT(B48,2)="OR"),"",IFERROR(VLOOKUP(TEXT(B48,"0000"),Valuations!$E:$S,4,FALSE),"")) -> 0.14 | AA48: 0.0007308004905 | AB48: 0.04641757369 | AC48: 0.003488902598 | AD48: 0.0001074107029 | AE48: 0.0001323913932
A49: 102 | B49: 5062 | C49: HUAYANG | D49: Hua Yang Berhad | E49: 1.2 | F49: 3540933 | G49: 1.525443616 | H49: 5401493.64 | I49: 0.625 | J49: 2213083.13 | K49: -3188410.51 | L49: -0.5902831184 | M49: 0.001712665126 | N49: 0.0007457519729 | O49: 352000 | P49: 0.01005946875 | Q49: FINANCIALS | R49: 0.02622188036 | S49: 0.064 | T49: 0.28 | U49: 2.232142857 | V49: 0.4058441558 | X49: =IF(OR(B49=0,RIGHT(B49,2)="OR"),"",IFERROR(VLOOKUP(TEXT(B49,"0000"),Valuations!$E:$S,2,FALSE),"")) -> 0.28 | Y49: =IF(OR(B49=0,RIGHT(B49,2)="OR"),"",IFERROR(VLOOKUP(TEXT(B49,"0000"),Valuations!$E:$S,3,FALSE),"")) -> 1.54 | Z49: =IF(OR(B49=0,RIGHT(B49,2)="OR"),"",IFERROR(VLOOKUP(TEXT(B49,"0000"),Valuations!$E:$S,4,FALSE),"")) -> 0.04 | AA49: 0.0004795462353 | AB49: 0.003822913228 | AC49: 0.0006950751324 | AD49: 8.892834991e-05 | AE49: 0.0001096105681
A50: 104 | B50: 5073 | C50: NAIM | D50: Naim Holdings Bhd | E50: 1.4 | F50: 779100 | G50: 2.265176896 | H50: 1764799.32 | I50: 1.18 | J50: 919338 | K50: -845461.32 | L50: -0.4790693822 | M50: 0.0007114591 | N50: 0.0003097932102 | O50: 250000 | P50: 0.0031164 | Q50: INDUSTRIALS | R50: 0 | S50: 0 | T50: 0.46 | U50: 2.565217391 | V50: 0.297979798 | X50: =IF(OR(B50=0,RIGHT(B50,2)="OR"),"",IFERROR(VLOOKUP(TEXT(B50,"0000"),Valuations!$E:$S,2,FALSE),"")) -> 0.46 | Y50: =IF(OR(B50=0,RIGHT(B50,2)="OR"),"",IFERROR(VLOOKUP(TEXT(B50,"0000"),Valuations!$E:$S,3,FALSE),"")) -> 3.96 | Z50: =IF(OR(B50=0,RIGHT(B50,2)="OR"),"",IFERROR(VLOOKUP(TEXT(B50,"0000"),Valuations!$E:$S,4,FALSE),"")) -> 0 | AA50: 0.000327271186 | AB50: 0.001825047256 | AC50: 0.0002120004389 | AD50: 0 | AE50: 0
A51: 131 | B51: 8664PB | C51: SPSETIA-PB | D51: SPSETIA - Renounceable Rights Issue | F51: 431280 | G51: 0.88 | H51: 379526.4 | I51: 0.88 | J51: 379526.4 | K51: 0 | L51: 0 | M51: 0.000293708637 | N51: 0.0001278906146 | O51: 1209781.427 | P51: 0.0003564941488 | Q51: FINANCIALS | X51: =IF(OR(B51=0,RIGHT(B51,2)="OR"),"",IFERROR(VLOOKUP(TEXT(B51,"0000"),Valuations!$E:$S,2,FALSE),"")) ->  | Y51: =IF(OR(B51=0,RIGHT(B51,2)="OR"),"",IFERROR(VLOOKUP(TEXT(B51,"0000"),Valuations!$E:$S,3,FALSE),"")) ->  | Z51: =IF(OR(B51=0,RIGHT(B51,2)="OR"),"",IFERROR(VLOOKUP(TEXT(B51,"0000"),Valuations!$E:$S,4,FALSE),"")) -> 
A52: 111 | B52: 5211WB | C52: SUNWAY-WB | D52: Sunway Bhd - Warrants | F52: 600000 | H52: 0 | I52: 0.625 | J52: 375000 | K52: 375000 | L52: 0 | M52: 0.0002902057377 | N52: 0.0001263653344 | O52: 629969.36 | P52: 0.0009524272736 | Q52: FINANCIALS | X52: =IF(OR(B52=0,RIGHT(B52,2)="OR"),"",IFERROR(VLOOKUP(TEXT(B52,"0000"),Valuations!$E:$S,2,FALSE),"")) ->  | Y52: =IF(OR(B52=0,RIGHT(B52,2)="OR"),"",IFERROR(VLOOKUP(TEXT(B52,"0000"),Valuations!$E:$S,3,FALSE),"")) ->  | Z52: =IF(OR(B52=0,RIGHT(B52,2)="OR"),"",IFERROR(VLOOKUP(TEXT(B52,"0000"),Valuations!$E:$S,4,FALSE),"")) -> 
A53: 120 | B53: 5285 | C53: SIMEPLT | D53: SIME DARBY PLANTATION BERHAD | F53: 40000 | G53: 5.5935815 | H53: 223743.26 | I53: 5.55 | J53: 222000 | K53: -1743.26 | L53: -0.007791340843 | M53: 0.0001718017967 | N53: 7.480827799e-05 | O53: 6800839.377 | P53: 5.881626926e-06 | Q53: PLANTATION | X53: =IF(OR(B53=0,RIGHT(B53,2)="OR"),"",IFERROR(VLOOKUP(TEXT(B53,"0000"),Valuations!$E:$S,2,FALSE),"")) ->  | Y53: =IF(OR(B53=0,RIGHT(B53,2)="OR"),"",IFERROR(VLOOKUP(TEXT(B53,"0000"),Valuations!$E:$S,3,FALSE),"")) ->  | Z53: =IF(OR(B53=0,RIGHT(B53,2)="OR"),"",IFERROR(VLOOKUP(TEXT(B53,"0000"),Valuations!$E:$S,4,FALSE),"")) -> 
A54: 0 | B54: =OFFSET(Top,$A54,4) -> 0 | C54: =OFFSET(Top,$A54,2) -> 0 | D54: =OFFSET(Top,$A54,3) -> 0 | E54: =IF(ISNA(VLOOKUP(TEXT(B54,"0"),UniverseRange,2,0))=TRUE,"",VLOOKUP(TEXT(B54,"0"),UniverseRange,2,0)) ->  | F54: =OFFSET(Top,$A54,6) -> 0 | G54: =IF(OR(F54=0,H54=0,F54="",H54=""),"",H54/F54) ->  | H54: =OFFSET(Top,$A54,7) -> 0 | I54: =OFFSET(Top,$A54,10) -> 0 | J54: =OFFSET(Top,$A54,8) -> 0 | K54: =OFFSET(Top,$A54,11) -> 0 | L54: =IF(H54=0,0,K54/H54) -> 0 | M54: =IF(SumTotalMarketValue=0,0,J54/SumTotalMarketValue) -> 0 | N54: =IF(FundCode="KHAZANAH",J54/$J$320,IF(NAVValue=0,0,J54/NAVValue)) -> 0 | O54: =OFFSET(Top,$A54,12)/1000 -> 0 | P54: =IF(O54=0,0,F54/O54/1000) -> 0 | Q54: =OFFSET(Top,$A54,9) -> 0 | R54: =IF(OR(G54=0,G54="",Z54=""),"",Z54/G54) ->  | S54: =IF(OR(I54=0,I54="",Z54=""),"",Z54/I54) ->  | T54: =IF(X54="","",X54) ->  | U54: =IF(OR(I54=0,I54="",X54="",X54=0),"",I54/X54) ->  | V54: =IF(OR(I54=0,I54="",Y54="",Y54=0),"",I54/Y54) ->  | X54: =IF(OR(B54=0,RIGHT(B54,2)="OR"),"",IFERROR(VLOOKUP(TEXT(B54,"0000"),Valuations!$E:$S,2,FALSE),"")) ->  | Y54: =IF(OR(B54=0,RIGHT(B54,2)="OR"),"",IFERROR(VLOOKUP(TEXT(B54,"0000"),Valuations!$E:$S,3,FALSE),"")) ->  | Z54: =IF(OR(B54=0,RIGHT(B54,2)="OR"),"",IFERROR(VLOOKUP(TEXT(B54,"0000"),Valuations!$E:$S,4,FALSE),"")) -> 
A55: 0 | B55: 0 | C55: 0 | D55: 0 | F55: 0 | H55: 0 | I55: 0 | J55: 0 | K55: 0 | L55: 0 | M55: 0 | N55: 0 | O55: 0 | P55: 0 | Q55: 0 | X55: =IF(OR(B55=0,RIGHT(B55,2)="OR"),"",IFERROR(VLOOKUP(TEXT(B55,"0000"),Valuations!$E:$S,2,FALSE),"")) ->  | Y55: =IF(OR(B55=0,RIGHT(B55,2)="OR"),"",IFERROR(VLOOKUP(TEXT(B55,"0000"),Valuations!$E:$S,3,FALSE),"")) ->  | Z55: =IF(OR(B55=0,RIGHT(B55,2)="OR"),"",IFERROR(VLOOKUP(TEXT(B55,"0000"),Valuations!$E:$S,4,FALSE),"")) -> 
A56: 0 | B56: 0 | C56: 0 | D56: 0 | F56: 0 | H56: 0 | I56: 0 | J56: 0 | K56: 0 | L56: 0 | M56: 0 | N56: 0 | O56: 0 | P56: 0 | Q56: 0 | X56: =IF(OR(B56=0,RIGHT(B56,2)="OR"),"",IFERROR(VLOOKUP(TEXT(B56,"0000"),Valuations!$E:$S,2,FALSE),"")) ->  | Y56: =IF(OR(B56=0,RIGHT(B56,2)="OR"),"",IFERROR(VLOOKUP(TEXT(B56,"0000"),Valuations!$E:$S,3,FALSE),"")) ->  | Z56: =IF(OR(B56=0,RIGHT(B56,2)="OR"),"",IFERROR(VLOOKUP(TEXT(B56,"0000"),Valuations!$E:$S,4,FALSE),"")) -> 
A57: 0 | B57: =OFFSET(Top,$A57,4) -> 0 | C57: =OFFSET(Top,$A57,2) -> 0 | D57: =OFFSET(Top,$A57,3) -> 0 | E57: =IF(ISNA(VLOOKUP(TEXT(B57,"0"),UniverseRange,2,0))=TRUE,"",VLOOKUP(TEXT(B57,"0"),UniverseRange,2,0)) ->  | F57: =OFFSET(Top,$A57,6) -> 0 | G57: =IF(OR(F57=0,H57=0,F57="",H57=""),"",H57/F57) ->  | H57: =OFFSET(Top,$A57,7) -> 0 | I57: =OFFSET(Top,$A57,10) -> 0 | J57: =OFFSET(Top,$A57,8) -> 0 | K57: =OFFSET(Top,$A57,11) -> 0 | L57: =IF(H57=0,0,K57/H57) -> 0 | M57: =IF(SumTotalMarketValue=0,0,J57/SumTotalMarketValue) -> 0 | N57: =IF(FundCode="KHAZANAH",J57/$J$320,IF(NAVValue=0,0,J57/NAVValue)) -> 0 | O57: =OFFSET(Top,$A57,12)/1000 -> 0 | P57: =IF(O57=0,0,F57/O57/1000) -> 0 | Q57: =OFFSET(Top,$A57,9) -> 0 | R57: =IF(OR(G57=0,G57="",Z57=""),"",Z57/G57) ->  | S57: =IF(OR(I57=0,I57="",Z57=""),"",Z57/I57) ->  | T57: =IF(X57="","",X57) ->  | U57: =IF(OR(I57=0,I57="",X57="",X57=0),"",I57/X57) ->  | V57: =IF(OR(I57=0,I57="",Y57="",Y57=0),"",I57/Y57) ->  | X57: =IF(OR(B57=0,RIGHT(B57,2)="OR"),"",IFERROR(VLOOKUP(TEXT(B57,"0000"),Valuations!$E:$S,2,FALSE),"")) ->  | Y57: =IF(OR(B57=0,RIGHT(B57,2)="OR"),"",IFERROR(VLOOKUP(TEXT(B57,"0000"),Valuations!$E:$S,3,FALSE),"")) ->  | Z57: =IF(OR(B57=0,RIGHT(B57,2)="OR"),"",IFERROR(VLOOKUP(TEXT(B57,"0000"),Valuations!$E:$S,4,FALSE),"")) -> 
A58: 0 | B58: 0 | C58: 0 | D58: 0 | F58: 0 | H58: 0 | I58: 0 | J58: 0 | K58: 0 | L58: 0 | M58: 0 | N58: 0 | O58: 0 | P58: 0 | Q58: 0 | X58: =IF(OR(B58=0,RIGHT(B58,2)="OR"),"",IFERROR(VLOOKUP(TEXT(B58,"0000"),Valuations!$E:$S,2,FALSE),"")) ->  | Y58: =IF(OR(B58=0,RIGHT(B58,2)="OR"),"",IFERROR(VLOOKUP(TEXT(B58,"0000"),Valuations!$E:$S,3,FALSE),"")) ->  | Z58: =IF(OR(B58=0,RIGHT(B58,2)="OR"),"",IFERROR(VLOOKUP(TEXT(B58,"0000"),Valuations!$E:$S,4,FALSE),"")) -> 
A59: 0 | B59: 0 | C59: 0 | D59: 0 | F59: 0 | H59: 0 | I59: 0 | J59: 0 | K59: 0 | L59: 0 | M59: 0 | N59: 0 | O59: 0 | P59: 0 | Q59: 0 | X59: =IF(OR(B59=0,RIGHT(B59,2)="OR"),"",IFERROR(VLOOKUP(TEXT(B59,"0000"),Valuations!$E:$S,2,FALSE),"")) ->  | Y59: =IF(OR(B59=0,RIGHT(B59,2)="OR"),"",IFERROR(VLOOKUP(TEXT(B59,"0000"),Valuations!$E:$S,3,FALSE),"")) ->  | Z59: =IF(OR(B59=0,RIGHT(B59,2)="OR"),"",IFERROR(VLOOKUP(TEXT(B59,"0000"),Valuations!$E:$S,4,FALSE),"")) -> 
A60: 0 | B60: 0 | C60: 0 | D60: 0 | F60: 0 | H60: 0 | I60: 0 | J60: 0 | K60: 0 | L60: 0 | M60: 0 | N60: 0 | O60: 0 | P60: 0 | Q60: 0 | X60: =IF(OR(B60=0,RIGHT(B60,2)="OR"),"",IFERROR(VLOOKUP(TEXT(B60,"0000"),Valuations!$E:$S,2,FALSE),"")) ->  | Y60: =IF(OR(B60=0,RIGHT(B60,2)="OR"),"",IFERROR(VLOOKUP(TEXT(B60,"0000"),Valuations!$E:$S,3,FALSE),"")) ->  | Z60: =IF(OR(B60=0,RIGHT(B60,2)="OR"),"",IFERROR(VLOOKUP(TEXT(B60,"0000"),Valuations!$E:$S,4,FALSE),"")) ->  | AD60: =IF(OR($H$202=0,$H$202="",H60="",R60=""),"",R60*H60/$H$202) -> 
A61: 0 | B61: 0 | C61: 0 | D61: 0 | F61: 0 | H61: 0 | I61: 0 | J61: 0 | K61: 0 | L61: 0 | M61: =IF(SumTotalMarketValue=0,0,J61/SumTotalMarketValue) -> 0 | N61: =IF(FundCode="KHAZANAH",J61/$J$320,IF(NAVValue=0,0,J61/NAVValue)) -> 0 | O61: 0 | P61: 0 | Q61: 0 | X61: =IF(OR(B61=0,RIGHT(B61,2)="OR"),"",IFERROR(VLOOKUP(TEXT(B61,"0000"),Valuations!$E:$S,2,FALSE),"")) ->  | Y61: =IF(OR(B61=0,RIGHT(B61,2)="OR"),"",IFERROR(VLOOKUP(TEXT(B61,"0000"),Valuations!$E:$S,3,FALSE),"")) ->  | Z61: =IF(OR(B61=0,RIGHT(B61,2)="OR"),"",IFERROR(VLOOKUP(TEXT(B61,"0000"),Valuations!$E:$S,4,FALSE),"")) -> 
A62: 0 | B62: 0 | C62: 0 | D62: 0 | F62: 0 | H62: 0 | I62: 0 | J62: 0 | K62: 0 | L62: 0 | M62: 0 | N62: 0 | O62: 0 | P62: 0 | Q62: 0 | X62: =IF(OR(B62=0,RIGHT(B62,2)="OR"),"",IFERROR(VLOOKUP(TEXT(B62,"0000"),Valuations!$E:$S,2,FALSE),"")) ->  | Y62: =IF(OR(B62=0,RIGHT(B62,2)="OR"),"",IFERROR(VLOOKUP(TEXT(B62,"0000"),Valuations!$E:$S,3,FALSE),"")) ->  | Z62: =IF(OR(B62=0,RIGHT(B62,2)="OR"),"",IFERROR(VLOOKUP(TEXT(B62,"0000"),Valuations!$E:$S,4,FALSE),"")) -> 
A63: 0 | B63: 0 | C63: 0 | D63: 0 | F63: 0 | H63: 0 | I63: 0 | J63: 0 | K63: 0 | L63: 0 | M63: 0 | N63: 0 | O63: 0 | P63: 0 | Q63: 0 | X63: =IF(OR(B63=0,RIGHT(B63,2)="OR"),"",IFERROR(VLOOKUP(TEXT(B63,"0000"),Valuations!$E:$S,2,FALSE),"")) ->  | Y63: =IF(OR(B63=0,RIGHT(B63,2)="OR"),"",IFERROR(VLOOKUP(TEXT(B63,"0000"),Valuations!$E:$S,3,FALSE),"")) ->  | Z63: =IF(OR(B63=0,RIGHT(B63,2)="OR"),"",IFERROR(VLOOKUP(TEXT(B63,"0000"),Valuations!$E:$S,4,FALSE),"")) -> 
A64: 0 | B64: 0 | C64: 0 | D64: 0 | F64: 0 | H64: 0 | I64: 0 | J64: 0 | K64: 0 | L64: 0 | M64: 0 | N64: 0 | O64: 0 | P64: 0 | Q64: 0 | X64: =IF(OR(B64=0,RIGHT(B64,2)="OR"),"",IFERROR(VLOOKUP(TEXT(B64,"0000"),Valuations!$E:$S,2,FALSE),"")) ->  | Y64: =IF(OR(B64=0,RIGHT(B64,2)="OR"),"",IFERROR(VLOOKUP(TEXT(B64,"0000"),Valuations!$E:$S,3,FALSE),"")) ->  | Z64: =IF(OR(B64=0,RIGHT(B64,2)="OR"),"",IFERROR(VLOOKUP(TEXT(B64,"0000"),Valuations!$E:$S,4,FALSE),"")) -> 
A65: 0 | B65: 0 | C65: 0 | D65: 0 | F65: 0 | H65: 0 | I65: 0 | J65: 0 | K65: 0 | L65: 0 | M65: 0 | N65: 0 | O65: 0 | P65: 0 | Q65: 0 | X65: =IF(OR(B65=0,RIGHT(B65,2)="OR"),"",IFERROR(VLOOKUP(TEXT(B65,"0000"),Valuations!$E:$S,2,FALSE),"")) ->  | Y65: =IF(OR(B65=0,RIGHT(B65,2)="OR"),"",IFERROR(VLOOKUP(TEXT(B65,"0000"),Valuations!$E:$S,3,FALSE),"")) ->  | Z65: =IF(OR(B65=0,RIGHT(B65,2)="OR"),"",IFERROR(VLOOKUP(TEXT(B65,"0000"),Valuations!$E:$S,4,FALSE),"")) -> 
A66: 0 | B66: 0 | C66: 0 | D66: 0 | F66: 0 | H66: 0 | I66: 0 | J66: 0 | K66: 0 | L66: 0 | M66: 0 | N66: 0 | O66: 0 | P66: 0 | Q66: 0 | X66: =IF(OR(B66=0,RIGHT(B66,2)="OR"),"",IFERROR(VLOOKUP(TEXT(B66,"0000"),Valuations!$E:$S,2,FALSE),"")) ->  | Y66: =IF(OR(B66=0,RIGHT(B66,2)="OR"),"",IFERROR(VLOOKUP(TEXT(B66,"0000"),Valuations!$E:$S,3,FALSE),"")) ->  | Z66: =IF(OR(B66=0,RIGHT(B66,2)="OR"),"",IFERROR(VLOOKUP(TEXT(B66,"0000"),Valuations!$E:$S,4,FALSE),"")) -> 
A67: 0 | B67: 0 | C67: 0 | D67: 0 | F67: 0 | H67: 0 | I67: 0 | J67: 0 | K67: 0 | L67: 0 | M67: 0 | N67: 0 | O67: 0 | P67: 0 | Q67: 0 | X67: =IF(OR(B67=0,RIGHT(B67,2)="OR"),"",IFERROR(VLOOKUP(TEXT(B67,"0000"),Valuations!$E:$S,2,FALSE),"")) ->  | Y67: =IF(OR(B67=0,RIGHT(B67,2)="OR"),"",IFERROR(VLOOKUP(TEXT(B67,"0000"),Valuations!$E:$S,3,FALSE),"")) ->  | Z67: =IF(OR(B67=0,RIGHT(B67,2)="OR"),"",IFERROR(VLOOKUP(TEXT(B67,"0000"),Valuations!$E:$S,4,FALSE),"")) -> 
A68: 0 | B68: 0 | C68: 0 | D68: 0 | F68: 0 | H68: 0 | I68: 0 | J68: 0 | K68: 0 | L68: 0 | M68: 0 | N68: 0 | O68: 0 | P68: 0 | Q68: 0 | X68: =IF(OR(B68=0,RIGHT(B68,2)="OR"),"",IFERROR(VLOOKUP(TEXT(B68,"0000"),Valuations!$E:$S,2,FALSE),"")) ->  | Y68: =IF(OR(B68=0,RIGHT(B68,2)="OR"),"",IFERROR(VLOOKUP(TEXT(B68,"0000"),Valuations!$E:$S,3,FALSE),"")) ->  | Z68: =IF(OR(B68=0,RIGHT(B68,2)="OR"),"",IFERROR(VLOOKUP(TEXT(B68,"0000"),Valuations!$E:$S,4,FALSE),"")) -> 
A69: 0 | B69: 0 | C69: 0 | D69: 0 | F69: 0 | H69: 0 | I69: 0 | J69: 0 | K69: 0 | L69: 0 | M69: 0 | N69: 0 | O69: 0 | P69: 0 | Q69: 0 | X69: =IF(OR(B69=0,RIGHT(B69,2)="OR"),"",IFERROR(VLOOKUP(TEXT(B69,"0000"),Valuations!$E:$S,2,FALSE),"")) ->  | Y69: =IF(OR(B69=0,RIGHT(B69,2)="OR"),"",IFERROR(VLOOKUP(TEXT(B69,"0000"),Valuations!$E:$S,3,FALSE),"")) ->  | Z69: =IF(OR(B69=0,RIGHT(B69,2)="OR"),"",IFERROR(VLOOKUP(TEXT(B69,"0000"),Valuations!$E:$S,4,FALSE),"")) -> 
A70: 0 | B70: 0 | C70: 0 | D70: 0 | F70: 0 | H70: 0 | I70: 0 | J70: 0 | K70: 0 | L70: 0 | M70: 0 | N70: 0 | O70: 0 | P70: 0 | Q70: 0 | X70: =IF(OR(B70=0,RIGHT(B70,2)="OR"),"",IFERROR(VLOOKUP(TEXT(B70,"0000"),Valuations!$E:$S,2,FALSE),"")) ->  | Y70: =IF(OR(B70=0,RIGHT(B70,2)="OR"),"",IFERROR(VLOOKUP(TEXT(B70,"0000"),Valuations!$E:$S,3,FALSE),"")) ->  | Z70: =IF(OR(B70=0,RIGHT(B70,2)="OR"),"",IFERROR(VLOOKUP(TEXT(B70,"0000"),Valuations!$E:$S,4,FALSE),"")) -> 
A71: 0 | B71: 0 | C71: 0 | D71: 0 | F71: 0 | H71: 0 | I71: 0 | J71: 0 | K71: 0 | L71: 0 | M71: 0 | N71: 0 | O71: 0 | P71: 0 | Q71: 0 | X71: =IF(OR(B71=0,RIGHT(B71,2)="OR"),"",IFERROR(VLOOKUP(TEXT(B71,"0000"),Valuations!$E:$S,2,FALSE),"")) ->  | Y71: =IF(OR(B71=0,RIGHT(B71,2)="OR"),"",IFERROR(VLOOKUP(TEXT(B71,"0000"),Valuations!$E:$S,3,FALSE),"")) ->  | Z71: =IF(OR(B71=0,RIGHT(B71,2)="OR"),"",IFERROR(VLOOKUP(TEXT(B71,"0000"),Valuations!$E:$S,4,FALSE),"")) -> 
A72: 0 | B72: 0 | C72: 0 | D72: 0 | F72: 0 | H72: 0 | I72: 0 | J72: 0 | K72: 0 | L72: 0 | M72: 0 | N72: 0 | O72: 0 | P72: 0 | Q72: 0 | X72: =IF(OR(B72=0,RIGHT(B72,2)="OR"),"",IFERROR(VLOOKUP(TEXT(B72,"0000"),Valuations!$E:$S,2,FALSE),"")) ->  | Y72: =IF(OR(B72=0,RIGHT(B72,2)="OR"),"",IFERROR(VLOOKUP(TEXT(B72,"0000"),Valuations!$E:$S,3,FALSE),"")) ->  | Z72: =IF(OR(B72=0,RIGHT(B72,2)="OR"),"",IFERROR(VLOOKUP(TEXT(B72,"0000"),Valuations!$E:$S,4,FALSE),"")) -> 
A73: 0 | B73: 0 | C73: 0 | D73: 0 | F73: 0 | H73: 0 | I73: 0 | J73: 0 | K73: 0 | L73: 0 | M73: 0 | N73: 0 | O73: 0 | P73: 0 | Q73: 0 | X73: =IF(OR(B73=0,RIGHT(B73,2)="OR"),"",IFERROR(VLOOKUP(TEXT(B73,"0000"),Valuations!$E:$S,2,FALSE),"")) ->  | Y73: =IF(OR(B73=0,RIGHT(B73,2)="OR"),"",IFERROR(VLOOKUP(TEXT(B73,"0000"),Valuations!$E:$S,3,FALSE),"")) ->  | Z73: =IF(OR(B73=0,RIGHT(B73,2)="OR"),"",IFERROR(VLOOKUP(TEXT(B73,"0000"),Valuations!$E:$S,4,FALSE),"")) -> 
A74: 0 | B74: 0 | C74: 0 | D74: 0 | F74: 0 | H74: 0 | I74: 0 | J74: 0 | K74: 0 | L74: 0 | M74: =IF(SumTotalMarketValue=0,0,J74/SumTotalMarketValue) -> 0 | N74: =IF(FundCode="KHAZANAH",J74/$J$320,IF(NAVValue=0,0,J74/NAVValue)) -> 0 | O74: 0 | P74: 0 | Q74: 0 | X74: =IF(OR(B74=0,RIGHT(B74,2)="OR"),"",IFERROR(VLOOKUP(TEXT(B74,"0000"),Valuations!$E:$S,2,FALSE),"")) ->  | Y74: =IF(OR(B74=0,RIGHT(B74,2)="OR"),"",IFERROR(VLOOKUP(TEXT(B74,"0000"),Valuations!$E:$S,3,FALSE),"")) ->  | Z74: =IF(OR(B74=0,RIGHT(B74,2)="OR"),"",IFERROR(VLOOKUP(TEXT(B74,"0000"),Valuations!$E:$S,4,FALSE),"")) -> 
A75: 0 | B75: 0 | C75: 0 | D75: 0 | F75: 0 | H75: 0 | I75: 0 | J75: 0 | K75: 0 | L75: 0 | M75: 0 | N75: 0 | O75: 0 | P75: 0 | Q75: 0 | X75: =IF(OR(B75=0,RIGHT(B75,2)="OR"),"",IFERROR(VLOOKUP(TEXT(B75,"0000"),Valuations!$E:$S,2,FALSE),"")) ->  | Y75: =IF(OR(B75=0,RIGHT(B75,2)="OR"),"",IFERROR(VLOOKUP(TEXT(B75,"0000"),Valuations!$E:$S,3,FALSE),"")) ->  | Z75: =IF(OR(B75=0,RIGHT(B75,2)="OR"),"",IFERROR(VLOOKUP(TEXT(B75,"0000"),Valuations!$E:$S,4,FALSE),"")) ->  | AA75: =IF(OR($J$202=0,$J$202="",J75="",T75=""),"",T75*J75/$J$202) ->  | AB75: =IF(OR($J$202=0,$J$202="",J75="",U75=""),"",U75*J75/$J$202) ->  | AC75: =IF(OR($J$202=0,$J$202="",J75="",V75=""),"",V75*J75/$J$202) ->  | AE75: =IF(OR($J$202=0,$J$202="",J75="",S75=""),"",S75*J75/$J$202) -> 
A76: 0 | B76: 0 | C76: 0 | D76: 0 | F76: 0 | H76: 0 | I76: 0 | J76: 0 | K76: 0 | L76: 0 | M76: 0 | N76: 0 | O76: 0 | P76: 0 | Q76: 0 | X76: =IF(OR(B76=0,RIGHT(B76,2)="OR"),"",IFERROR(VLOOKUP(TEXT(B76,"0000"),Valuations!$E:$S,2,FALSE),"")) ->  | Y76: =IF(OR(B76=0,RIGHT(B76,2)="OR"),"",IFERROR(VLOOKUP(TEXT(B76,"0000"),Valuations!$E:$S,3,FALSE),"")) ->  | Z76: =IF(OR(B76=0,RIGHT(B76,2)="OR"),"",IFERROR(VLOOKUP(TEXT(B76,"0000"),Valuations!$E:$S,4,FALSE),"")) -> 
A77: 0 | B77: 0 | C77: 0 | D77: 0 | F77: 0 | H77: 0 | I77: 0 | J77: 0 | K77: 0 | L77: 0 | M77: 0 | N77: 0 | O77: 0 | P77: 0 | Q77: 0 | X77: =IF(OR(B77=0,RIGHT(B77,2)="OR"),"",IFERROR(VLOOKUP(TEXT(B77,"0000"),Valuations!$E:$S,2,FALSE),"")) ->  | Y77: =IF(OR(B77=0,RIGHT(B77,2)="OR"),"",IFERROR(VLOOKUP(TEXT(B77,"0000"),Valuations!$E:$S,3,FALSE),"")) ->  | Z77: =IF(OR(B77=0,RIGHT(B77,2)="OR"),"",IFERROR(VLOOKUP(TEXT(B77,"0000"),Valuations!$E:$S,4,FALSE),"")) -> 
A78: 0 | B78: 0 | C78: 0 | D78: 0 | F78: 0 | H78: 0 | I78: 0 | J78: 0 | K78: 0 | L78: 0 | M78: 0 | N78: 0 | O78: 0 | P78: 0 | Q78: 0 | X78: =IF(OR(B78=0,RIGHT(B78,2)="OR"),"",IFERROR(VLOOKUP(TEXT(B78,"0000"),Valuations!$E:$S,2,FALSE),"")) ->  | Y78: =IF(OR(B78=0,RIGHT(B78,2)="OR"),"",IFERROR(VLOOKUP(TEXT(B78,"0000"),Valuations!$E:$S,3,FALSE),"")) ->  | Z78: =IF(OR(B78=0,RIGHT(B78,2)="OR"),"",IFERROR(VLOOKUP(TEXT(B78,"0000"),Valuations!$E:$S,4,FALSE),"")) -> 
A79: 0 | B79: 0 | C79: 0 | D79: 0 | F79: 0 | H79: 0 | I79: 0 | J79: 0 | K79: 0 | L79: 0 | M79: 0 | N79: 0 | O79: 0 | P79: 0 | Q79: 0 | X79: =IF(OR(B79=0,RIGHT(B79,2)="OR"),"",IFERROR(VLOOKUP(TEXT(B79,"0000"),Valuations!$E:$S,2,FALSE),"")) ->  | Y79: =IF(OR(B79=0,RIGHT(B79,2)="OR"),"",IFERROR(VLOOKUP(TEXT(B79,"0000"),Valuations!$E:$S,3,FALSE),"")) ->  | Z79: =IF(OR(B79=0,RIGHT(B79,2)="OR"),"",IFERROR(VLOOKUP(TEXT(B79,"0000"),Valuations!$E:$S,4,FALSE),"")) -> 
A80: 0 | B80: 0 | C80: 0 | D80: 0 | F80: 0 | H80: 0 | I80: 0 | J80: 0 | K80: 0 | L80: 0 | M80: 0 | N80: 0 | O80: 0 | P80: 0 | Q80: 0 | X80: =IF(OR(B80=0,RIGHT(B80,2)="OR"),"",IFERROR(VLOOKUP(TEXT(B80,"0000"),Valuations!$E:$S,2,FALSE),"")) ->  | Y80: =IF(OR(B80=0,RIGHT(B80,2)="OR"),"",IFERROR(VLOOKUP(TEXT(B80,"0000"),Valuations!$E:$S,3,FALSE),"")) ->  | Z80: =IF(OR(B80=0,RIGHT(B80,2)="OR"),"",IFERROR(VLOOKUP(TEXT(B80,"0000"),Valuations!$E:$S,4,FALSE),"")) -> 
A81: 0 | B81: 0 | C81: 0 | D81: 0 | F81: 0 | H81: 0 | I81: 0 | J81: 0 | K81: 0 | L81: 0 | M81: =IF(SumTotalMarketValue=0,0,J81/SumTotalMarketValue) -> 0 | N81: =IF(FundCode="KHAZANAH",J81/$J$320,IF(NAVValue=0,0,J81/NAVValue)) -> 0 | O81: 0 | P81: 0 | Q81: 0 | X81: =IF(OR(B81=0,RIGHT(B81,2)="OR"),"",IFERROR(VLOOKUP(TEXT(B81,"0000"),Valuations!$E:$S,2,FALSE),"")) ->  | Y81: =IF(OR(B81=0,RIGHT(B81,2)="OR"),"",IFERROR(VLOOKUP(TEXT(B81,"0000"),Valuations!$E:$S,3,FALSE),"")) ->  | Z81: =IF(OR(B81=0,RIGHT(B81,2)="OR"),"",IFERROR(VLOOKUP(TEXT(B81,"0000"),Valuations!$E:$S,4,FALSE),"")) -> 
A82: 0 | B82: 0 | C82: 0 | D82: 0 | F82: 0 | H82: 0 | I82: 0 | J82: 0 | K82: 0 | L82: 0 | M82: 0 | N82: 0 | O82: 0 | P82: 0 | Q82: 0 | X82: =IF(OR(B82=0,RIGHT(B82,2)="OR"),"",IFERROR(VLOOKUP(TEXT(B82,"0000"),Valuations!$E:$S,2,FALSE),"")) ->  | Y82: =IF(OR(B82=0,RIGHT(B82,2)="OR"),"",IFERROR(VLOOKUP(TEXT(B82,"0000"),Valuations!$E:$S,3,FALSE),"")) ->  | Z82: =IF(OR(B82=0,RIGHT(B82,2)="OR"),"",IFERROR(VLOOKUP(TEXT(B82,"0000"),Valuations!$E:$S,4,FALSE),"")) -> 
A83: 0 | B83: 0 | C83: 0 | D83: 0 | F83: 0 | H83: 0 | I83: 0 | J83: 0 | K83: 0 | L83: 0 | M83: 0 | N83: 0 | O83: 0 | P83: 0 | Q83: 0 | X83: =IF(OR(B83=0,RIGHT(B83,2)="OR"),"",IFERROR(VLOOKUP(TEXT(B83,"0000"),Valuations!$E:$S,2,FALSE),"")) ->  | Y83: =IF(OR(B83=0,RIGHT(B83,2)="OR"),"",IFERROR(VLOOKUP(TEXT(B83,"0000"),Valuations!$E:$S,3,FALSE),"")) ->  | Z83: =IF(OR(B83=0,RIGHT(B83,2)="OR"),"",IFERROR(VLOOKUP(TEXT(B83,"0000"),Valuations!$E:$S,4,FALSE),"")) ->  | AD83: =IF(OR($H$202=0,$H$202="",H83="",R83=""),"",R83*H83/$H$202) -> 
A84: 0 | B84: 0 | C84: 0 | D84: 0 | F84: 0 | H84: 0 | I84: 0 | J84: 0 | K84: 0 | L84: 0 | M84: 0 | N84: 0 | O84: 0 | P84: 0 | Q84: 0 | X84: =IF(OR(B84=0,RIGHT(B84,2)="OR"),"",IFERROR(VLOOKUP(TEXT(B84,"0000"),Valuations!$E:$S,2,FALSE),"")) ->  | Y84: =IF(OR(B84=0,RIGHT(B84,2)="OR"),"",IFERROR(VLOOKUP(TEXT(B84,"0000"),Valuations!$E:$S,3,FALSE),"")) ->  | Z84: =IF(OR(B84=0,RIGHT(B84,2)="OR"),"",IFERROR(VLOOKUP(TEXT(B84,"0000"),Valuations!$E:$S,4,FALSE),"")) -> 
A85: 0 | B85: 0 | C85: 0 | D85: 0 | F85: 0 | H85: 0 | I85: 0 | J85: 0 | K85: 0 | L85: 0 | M85: 0 | N85: 0 | O85: 0 | P85: 0 | Q85: 0 | X85: =IF(OR(B85=0,RIGHT(B85,2)="OR"),"",IFERROR(VLOOKUP(TEXT(B85,"0000"),Valuations!$E:$S,2,FALSE),"")) ->  | Y85: =IF(OR(B85=0,RIGHT(B85,2)="OR"),"",IFERROR(VLOOKUP(TEXT(B85,"0000"),Valuations!$E:$S,3,FALSE),"")) ->  | Z85: =IF(OR(B85=0,RIGHT(B85,2)="OR"),"",IFERROR(VLOOKUP(TEXT(B85,"0000"),Valuations!$E:$S,4,FALSE),"")) -> 
A86: 0 | B86: 0 | C86: 0 | D86: 0 | F86: 0 | H86: 0 | I86: 0 | J86: 0 | K86: 0 | L86: 0 | M86: 0 | N86: 0 | O86: 0 | P86: 0 | Q86: 0 | X86: =IF(OR(B86=0,RIGHT(B86,2)="OR"),"",IFERROR(VLOOKUP(TEXT(B86,"0000"),Valuations!$E:$S,2,FALSE),"")) ->  | Y86: =IF(OR(B86=0,RIGHT(B86,2)="OR"),"",IFERROR(VLOOKUP(TEXT(B86,"0000"),Valuations!$E:$S,3,FALSE),"")) ->  | Z86: =IF(OR(B86=0,RIGHT(B86,2)="OR"),"",IFERROR(VLOOKUP(TEXT(B86,"0000"),Valuations!$E:$S,4,FALSE),"")) -> 
A87: 0 | B87: 0 | C87: 0 | D87: 0 | F87: 0 | H87: 0 | I87: 0 | J87: 0 | K87: 0 | L87: 0 | M87: 0 | N87: 0 | O87: 0 | P87: 0 | Q87: 0 | X87: =IF(OR(B87=0,RIGHT(B87,2)="OR"),"",IFERROR(VLOOKUP(TEXT(B87,"0000"),Valuations!$E:$S,2,FALSE),"")) ->  | Y87: =IF(OR(B87=0,RIGHT(B87,2)="OR"),"",IFERROR(VLOOKUP(TEXT(B87,"0000"),Valuations!$E:$S,3,FALSE),"")) ->  | Z87: =IF(OR(B87=0,RIGHT(B87,2)="OR"),"",IFERROR(VLOOKUP(TEXT(B87,"0000"),Valuations!$E:$S,4,FALSE),"")) -> 
A88: 0 | B88: 0 | C88: 0 | D88: 0 | F88: 0 | H88: 0 | I88: 0 | J88: 0 | K88: 0 | L88: 0 | M88: 0 | N88: 0 | O88: 0 | P88: 0 | Q88: 0 | X88: =IF(OR(B88=0,RIGHT(B88,2)="OR"),"",IFERROR(VLOOKUP(TEXT(B88,"0000"),Valuations!$E:$S,2,FALSE),"")) ->  | Y88: =IF(OR(B88=0,RIGHT(B88,2)="OR"),"",IFERROR(VLOOKUP(TEXT(B88,"0000"),Valuations!$E:$S,3,FALSE),"")) ->  | Z88: =IF(OR(B88=0,RIGHT(B88,2)="OR"),"",IFERROR(VLOOKUP(TEXT(B88,"0000"),Valuations!$E:$S,4,FALSE),"")) -> 
A89: 0 | B89: 0 | C89: 0 | D89: 0 | F89: 0 | H89: 0 | I89: 0 | J89: 0 | K89: 0 | L89: 0 | M89: 0 | N89: 0 | O89: 0 | P89: 0 | Q89: 0 | X89: =IF(OR(B89=0,RIGHT(B89,2)="OR"),"",IFERROR(VLOOKUP(TEXT(B89,"0000"),Valuations!$E:$S,2,FALSE),"")) ->  | Y89: =IF(OR(B89=0,RIGHT(B89,2)="OR"),"",IFERROR(VLOOKUP(TEXT(B89,"0000"),Valuations!$E:$S,3,FALSE),"")) ->  | Z89: =IF(OR(B89=0,RIGHT(B89,2)="OR"),"",IFERROR(VLOOKUP(TEXT(B89,"0000"),Valuations!$E:$S,4,FALSE),"")) -> 
A90: 0 | B90: 0 | C90: 0 | D90: 0 | F90: 0 | H90: 0 | I90: 0 | J90: 0 | K90: 0 | L90: 0 | M90: 0 | N90: 0 | O90: 0 | P90: 0 | Q90: 0 | X90: =IF(OR(B90=0,RIGHT(B90,2)="OR"),"",IFERROR(VLOOKUP(TEXT(B90,"0000"),Valuations!$E:$S,2,FALSE),"")) ->  | Y90: =IF(OR(B90=0,RIGHT(B90,2)="OR"),"",IFERROR(VLOOKUP(TEXT(B90,"0000"),Valuations!$E:$S,3,FALSE),"")) ->  | Z90: =IF(OR(B90=0,RIGHT(B90,2)="OR"),"",IFERROR(VLOOKUP(TEXT(B90,"0000"),Valuations!$E:$S,4,FALSE),"")) -> 
A91: 0 | B91: 0 | C91: 0 | D91: 0 | F91: 0 | H91: 0 | I91: 0 | J91: 0 | K91: 0 | L91: 0 | M91: 0 | N91: 0 | O91: 0 | P91: 0 | Q91: 0 | X91: =IF(OR(B91=0,RIGHT(B91,2)="OR"),"",IFERROR(VLOOKUP(TEXT(B91,"0000"),Valuations!$E:$S,2,FALSE),"")) ->  | Y91: =IF(OR(B91=0,RIGHT(B91,2)="OR"),"",IFERROR(VLOOKUP(TEXT(B91,"0000"),Valuations!$E:$S,3,FALSE),"")) ->  | Z91: =IF(OR(B91=0,RIGHT(B91,2)="OR"),"",IFERROR(VLOOKUP(TEXT(B91,"0000"),Valuations!$E:$S,4,FALSE),"")) -> 
A92: 0 | B92: 0 | C92: 0 | D92: 0 | F92: 0 | H92: 0 | I92: 0 | J92: 0 | K92: 0 | L92: 0 | M92: =IF(SumTotalMarketValue=0,0,J92/SumTotalMarketValue) -> 0 | N92: =IF(FundCode="KHAZANAH",J92/$J$320,IF(NAVValue=0,0,J92/NAVValue)) -> 0 | O92: 0 | P92: 0 | Q92: 0 | X92: =IF(OR(B92=0,RIGHT(B92,2)="OR"),"",IFERROR(VLOOKUP(TEXT(B92,"0000"),Valuations!$E:$S,2,FALSE),"")) ->  | Y92: =IF(OR(B92=0,RIGHT(B92,2)="OR"),"",IFERROR(VLOOKUP(TEXT(B92,"0000"),Valuations!$E:$S,3,FALSE),"")) ->  | Z92: =IF(OR(B92=0,RIGHT(B92,2)="OR"),"",IFERROR(VLOOKUP(TEXT(B92,"0000"),Valuations!$E:$S,4,FALSE),"")) -> 
A93: 0 | B93: 0 | C93: 0 | D93: 0 | F93: 0 | H93: 0 | I93: 0 | J93: 0 | K93: 0 | L93: 0 | M93: 0 | N93: 0 | O93: 0 | P93: 0 | Q93: 0 | X93: =IF(OR(B93=0,RIGHT(B93,2)="OR"),"",IFERROR(VLOOKUP(TEXT(B93,"0000"),Valuations!$E:$S,2,FALSE),"")) ->  | Y93: =IF(OR(B93=0,RIGHT(B93,2)="OR"),"",IFERROR(VLOOKUP(TEXT(B93,"0000"),Valuations!$E:$S,3,FALSE),"")) ->  | Z93: =IF(OR(B93=0,RIGHT(B93,2)="OR"),"",IFERROR(VLOOKUP(TEXT(B93,"0000"),Valuations!$E:$S,4,FALSE),"")) -> 
A94: 0 | B94: 0 | C94: 0 | D94: 0 | F94: 0 | H94: 0 | I94: 0 | J94: 0 | K94: 0 | L94: 0 | M94: 0 | N94: 0 | O94: 0 | P94: 0 | Q94: 0 | X94: =IF(OR(B94=0,RIGHT(B94,2)="OR"),"",IFERROR(VLOOKUP(TEXT(B94,"0000"),Valuations!$E:$S,2,FALSE),"")) ->  | Y94: =IF(OR(B94=0,RIGHT(B94,2)="OR"),"",IFERROR(VLOOKUP(TEXT(B94,"0000"),Valuations!$E:$S,3,FALSE),"")) ->  | Z94: =IF(OR(B94=0,RIGHT(B94,2)="OR"),"",IFERROR(VLOOKUP(TEXT(B94,"0000"),Valuations!$E:$S,4,FALSE),"")) -> 
A95: 0 | B95: 0 | C95: 0 | D95: 0 | F95: 0 | H95: 0 | I95: 0 | J95: 0 | K95: 0 | L95: 0 | M95: 0 | N95: 0 | O95: 0 | P95: 0 | Q95: 0 | X95: =IF(OR(B95=0,RIGHT(B95,2)="OR"),"",IFERROR(VLOOKUP(TEXT(B95,"0000"),Valuations!$E:$S,2,FALSE),"")) ->  | Y95: =IF(OR(B95=0,RIGHT(B95,2)="OR"),"",IFERROR(VLOOKUP(TEXT(B95,"0000"),Valuations!$E:$S,3,FALSE),"")) ->  | Z95: =IF(OR(B95=0,RIGHT(B95,2)="OR"),"",IFERROR(VLOOKUP(TEXT(B95,"0000"),Valuations!$E:$S,4,FALSE),"")) -> 
A96: 0 | B96: 0 | C96: 0 | D96: 0 | F96: 0 | H96: 0 | I96: 0 | J96: 0 | K96: 0 | L96: 0 | M96: 0 | N96: 0 | O96: 0 | P96: 0 | Q96: 0 | X96: =IF(OR(B96=0,RIGHT(B96,2)="OR"),"",IFERROR(VLOOKUP(TEXT(B96,"0000"),Valuations!$E:$S,2,FALSE),"")) ->  | Y96: =IF(OR(B96=0,RIGHT(B96,2)="OR"),"",IFERROR(VLOOKUP(TEXT(B96,"0000"),Valuations!$E:$S,3,FALSE),"")) ->  | Z96: =IF(OR(B96=0,RIGHT(B96,2)="OR"),"",IFERROR(VLOOKUP(TEXT(B96,"0000"),Valuations!$E:$S,4,FALSE),"")) -> 
A97: 0 | B97: 0 | C97: 0 | D97: 0 | F97: 0 | H97: 0 | I97: 0 | J97: 0 | K97: 0 | L97: 0 | M97: 0 | N97: 0 | O97: 0 | P97: 0 | Q97: 0 | X97: =IF(OR(B97=0,RIGHT(B97,2)="OR"),"",IFERROR(VLOOKUP(TEXT(B97,"0000"),Valuations!$E:$S,2,FALSE),"")) ->  | Y97: =IF(OR(B97=0,RIGHT(B97,2)="OR"),"",IFERROR(VLOOKUP(TEXT(B97,"0000"),Valuations!$E:$S,3,FALSE),"")) ->  | Z97: =IF(OR(B97=0,RIGHT(B97,2)="OR"),"",IFERROR(VLOOKUP(TEXT(B97,"0000"),Valuations!$E:$S,4,FALSE),"")) -> 
A98: 0 | B98: 0 | C98: 0 | D98: 0 | F98: 0 | H98: 0 | I98: 0 | J98: 0 | K98: 0 | L98: 0 | M98: 0 | N98: 0 | O98: 0 | P98: 0 | Q98: 0 | X98: =IF(OR(B98=0,RIGHT(B98,2)="OR"),"",IFERROR(VLOOKUP(TEXT(B98,"0000"),Valuations!$E:$S,2,FALSE),"")) ->  | Y98: =IF(OR(B98=0,RIGHT(B98,2)="OR"),"",IFERROR(VLOOKUP(TEXT(B98,"0000"),Valuations!$E:$S,3,FALSE),"")) ->  | Z98: =IF(OR(B98=0,RIGHT(B98,2)="OR"),"",IFERROR(VLOOKUP(TEXT(B98,"0000"),Valuations!$E:$S,4,FALSE),"")) -> 
A99: 0 | B99: 0 | C99: 0 | D99: 0 | F99: 0 | H99: 0 | I99: 0 | J99: 0 | K99: 0 | L99: 0 | M99: 0 | N99: 0 | O99: 0 | P99: 0 | Q99: 0 | X99: =IF(OR(B99=0,RIGHT(B99,2)="OR"),"",IFERROR(VLOOKUP(TEXT(B99,"0000"),Valuations!$E:$S,2,FALSE),"")) ->  | Y99: =IF(OR(B99=0,RIGHT(B99,2)="OR"),"",IFERROR(VLOOKUP(TEXT(B99,"0000"),Valuations!$E:$S,3,FALSE),"")) ->  | Z99: =IF(OR(B99=0,RIGHT(B99,2)="OR"),"",IFERROR(VLOOKUP(TEXT(B99,"0000"),Valuations!$E:$S,4,FALSE),"")) -> 
A100: 0 | B100: 0 | C100: 0 | D100: 0 | F100: 0 | H100: 0 | I100: 0 | J100: 0 | K100: 0 | L100: 0 | M100: 0 | N100: 0 | O100: 0 | P100: 0 | Q100: 0 | X100: =IF(OR(B100=0,RIGHT(B100,2)="OR"),"",IFERROR(VLOOKUP(TEXT(B100,"0000"),Valuations!$E:$S,2,FALSE),"")) ->  | Y100: =IF(OR(B100=0,RIGHT(B100,2)="OR"),"",IFERROR(VLOOKUP(TEXT(B100,"0000"),Valuations!$E:$S,3,FALSE),"")) ->  | Z100: =IF(OR(B100=0,RIGHT(B100,2)="OR"),"",IFERROR(VLOOKUP(TEXT(B100,"0000"),Valuations!$E:$S,4,FALSE),"")) -> 
A101: 0 | B101: 0 | C101: 0 | D101: 0 | F101: 0 | H101: 0 | I101: 0 | J101: 0 | K101: 0 | L101: 0 | M101: 0 | N101: 0 | O101: 0 | P101: 0 | Q101: 0 | X101: =IF(OR(B101=0,RIGHT(B101,2)="OR"),"",IFERROR(VLOOKUP(TEXT(B101,"0000"),Valuations!$E:$S,2,FALSE),"")) ->  | Y101: =IF(OR(B101=0,RIGHT(B101,2)="OR"),"",IFERROR(VLOOKUP(TEXT(B101,"0000"),Valuations!$E:$S,3,FALSE),"")) ->  | Z101: =IF(OR(B101=0,RIGHT(B101,2)="OR"),"",IFERROR(VLOOKUP(TEXT(B101,"0000"),Valuations!$E:$S,4,FALSE),"")) -> 
A102: 0 | B102: 0 | C102: 0 | D102: 0 | F102: 0 | H102: 0 | I102: 0 | J102: 0 | K102: 0 | L102: 0 | M102: 0 | N102: 0 | O102: 0 | P102: 0 | Q102: 0 | X102: =IF(OR(B102=0,RIGHT(B102,2)="OR"),"",IFERROR(VLOOKUP(TEXT(B102,"0000"),Valuations!$E:$S,2,FALSE),"")) ->  | Y102: =IF(OR(B102=0,RIGHT(B102,2)="OR"),"",IFERROR(VLOOKUP(TEXT(B102,"0000"),Valuations!$E:$S,3,FALSE),"")) ->  | Z102: =IF(OR(B102=0,RIGHT(B102,2)="OR"),"",IFERROR(VLOOKUP(TEXT(B102,"0000"),Valuations!$E:$S,4,FALSE),"")) -> 
A103: 0 | B103: 0 | C103: 0 | D103: 0 | F103: 0 | H103: 0 | I103: 0 | J103: 0 | K103: 0 | L103: 0 | M103: 0 | N103: 0 | O103: 0 | P103: 0 | Q103: 0 | X103: =IF(OR(B103=0,RIGHT(B103,2)="OR"),"",IFERROR(VLOOKUP(TEXT(B103,"0000"),Valuations!$E:$S,2,FALSE),"")) ->  | Y103: =IF(OR(B103=0,RIGHT(B103,2)="OR"),"",IFERROR(VLOOKUP(TEXT(B103,"0000"),Valuations!$E:$S,3,FALSE),"")) ->  | Z103: =IF(OR(B103=0,RIGHT(B103,2)="OR"),"",IFERROR(VLOOKUP(TEXT(B103,"0000"),Valuations!$E:$S,4,FALSE),"")) -> 
A104: 0 | B104: 0 | C104: 0 | D104: 0 | F104: 0 | H104: 0 | I104: 0 | J104: 0 | K104: 0 | L104: 0 | M104: 0 | N104: 0 | O104: 0 | P104: 0 | Q104: 0 | X104: =IF(OR(B104=0,RIGHT(B104,2)="OR"),"",IFERROR(VLOOKUP(TEXT(B104,"0000"),Valuations!$E:$S,2,FALSE),"")) ->  | Y104: =IF(OR(B104=0,RIGHT(B104,2)="OR"),"",IFERROR(VLOOKUP(TEXT(B104,"0000"),Valuations!$E:$S,3,FALSE),"")) ->  | Z104: =IF(OR(B104=0,RIGHT(B104,2)="OR"),"",IFERROR(VLOOKUP(TEXT(B104,"0000"),Valuations!$E:$S,4,FALSE),"")) -> 
A105: 0 | B105: 0 | C105: 0 | D105: 0 | F105: 0 | H105: 0 | I105: 0 | J105: 0 | K105: 0 | L105: 0 | M105: 0 | N105: 0 | O105: 0 | P105: 0 | Q105: 0 | X105: =IF(OR(B105=0,RIGHT(B105,2)="OR"),"",IFERROR(VLOOKUP(TEXT(B105,"0000"),Valuations!$E:$S,2,FALSE),"")) ->  | Y105: =IF(OR(B105=0,RIGHT(B105,2)="OR"),"",IFERROR(VLOOKUP(TEXT(B105,"0000"),Valuations!$E:$S,3,FALSE),"")) ->  | Z105: =IF(OR(B105=0,RIGHT(B105,2)="OR"),"",IFERROR(VLOOKUP(TEXT(B105,"0000"),Valuations!$E:$S,4,FALSE),"")) -> 
A106: 0 | B106: 0 | C106: 0 | D106: 0 | F106: 0 | H106: 0 | I106: 0 | J106: 0 | K106: 0 | L106: 0 | M106: 0 | N106: 0 | O106: 0 | P106: 0 | Q106: 0 | X106: =IF(OR(B106=0,RIGHT(B106,2)="OR"),"",IFERROR(VLOOKUP(TEXT(B106,"0000"),Valuations!$E:$S,2,FALSE),"")) ->  | Y106: =IF(OR(B106=0,RIGHT(B106,2)="OR"),"",IFERROR(VLOOKUP(TEXT(B106,"0000"),Valuations!$E:$S,3,FALSE),"")) ->  | Z106: =IF(OR(B106=0,RIGHT(B106,2)="OR"),"",IFERROR(VLOOKUP(TEXT(B106,"0000"),Valuations!$E:$S,4,FALSE),"")) -> 
A107: 0 | B107: 0 | C107: 0 | D107: 0 | F107: 0 | H107: 0 | I107: 0 | J107: 0 | K107: 0 | L107: 0 | M107: 0 | N107: 0 | O107: 0 | P107: 0 | Q107: 0 | X107: =IF(OR(B107=0,RIGHT(B107,2)="OR"),"",IFERROR(VLOOKUP(TEXT(B107,"0000"),Valuations!$E:$S,2,FALSE),"")) ->  | Y107: =IF(OR(B107=0,RIGHT(B107,2)="OR"),"",IFERROR(VLOOKUP(TEXT(B107,"0000"),Valuations!$E:$S,3,FALSE),"")) ->  | Z107: =IF(OR(B107=0,RIGHT(B107,2)="OR"),"",IFERROR(VLOOKUP(TEXT(B107,"0000"),Valuations!$E:$S,4,FALSE),"")) -> 
A108: 0 | B108: 0 | C108: 0 | D108: 0 | F108: 0 | H108: 0 | I108: 0 | J108: 0 | K108: 0 | L108: 0 | M108: 0 | N108: 0 | O108: 0 | P108: 0 | Q108: 0 | X108: =IF(OR(B108=0,RIGHT(B108,2)="OR"),"",IFERROR(VLOOKUP(TEXT(B108,"0000"),Valuations!$E:$S,2,FALSE),"")) ->  | Y108: =IF(OR(B108=0,RIGHT(B108,2)="OR"),"",IFERROR(VLOOKUP(TEXT(B108,"0000"),Valuations!$E:$S,3,FALSE),"")) ->  | Z108: =IF(OR(B108=0,RIGHT(B108,2)="OR"),"",IFERROR(VLOOKUP(TEXT(B108,"0000"),Valuations!$E:$S,4,FALSE),"")) -> 
A109: 0 | B109: 0 | C109: 0 | D109: 0 | F109: 0 | H109: 0 | I109: 0 | J109: 0 | K109: 0 | L109: 0 | M109: 0 | N109: 0 | O109: 0 | P109: 0 | Q109: 0 | X109: =IF(OR(B109=0,RIGHT(B109,2)="OR"),"",IFERROR(VLOOKUP(TEXT(B109,"0000"),Valuations!$E:$S,2,FALSE),"")) ->  | Y109: =IF(OR(B109=0,RIGHT(B109,2)="OR"),"",IFERROR(VLOOKUP(TEXT(B109,"0000"),Valuations!$E:$S,3,FALSE),"")) ->  | Z109: =IF(OR(B109=0,RIGHT(B109,2)="OR"),"",IFERROR(VLOOKUP(TEXT(B109,"0000"),Valuations!$E:$S,4,FALSE),"")) -> 
A110: 0 | B110: 0 | C110: 0 | D110: 0 | F110: 0 | H110: 0 | I110: 0 | J110: 0 | K110: 0 | L110: 0 | M110: 0 | N110: 0 | O110: 0 | P110: 0 | Q110: 0 | X110: =IF(OR(B110=0,RIGHT(B110,2)="OR"),"",IFERROR(VLOOKUP(TEXT(B110,"0000"),Valuations!$E:$S,2,FALSE),"")) ->  | Y110: =IF(OR(B110=0,RIGHT(B110,2)="OR"),"",IFERROR(VLOOKUP(TEXT(B110,"0000"),Valuations!$E:$S,3,FALSE),"")) ->  | Z110: =IF(OR(B110=0,RIGHT(B110,2)="OR"),"",IFERROR(VLOOKUP(TEXT(B110,"0000"),Valuations!$E:$S,4,FALSE),"")) -> 
A111: 0 | B111: 0 | C111: 0 | D111: 0 | F111: 0 | H111: 0 | I111: 0 | J111: 0 | K111: 0 | L111: 0 | M111: 0 | N111: 0 | O111: 0 | P111: 0 | Q111: 0 | X111: =IF(OR(B111=0,RIGHT(B111,2)="OR"),"",IFERROR(VLOOKUP(TEXT(B111,"0000"),Valuations!$E:$S,2,FALSE),"")) ->  | Y111: =IF(OR(B111=0,RIGHT(B111,2)="OR"),"",IFERROR(VLOOKUP(TEXT(B111,"0000"),Valuations!$E:$S,3,FALSE),"")) ->  | Z111: =IF(OR(B111=0,RIGHT(B111,2)="OR"),"",IFERROR(VLOOKUP(TEXT(B111,"0000"),Valuations!$E:$S,4,FALSE),"")) -> 
A112: 0 | B112: 0 | C112: 0 | D112: 0 | F112: 0 | H112: 0 | I112: 0 | J112: 0 | K112: 0 | L112: 0 | M112: 0 | N112: 0 | O112: 0 | P112: 0 | Q112: 0 | X112: =IF(OR(B112=0,RIGHT(B112,2)="OR"),"",IFERROR(VLOOKUP(TEXT(B112,"0000"),Valuations!$E:$S,2,FALSE),"")) ->  | Y112: =IF(OR(B112=0,RIGHT(B112,2)="OR"),"",IFERROR(VLOOKUP(TEXT(B112,"0000"),Valuations!$E:$S,3,FALSE),"")) ->  | Z112: =IF(OR(B112=0,RIGHT(B112,2)="OR"),"",IFERROR(VLOOKUP(TEXT(B112,"0000"),Valuations!$E:$S,4,FALSE),"")) -> 
A113: 0 | B113: 0 | C113: 0 | D113: 0 | F113: 0 | H113: 0 | I113: 0 | J113: 0 | K113: 0 | L113: 0 | M113: 0 | N113: 0 | O113: 0 | P113: 0 | Q113: 0 | X113: =IF(OR(B113=0,RIGHT(B113,2)="OR"),"",IFERROR(VLOOKUP(TEXT(B113,"0000"),Valuations!$E:$S,2,FALSE),"")) ->  | Y113: =IF(OR(B113=0,RIGHT(B113,2)="OR"),"",IFERROR(VLOOKUP(TEXT(B113,"0000"),Valuations!$E:$S,3,FALSE),"")) ->  | Z113: =IF(OR(B113=0,RIGHT(B113,2)="OR"),"",IFERROR(VLOOKUP(TEXT(B113,"0000"),Valuations!$E:$S,4,FALSE),"")) -> 
A114: 0 | B114: 0 | C114: 0 | D114: 0 | F114: 0 | H114: 0 | I114: 0 | J114: 0 | K114: 0 | L114: 0 | M114: 0 | N114: 0 | O114: 0 | P114: 0 | Q114: 0 | X114: =IF(OR(B114=0,RIGHT(B114,2)="OR"),"",IFERROR(VLOOKUP(TEXT(B114,"0000"),Valuations!$E:$S,2,FALSE),"")) ->  | Y114: =IF(OR(B114=0,RIGHT(B114,2)="OR"),"",IFERROR(VLOOKUP(TEXT(B114,"0000"),Valuations!$E:$S,3,FALSE),"")) ->  | Z114: =IF(OR(B114=0,RIGHT(B114,2)="OR"),"",IFERROR(VLOOKUP(TEXT(B114,"0000"),Valuations!$E:$S,4,FALSE),"")) -> 
A115: 0 | B115: =OFFSET(Top,$A115,4) -> 0 | C115: =OFFSET(Top,$A115,2) -> 0 | D115: =OFFSET(Top,$A115,3) -> 0 | E115: =IF(ISNA(VLOOKUP(TEXT(B115,"0"),UniverseRange,2,0))=TRUE,"",VLOOKUP(TEXT(B115,"0"),UniverseRange,2,0)) ->  | F115: =OFFSET(Top,$A115,6) -> 0 | G115: =IF(OR(F115=0,H115=0,F115="",H115=""),"",H115/F115) ->  | H115: =OFFSET(Top,$A115,7) -> 0 | I115: =OFFSET(Top,$A115,10) -> 0 | J115: =OFFSET(Top,$A115,8) -> 0 | K115: =OFFSET(Top,$A115,11) -> 0 | L115: =IF(H115=0,0,K115/H115) -> 0 | M115: 0 | N115: 0 | O115: =OFFSET(Top,$A115,12)/1000 -> 0 | P115: =IF(O115=0,0,F115/O115/1000) -> 0 | Q115: =OFFSET(Top,$A115,9) -> 0 | R115: =IF(OR(G115=0,G115="",Z115=""),"",Z115/G115) ->  | S115: =IF(OR(I115=0,I115="",Z115=""),"",Z115/I115) ->  | T115: =IF(X115="","",X115) ->  | U115: =IF(OR(I115=0,I115="",X115="",X115=0),"",I115/X115) ->  | V115: =IF(OR(I115=0,I115="",Y115="",Y115=0),"",I115/Y115) ->  | X115: =IF(OR(B115=0,RIGHT(B115,2)="OR"),"",IFERROR(VLOOKUP(TEXT(B115,"0000"),Valuations!$E:$S,2,FALSE),"")) ->  | Y115: =IF(OR(B115=0,RIGHT(B115,2)="OR"),"",IFERROR(VLOOKUP(TEXT(B115,"0000"),Valuations!$E:$S,3,FALSE),"")) ->  | Z115: =IF(OR(B115=0,RIGHT(B115,2)="OR"),"",IFERROR(VLOOKUP(TEXT(B115,"0000"),Valuations!$E:$S,4,FALSE),"")) -> 
A116: 0 | B116: 0 | C116: 0 | D116: 0 | F116: 0 | H116: 0 | I116: 0 | J116: 0 | K116: 0 | L116: 0 | M116: 0 | N116: 0 | O116: 0 | P116: 0 | Q116: 0 | X116: =IF(OR(B116=0,RIGHT(B116,2)="OR"),"",IFERROR(VLOOKUP(TEXT(B116,"0000"),Valuations!$E:$S,2,FALSE),"")) ->  | Y116: =IF(OR(B116=0,RIGHT(B116,2)="OR"),"",IFERROR(VLOOKUP(TEXT(B116,"0000"),Valuations!$E:$S,3,FALSE),"")) ->  | Z116: =IF(OR(B116=0,RIGHT(B116,2)="OR"),"",IFERROR(VLOOKUP(TEXT(B116,"0000"),Valuations!$E:$S,4,FALSE),"")) -> 
A117: 0 | B117: 0 | C117: 0 | D117: 0 | F117: 0 | H117: 0 | I117: 0 | J117: 0 | K117: 0 | L117: 0 | M117: 0 | N117: 0 | O117: 0 | P117: 0 | Q117: 0 | X117: =IF(OR(B117=0,RIGHT(B117,2)="OR"),"",IFERROR(VLOOKUP(TEXT(B117,"0000"),Valuations!$E:$S,2,FALSE),"")) ->  | Y117: =IF(OR(B117=0,RIGHT(B117,2)="OR"),"",IFERROR(VLOOKUP(TEXT(B117,"0000"),Valuations!$E:$S,3,FALSE),"")) ->  | Z117: =IF(OR(B117=0,RIGHT(B117,2)="OR"),"",IFERROR(VLOOKUP(TEXT(B117,"0000"),Valuations!$E:$S,4,FALSE),"")) -> 
A118: 0 | B118: 0 | C118: 0 | D118: 0 | F118: 0 | H118: 0 | I118: 0 | J118: 0 | K118: 0 | L118: 0 | M118: 0 | N118: 0 | O118: 0 | P118: 0 | Q118: 0 | X118: =IF(OR(B118=0,RIGHT(B118,2)="OR"),"",IFERROR(VLOOKUP(TEXT(B118,"0000"),Valuations!$E:$S,2,FALSE),"")) ->  | Y118: =IF(OR(B118=0,RIGHT(B118,2)="OR"),"",IFERROR(VLOOKUP(TEXT(B118,"0000"),Valuations!$E:$S,3,FALSE),"")) ->  | Z118: =IF(OR(B118=0,RIGHT(B118,2)="OR"),"",IFERROR(VLOOKUP(TEXT(B118,"0000"),Valuations!$E:$S,4,FALSE),"")) -> 
A119: 0 | B119: 0 | C119: 0 | D119: 0 | F119: 0 | H119: 0 | I119: 0 | J119: 0 | K119: 0 | L119: 0 | M119: 0 | N119: 0 | O119: 0 | P119: 0 | Q119: 0 | X119: =IF(OR(B119=0,RIGHT(B119,2)="OR"),"",IFERROR(VLOOKUP(TEXT(B119,"0000"),Valuations!$E:$S,2,FALSE),"")) ->  | Y119: =IF(OR(B119=0,RIGHT(B119,2)="OR"),"",IFERROR(VLOOKUP(TEXT(B119,"0000"),Valuations!$E:$S,3,FALSE),"")) ->  | Z119: =IF(OR(B119=0,RIGHT(B119,2)="OR"),"",IFERROR(VLOOKUP(TEXT(B119,"0000"),Valuations!$E:$S,4,FALSE),"")) -> 
A120: 0 | B120: 0 | C120: 0 | D120: 0 | F120: 0 | H120: 0 | I120: 0 | J120: 0 | K120: 0 | L120: 0 | M120: 0 | N120: 0 | O120: 0 | P120: 0 | Q120: 0 | X120: =IF(OR(B120=0,RIGHT(B120,2)="OR"),"",IFERROR(VLOOKUP(TEXT(B120,"0000"),Valuations!$E:$S,2,FALSE),"")) ->  | Y120: =IF(OR(B120=0,RIGHT(B120,2)="OR"),"",IFERROR(VLOOKUP(TEXT(B120,"0000"),Valuations!$E:$S,3,FALSE),"")) ->  | Z120: =IF(OR(B120=0,RIGHT(B120,2)="OR"),"",IFERROR(VLOOKUP(TEXT(B120,"0000"),Valuations!$E:$S,4,FALSE),"")) -> 
A121: 0 | B121: 0 | C121: 0 | D121: 0 | F121: 0 | H121: 0 | I121: 0 | J121: 0 | K121: 0 | L121: 0 | M121: 0 | N121: 0 | O121: 0 | P121: 0 | Q121: 0 | X121: =IF(OR(B121=0,RIGHT(B121,2)="OR"),"",IFERROR(VLOOKUP(TEXT(B121,"0000"),Valuations!$E:$S,2,FALSE),"")) ->  | Y121: =IF(OR(B121=0,RIGHT(B121,2)="OR"),"",IFERROR(VLOOKUP(TEXT(B121,"0000"),Valuations!$E:$S,3,FALSE),"")) ->  | Z121: =IF(OR(B121=0,RIGHT(B121,2)="OR"),"",IFERROR(VLOOKUP(TEXT(B121,"0000"),Valuations!$E:$S,4,FALSE),"")) -> 
A122: 0 | B122: 0 | C122: 0 | D122: 0 | F122: 0 | H122: 0 | I122: 0 | J122: 0 | K122: 0 | L122: 0 | M122: 0 | N122: 0 | O122: 0 | P122: 0 | Q122: 0 | X122: =IF(OR(B122=0,RIGHT(B122,2)="OR"),"",IFERROR(VLOOKUP(TEXT(B122,"0000"),Valuations!$E:$S,2,FALSE),"")) ->  | Y122: =IF(OR(B122=0,RIGHT(B122,2)="OR"),"",IFERROR(VLOOKUP(TEXT(B122,"0000"),Valuations!$E:$S,3,FALSE),"")) ->  | Z122: =IF(OR(B122=0,RIGHT(B122,2)="OR"),"",IFERROR(VLOOKUP(TEXT(B122,"0000"),Valuations!$E:$S,4,FALSE),"")) -> 
A123: 0 | B123: 0 | C123: 0 | D123: 0 | F123: 0 | H123: 0 | I123: 0 | J123: 0 | K123: 0 | L123: 0 | M123: 0 | N123: 0 | O123: 0 | P123: 0 | Q123: 0 | X123: =IF(OR(B123=0,RIGHT(B123,2)="OR"),"",IFERROR(VLOOKUP(TEXT(B123,"0000"),Valuations!$E:$S,2,FALSE),"")) ->  | Y123: =IF(OR(B123=0,RIGHT(B123,2)="OR"),"",IFERROR(VLOOKUP(TEXT(B123,"0000"),Valuations!$E:$S,3,FALSE),"")) ->  | Z123: =IF(OR(B123=0,RIGHT(B123,2)="OR"),"",IFERROR(VLOOKUP(TEXT(B123,"0000"),Valuations!$E:$S,4,FALSE),"")) -> 
A124: 0 | B124: 0 | C124: 0 | D124: 0 | F124: 0 | H124: 0 | I124: 0 | J124: 0 | K124: 0 | L124: 0 | M124: 0 | N124: 0 | O124: 0 | P124: 0 | Q124: 0 | X124: =IF(OR(B124=0,RIGHT(B124,2)="OR"),"",IFERROR(VLOOKUP(TEXT(B124,"0000"),Valuations!$E:$S,2,FALSE),"")) ->  | Y124: =IF(OR(B124=0,RIGHT(B124,2)="OR"),"",IFERROR(VLOOKUP(TEXT(B124,"0000"),Valuations!$E:$S,3,FALSE),"")) ->  | Z124: =IF(OR(B124=0,RIGHT(B124,2)="OR"),"",IFERROR(VLOOKUP(TEXT(B124,"0000"),Valuations!$E:$S,4,FALSE),"")) -> 
A125: 0 | B125: 0 | C125: 0 | D125: 0 | F125: 0 | H125: 0 | I125: 0 | J125: 0 | K125: 0 | L125: 0 | M125: 0 | N125: 0 | O125: 0 | P125: 0 | Q125: 0 | X125: =IF(OR(B125=0,RIGHT(B125,2)="OR"),"",IFERROR(VLOOKUP(TEXT(B125,"0000"),Valuations!$E:$S,2,FALSE),"")) ->  | Y125: =IF(OR(B125=0,RIGHT(B125,2)="OR"),"",IFERROR(VLOOKUP(TEXT(B125,"0000"),Valuations!$E:$S,3,FALSE),"")) ->  | Z125: =IF(OR(B125=0,RIGHT(B125,2)="OR"),"",IFERROR(VLOOKUP(TEXT(B125,"0000"),Valuations!$E:$S,4,FALSE),"")) -> 
A126: 0 | B126: 0 | C126: 0 | D126: 0 | F126: 0 | H126: 0 | I126: 0 | J126: 0 | K126: 0 | L126: 0 | M126: 0 | N126: 0 | O126: 0 | P126: 0 | Q126: 0 | X126: =IF(OR(B126=0,RIGHT(B126,2)="OR"),"",IFERROR(VLOOKUP(TEXT(B126,"0000"),Valuations!$E:$S,2,FALSE),"")) ->  | Y126: =IF(OR(B126=0,RIGHT(B126,2)="OR"),"",IFERROR(VLOOKUP(TEXT(B126,"0000"),Valuations!$E:$S,3,FALSE),"")) ->  | Z126: =IF(OR(B126=0,RIGHT(B126,2)="OR"),"",IFERROR(VLOOKUP(TEXT(B126,"0000"),Valuations!$E:$S,4,FALSE),"")) -> 
A127: 0 | B127: 0 | C127: 0 | D127: 0 | F127: 0 | H127: 0 | I127: 0 | J127: 0 | K127: 0 | L127: 0 | M127: 0 | N127: 0 | O127: 0 | P127: 0 | Q127: 0 | X127: =IF(OR(B127=0,RIGHT(B127,2)="OR"),"",IFERROR(VLOOKUP(TEXT(B127,"0000"),Valuations!$E:$S,2,FALSE),"")) ->  | Y127: =IF(OR(B127=0,RIGHT(B127,2)="OR"),"",IFERROR(VLOOKUP(TEXT(B127,"0000"),Valuations!$E:$S,3,FALSE),"")) ->  | Z127: =IF(OR(B127=0,RIGHT(B127,2)="OR"),"",IFERROR(VLOOKUP(TEXT(B127,"0000"),Valuations!$E:$S,4,FALSE),"")) -> 
A128: 0 | B128: 0 | C128: 0 | D128: 0 | F128: 0 | H128: 0 | I128: 0 | J128: 0 | K128: 0 | L128: 0 | M128: 0 | N128: 0 | O128: 0 | P128: 0 | Q128: 0 | X128: =IF(OR(B128=0,RIGHT(B128,2)="OR"),"",IFERROR(VLOOKUP(TEXT(B128,"0000"),Valuations!$E:$S,2,FALSE),"")) ->  | Y128: =IF(OR(B128=0,RIGHT(B128,2)="OR"),"",IFERROR(VLOOKUP(TEXT(B128,"0000"),Valuations!$E:$S,3,FALSE),"")) ->  | Z128: =IF(OR(B128=0,RIGHT(B128,2)="OR"),"",IFERROR(VLOOKUP(TEXT(B128,"0000"),Valuations!$E:$S,4,FALSE),"")) -> 
A129: 0 | B129: 0 | C129: 0 | D129: 0 | F129: 0 | H129: 0 | I129: 0 | J129: 0 | K129: 0 | L129: 0 | M129: 0 | N129: 0 | O129: 0 | P129: 0 | Q129: 0 | X129: =IF(OR(B129=0,RIGHT(B129,2)="OR"),"",IFERROR(VLOOKUP(TEXT(B129,"0000"),Valuations!$E:$S,2,FALSE),"")) ->  | Y129: =IF(OR(B129=0,RIGHT(B129,2)="OR"),"",IFERROR(VLOOKUP(TEXT(B129,"0000"),Valuations!$E:$S,3,FALSE),"")) ->  | Z129: =IF(OR(B129=0,RIGHT(B129,2)="OR"),"",IFERROR(VLOOKUP(TEXT(B129,"0000"),Valuations!$E:$S,4,FALSE),"")) -> 
A130: 0 | B130: 0 | C130: 0 | D130: 0 | F130: 0 | H130: 0 | I130: 0 | J130: 0 | K130: 0 | L130: 0 | M130: 0 | N130: 0 | O130: 0 | P130: 0 | Q130: 0 | X130: =IF(OR(B130=0,RIGHT(B130,2)="OR"),"",IFERROR(VLOOKUP(TEXT(B130,"0000"),Valuations!$E:$S,2,FALSE),"")) ->  | Y130: =IF(OR(B130=0,RIGHT(B130,2)="OR"),"",IFERROR(VLOOKUP(TEXT(B130,"0000"),Valuations!$E:$S,3,FALSE),"")) ->  | Z130: =IF(OR(B130=0,RIGHT(B130,2)="OR"),"",IFERROR(VLOOKUP(TEXT(B130,"0000"),Valuations!$E:$S,4,FALSE),"")) -> 
A131: 0 | B131: 0 | C131: 0 | D131: 0 | F131: 0 | H131: 0 | I131: 0 | J131: 0 | K131: 0 | L131: 0 | M131: 0 | N131: 0 | O131: 0 | P131: 0 | Q131: 0 | X131: =IF(OR(B131=0,RIGHT(B131,2)="OR"),"",IFERROR(VLOOKUP(TEXT(B131,"0000"),Valuations!$E:$S,2,FALSE),"")) ->  | Y131: =IF(OR(B131=0,RIGHT(B131,2)="OR"),"",IFERROR(VLOOKUP(TEXT(B131,"0000"),Valuations!$E:$S,3,FALSE),"")) ->  | Z131: =IF(OR(B131=0,RIGHT(B131,2)="OR"),"",IFERROR(VLOOKUP(TEXT(B131,"0000"),Valuations!$E:$S,4,FALSE),"")) -> 
A132: 0 | B132: 0 | C132: 0 | D132: 0 | F132: 0 | H132: 0 | I132: 0 | J132: 0 | K132: 0 | L132: 0 | M132: 0 | N132: 0 | O132: 0 | P132: 0 | Q132: 0 | X132: =IF(OR(B132=0,RIGHT(B132,2)="OR"),"",IFERROR(VLOOKUP(TEXT(B132,"0000"),Valuations!$E:$S,2,FALSE),"")) ->  | Y132: =IF(OR(B132=0,RIGHT(B132,2)="OR"),"",IFERROR(VLOOKUP(TEXT(B132,"0000"),Valuations!$E:$S,3,FALSE),"")) ->  | Z132: =IF(OR(B132=0,RIGHT(B132,2)="OR"),"",IFERROR(VLOOKUP(TEXT(B132,"0000"),Valuations!$E:$S,4,FALSE),"")) -> 
A133: 0 | B133: 0 | C133: 0 | D133: 0 | F133: 0 | H133: 0 | I133: 0 | J133: 0 | K133: 0 | L133: 0 | M133: 0 | N133: 0 | O133: 0 | P133: 0 | Q133: 0 | X133: =IF(OR(B133=0,RIGHT(B133,2)="OR"),"",IFERROR(VLOOKUP(TEXT(B133,"0000"),Valuations!$E:$S,2,FALSE),"")) ->  | Y133: =IF(OR(B133=0,RIGHT(B133,2)="OR"),"",IFERROR(VLOOKUP(TEXT(B133,"0000"),Valuations!$E:$S,3,FALSE),"")) ->  | Z133: =IF(OR(B133=0,RIGHT(B133,2)="OR"),"",IFERROR(VLOOKUP(TEXT(B133,"0000"),Valuations!$E:$S,4,FALSE),"")) -> 
A134: 0 | B134: 0 | C134: 0 | D134: 0 | F134: 0 | H134: 0 | I134: 0 | J134: 0 | K134: 0 | L134: 0 | M134: 0 | N134: 0 | O134: 0 | P134: 0 | Q134: 0 | X134: =IF(OR(B134=0,RIGHT(B134,2)="OR"),"",IFERROR(VLOOKUP(TEXT(B134,"0000"),Valuations!$E:$S,2,FALSE),"")) ->  | Y134: =IF(OR(B134=0,RIGHT(B134,2)="OR"),"",IFERROR(VLOOKUP(TEXT(B134,"0000"),Valuations!$E:$S,3,FALSE),"")) ->  | Z134: =IF(OR(B134=0,RIGHT(B134,2)="OR"),"",IFERROR(VLOOKUP(TEXT(B134,"0000"),Valuations!$E:$S,4,FALSE),"")) -> 
A135: 0 | B135: 0 | C135: 0 | D135: 0 | F135: 0 | H135: 0 | I135: 0 | J135: 0 | K135: 0 | L135: 0 | M135: 0 | N135: 0 | O135: 0 | P135: 0 | Q135: 0 | X135: =IF(OR(B135=0,RIGHT(B135,2)="OR"),"",IFERROR(VLOOKUP(TEXT(B135,"0000"),Valuations!$E:$S,2,FALSE),"")) ->  | Y135: =IF(OR(B135=0,RIGHT(B135,2)="OR"),"",IFERROR(VLOOKUP(TEXT(B135,"0000"),Valuations!$E:$S,3,FALSE),"")) ->  | Z135: =IF(OR(B135=0,RIGHT(B135,2)="OR"),"",IFERROR(VLOOKUP(TEXT(B135,"0000"),Valuations!$E:$S,4,FALSE),"")) -> 
A136: 0 | B136: 0 | C136: 0 | D136: 0 | F136: 0 | H136: 0 | I136: 0 | J136: 0 | K136: 0 | L136: 0 | M136: 0 | N136: 0 | O136: 0 | P136: 0 | Q136: 0 | X136: =IF(OR(B136=0,RIGHT(B136,2)="OR"),"",IFERROR(VLOOKUP(TEXT(B136,"0000"),Valuations!$E:$S,2,FALSE),"")) ->  | Y136: =IF(OR(B136=0,RIGHT(B136,2)="OR"),"",IFERROR(VLOOKUP(TEXT(B136,"0000"),Valuations!$E:$S,3,FALSE),"")) ->  | Z136: =IF(OR(B136=0,RIGHT(B136,2)="OR"),"",IFERROR(VLOOKUP(TEXT(B136,"0000"),Valuations!$E:$S,4,FALSE),"")) -> 
A137: 0 | B137: 0 | C137: 0 | D137: 0 | F137: 0 | H137: 0 | I137: 0 | J137: 0 | K137: 0 | L137: 0 | M137: 0 | N137: 0 | O137: 0 | P137: 0 | Q137: 0 | X137: =IF(OR(B137=0,RIGHT(B137,2)="OR"),"",IFERROR(VLOOKUP(TEXT(B137,"0000"),Valuations!$E:$S,2,FALSE),"")) ->  | Y137: =IF(OR(B137=0,RIGHT(B137,2)="OR"),"",IFERROR(VLOOKUP(TEXT(B137,"0000"),Valuations!$E:$S,3,FALSE),"")) ->  | Z137: =IF(OR(B137=0,RIGHT(B137,2)="OR"),"",IFERROR(VLOOKUP(TEXT(B137,"0000"),Valuations!$E:$S,4,FALSE),"")) -> 
A138: 0 | B138: 0 | C138: 0 | D138: 0 | F138: 0 | H138: 0 | I138: 0 | J138: 0 | K138: 0 | L138: 0 | M138: 0 | N138: 0 | O138: 0 | P138: 0 | Q138: 0 | X138: =IF(OR(B138=0,RIGHT(B138,2)="OR"),"",IFERROR(VLOOKUP(TEXT(B138,"0000"),Valuations!$E:$S,2,FALSE),"")) ->  | Y138: =IF(OR(B138=0,RIGHT(B138,2)="OR"),"",IFERROR(VLOOKUP(TEXT(B138,"0000"),Valuations!$E:$S,3,FALSE),"")) ->  | Z138: =IF(OR(B138=0,RIGHT(B138,2)="OR"),"",IFERROR(VLOOKUP(TEXT(B138,"0000"),Valuations!$E:$S,4,FALSE),"")) -> 
A139: 0 | B139: 0 | C139: 0 | D139: 0 | F139: 0 | H139: 0 | I139: 0 | J139: 0 | K139: 0 | L139: 0 | M139: 0 | N139: 0 | O139: 0 | P139: 0 | Q139: 0 | X139: =IF(OR(B139=0,RIGHT(B139,2)="OR"),"",IFERROR(VLOOKUP(TEXT(B139,"0000"),Valuations!$E:$S,2,FALSE),"")) ->  | Y139: =IF(OR(B139=0,RIGHT(B139,2)="OR"),"",IFERROR(VLOOKUP(TEXT(B139,"0000"),Valuations!$E:$S,3,FALSE),"")) ->  | Z139: =IF(OR(B139=0,RIGHT(B139,2)="OR"),"",IFERROR(VLOOKUP(TEXT(B139,"0000"),Valuations!$E:$S,4,FALSE),"")) ->  | AA139: =IF(OR($J$202=0,$J$202="",J139="",T139=""),"",T139*J139/$J$202) ->  | AB139: =IF(OR($J$202=0,$J$202="",J139="",U139=""),"",U139*J139/$J$202) ->  | AC139: =IF(OR($J$202=0,$J$202="",J139="",V139=""),"",V139*J139/$J$202) ->  | AE139: =IF(OR($J$202=0,$J$202="",J139="",S139=""),"",S139*J139/$J$202) -> 
A140: 0 | B140: 0 | C140: 0 | D140: 0 | F140: 0 | H140: 0 | I140: 0 | J140: 0 | K140: 0 | L140: 0 | M140: 0 | N140: 0 | O140: 0 | P140: 0 | Q140: 0 | X140: =IF(OR(B140=0,RIGHT(B140,2)="OR"),"",IFERROR(VLOOKUP(TEXT(B140,"0000"),Valuations!$E:$S,2,FALSE),"")) ->  | Y140: =IF(OR(B140=0,RIGHT(B140,2)="OR"),"",IFERROR(VLOOKUP(TEXT(B140,"0000"),Valuations!$E:$S,3,FALSE),"")) ->  | Z140: =IF(OR(B140=0,RIGHT(B140,2)="OR"),"",IFERROR(VLOOKUP(TEXT(B140,"0000"),Valuations!$E:$S,4,FALSE),"")) -> 
A141: 0 | B141: 0 | C141: 0 | D141: 0 | F141: 0 | H141: 0 | I141: 0 | J141: 0 | K141: 0 | L141: 0 | M141: 0 | N141: 0 | O141: 0 | P141: 0 | Q141: 0 | X141: =IF(OR(B141=0,RIGHT(B141,2)="OR"),"",IFERROR(VLOOKUP(TEXT(B141,"0000"),Valuations!$E:$S,2,FALSE),"")) ->  | Y141: =IF(OR(B141=0,RIGHT(B141,2)="OR"),"",IFERROR(VLOOKUP(TEXT(B141,"0000"),Valuations!$E:$S,3,FALSE),"")) ->  | Z141: =IF(OR(B141=0,RIGHT(B141,2)="OR"),"",IFERROR(VLOOKUP(TEXT(B141,"0000"),Valuations!$E:$S,4,FALSE),"")) -> 
A142: 0 | B142: 0 | C142: 0 | D142: 0 | F142: 0 | H142: 0 | I142: 0 | J142: 0 | K142: 0 | L142: 0 | M142: 0 | N142: 0 | O142: 0 | P142: 0 | Q142: 0 | X142: =IF(OR(B142=0,RIGHT(B142,2)="OR"),"",IFERROR(VLOOKUP(TEXT(B142,"0000"),Valuations!$E:$S,2,FALSE),"")) ->  | Y142: =IF(OR(B142=0,RIGHT(B142,2)="OR"),"",IFERROR(VLOOKUP(TEXT(B142,"0000"),Valuations!$E:$S,3,FALSE),"")) ->  | Z142: =IF(OR(B142=0,RIGHT(B142,2)="OR"),"",IFERROR(VLOOKUP(TEXT(B142,"0000"),Valuations!$E:$S,4,FALSE),"")) -> 
A143: 0 | B143: 0 | C143: 0 | D143: 0 | F143: 0 | H143: 0 | I143: 0 | J143: 0 | K143: 0 | L143: 0 | M143: 0 | N143: 0 | O143: 0 | P143: 0 | Q143: 0 | X143: =IF(OR(B143=0,RIGHT(B143,2)="OR"),"",IFERROR(VLOOKUP(TEXT(B143,"0000"),Valuations!$E:$S,2,FALSE),"")) ->  | Y143: =IF(OR(B143=0,RIGHT(B143,2)="OR"),"",IFERROR(VLOOKUP(TEXT(B143,"0000"),Valuations!$E:$S,3,FALSE),"")) ->  | Z143: =IF(OR(B143=0,RIGHT(B143,2)="OR"),"",IFERROR(VLOOKUP(TEXT(B143,"0000"),Valuations!$E:$S,4,FALSE),"")) -> 
A144: 0 | B144: 0 | C144: 0 | D144: 0 | F144: 0 | H144: 0 | I144: 0 | J144: 0 | K144: 0 | L144: 0 | M144: 0 | N144: 0 | O144: 0 | P144: 0 | Q144: 0 | X144: =IF(OR(B144=0,RIGHT(B144,2)="OR"),"",IFERROR(VLOOKUP(TEXT(B144,"0000"),Valuations!$E:$S,2,FALSE),"")) ->  | Y144: =IF(OR(B144=0,RIGHT(B144,2)="OR"),"",IFERROR(VLOOKUP(TEXT(B144,"0000"),Valuations!$E:$S,3,FALSE),"")) ->  | Z144: =IF(OR(B144=0,RIGHT(B144,2)="OR"),"",IFERROR(VLOOKUP(TEXT(B144,"0000"),Valuations!$E:$S,4,FALSE),"")) -> 
A145: 0 | B145: 0 | C145: 0 | D145: 0 | F145: 0 | H145: 0 | I145: 0 | J145: 0 | K145: 0 | L145: 0 | M145: 0 | N145: 0 | O145: 0 | P145: 0 | Q145: 0 | X145: =IF(OR(B145=0,RIGHT(B145,2)="OR"),"",IFERROR(VLOOKUP(TEXT(B145,"0000"),Valuations!$E:$S,2,FALSE),"")) ->  | Y145: =IF(OR(B145=0,RIGHT(B145,2)="OR"),"",IFERROR(VLOOKUP(TEXT(B145,"0000"),Valuations!$E:$S,3,FALSE),"")) ->  | Z145: =IF(OR(B145=0,RIGHT(B145,2)="OR"),"",IFERROR(VLOOKUP(TEXT(B145,"0000"),Valuations!$E:$S,4,FALSE),"")) -> 
A146: 0 | B146: 0 | C146: 0 | D146: 0 | F146: 0 | H146: 0 | I146: 0 | J146: 0 | K146: 0 | L146: 0 | M146: 0 | N146: 0 | O146: 0 | P146: 0 | Q146: 0 | X146: =IF(OR(B146=0,RIGHT(B146,2)="OR"),"",IFERROR(VLOOKUP(TEXT(B146,"0000"),Valuations!$E:$S,2,FALSE),"")) ->  | Y146: =IF(OR(B146=0,RIGHT(B146,2)="OR"),"",IFERROR(VLOOKUP(TEXT(B146,"0000"),Valuations!$E:$S,3,FALSE),"")) ->  | Z146: =IF(OR(B146=0,RIGHT(B146,2)="OR"),"",IFERROR(VLOOKUP(TEXT(B146,"0000"),Valuations!$E:$S,4,FALSE),"")) -> 
A147: 0 | B147: 0 | C147: 0 | D147: 0 | F147: 0 | H147: 0 | I147: 0 | J147: 0 | K147: 0 | L147: 0 | M147: 0 | N147: 0 | O147: 0 | P147: 0 | Q147: 0 | X147: =IF(OR(B147=0,RIGHT(B147,2)="OR"),"",IFERROR(VLOOKUP(TEXT(B147,"0000"),Valuations!$E:$S,2,FALSE),"")) ->  | Y147: =IF(OR(B147=0,RIGHT(B147,2)="OR"),"",IFERROR(VLOOKUP(TEXT(B147,"0000"),Valuations!$E:$S,3,FALSE),"")) ->  | Z147: =IF(OR(B147=0,RIGHT(B147,2)="OR"),"",IFERROR(VLOOKUP(TEXT(B147,"0000"),Valuations!$E:$S,4,FALSE),"")) ->  | AD147: =IF(OR($H$202=0,$H$202="",H147="",R147=""),"",R147*H147/$H$202) -> 
A148: 0 | B148: 0 | C148: 0 | D148: 0 | F148: 0 | H148: 0 | I148: 0 | J148: 0 | K148: 0 | L148: 0 | M148: 0 | N148: 0 | O148: 0 | P148: 0 | Q148: 0 | X148: =IF(OR(B148=0,RIGHT(B148,2)="OR"),"",IFERROR(VLOOKUP(TEXT(B148,"0000"),Valuations!$E:$S,2,FALSE),"")) ->  | Y148: =IF(OR(B148=0,RIGHT(B148,2)="OR"),"",IFERROR(VLOOKUP(TEXT(B148,"0000"),Valuations!$E:$S,3,FALSE),"")) ->  | Z148: =IF(OR(B148=0,RIGHT(B148,2)="OR"),"",IFERROR(VLOOKUP(TEXT(B148,"0000"),Valuations!$E:$S,4,FALSE),"")) -> 
A149: 0 | B149: 0 | C149: 0 | D149: 0 | F149: 0 | H149: 0 | I149: 0 | J149: 0 | K149: 0 | L149: 0 | M149: 0 | N149: 0 | O149: 0 | P149: 0 | Q149: 0 | X149: =IF(OR(B149=0,RIGHT(B149,2)="OR"),"",IFERROR(VLOOKUP(TEXT(B149,"0000"),Valuations!$E:$S,2,FALSE),"")) ->  | Y149: =IF(OR(B149=0,RIGHT(B149,2)="OR"),"",IFERROR(VLOOKUP(TEXT(B149,"0000"),Valuations!$E:$S,3,FALSE),"")) ->  | Z149: =IF(OR(B149=0,RIGHT(B149,2)="OR"),"",IFERROR(VLOOKUP(TEXT(B149,"0000"),Valuations!$E:$S,4,FALSE),"")) -> 
A150: 0 | B150: 0 | C150: 0 | D150: 0 | F150: 0 | H150: 0 | I150: 0 | J150: 0 | K150: 0 | L150: 0 | M150: 0 | N150: 0 | O150: 0 | P150: 0 | Q150: 0 | X150: =IF(OR(B150=0,RIGHT(B150,2)="OR"),"",IFERROR(VLOOKUP(TEXT(B150,"0000"),Valuations!$E:$S,2,FALSE),"")) ->  | Y150: =IF(OR(B150=0,RIGHT(B150,2)="OR"),"",IFERROR(VLOOKUP(TEXT(B150,"0000"),Valuations!$E:$S,3,FALSE),"")) ->  | Z150: =IF(OR(B150=0,RIGHT(B150,2)="OR"),"",IFERROR(VLOOKUP(TEXT(B150,"0000"),Valuations!$E:$S,4,FALSE),"")) -> 
A151: 0 | B151: 0 | C151: 0 | D151: 0 | F151: 0 | H151: 0 | I151: 0 | J151: 0 | K151: 0 | L151: 0 | M151: 0 | N151: 0 | O151: 0 | P151: 0 | Q151: 0 | X151: =IF(OR(B151=0,RIGHT(B151,2)="OR"),"",IFERROR(VLOOKUP(TEXT(B151,"0000"),Valuations!$E:$S,2,FALSE),"")) ->  | Y151: =IF(OR(B151=0,RIGHT(B151,2)="OR"),"",IFERROR(VLOOKUP(TEXT(B151,"0000"),Valuations!$E:$S,3,FALSE),"")) ->  | Z151: =IF(OR(B151=0,RIGHT(B151,2)="OR"),"",IFERROR(VLOOKUP(TEXT(B151,"0000"),Valuations!$E:$S,4,FALSE),"")) -> 
A152: 0 | B152: 0 | C152: 0 | D152: 0 | F152: 0 | H152: 0 | I152: 0 | J152: 0 | K152: 0 | L152: 0 | M152: 0 | N152: 0 | O152: 0 | P152: 0 | Q152: 0 | X152: =IF(OR(B152=0,RIGHT(B152,2)="OR"),"",IFERROR(VLOOKUP(TEXT(B152,"0000"),Valuations!$E:$S,2,FALSE),"")) ->  | Y152: =IF(OR(B152=0,RIGHT(B152,2)="OR"),"",IFERROR(VLOOKUP(TEXT(B152,"0000"),Valuations!$E:$S,3,FALSE),"")) ->  | Z152: =IF(OR(B152=0,RIGHT(B152,2)="OR"),"",IFERROR(VLOOKUP(TEXT(B152,"0000"),Valuations!$E:$S,4,FALSE),"")) -> 
A153: 0 | B153: 0 | C153: 0 | D153: 0 | F153: 0 | H153: 0 | I153: 0 | J153: 0 | K153: 0 | L153: 0 | M153: 0 | N153: 0 | O153: 0 | P153: 0 | Q153: 0 | X153: =IF(OR(B153=0,RIGHT(B153,2)="OR"),"",IFERROR(VLOOKUP(TEXT(B153,"0000"),Valuations!$E:$S,2,FALSE),"")) ->  | Y153: =IF(OR(B153=0,RIGHT(B153,2)="OR"),"",IFERROR(VLOOKUP(TEXT(B153,"0000"),Valuations!$E:$S,3,FALSE),"")) ->  | Z153: =IF(OR(B153=0,RIGHT(B153,2)="OR"),"",IFERROR(VLOOKUP(TEXT(B153,"0000"),Valuations!$E:$S,4,FALSE),"")) -> 
A154: 0 | B154: 0 | C154: 0 | D154: 0 | F154: 0 | H154: 0 | I154: 0 | J154: 0 | K154: 0 | L154: 0 | M154: 0 | N154: 0 | O154: 0 | P154: 0 | Q154: 0 | X154: =IF(OR(B154=0,RIGHT(B154,2)="OR"),"",IFERROR(VLOOKUP(TEXT(B154,"0000"),Valuations!$E:$S,2,FALSE),"")) ->  | Y154: =IF(OR(B154=0,RIGHT(B154,2)="OR"),"",IFERROR(VLOOKUP(TEXT(B154,"0000"),Valuations!$E:$S,3,FALSE),"")) ->  | Z154: =IF(OR(B154=0,RIGHT(B154,2)="OR"),"",IFERROR(VLOOKUP(TEXT(B154,"0000"),Valuations!$E:$S,4,FALSE),"")) -> 
A155: 0 | B155: 0 | C155: 0 | D155: 0 | F155: 0 | H155: 0 | I155: 0 | J155: 0 | K155: 0 | L155: 0 | M155: 0 | N155: 0 | O155: 0 | P155: 0 | Q155: 0 | X155: =IF(OR(B155=0,RIGHT(B155,2)="OR"),"",IFERROR(VLOOKUP(TEXT(B155,"0000"),Valuations!$E:$S,2,FALSE),"")) ->  | Y155: =IF(OR(B155=0,RIGHT(B155,2)="OR"),"",IFERROR(VLOOKUP(TEXT(B155,"0000"),Valuations!$E:$S,3,FALSE),"")) ->  | Z155: =IF(OR(B155=0,RIGHT(B155,2)="OR"),"",IFERROR(VLOOKUP(TEXT(B155,"0000"),Valuations!$E:$S,4,FALSE),"")) -> 
A156: 0 | B156: 0 | C156: 0 | D156: 0 | F156: 0 | H156: 0 | I156: 0 | J156: 0 | K156: 0 | L156: 0 | M156: =IF(SumTotalMarketValue=0,0,J156/SumTotalMarketValue) -> 0 | N156: =IF(FundCode="KHAZANAH",J156/$J$320,IF(NAVValue=0,0,J156/NAVValue)) -> 0 | O156: 0 | P156: 0 | Q156: 0 | X156: =IF(OR(B156=0,RIGHT(B156,2)="OR"),"",IFERROR(VLOOKUP(TEXT(B156,"0000"),Valuations!$E:$S,2,FALSE),"")) ->  | Y156: =IF(OR(B156=0,RIGHT(B156,2)="OR"),"",IFERROR(VLOOKUP(TEXT(B156,"0000"),Valuations!$E:$S,3,FALSE),"")) ->  | Z156: =IF(OR(B156=0,RIGHT(B156,2)="OR"),"",IFERROR(VLOOKUP(TEXT(B156,"0000"),Valuations!$E:$S,4,FALSE),"")) -> 
A157: 0 | B157: 0 | C157: 0 | D157: 0 | F157: 0 | H157: 0 | I157: 0 | J157: 0 | K157: 0 | L157: 0 | M157: 0 | N157: 0 | O157: 0 | P157: 0 | Q157: 0 | X157: =IF(OR(B157=0,RIGHT(B157,2)="OR"),"",IFERROR(VLOOKUP(TEXT(B157,"0000"),Valuations!$E:$S,2,FALSE),"")) ->  | Y157: =IF(OR(B157=0,RIGHT(B157,2)="OR"),"",IFERROR(VLOOKUP(TEXT(B157,"0000"),Valuations!$E:$S,3,FALSE),"")) ->  | Z157: =IF(OR(B157=0,RIGHT(B157,2)="OR"),"",IFERROR(VLOOKUP(TEXT(B157,"0000"),Valuations!$E:$S,4,FALSE),"")) -> 
A158: 0 | B158: 0 | C158: 0 | D158: 0 | F158: 0 | H158: 0 | I158: 0 | J158: 0 | K158: 0 | L158: 0 | M158: 0 | N158: 0 | O158: 0 | P158: 0 | Q158: 0 | X158: =IF(OR(B158=0,RIGHT(B158,2)="OR"),"",IFERROR(VLOOKUP(TEXT(B158,"0000"),Valuations!$E:$S,2,FALSE),"")) ->  | Y158: =IF(OR(B158=0,RIGHT(B158,2)="OR"),"",IFERROR(VLOOKUP(TEXT(B158,"0000"),Valuations!$E:$S,3,FALSE),"")) ->  | Z158: =IF(OR(B158=0,RIGHT(B158,2)="OR"),"",IFERROR(VLOOKUP(TEXT(B158,"0000"),Valuations!$E:$S,4,FALSE),"")) -> 
A159: 0 | B159: 0 | C159: 0 | D159: 0 | F159: 0 | H159: 0 | I159: 0 | J159: 0 | K159: 0 | L159: 0 | M159: 0 | N159: 0 | O159: 0 | P159: 0 | Q159: 0 | X159: =IF(OR(B159=0,RIGHT(B159,2)="OR"),"",IFERROR(VLOOKUP(TEXT(B159,"0000"),Valuations!$E:$S,2,FALSE),"")) ->  | Y159: =IF(OR(B159=0,RIGHT(B159,2)="OR"),"",IFERROR(VLOOKUP(TEXT(B159,"0000"),Valuations!$E:$S,3,FALSE),"")) ->  | Z159: =IF(OR(B159=0,RIGHT(B159,2)="OR"),"",IFERROR(VLOOKUP(TEXT(B159,"0000"),Valuations!$E:$S,4,FALSE),"")) -> 
A160: 0 | B160: 0 | C160: 0 | D160: 0 | F160: 0 | H160: 0 | I160: 0 | J160: 0 | K160: 0 | L160: 0 | M160: 0 | N160: 0 | O160: 0 | P160: 0 | Q160: 0 | X160: =IF(OR(B160=0,RIGHT(B160,2)="OR"),"",IFERROR(VLOOKUP(TEXT(B160,"0000"),Valuations!$E:$S,2,FALSE),"")) ->  | Y160: =IF(OR(B160=0,RIGHT(B160,2)="OR"),"",IFERROR(VLOOKUP(TEXT(B160,"0000"),Valuations!$E:$S,3,FALSE),"")) ->  | Z160: =IF(OR(B160=0,RIGHT(B160,2)="OR"),"",IFERROR(VLOOKUP(TEXT(B160,"0000"),Valuations!$E:$S,4,FALSE),"")) -> 
A161: 0 | B161: 0 | C161: 0 | D161: 0 | F161: 0 | H161: 0 | I161: 0 | J161: 0 | K161: 0 | L161: 0 | M161: 0 | N161: 0 | O161: 0 | P161: 0 | Q161: 0 | X161: =IF(OR(B161=0,RIGHT(B161,2)="OR"),"",IFERROR(VLOOKUP(TEXT(B161,"0000"),Valuations!$E:$S,2,FALSE),"")) ->  | Y161: =IF(OR(B161=0,RIGHT(B161,2)="OR"),"",IFERROR(VLOOKUP(TEXT(B161,"0000"),Valuations!$E:$S,3,FALSE),"")) ->  | Z161: =IF(OR(B161=0,RIGHT(B161,2)="OR"),"",IFERROR(VLOOKUP(TEXT(B161,"0000"),Valuations!$E:$S,4,FALSE),"")) -> 
A162: 0 | B162: 0 | C162: 0 | D162: 0 | F162: 0 | H162: 0 | I162: 0 | J162: 0 | K162: 0 | L162: 0 | M162: 0 | N162: 0 | O162: 0 | P162: 0 | Q162: 0 | X162: =IF(OR(B162=0,RIGHT(B162,2)="OR"),"",IFERROR(VLOOKUP(TEXT(B162,"0000"),Valuations!$E:$S,2,FALSE),"")) ->  | Y162: =IF(OR(B162=0,RIGHT(B162,2)="OR"),"",IFERROR(VLOOKUP(TEXT(B162,"0000"),Valuations!$E:$S,3,FALSE),"")) ->  | Z162: =IF(OR(B162=0,RIGHT(B162,2)="OR"),"",IFERROR(VLOOKUP(TEXT(B162,"0000"),Valuations!$E:$S,4,FALSE),"")) -> 
A163: 0 | B163: 0 | C163: 0 | D163: 0 | F163: 0 | H163: 0 | I163: 0 | J163: 0 | K163: 0 | L163: 0 | M163: 0 | N163: 0 | O163: 0 | P163: 0 | Q163: 0 | X163: =IF(OR(B163=0,RIGHT(B163,2)="OR"),"",IFERROR(VLOOKUP(TEXT(B163,"0000"),Valuations!$E:$S,2,FALSE),"")) ->  | Y163: =IF(OR(B163=0,RIGHT(B163,2)="OR"),"",IFERROR(VLOOKUP(TEXT(B163,"0000"),Valuations!$E:$S,3,FALSE),"")) ->  | Z163: =IF(OR(B163=0,RIGHT(B163,2)="OR"),"",IFERROR(VLOOKUP(TEXT(B163,"0000"),Valuations!$E:$S,4,FALSE),"")) -> 
A164: 0 | B164: 0 | C164: 0 | D164: 0 | F164: 0 | H164: 0 | I164: 0 | J164: 0 | K164: 0 | L164: 0 | M164: 0 | N164: 0 | O164: 0 | P164: 0 | Q164: 0 | X164: =IF(OR(B164=0,RIGHT(B164,2)="OR"),"",IFERROR(VLOOKUP(TEXT(B164,"0000"),Valuations!$E:$S,2,FALSE),"")) ->  | Y164: =IF(OR(B164=0,RIGHT(B164,2)="OR"),"",IFERROR(VLOOKUP(TEXT(B164,"0000"),Valuations!$E:$S,3,FALSE),"")) ->  | Z164: =IF(OR(B164=0,RIGHT(B164,2)="OR"),"",IFERROR(VLOOKUP(TEXT(B164,"0000"),Valuations!$E:$S,4,FALSE),"")) -> 
A165: 0 | B165: 0 | C165: 0 | D165: 0 | F165: 0 | H165: 0 | I165: 0 | J165: 0 | K165: 0 | L165: 0 | M165: 0 | N165: 0 | O165: 0 | P165: 0 | Q165: 0 | X165: =IF(OR(B165=0,RIGHT(B165,2)="OR"),"",IFERROR(VLOOKUP(TEXT(B165,"0000"),Valuations!$E:$S,2,FALSE),"")) ->  | Y165: =IF(OR(B165=0,RIGHT(B165,2)="OR"),"",IFERROR(VLOOKUP(TEXT(B165,"0000"),Valuations!$E:$S,3,FALSE),"")) ->  | Z165: =IF(OR(B165=0,RIGHT(B165,2)="OR"),"",IFERROR(VLOOKUP(TEXT(B165,"0000"),Valuations!$E:$S,4,FALSE),"")) -> 
A166: 0 | B166: 0 | C166: 0 | D166: 0 | F166: 0 | H166: 0 | I166: 0 | J166: 0 | K166: 0 | L166: 0 | M166: 0 | N166: 0 | O166: 0 | P166: 0 | Q166: 0 | X166: =IF(OR(B166=0,RIGHT(B166,2)="OR"),"",IFERROR(VLOOKUP(TEXT(B166,"0000"),Valuations!$E:$S,2,FALSE),"")) ->  | Y166: =IF(OR(B166=0,RIGHT(B166,2)="OR"),"",IFERROR(VLOOKUP(TEXT(B166,"0000"),Valuations!$E:$S,3,FALSE),"")) ->  | Z166: =IF(OR(B166=0,RIGHT(B166,2)="OR"),"",IFERROR(VLOOKUP(TEXT(B166,"0000"),Valuations!$E:$S,4,FALSE),"")) -> 
A167: 0 | B167: 0 | C167: 0 | D167: 0 | F167: 0 | H167: 0 | I167: 0 | J167: 0 | K167: 0 | L167: 0 | M167: 0 | N167: 0 | O167: 0 | P167: 0 | Q167: 0 | X167: =IF(OR(B167=0,RIGHT(B167,2)="OR"),"",IFERROR(VLOOKUP(TEXT(B167,"0000"),Valuations!$E:$S,2,FALSE),"")) ->  | Y167: =IF(OR(B167=0,RIGHT(B167,2)="OR"),"",IFERROR(VLOOKUP(TEXT(B167,"0000"),Valuations!$E:$S,3,FALSE),"")) ->  | Z167: =IF(OR(B167=0,RIGHT(B167,2)="OR"),"",IFERROR(VLOOKUP(TEXT(B167,"0000"),Valuations!$E:$S,4,FALSE),"")) -> 
A168: 0 | B168: 0 | C168: 0 | D168: 0 | F168: 0 | H168: 0 | I168: 0 | J168: 0 | K168: 0 | L168: 0 | M168: 0 | N168: 0 | O168: 0 | P168: 0 | Q168: 0 | X168: =IF(OR(B168=0,RIGHT(B168,2)="OR"),"",IFERROR(VLOOKUP(TEXT(B168,"0000"),Valuations!$E:$S,2,FALSE),"")) ->  | Y168: =IF(OR(B168=0,RIGHT(B168,2)="OR"),"",IFERROR(VLOOKUP(TEXT(B168,"0000"),Valuations!$E:$S,3,FALSE),"")) ->  | Z168: =IF(OR(B168=0,RIGHT(B168,2)="OR"),"",IFERROR(VLOOKUP(TEXT(B168,"0000"),Valuations!$E:$S,4,FALSE),"")) -> 
A169: 0 | B169: 0 | C169: 0 | D169: 0 | F169: 0 | H169: 0 | I169: 0 | J169: 0 | K169: 0 | L169: 0 | M169: 0 | N169: 0 | O169: 0 | P169: 0 | Q169: 0 | X169: =IF(OR(B169=0,RIGHT(B169,2)="OR"),"",IFERROR(VLOOKUP(TEXT(B169,"0000"),Valuations!$E:$S,2,FALSE),"")) ->  | Y169: =IF(OR(B169=0,RIGHT(B169,2)="OR"),"",IFERROR(VLOOKUP(TEXT(B169,"0000"),Valuations!$E:$S,3,FALSE),"")) ->  | Z169: =IF(OR(B169=0,RIGHT(B169,2)="OR"),"",IFERROR(VLOOKUP(TEXT(B169,"0000"),Valuations!$E:$S,4,FALSE),"")) -> 
A170: 0 | B170: 0 | C170: 0 | D170: 0 | F170: 0 | H170: 0 | I170: 0 | J170: 0 | K170: 0 | L170: 0 | M170: 0 | N170: 0 | O170: 0 | P170: 0 | Q170: 0 | X170: =IF(OR(B170=0,RIGHT(B170,2)="OR"),"",IFERROR(VLOOKUP(TEXT(B170,"0000"),Valuations!$E:$S,2,FALSE),"")) ->  | Y170: =IF(OR(B170=0,RIGHT(B170,2)="OR"),"",IFERROR(VLOOKUP(TEXT(B170,"0000"),Valuations!$E:$S,3,FALSE),"")) ->  | Z170: =IF(OR(B170=0,RIGHT(B170,2)="OR"),"",IFERROR(VLOOKUP(TEXT(B170,"0000"),Valuations!$E:$S,4,FALSE),"")) -> 
A171: 0 | B171: 0 | C171: 0 | D171: 0 | F171: 0 | H171: 0 | I171: 0 | J171: 0 | K171: 0 | L171: 0 | M171: 0 | N171: 0 | O171: 0 | P171: 0 | Q171: 0 | X171: =IF(OR(B171=0,RIGHT(B171,2)="OR"),"",IFERROR(VLOOKUP(TEXT(B171,"0000"),Valuations!$E:$S,2,FALSE),"")) ->  | Y171: =IF(OR(B171=0,RIGHT(B171,2)="OR"),"",IFERROR(VLOOKUP(TEXT(B171,"0000"),Valuations!$E:$S,3,FALSE),"")) ->  | Z171: =IF(OR(B171=0,RIGHT(B171,2)="OR"),"",IFERROR(VLOOKUP(TEXT(B171,"0000"),Valuations!$E:$S,4,FALSE),"")) -> 
A172: 0 | B172: 0 | C172: 0 | D172: 0 | F172: 0 | H172: 0 | I172: 0 | J172: 0 | K172: 0 | L172: 0 | M172: 0 | N172: 0 | O172: 0 | P172: 0 | Q172: 0 | X172: =IF(OR(B172=0,RIGHT(B172,2)="OR"),"",IFERROR(VLOOKUP(TEXT(B172,"0000"),Valuations!$E:$S,2,FALSE),"")) ->  | Y172: =IF(OR(B172=0,RIGHT(B172,2)="OR"),"",IFERROR(VLOOKUP(TEXT(B172,"0000"),Valuations!$E:$S,3,FALSE),"")) ->  | Z172: =IF(OR(B172=0,RIGHT(B172,2)="OR"),"",IFERROR(VLOOKUP(TEXT(B172,"0000"),Valuations!$E:$S,4,FALSE),"")) -> 
A173: 0 | B173: 0 | C173: 0 | D173: 0 | F173: 0 | H173: 0 | I173: 0 | J173: 0 | K173: 0 | L173: 0 | M173: 0 | N173: 0 | O173: 0 | P173: 0 | Q173: 0 | X173: =IF(OR(B173=0,RIGHT(B173,2)="OR"),"",IFERROR(VLOOKUP(TEXT(B173,"0000"),Valuations!$E:$S,2,FALSE),"")) ->  | Y173: =IF(OR(B173=0,RIGHT(B173,2)="OR"),"",IFERROR(VLOOKUP(TEXT(B173,"0000"),Valuations!$E:$S,3,FALSE),"")) ->  | Z173: =IF(OR(B173=0,RIGHT(B173,2)="OR"),"",IFERROR(VLOOKUP(TEXT(B173,"0000"),Valuations!$E:$S,4,FALSE),"")) -> 
A174: 0 | B174: 0 | C174: 0 | D174: 0 | F174: 0 | H174: 0 | I174: 0 | J174: 0 | K174: 0 | L174: 0 | M174: 0 | N174: 0 | O174: 0 | P174: 0 | Q174: 0 | X174: =IF(OR(B174=0,RIGHT(B174,2)="OR"),"",IFERROR(VLOOKUP(TEXT(B174,"0000"),Valuations!$E:$S,2,FALSE),"")) ->  | Y174: =IF(OR(B174=0,RIGHT(B174,2)="OR"),"",IFERROR(VLOOKUP(TEXT(B174,"0000"),Valuations!$E:$S,3,FALSE),"")) ->  | Z174: =IF(OR(B174=0,RIGHT(B174,2)="OR"),"",IFERROR(VLOOKUP(TEXT(B174,"0000"),Valuations!$E:$S,4,FALSE),"")) -> 
A175: 0 | B175: 0 | C175: 0 | D175: 0 | F175: 0 | H175: 0 | I175: 0 | J175: 0 | K175: 0 | L175: 0 | M175: 0 | N175: 0 | O175: 0 | P175: 0 | Q175: 0 | X175: =IF(OR(B175=0,RIGHT(B175,2)="OR"),"",IFERROR(VLOOKUP(TEXT(B175,"0000"),Valuations!$E:$S,2,FALSE),"")) ->  | Y175: =IF(OR(B175=0,RIGHT(B175,2)="OR"),"",IFERROR(VLOOKUP(TEXT(B175,"0000"),Valuations!$E:$S,3,FALSE),"")) ->  | Z175: =IF(OR(B175=0,RIGHT(B175,2)="OR"),"",IFERROR(VLOOKUP(TEXT(B175,"0000"),Valuations!$E:$S,4,FALSE),"")) -> 
A176: 0 | B176: 0 | C176: 0 | D176: 0 | F176: 0 | H176: 0 | I176: 0 | J176: 0 | K176: 0 | L176: 0 | M176: 0 | N176: 0 | O176: 0 | P176: 0 | Q176: 0 | X176: =IF(OR(B176=0,RIGHT(B176,2)="OR"),"",IFERROR(VLOOKUP(TEXT(B176,"0000"),Valuations!$E:$S,2,FALSE),"")) ->  | Y176: =IF(OR(B176=0,RIGHT(B176,2)="OR"),"",IFERROR(VLOOKUP(TEXT(B176,"0000"),Valuations!$E:$S,3,FALSE),"")) ->  | Z176: =IF(OR(B176=0,RIGHT(B176,2)="OR"),"",IFERROR(VLOOKUP(TEXT(B176,"0000"),Valuations!$E:$S,4,FALSE),"")) -> 
A177: 0 | B177: 0 | C177: 0 | D177: 0 | F177: 0 | H177: 0 | I177: 0 | J177: 0 | K177: 0 | L177: 0 | M177: 0 | N177: 0 | O177: 0 | P177: 0 | Q177: 0 | X177: =IF(OR(B177=0,RIGHT(B177,2)="OR"),"",IFERROR(VLOOKUP(TEXT(B177,"0000"),Valuations!$E:$S,2,FALSE),"")) ->  | Y177: =IF(OR(B177=0,RIGHT(B177,2)="OR"),"",IFERROR(VLOOKUP(TEXT(B177,"0000"),Valuations!$E:$S,3,FALSE),"")) ->  | Z177: =IF(OR(B177=0,RIGHT(B177,2)="OR"),"",IFERROR(VLOOKUP(TEXT(B177,"0000"),Valuations!$E:$S,4,FALSE),"")) -> 
A178: 0 | B178: 0 | C178: 0 | D178: 0 | F178: 0 | H178: 0 | I178: 0 | J178: 0 | K178: 0 | L178: 0 | M178: 0 | N178: 0 | O178: 0 | P178: 0 | Q178: 0 | X178: =IF(OR(B178=0,RIGHT(B178,2)="OR"),"",IFERROR(VLOOKUP(TEXT(B178,"0000"),Valuations!$E:$S,2,FALSE),"")) ->  | Y178: =IF(OR(B178=0,RIGHT(B178,2)="OR"),"",IFERROR(VLOOKUP(TEXT(B178,"0000"),Valuations!$E:$S,3,FALSE),"")) ->  | Z178: =IF(OR(B178=0,RIGHT(B178,2)="OR"),"",IFERROR(VLOOKUP(TEXT(B178,"0000"),Valuations!$E:$S,4,FALSE),"")) -> 
A179: 0 | B179: =OFFSET(Top,$A179,4) -> 0 | C179: =OFFSET(Top,$A179,2) -> 0 | D179: =OFFSET(Top,$A179,3) -> 0 | E179: =IF(ISNA(VLOOKUP(TEXT(B179,"0"),UniverseRange,2,0))=TRUE,"",VLOOKUP(TEXT(B179,"0"),UniverseRange,2,0)) ->  | F179: =OFFSET(Top,$A179,6) -> 0 | G179: =IF(OR(F179=0,H179=0,F179="",H179=""),"",H179/F179) ->  | H179: =OFFSET(Top,$A179,7) -> 0 | I179: =OFFSET(Top,$A179,10) -> 0 | J179: =OFFSET(Top,$A179,8) -> 0 | K179: =OFFSET(Top,$A179,11) -> 0 | L179: =IF(H179=0,0,K179/H179) -> 0 | M179: 0 | N179: 0 | O179: =OFFSET(Top,$A179,12)/1000 -> 0 | P179: =IF(O179=0,0,F179/O179/1000) -> 0 | Q179: =OFFSET(Top,$A179,9) -> 0 | R179: =IF(OR(G179=0,G179="",Z179=""),"",Z179/G179) ->  | S179: =IF(OR(I179=0,I179="",Z179=""),"",Z179/I179) ->  | T179: =IF(X179="","",X179) ->  | U179: =IF(OR(I179=0,I179="",X179="",X179=0),"",I179/X179) ->  | V179: =IF(OR(I179=0,I179="",Y179="",Y179=0),"",I179/Y179) ->  | X179: =IF(OR(B179=0,RIGHT(B179,2)="OR"),"",IFERROR(VLOOKUP(TEXT(B179,"0000"),Valuations!$E:$S,2,FALSE),"")) ->  | Y179: =IF(OR(B179=0,RIGHT(B179,2)="OR"),"",IFERROR(VLOOKUP(TEXT(B179,"0000"),Valuations!$E:$S,3,FALSE),"")) ->  | Z179: =IF(OR(B179=0,RIGHT(B179,2)="OR"),"",IFERROR(VLOOKUP(TEXT(B179,"0000"),Valuations!$E:$S,4,FALSE),"")) -> 
A180: 0 | B180: 0 | C180: 0 | D180: 0 | F180: 0 | H180: 0 | I180: 0 | J180: 0 | K180: 0 | L180: 0 | M180: 0 | N180: 0 | O180: 0 | P180: 0 | Q180: 0 | X180: =IF(OR(B180=0,RIGHT(B180,2)="OR"),"",IFERROR(VLOOKUP(TEXT(B180,"0000"),Valuations!$E:$S,2,FALSE),"")) ->  | Y180: =IF(OR(B180=0,RIGHT(B180,2)="OR"),"",IFERROR(VLOOKUP(TEXT(B180,"0000"),Valuations!$E:$S,3,FALSE),"")) ->  | Z180: =IF(OR(B180=0,RIGHT(B180,2)="OR"),"",IFERROR(VLOOKUP(TEXT(B180,"0000"),Valuations!$E:$S,4,FALSE),"")) -> 
A181: 0 | B181: 0 | C181: 0 | D181: 0 | F181: 0 | H181: 0 | I181: 0 | J181: 0 | K181: 0 | L181: 0 | M181: 0 | N181: 0 | O181: 0 | P181: 0 | Q181: 0 | X181: =IF(OR(B181=0,RIGHT(B181,2)="OR"),"",IFERROR(VLOOKUP(TEXT(B181,"0000"),Valuations!$E:$S,2,FALSE),"")) ->  | Y181: =IF(OR(B181=0,RIGHT(B181,2)="OR"),"",IFERROR(VLOOKUP(TEXT(B181,"0000"),Valuations!$E:$S,3,FALSE),"")) ->  | Z181: =IF(OR(B181=0,RIGHT(B181,2)="OR"),"",IFERROR(VLOOKUP(TEXT(B181,"0000"),Valuations!$E:$S,4,FALSE),"")) -> 
A182: 0 | B182: 0 | C182: 0 | D182: 0 | F182: 0 | H182: 0 | I182: 0 | J182: 0 | K182: 0 | L182: 0 | M182: 0 | N182: 0 | O182: 0 | P182: 0 | Q182: 0 | X182: =IF(OR(B182=0,RIGHT(B182,2)="OR"),"",IFERROR(VLOOKUP(TEXT(B182,"0000"),Valuations!$E:$S,2,FALSE),"")) ->  | Y182: =IF(OR(B182=0,RIGHT(B182,2)="OR"),"",IFERROR(VLOOKUP(TEXT(B182,"0000"),Valuations!$E:$S,3,FALSE),"")) ->  | Z182: =IF(OR(B182=0,RIGHT(B182,2)="OR"),"",IFERROR(VLOOKUP(TEXT(B182,"0000"),Valuations!$E:$S,4,FALSE),"")) -> 
A183: 0 | B183: 0 | C183: 0 | D183: 0 | F183: 0 | H183: 0 | I183: 0 | J183: 0 | K183: 0 | L183: 0 | M183: 0 | N183: 0 | O183: 0 | P183: 0 | Q183: 0 | X183: =IF(OR(B183=0,RIGHT(B183,2)="OR"),"",IFERROR(VLOOKUP(TEXT(B183,"0000"),Valuations!$E:$S,2,FALSE),"")) ->  | Y183: =IF(OR(B183=0,RIGHT(B183,2)="OR"),"",IFERROR(VLOOKUP(TEXT(B183,"0000"),Valuations!$E:$S,3,FALSE),"")) ->  | Z183: =IF(OR(B183=0,RIGHT(B183,2)="OR"),"",IFERROR(VLOOKUP(TEXT(B183,"0000"),Valuations!$E:$S,4,FALSE),"")) -> 
A184: 0 | B184: 0 | C184: 0 | D184: 0 | F184: 0 | H184: 0 | I184: 0 | J184: 0 | K184: 0 | L184: 0 | M184: 0 | N184: 0 | O184: 0 | P184: 0 | Q184: 0 | X184: =IF(OR(B184=0,RIGHT(B184,2)="OR"),"",IFERROR(VLOOKUP(TEXT(B184,"0000"),Valuations!$E:$S,2,FALSE),"")) ->  | Y184: =IF(OR(B184=0,RIGHT(B184,2)="OR"),"",IFERROR(VLOOKUP(TEXT(B184,"0000"),Valuations!$E:$S,3,FALSE),"")) ->  | Z184: =IF(OR(B184=0,RIGHT(B184,2)="OR"),"",IFERROR(VLOOKUP(TEXT(B184,"0000"),Valuations!$E:$S,4,FALSE),"")) -> 
A185: 0 | B185: 0 | C185: 0 | D185: 0 | F185: 0 | H185: 0 | I185: 0 | J185: 0 | K185: 0 | L185: 0 | M185: 0 | N185: 0 | O185: 0 | P185: 0 | Q185: 0 | X185: =IF(OR(B185=0,RIGHT(B185,2)="OR"),"",IFERROR(VLOOKUP(TEXT(B185,"0000"),Valuations!$E:$S,2,FALSE),"")) ->  | Y185: =IF(OR(B185=0,RIGHT(B185,2)="OR"),"",IFERROR(VLOOKUP(TEXT(B185,"0000"),Valuations!$E:$S,3,FALSE),"")) ->  | Z185: =IF(OR(B185=0,RIGHT(B185,2)="OR"),"",IFERROR(VLOOKUP(TEXT(B185,"0000"),Valuations!$E:$S,4,FALSE),"")) -> 
A186: 0 | B186: 0 | C186: 0 | D186: 0 | F186: 0 | H186: 0 | I186: 0 | J186: 0 | K186: 0 | L186: 0 | M186: 0 | N186: 0 | O186: 0 | P186: 0 | Q186: 0 | X186: =IF(OR(B186=0,RIGHT(B186,2)="OR"),"",IFERROR(VLOOKUP(TEXT(B186,"0000"),Valuations!$E:$S,2,FALSE),"")) ->  | Y186: =IF(OR(B186=0,RIGHT(B186,2)="OR"),"",IFERROR(VLOOKUP(TEXT(B186,"0000"),Valuations!$E:$S,3,FALSE),"")) ->  | Z186: =IF(OR(B186=0,RIGHT(B186,2)="OR"),"",IFERROR(VLOOKUP(TEXT(B186,"0000"),Valuations!$E:$S,4,FALSE),"")) -> 
A187: 0 | B187: 0 | C187: 0 | D187: 0 | F187: 0 | H187: 0 | I187: 0 | J187: 0 | K187: 0 | L187: 0 | M187: 0 | N187: 0 | O187: 0 | P187: 0 | Q187: 0 | X187: =IF(OR(B187=0,RIGHT(B187,2)="OR"),"",IFERROR(VLOOKUP(TEXT(B187,"0000"),Valuations!$E:$S,2,FALSE),"")) ->  | Y187: =IF(OR(B187=0,RIGHT(B187,2)="OR"),"",IFERROR(VLOOKUP(TEXT(B187,"0000"),Valuations!$E:$S,3,FALSE),"")) ->  | Z187: =IF(OR(B187=0,RIGHT(B187,2)="OR"),"",IFERROR(VLOOKUP(TEXT(B187,"0000"),Valuations!$E:$S,4,FALSE),"")) -> 
A188: 0 | B188: 0 | C188: 0 | D188: 0 | F188: 0 | H188: 0 | I188: 0 | J188: 0 | K188: 0 | L188: 0 | M188: 0 | N188: 0 | O188: 0 | P188: 0 | Q188: 0 | X188: =IF(OR(B188=0,RIGHT(B188,2)="OR"),"",IFERROR(VLOOKUP(TEXT(B188,"0000"),Valuations!$E:$S,2,FALSE),"")) ->  | Y188: =IF(OR(B188=0,RIGHT(B188,2)="OR"),"",IFERROR(VLOOKUP(TEXT(B188,"0000"),Valuations!$E:$S,3,FALSE),"")) ->  | Z188: =IF(OR(B188=0,RIGHT(B188,2)="OR"),"",IFERROR(VLOOKUP(TEXT(B188,"0000"),Valuations!$E:$S,4,FALSE),"")) -> 
A189: 0 | B189: 0 | C189: 0 | D189: 0 | F189: 0 | H189: 0 | I189: 0 | J189: 0 | K189: 0 | L189: 0 | M189: 0 | N189: 0 | O189: 0 | P189: 0 | Q189: 0 | X189: =IF(OR(B189=0,RIGHT(B189,2)="OR"),"",IFERROR(VLOOKUP(TEXT(B189,"0000"),Valuations!$E:$S,2,FALSE),"")) ->  | Y189: =IF(OR(B189=0,RIGHT(B189,2)="OR"),"",IFERROR(VLOOKUP(TEXT(B189,"0000"),Valuations!$E:$S,3,FALSE),"")) ->  | Z189: =IF(OR(B189=0,RIGHT(B189,2)="OR"),"",IFERROR(VLOOKUP(TEXT(B189,"0000"),Valuations!$E:$S,4,FALSE),"")) -> 
A190: 0 | B190: 0 | C190: 0 | D190: 0 | F190: 0 | H190: 0 | I190: 0 | J190: 0 | K190: 0 | L190: 0 | M190: 0 | N190: 0 | O190: 0 | P190: 0 | Q190: 0 | X190: =IF(OR(B190=0,RIGHT(B190,2)="OR"),"",IFERROR(VLOOKUP(TEXT(B190,"0000"),Valuations!$E:$S,2,FALSE),"")) ->  | Y190: =IF(OR(B190=0,RIGHT(B190,2)="OR"),"",IFERROR(VLOOKUP(TEXT(B190,"0000"),Valuations!$E:$S,3,FALSE),"")) ->  | Z190: =IF(OR(B190=0,RIGHT(B190,2)="OR"),"",IFERROR(VLOOKUP(TEXT(B190,"0000"),Valuations!$E:$S,4,FALSE),"")) -> 
A191: 0 | B191: 0 | C191: 0 | D191: 0 | F191: 0 | H191: 0 | I191: 0 | J191: 0 | K191: 0 | L191: 0 | M191: 0 | N191: 0 | O191: 0 | P191: 0 | Q191: 0 | X191: =IF(OR(B191=0,RIGHT(B191,2)="OR"),"",IFERROR(VLOOKUP(TEXT(B191,"0000"),Valuations!$E:$S,2,FALSE),"")) ->  | Y191: =IF(OR(B191=0,RIGHT(B191,2)="OR"),"",IFERROR(VLOOKUP(TEXT(B191,"0000"),Valuations!$E:$S,3,FALSE),"")) ->  | Z191: =IF(OR(B191=0,RIGHT(B191,2)="OR"),"",IFERROR(VLOOKUP(TEXT(B191,"0000"),Valuations!$E:$S,4,FALSE),"")) -> 
A192: 0 | B192: 0 | C192: 0 | D192: 0 | F192: 0 | H192: 0 | I192: 0 | J192: 0 | K192: 0 | L192: 0 | M192: 0 | N192: 0 | O192: 0 | P192: 0 | Q192: 0 | X192: =IF(OR(B192=0,RIGHT(B192,2)="OR"),"",IFERROR(VLOOKUP(TEXT(B192,"0000"),Valuations!$E:$S,2,FALSE),"")) ->  | Y192: =IF(OR(B192=0,RIGHT(B192,2)="OR"),"",IFERROR(VLOOKUP(TEXT(B192,"0000"),Valuations!$E:$S,3,FALSE),"")) ->  | Z192: =IF(OR(B192=0,RIGHT(B192,2)="OR"),"",IFERROR(VLOOKUP(TEXT(B192,"0000"),Valuations!$E:$S,4,FALSE),"")) -> 
A193: 0 | B193: 0 | C193: 0 | D193: 0 | F193: 0 | H193: 0 | I193: 0 | J193: 0 | K193: 0 | L193: 0 | M193: 0 | N193: 0 | O193: 0 | P193: 0 | Q193: 0 | X193: =IF(OR(B193=0,RIGHT(B193,2)="OR"),"",IFERROR(VLOOKUP(TEXT(B193,"0000"),Valuations!$E:$S,2,FALSE),"")) ->  | Y193: =IF(OR(B193=0,RIGHT(B193,2)="OR"),"",IFERROR(VLOOKUP(TEXT(B193,"0000"),Valuations!$E:$S,3,FALSE),"")) ->  | Z193: =IF(OR(B193=0,RIGHT(B193,2)="OR"),"",IFERROR(VLOOKUP(TEXT(B193,"0000"),Valuations!$E:$S,4,FALSE),"")) -> 
A194: 0 | B194: 0 | C194: 0 | D194: 0 | F194: 0 | H194: 0 | I194: 0 | J194: 0 | K194: 0 | L194: 0 | M194: 0 | N194: 0 | O194: 0 | P194: 0 | Q194: 0 | X194: =IF(OR(B194=0,RIGHT(B194,2)="OR"),"",IFERROR(VLOOKUP(TEXT(B194,"0000"),Valuations!$E:$S,2,FALSE),"")) ->  | Y194: =IF(OR(B194=0,RIGHT(B194,2)="OR"),"",IFERROR(VLOOKUP(TEXT(B194,"0000"),Valuations!$E:$S,3,FALSE),"")) ->  | Z194: =IF(OR(B194=0,RIGHT(B194,2)="OR"),"",IFERROR(VLOOKUP(TEXT(B194,"0000"),Valuations!$E:$S,4,FALSE),"")) -> 
A195: 0 | B195: 0 | C195: 0 | D195: 0 | F195: 0 | H195: 0 | I195: 0 | J195: 0 | K195: 0 | L195: 0 | M195: 0 | N195: 0 | O195: 0 | P195: 0 | Q195: 0 | X195: =IF(OR(B195=0,RIGHT(B195,2)="OR"),"",IFERROR(VLOOKUP(TEXT(B195,"0000"),Valuations!$E:$S,2,FALSE),"")) ->  | Y195: =IF(OR(B195=0,RIGHT(B195,2)="OR"),"",IFERROR(VLOOKUP(TEXT(B195,"0000"),Valuations!$E:$S,3,FALSE),"")) ->  | Z195: =IF(OR(B195=0,RIGHT(B195,2)="OR"),"",IFERROR(VLOOKUP(TEXT(B195,"0000"),Valuations!$E:$S,4,FALSE),"")) -> 
A196: 0 | B196: 0 | C196: 0 | D196: 0 | F196: 0 | H196: 0 | I196: 0 | J196: 0 | K196: 0 | L196: 0 | M196: 0 | N196: 0 | O196: 0 | P196: 0 | Q196: 0 | X196: =IF(OR(B196=0,RIGHT(B196,2)="OR"),"",IFERROR(VLOOKUP(TEXT(B196,"0000"),Valuations!$E:$S,2,FALSE),"")) ->  | Y196: =IF(OR(B196=0,RIGHT(B196,2)="OR"),"",IFERROR(VLOOKUP(TEXT(B196,"0000"),Valuations!$E:$S,3,FALSE),"")) ->  | Z196: =IF(OR(B196=0,RIGHT(B196,2)="OR"),"",IFERROR(VLOOKUP(TEXT(B196,"0000"),Valuations!$E:$S,4,FALSE),"")) -> 
A197: 0 | B197: 0 | C197: 0 | D197: 0 | F197: 0 | H197: 0 | I197: 0 | J197: 0 | K197: 0 | L197: 0 | M197: 0 | N197: 0 | O197: 0 | P197: 0 | Q197: 0 | X197: =IF(OR(B197=0,RIGHT(B197,2)="OR"),"",IFERROR(VLOOKUP(TEXT(B197,"0000"),Valuations!$E:$S,2,FALSE),"")) ->  | Y197: =IF(OR(B197=0,RIGHT(B197,2)="OR"),"",IFERROR(VLOOKUP(TEXT(B197,"0000"),Valuations!$E:$S,3,FALSE),"")) ->  | Z197: =IF(OR(B197=0,RIGHT(B197,2)="OR"),"",IFERROR(VLOOKUP(TEXT(B197,"0000"),Valuations!$E:$S,4,FALSE),"")) -> 
A198: 0 | B198: 0 | C198: 0 | D198: 0 | F198: 0 | H198: 0 | I198: 0 | J198: 0 | K198: 0 | L198: 0 | M198: 0 | N198: 0 | O198: 0 | P198: 0 | Q198: 0 | X198: =IF(OR(B198=0,RIGHT(B198,2)="OR"),"",IFERROR(VLOOKUP(TEXT(B198,"0000"),Valuations!$E:$S,2,FALSE),"")) ->  | Y198: =IF(OR(B198=0,RIGHT(B198,2)="OR"),"",IFERROR(VLOOKUP(TEXT(B198,"0000"),Valuations!$E:$S,3,FALSE),"")) ->  | Z198: =IF(OR(B198=0,RIGHT(B198,2)="OR"),"",IFERROR(VLOOKUP(TEXT(B198,"0000"),Valuations!$E:$S,4,FALSE),"")) -> 
A199: 0 | B199: 0 | C199: 0 | D199: 0 | F199: 0 | H199: 0 | I199: 0 | J199: 0 | K199: 0 | L199: 0 | M199: 0 | N199: 0 | O199: 0 | P199: 0 | Q199: 0 | X199: =IF(OR(B199=0,RIGHT(B199,2)="OR"),"",IFERROR(VLOOKUP(TEXT(B199,"0000"),Valuations!$E:$S,2,FALSE),"")) ->  | Y199: =IF(OR(B199=0,RIGHT(B199,2)="OR"),"",IFERROR(VLOOKUP(TEXT(B199,"0000"),Valuations!$E:$S,3,FALSE),"")) ->  | Z199: =IF(OR(B199=0,RIGHT(B199,2)="OR"),"",IFERROR(VLOOKUP(TEXT(B199,"0000"),Valuations!$E:$S,4,FALSE),"")) -> 
A200: 0 | B200: 0 | C200: 0 | D200: 0 | F200: 0 | H200: 0 | I200: 0 | J200: 0 | K200: 0 | L200: 0 | M200: 0 | N200: 0 | O200: 0 | P200: 0 | Q200: 0 | X200: =IF(OR(B200=0,RIGHT(B200,2)="OR"),"",IFERROR(VLOOKUP(TEXT(B200,"0000"),Valuations!$E:$S,2,FALSE),"")) ->  | Y200: =IF(OR(B200=0,RIGHT(B200,2)="OR"),"",IFERROR(VLOOKUP(TEXT(B200,"0000"),Valuations!$E:$S,3,FALSE),"")) ->  | Z200: =IF(OR(B200=0,RIGHT(B200,2)="OR"),"",IFERROR(VLOOKUP(TEXT(B200,"0000"),Valuations!$E:$S,4,FALSE),"")) -> 
B202: TOTAL EQUITY | E202: =+(SUMPRODUCT(E10:E200,J10:J200))/(J202) -> 1.731675017 | F202: =+SUM(F10:F200) -> 561342155 | H202: =+SUM(H10:H200) -> 1592712787 | J202: =+SUM(J10:J200) -> 1292186719 | K202: =+SUM(K10:K200) -> -300526067.9 | L202: =K202/H202 -> -0.1886881743 | M202: =IF(SumTotalMarketValue=0,0,J202/SumTotalMarketValue) -> 1 | N202: =IF(FundCode="KHAZANAH",J202/$J$320,IF(NAVValue=0,0,J202/NAVValue)) -> 0.4354336184 | R202: =SUM(AD10:AD200) -> 0.02911453263 | S202: =SUM(AE10:AE200) -> 0.03588574911 | T202: =SUM(AA10:AA200) -> 0.307321803 | U202: =SUM(AB10:AB200) -> 14.79532589 | V202: =SUM(AC10:AC200) -> 6.663198563
... 114 more rows

Sheet 2. Portfolio YH - Strategy (hidden)
J1: =SUMIFS(InTBYTD!F:F,InTBYTD!C:C,$AG$2,InTBYTD!A:A,ValueDate,InTBYTD!K:K,"CSH") -> 5915307.34 | K1: =COUNTIF(InPos!B:B,$AG$2)+9 -> 54 | L1: =IF(ISNA(MATCH($AG$2,InPos!B:B,0)),1,MATCH($AG$2,InPos!B:B,0))-1 -> 88 | N1: =SUMIFS(InTWRR!$D:$D,InTWRR!$A:$A,$AG$2,InTWRR!$B:$B,ValueDate) -> 2967586021 | P1: =SUM(InPos!M:M) -> 490871549297 | Z1: =COUNTIFS(InPosCsh!B:B,"BND",InPosCsh!C:C,$AG$2)+ROW(A196) -> 253 | AF1: =IF(ISNA(MATCH($AG$2,InPosCsh!C:C,0))=TRUE,1,MATCH($AG$2,InPosCsh!C:C,0))-1 -> 36 | AG1: =SUM(J197:J245) -> 708158580 | AI1: =COUNTIFS(InPos!O:O,"WHF",InPos!B:B,$AG$2)+ROW(B250) -> 251 | AJ1: =IF(ISNA(MATCH($AG$2&"WHF",InPos!B:B&InPos!O:O,0)),1,MATCH($AG$2&"WHF",InPos!B:B&InPos!O:O,0))-1 -> 132
B2: =VLOOKUP($AG$2,Reference!A:B,2,0) -> YAYASAN HASANAH (AUR-VCAM) Fund | D2: ALL | AF2: Fund code | AG2: YH-AUR-VCAM
B3: ="HOLDINGS REPORT AS AT " & TEXT(ValueDate,"dd-mmm-yyyy") -> HOLDINGS REPORT AS AT 04-Jan-2018 | AF3: ESG
B4: CLOSING KLCI: | C4: =InIndex!C10 -> 1803.45
B5: CLOSING FBM100: | C5: =InIndex!C18 -> 12686.71
B7: Security Code | C7: Security Name | D7: Long Name | E7: ESG Rating | F7: Quantity | G7: Average Cost (RM) | H7: Total Cost (RM) | I7: Market Price (RM) | J7: Market Value (RM) | K7: Unrealised Gain/(Loss) (RM) | L7: % Gain /(Loss) | M7: % Equity | N7: % NAV | O7: Unit Issued | P7: % of Paid Up Capital | Q7: Sector | R7: Div Yield (Cost) | S7: Div Yield (Mkt) | T7: EPS | U7: PE | V7: P/BV | AA7: EPS (weighted MV) | AB7: BPS (weighted MV) | AC7: DPS (weighted MV) | AD7: EQT DIV Yield (Cost) | AE7: EQT DIV Yield (Mkt)
I8: Current* | X8: EPS | Y8: BPS | Z8: DPS
B9: Equity | D9: LONG_COMP_NAME
R10: =IF(ISNA(VLOOKUP(C10,UniverseRange,5,0))=TRUE,"",IF(VLOOKUP(C10,UniverseRange,5,0)=0,"",VLOOKUP(C10,UniverseRange,5,0))) ->  | S10: =IF(ISNA(VLOOKUP(C10,UniverseRange,6,0))=TRUE,"",IF(VLOOKUP(C10,UniverseRange,6,0)=0,"",VLOOKUP(C10,UniverseRange,6,0))) ->  | T10: =IF(ISNA(VLOOKUP(C10,UniverseRange,7,0))=TRUE,"",IF(VLOOKUP(C10,UniverseRange,7,0)=0,"",VLOOKUP(C10,UniverseRange,7,0))) ->  | U10: =IF(ISNA(VLOOKUP(D10,UniverseRange,8,0))=TRUE,"",VLOOKUP(D10,UniverseRange,8,0)) ->  | V10: =IF(ISNA(VLOOKUP(C10,UniverseRange,9,0))=TRUE,"",IF(VLOOKUP(C10,UniverseRange,9,0)=0,"",VLOOKUP(C10,UniverseRange,9,0))) -> 
B11: In-Kind Shares
A13: 90 | B13: 4324 | C13: =IF(A13=0,"",OFFSET(Top,$A13,2)) -> AMBANK | D13: =IF(A13=0,"",OFFSET(Top,$A13,3)) -> AMMB Holdings Berhad | E13: =IF(ISNA(VLOOKUP(TEXT(B13,"0"),UniverseRange,2,0))=TRUE,"",VLOOKUP(TEXT(B13,"0"),UniverseRange,2,0)) -> 1900-01-02T04:48:00 | F13: =IF(A13=0,"",OFFSET(Top,$A13,6)) -> 14780700 | G13: =IF(OR(F13=0,H13=0,F13="",H13=""),"",H13/F13) -> 5.977411144 | H13: =IF(A13=0,"",OFFSET(Top,$A13,7)) -> 88350320.89 | I13: =IF(A13=0,"",OFFSET(Top,$A13,10)) -> 4.59 | J13: =IF(A13=0,"",OFFSET(Top,$A13,8)) -> 67843413 | K13: =IF(A13=0,"",OFFSET(Top,$A13,11)) -> -20506907.89 | L13: =IF(OR(H13=0,H13=""),"",K13/H13) -> -0.2321090369 | M13: =IF(OR(SUM($J$194,$J$262)=0,J13=""),"",J13/SUM($J$194,$J$262)) -> 0.04279530383 | N13: =IF(OR($J$266=0,J13=""),"",J13/$J$266) -> 0.02571737479 | O13: =IF(OR(A13=0,A13=""),"",OFFSET(Top,$A13,12)/1000) -> 3014184.844 | P13: =IF(OR(O13=0,O13=""),"",F13/O13/1000) -> 0.004903713861 | Q13: =IF(A13=0,"",OFFSET(Top,$A13,9)) -> FINANCIALS | R13: =IF(OR(G13=0,G13="",Z13=""),"",Z13/G13) -> 0 | S13: =IF(OR(I13=0,I13="",Z13=""),"",Z13/I13) -> 0 | T13: =IF(X13="","",X13) -> 0 | U13: =IF(OR(I13=0,I13="",X13="",X13=0),"",I13/X13) ->  | V13: =IF(OR(I13=0,I13="",Y13="",Y13=0),"",I13/Y13) -> 1.108695652 | X13: =IF(OR(B13=0,RIGHT(B13,2)="OR"),"",IF(ISNA(MATCH(TEXT(B13,"0000"),Valuations!$E:$E,0)),"",VLOOKUP(TEXT(B13,"0000"),Valuations!$E:$S,2,FALSE))) -> 0 | Y13: =IF(OR(B13=0,RIGHT(B13,2)="OR",X13=""),"",VLOOKUP(TEXT(B13,"0000"),Valuations!$E:$S,3,FALSE)) -> 4.14 | Z13: =IF(OR(B13=0,RIGHT(B13,2)="OR",X13=""),"",VLOOKUP(TEXT(B13,"0000"),Valuations!$E:$S,4,FALSE)) -> 0 | AA13: =IF(OR($J$32=0,$J$32="",J13="",T13=""),"",T13*J13/$J$32) -> 0 | AB13: =IF(OR($J$32=0,$J$32="",J13="",U13=""),"",U13*J13/$J$32) ->  | AC13: =IF(OR($J$32=0,$J$32="",J13="",V13=""),"",V13*J13/$J$32) -> 0.8359619877 | AD13: =IF(OR($H$32=0,$H$32="",H13="",R13=""),"",R13*H13/$H$32) -> 0 | AE13: =IF(OR($J$32=0,$J$32="",J13="",S13=""),"",S13*J13/$J$32) -> 0 | AH13: =IF(ISNA(MATCH($AG$2&$B13,InPos!$S:$S,0))=TRUE,,MATCH($AG$2&$B13,InPos!$S:$S,0)-1) -> 0
A14: 88 | B14: 0821EA | C14: MYETFDJ | D14: MYETF DOW JONES ISLAMIC MARKET MALAYSIA | F14: 15000000 | G14: 1.19 | H14: 17850000 | I14: 1.105 | J14: 16575000 | K14: -1275000 | L14: -0.07142857143 | M14: 0.009374713361 | N14: 0.005319750353 | O14: 277900 | P14: 0.05397625045 | Q14: FINANCIALS | R14: 0 | S14: 0 | T14: 0 | X14: 0 | Y14: 0 | Z14: 0 | AA14: 0 | AD14: 0 | AE14: 0 | AH14: =IF(ISNA(MATCH($AG$2&$B14,InPos!$S:$S,0))=TRUE,,MATCH($AG$2&$B14,InPos!$S:$S,0)-1) -> 88
A15: 89 | B15: 0824EA | C15: MYETFID | D15: MyETF MSCI Malaysia Islamic Dividend | F15: 5100000 | G15: 1.06 | H15: 5406000 | I15: 1.09 | J15: 5559000 | K15: 153000 | L15: 0.02830188679 | M15: 0.003144134635 | N15: 0.001784162426 | O15: 50800 | P15: 0.1003937008 | Q15: FINANCIALS | R15: 0 | S15: 0 | T15: 0 | X15: 0 | Y15: 0 | Z15: 0 | AA15: 0 | AD15: 0 | AE15: 0 | AH15: =IF(ISNA(MATCH($AG$2&$B15,InPos!$S:$S,0))=TRUE,,MATCH($AG$2&$B15,InPos!$S:$S,0)-1) -> 89
A21: 0 | AH21: =IF(ISNA(MATCH($AG$2&$B21,InPos!$S:$S,0))=TRUE,,MATCH($AG$2&$B21,InPos!$S:$S,0)-1) -> 0
A22: 0 | AH22: =IF(ISNA(MATCH($AG$2&$B22,InPos!$S:$S,0))=TRUE,,MATCH($AG$2&$B22,InPos!$S:$S,0)-1) -> 0
A23: 0 | AH23: =IF(ISNA(MATCH($AG$2&$B23,InPos!$S:$S,0))=TRUE,,MATCH($AG$2&$B23,InPos!$S:$S,0)-1) -> 0
A24: 0 | AH24: =IF(ISNA(MATCH($AG$2&$B24,InPos!$S:$S,0))=TRUE,,MATCH($AG$2&$B24,InPos!$S:$S,0)-1) -> 0
A25: 0 | AH25: =IF(ISNA(MATCH($AG$2&$B25,InPos!$S:$S,0))=TRUE,,MATCH($AG$2&$B25,InPos!$S:$S,0)-1) -> 0
A26: 0 | AH26: =IF(ISNA(MATCH($AG$2&$B26,InPos!$S:$S,0))=TRUE,,MATCH($AG$2&$B26,InPos!$S:$S,0)-1) -> 0
A30: 0 | AH30: =IF(ISNA(MATCH($AG$2&$B30,InPos!$S:$S,0))=TRUE,,MATCH($AG$2&$B30,InPos!$S:$S,0)-1) -> 0
A31: 0 | AH31: =IF(ISNA(MATCH($AG$2&$B31,InPos!$S:$S,0))=TRUE,,MATCH($AG$2&$B31,InPos!$S:$S,0)-1) -> 0
A32: 0 | B32: Total In-Kind Shares | F32: =SUM(F13:F30) -> 34880700 | H32: =SUM(H13:H30) -> 111606320.9 | J32: =SUM(J13:J30) -> 89977413 | K32: =SUM(K13:K30) -> -21628907.89 | L32: =K32/H32 -> -0.193796442 | M32: =IF(SUM($J$194,$J$262)=0,0,J32/SUM($J$194,$J$262)) -> 0.05675732627 | N32: =IF($J$266=0,0,J32/$J$266) -> 0.03410770111 | R32: =SUM(AD13:AD30) -> 0 | S32: =SUM(AE13:AE30) -> 0 | T32: =SUM(AA13:AA30) -> 0 | U32: =SUM(AB13:AB30) -> 0 | V32: =SUM(AC13:AC30) -> 0.8359619877 | AH32: =IF(ISNA(MATCH($AG$2&$B32,InPos!$S:$S,0))=TRUE,,MATCH($AG$2&$B32,InPos!$S:$S,0)-1) -> 0
A33: 0 | AH33: =IF(ISNA(MATCH($AG$2&$B33,InPos!$S:$S,0))=TRUE,,MATCH($AG$2&$B33,InPos!$S:$S,0)-1) -> 0
A34: 0 | B34: Core | AH34: =IF(ISNA(MATCH($AG$2&$B34,InPos!$S:$S,0))=TRUE,,MATCH($AG$2&$B34,InPos!$S:$S,0)-1) -> 0
A35: 0 | R35: =IF(ISNA(VLOOKUP(C35,UniverseRange,5,0))=TRUE,"",IF(VLOOKUP(C35,UniverseRange,5,0)=0,"",VLOOKUP(C35,UniverseRange,5,0))) ->  | S35: =IF(ISNA(VLOOKUP(C35,UniverseRange,6,0))=TRUE,"",IF(VLOOKUP(C35,UniverseRange,6,0)=0,"",VLOOKUP(C35,UniverseRange,6,0))) ->  | T35: =IF(ISNA(VLOOKUP(C35,UniverseRange,7,0))=TRUE,"",IF(VLOOKUP(C35,UniverseRange,7,0)=0,"",VLOOKUP(C35,UniverseRange,7,0))) ->  | U35: =IF(ISNA(VLOOKUP(D35,UniverseRange,8,0))=TRUE,"",VLOOKUP(D35,UniverseRange,8,0)) ->  | V35: =IF(ISNA(VLOOKUP(C35,UniverseRange,9,0))=TRUE,"",IF(VLOOKUP(C35,UniverseRange,9,0)=0,"",VLOOKUP(C35,UniverseRange,9,0))) ->  | AH35: =IF(ISNA(MATCH($AG$2&$B35,InPos!$S:$S,0))=TRUE,,MATCH($AG$2&$B35,InPos!$S:$S,0)-1) -> 0
A36: 0 | B36: 5180 | C36: =IF(A36=0,"",OFFSET(Top,$A36,2)) ->  | D36: =IF(A36=0,"",OFFSET(Top,$A36,3)) ->  | E36: =IF(ISNA(VLOOKUP(TEXT(B36,"0"),UniverseRange,2,0))=TRUE,"",VLOOKUP(TEXT(B36,"0"),UniverseRange,2,0)) -> 00:00:00 | F36: =IF(A36=0,"",OFFSET(Top,$A36,6)) ->  | G36: =IF(OR(F36=0,H36=0,F36="",H36=""),"",H36/F36) ->  | H36: =IF(A36=0,"",OFFSET(Top,$A36,7)) ->  | I36: =IF(A36=0,"",OFFSET(Top,$A36,10)) ->  | J36: =IF(A36=0,"",OFFSET(Top,$A36,8)) ->  | K36: =IF(A36=0,"",OFFSET(Top,$A36,11)) ->  | L36: =IF(OR(H36=0,H36=""),"",K36/H36) ->  | M36: =IF(OR(SUM($J$194,$J$262)=0,J36=""),"",J36/SUM($J$194,$J$262)) ->  | N36: =IF(OR($J$266=0,J36=""),"",J36/$J$266) ->  | O36: =IF(OR(A36=0,A36=""),"",OFFSET(Top,$A36,12)/1000) ->  | P36: =IF(OR(O36=0,O36=""),"",F36/O36/1000) ->  | Q36: =IF(A36=0,"",OFFSET(Top,$A36,9)) ->  | R36: =IF(OR(G36=0,G36="",Z36=""),"",Z36/G36) ->  | S36: =IF(OR(I36=0,I36="",Z36=""),"",Z36/I36) ->  | T36: =IF(X36="","",X36) -> 0.09 | U36: =IF(OR(I36=0,I36="",X36="",X36=0),"",I36/X36) ->  | V36: =IF(OR(I36=0,I36="",Y36="",Y36=0),"",I36/Y36) ->  | X36: =IF(OR(B36=0,RIGHT(B36,2)="OR"),"",IF(ISNA(MATCH(TEXT(B36,"0000"),Valuations!$E:$E,0)),"",VLOOKUP(TEXT(B36,"0000"),Valuations!$E:$S,2,FALSE))) -> 0.09 | Y36: =IF(OR(B36=0,RIGHT(B36,2)="OR",X36=""),"",VLOOKUP(TEXT(B36,"0000"),Valuations!$E:$S,3,FALSE)) -> 1.05 | Z36: =IF(OR(B36=0,RIGHT(B36,2)="OR",X36=""),"",VLOOKUP(TEXT(B36,"0000"),Valuations!$E:$S,4,FALSE)) -> 0.08 | AA36: =IF(OR($J$112=0,$J$112="",J36="",T36=""),"",T36*J36/$J$112) ->  | AB36: =IF(OR($J$112=0,$J$112="",J36="",U36=""),"",U36*J36/$J$112) ->  | AC36: =IF(OR($J$112=0,$J$112="",J36="",V36=""),"",V36*J36/$J$112) ->  | AD36: =IF(OR($H$112=0,$H$112="",H36="",R36=""),"",R36*H36/$H$112) ->  | AE36: =IF(OR($J$112=0,$J$112="",J36="",S36=""),"",S36*J36/$J$112) ->  | AH36: =IF(ISNA(MATCH($AG$2&$B36,InPos!$S:$S,0))=TRUE,,MATCH($AG$2&$B36,InPos!$S:$S,0)-1) -> 0
A37: 0 | B37: 5235SS | E37: 1900-01-02T12:00:00 | T37: 0.41 | X37: 0.41 | Y37: 7.57 | Z37: 0.37 | AH37: =IF(ISNA(MATCH($AG$2&$B37,InPos!$S:$S,0))=TRUE,,MATCH($AG$2&$B37,InPos!$S:$S,0)-1) -> 0 | AI37: =J37/J266 -> 
A38: 0 | B38: 5212 | E38: 16:48:00 | T38: 0.08 | X38: 0.08 | Y38: 1.16 | Z38: 0.07 | AH38: =IF(ISNA(MATCH($AG$2&$B38,InPos!$S:$S,0))=TRUE,,MATCH($AG$2&$B38,InPos!$S:$S,0)-1) -> 0
A39: 0 | B39: 5176 | E39: 1900-01-02T14:24:00 | T39: 0.07 | X39: 0.07 | Y39: 0.48 | Z39: 0.07 | AH39: =IF(ISNA(MATCH($AG$2&$B39,InPos!$S:$S,0))=TRUE,,MATCH($AG$2&$B39,InPos!$S:$S,0)-1) -> 0
A40: 0 | B40: 5123 | E40: 1900-01-01T09:36:00 | T40: 0.08 | X40: 0.08 | Y40: 0.81 | Z40: 0.09 | AH40: =IF(ISNA(MATCH($AG$2&$B40,InPos!$S:$S,0))=TRUE,,MATCH($AG$2&$B40,InPos!$S:$S,0)-1) -> 0
A41: 0 | B41: 7100 | E41: 1900-01-01T09:36:00 | T41: 0.12 | X41: 0.12 | Y41: 0.51 | Z41: 0.1 | AH41: =IF(ISNA(MATCH($AG$2&$B41,InPos!$S:$S,0))=TRUE,,MATCH($AG$2&$B41,InPos!$S:$S,0)-1) -> 0
A42: 0 | B42: 8621 | T42: 0.76 | X42: 0.76 | Y42: 5.36 | Z42: 0.57 | AH42: =IF(ISNA(MATCH($AG$2&$B42,InPos!$S:$S,0))=TRUE,,MATCH($AG$2&$B42,InPos!$S:$S,0)-1) -> 0
A43: 0 | B43: 5109 | E43: 12:00:00 | T43: 0.12 | X43: 0.12 | Y43: 0.64 | Z43: 0.07 | AH43: =IF(ISNA(MATCH($AG$2&$B43,InPos!$S:$S,0))=TRUE,,MATCH($AG$2&$B43,InPos!$S:$S,0)-1) -> 0
A44: 0 | B44: 6114 | E44: 1900-01-01T12:00:00 | T44: 0.45 | X44: 0.45 | Y44: 3.15 | Z44: 0.11 | AH44: =IF(ISNA(MATCH($AG$2&$B44,InPos!$S:$S,0))=TRUE,,MATCH($AG$2&$B44,InPos!$S:$S,0)-1) -> 0
A45: 120 | B45: 1155 | C45: MAYBANK | D45: Malayan Banking Berhad | E45: 1900-01-03T07:12:00 | F45: 16162944 | G45: 8.794031415 | H45: 142137437.3 | I45: 9.35 | J45: 151123526.4 | K45: 8986089.1 | L45: 0.06322112788 | M45: 0.08547449424 | N45: 0.04850313321 | O45: 10264182.65 | P45: 0.001574693724 | Q45: FINANCIALS | R45: 0.05344534012 | S45: 0.05026737968 | T45: 0.64 | U45: 14.609375 | V45: 1.438461538 | X45: 0.64 | Y45: 6.5 | Z45: 0.47 | AA45: 0.1238101068 | AB45: 2.826231687 | AC45: 0.2782751199 | AD45: 0.008968579966 | AE45: 0.009724390075 | AH45: =IF(ISNA(MATCH($AG$2&$B45,InPos!$S:$S,0))=TRUE,,MATCH($AG$2&$B45,InPos!$S:$S,0)-1) -> 92
A46: 103 | B46: 5218 | C46: SENERGY | D46: Sapura Energy Berhad | E46: 1900-01-01T09:36:00 | F46: 54169900 | G46: 1.986888192 | H46: 107629534.7 | I46: 1.91 | J46: 103464509 | K46: -4165025.65 | L46: -0.03869779483 | M46: 0.05851886063 | N46: 0.03320695978 | O46: 5992155.087 | P46: 0.009040136514 | Q46: OIL & GAS | R46: 0.01509898752 | S46: 0.01570680628 | T46: 0.16 | U46: 11.9375 | V46: 0.9896373057 | X46: 0.16 | Y46: 1.93 | Z46: 0.03 | AA46: 0.02119119408 | AB46: 1.581061746 | AC46: 0.1310724763 | AD46: 0.001918600915 | AE46: 0.002080287377 | AH46: =IF(ISNA(MATCH($AG$2&$B46,InPos!$S:$S,0))=TRUE,,MATCH($AG$2&$B46,InPos!$S:$S,0)-1) -> 112
A47: 118 | B47: 1015 | C47: AMBANK | D47: AMMB Holdings Berhad | E47: 1900-01-01T16:48:00 | F47: 14780700 | G47: 5.977411144 | H47: 88350320.89 | I47: 5.41 | J47: 79963587 | K47: -8386733.89 | L47: -0.09492590186 | M47: 0.04522689034 | N47: 0.02566433304 | O47: 3014184.844 | P47: 0.004903713861 | Q47: FINANCIALS | R47: 0.02844040604 | S47: 0.0314232902 | T47: 0.42 | U47: 12.88095238 | V47: 1.07554672 | X47: 0.42 | Y47: 5.03 | Z47: 0.17 | AA47: 0.04299179746 | AB47: 1.318512609 | AC47: 0.1100944922 | AD47: 0.002966533673 | AE47: 0.003216532685 | AH47: =IF(ISNA(MATCH($AG$2&$B47,InPos!$S:$S,0))=TRUE,,MATCH($AG$2&$B47,InPos!$S:$S,0)-1) -> 90
A48: 123 | B48: 1961 | C48: IOICORP | D48: IOI Corporation Berhad | E48: 1900-01-02T12:00:00 | F48: 16039200 | G48: 4.653844071 | H48: 74643935.83 | I48: 4.53 | J48: 72657576 | K48: -1986359.83 | L48: -0.02661113469 | M48: 0.04109465753 | N48: 0.023319467 | O48: 6461816.195 | P48: 0.002482150454 | Q48: CONSUMER GOODS | R48: 0.02148761292 | S48: 0.02207505519 | T48: 0.17 | U48: 26.64705882 | V48: 3.973684211 | X48: 0.17 | Y48: 1.14 | Z48: 0.1 | AA48: 0.01581152909 | AB48: 2.478416152 | AC48: 0.3695883735 | AD48: 0.0018935992 | AE48: 0.00205317869 | AH48: =IF(ISNA(MATCH($AG$2&$B48,InPos!$S:$S,0))=TRUE,,MATCH($AG$2&$B48,InPos!$S:$S,0)-1) -> 95
A49: 122 | B49: 1295 | C49: PBBANK | D49: Public Bank Berhad | E49: 1900-01-02T02:24:00 | F49: 3500000 | G49: 19.30422371 | H49: 67564782.99 | I49: 20 | J49: 70000000 | K49: 2435217.01 | L49: 0.03604269713 | M49: 0.03959154964 | N49: 0.02246651733 | O49: 3882138.347 | P49: 0.0009015649849 | Q49: FINANCIALS | R49: 0.03056325957 | S49: 0.0295 | T49: 1.34 | U49: 14.92537313 | V49: 2.262443439 | X49: 1.34 | Y49: 8.84 | Z49: 0.59 | AA49: 0.1200734208 | AB49: 1.337418365 | AC49: 0.2027308382 | AD49: 0.002437953481 | AE49: 0.002643407399 | AH49: =IF(ISNA(MATCH($AG$2&$B49,InPos!$S:$S,0))=TRUE,,MATCH($AG$2&$B49,InPos!$S:$S,0)-1) -> 94
A50: 128 | B50: 4197 | C50: SIME | D50: Sime Darby Berhad | E50: 1900-01-03T07:12:00 | F50: 7416900 | G50: 8.899062192 | H50: 66003454.37 | I50: 9.31 | J50: 69051339 | K50: 3047884.63 | L50: 0.04617765326 | M50: 0.03905499308 | N50: 0.02216204435 | O50: 6800839.377 | P50: 0.001090585969 | Q50: INDUSTRIALS | R50: 0.02809284783 | S50: 0.0268528464 | T50: 0.29 | U50: 32.10344828 | V50: 1.903885481 | X50: 0.29 | Y50: 4.89 | Z50: 0.25 | AA50: 0.02563386824 | AB50: 2.837708839 | AC50: 0.1682894812 | AD50: 0.002189111038 | AE50: 0.002373594229 | AH50: =IF(ISNA(MATCH($AG$2&$B50,InPos!$S:$S,0))=TRUE,,MATCH($AG$2&$B50,InPos!$S:$S,0)-1) -> 0
A51: 126 | B51: 3794 | C51: LAFMSIA | D51: Lafarge Malaysia Bhd | E51: 1900-01-02T19:12:00 | F51: 10208500 | G51: 10.0275374 | H51: 102366115.6 | I51: 5.7 | J51: 58188450 | K51: -44177665.59 | L51: -0.4315653215 | M51: 0.03291101295 | N51: 0.01867559743 | O51: 849695.476 | P51: 0.01201430429 | Q51: INDUSTRIALS | R51: 0.03490388376 | S51: 0.06140350877 | T51: 0.36 | U51: 15.83333333 | V51: 1.528150134 | X51: 0.36 | Y51: 3.73 | Z51: 0.35 | AA51: 0.02681534166 | AB51: 1.179378453 | AC51: 0.113827411 | AD51: 0.004218279342 | AE51: 0.004573766853 | AH51: =IF(ISNA(MATCH($AG$2&$B51,InPos!$S:$S,0))=TRUE,,MATCH($AG$2&$B51,InPos!$S:$S,0)-1) -> 98
A52: 124 | B52: 2593 | C52: UMCCA | D52: United Malacca Bhd | F52: 6323600 | G52: 6.337489481 | H52: 40075748.48 | I52: 6.25 | J52: 39522500 | K52: -553248.48 | L52: -0.01380506917 | M52: 0.02235367172 | N52: 0.01268475616 | O52: 209270.201 | P52: 0.03021739345 | Q52: CONSUMER GOODS | R52: 0.02524659023 | S52: 0.0256 | T52: 0.22 | U52: 28.40909091 | V52: 0.76499388 | X52: 0.22 | Y52: 8.17 | Z52: 0.16 | AA52: 0.01113040928 | AB52: 1.437294587 | AC52: 0.038703159 | AD52: 0.001194509841 | AE52: 0.001295174898 | AH52: =IF(ISNA(MATCH($AG$2&$B52,InPos!$S:$S,0))=TRUE,,MATCH($AG$2&$B52,InPos!$S:$S,0)-1) -> 96
A53: 108 | B53: 5819 | C53: HLBANK | D53: Hong Leong Bank Berhad | E53: 1900-01-01T16:48:00 | F53: 2655544 | G53: 13.69178486 | H53: 36359137.13 | I53: 13.98 | J53: 37124505.12 | K53: 765367.99 | L53: 0.02105022425 | M53: 0.02099738125 | N53: 0.01191511911 | O53: 2167718.284 | P53: 0.001225041104 | Q53: FINANCIALS | R53: 0.03067532863 | S53: 0.03004291845 | T53: 0.96 | U53: 14.5625 | V53: 1.358600583 | X53: 0.96 | Y53: 10.29 | Z53: 0.42 | AA53: 0.04562217135 | AB53: 0.6920550733 | AC53: 0.0645649048 | AD53: 0.001316764625 | AE53: 0.001427732473 | AH53: =IF(ISNA(MATCH($AG$2&$B53,InPos!$S:$S,0))=TRUE,,MATCH($AG$2&$B53,InPos!$S:$S,0)-1) -> 0
A54: 106 | B54: 5264 | C54: MALAKOF | D54: MALAKOFF CORPORATION BERHAD | F54: 17433100 | G54: 1.795258496 | H54: 31296920.89 | I54: 1.19 | J54: 20745389 | K54: -10551531.89 | L54: -0.3371428112 | M54: 0.01173345855 | N54: 0.006658237735 | O54: 5000000 | P54: 0.00348662 | Q54: UTILITIES | R54: 0.04456182782 | S54: 0.06722689076 | T54: 0.09 | U54: 13.22222222 | V54: 0.9834710744 | X54: 0.09 | Y54: 1.21 | Z54: 0.08 | AA54: 0.002390056334 | AB54: 0.351131733 | AC54: 0.02611723634 | AD54: 0.001646531209 | AE54: 0.001785289512 | AH54: =IF(ISNA(MATCH($AG$2&$B54,InPos!$S:$S,0))=TRUE,,MATCH($AG$2&$B54,InPos!$S:$S,0)-1) -> 118
A55: 100 | B55: 5202 | C55: MSM | D55: MSM Malaysia Holdings Bhd | F55: 4265200 | G55: 5.366495435 | H55: 22889176.33 | I55: 4.45 | J55: 18980140 | K55: -3909036.33 | L55: -0.1707809959 | M55: 0.01073504507 | N55: 0.006091680631 | O55: 702980 | P55: 0.006067313437 | Q55: CONSUMER GOODS | R55: 0.03354144286 | S55: 0.0404494382 | T55: 0.3 | U55: 14.83333333 | V55: 1.468646865 | X55: 0.3 | Y55: 3.03 | Z55: 0.18 | AA55: 0.007288945642 | AB55: 0.3603978679 | AC55: 0.03568295721 | AD55: 0.0009063945056 | AE55: 0.0009827791877 | AH55: =IF(ISNA(MATCH($AG$2&$B55,InPos!$S:$S,0))=TRUE,,MATCH($AG$2&$B55,InPos!$S:$S,0)-1) -> 108
A56: 97 | B56: 5120 | C56: AMFIRST | D56: AMFIRST Reits | F56: 20252700 | G56: 0.9203291462 | H56: 18639150.1 | I56: 0.77 | J56: 15594579 | K56: -3044571.1 | L56: -0.1633428071 | M56: 0.008820193551 | N56: 0.00500508399 | O56: 686401.6 | P56: 0.02950561304 | Q56: FINANCIALS | R56: 0.07605974481 | S56: 0.09090909091 | T56: 0.08 | U56: 9.625 | V56: 0.6209677419 | X56: 0.08 | Y56: 1.24 | Z56: 0.07 | AA56: 0.001597010189 | AB56: 0.1921402884 | AC56: 0.01239614764 | AD56: 0.001673733575 | AE56: 0.001814784306 | AH56: =IF(ISNA(MATCH($AG$2&$B56,InPos!$S:$S,0))=TRUE,,MATCH($AG$2&$B56,InPos!$S:$S,0)-1) -> 106
A57: 110 | B57: 6084 | C57: STAR | D57: STAR Media Group Berhad | F57: 6032400 | G57: 2.439907068 | H57: 14718495.4 | I57: 2.48 | J57: 14960352 | K57: 241856.6 | L57: 0.01643215515 | M57: 0.00846147884 | N57: 0.004801528678 | O57: 738563.602 | P57: 0.008167746127 | Q57: CONSUMER SERVICES | R57: 0.07377330158 | S57: 0.07258064516 | T57: 0.17 | U57: 14.58823529 | V57: 1.579617834 | X57: 0.17 | Y57: 1.57 | Z57: 0.18 | AA57: 0.003255628028 | AB57: 0.2793756924 | AC57: 0.03025087115 | AD57: 0.001281940874 | AE57: 0.001389974016 | AH57: =IF(ISNA(MATCH($AG$2&$B57,InPos!$S:$S,0))=TRUE,,MATCH($AG$2&$B57,InPos!$S:$S,0)-1) -> 123
A58: 112 | B58: 7081 | C58: PHARMA | D58: Pharmaniaga Berhad | F58: 3010200 | G58: 6.543963384 | H58: 19698638.58 | I58: 4.75 | J58: 14298450 | K58: -5400188.58 | L58: -0.2741401929 | M58: 0.008087111327 | N58: 0.004589091067 | O58: 259377.132 | P58: 0.01160549497 | Q58: HEALTHCARE | R58: 0.03056251819 | S58: 0.04210526316 | T58: 0.36 | U58: 13.19444444 | V58: 2.240566038 | X58: 0.36 | Y58: 2.12 | Z58: 0.2 | AA58: 0.006589242744 | AB58: 0.2415038815 | AC58: 0.04101009308 | AD58: 0.000710772646 | AE58: 0.000770671666 | AH58: =IF(ISNA(MATCH($AG$2&$B58,InPos!$S:$S,0))=TRUE,,MATCH($AG$2&$B58,InPos!$S:$S,0)-1) -> 125
A59: 98 | B59: 5127 | C59: ARREIT | D59: AMANAH RAYA REITS | F59: 8730700 | G59: 0.9052122659 | H59: 7903136.73 | I59: 0.945 | J59: 8250511.5 | K59: 347374.77 | L59: 0.04395403773 | M59: 0.004666436223 | N59: 0.002648003708 | O59: 573219.858 | P59: 0.01523097966 | Q59: FINANCIALS | R59: 0.08837706139 | S59: 0.08465608466 | T59: 0.08 | U59: 11.8125 | V59: 0.8217391304 | X59: 0.08 | Y59: 1.15 | Z59: 0.08 | AA59: 0.000844918669 | AB59: 0.1247575222 | AC59: 0.008678784154 | AD59: 0.0008246020517 | AE59: 0.0008940938296 | AH59: =IF(ISNA(MATCH($AG$2&$B59,InPos!$S:$S,0))=TRUE,,MATCH($AG$2&$B59,InPos!$S:$S,0)-1) -> 107
A60: 96 | B60: 5110 | C60: UOAREIT | D60: UOA Reits | F60: 4080500 | G60: 1.653208886 | H60: 6745918.86 | I60: 1.78 | J60: 7263290 | K60: 517371.14 | L60: 0.07669394648 | M60: 0.004108070094 | N60: 0.002331154723 | O60: 422871.776 | P60: 0.009649497156 | Q60: FINANCIALS | R60: 0.07258610875 | S60: 0.06741573034 | T60: 0.12 | U60: 14.83333333 | V60: 1.178807947 | X60: 0.12 | Y60: 1.51 | Z60: 0.12 | AA60: 0.001115728883 | AB60: 0.1379164869 | AC60: 0.01096025061 | AD60: 0.0005780960299 | AE60: 0.0006268139791 | AH60: =IF(ISNA(MATCH($AG$2&$B60,InPos!$S:$S,0))=TRUE,,MATCH($AG$2&$B60,InPos!$S:$S,0)-1) -> 105
A61: 0 | AH61: =IF(ISNA(MATCH($AG$2&$B61,InPos!$S:$S,0))=TRUE,,MATCH($AG$2&$B61,InPos!$S:$S,0)-1) -> 0
A62: 0 | AH62: =IF(ISNA(MATCH($AG$2&$B62,InPos!$S:$S,0))=TRUE,,MATCH($AG$2&$B62,InPos!$S:$S,0)-1) -> 0
A63: 0 | AH63: =IF(ISNA(MATCH($AG$2&$B63,InPos!$S:$S,0))=TRUE,,MATCH($AG$2&$B63,InPos!$S:$S,0)-1) -> 0
A64: 0 | AH64: =IF(ISNA(MATCH($AG$2&$B64,InPos!$S:$S,0))=TRUE,,MATCH($AG$2&$B64,InPos!$S:$S,0)-1) -> 0
A65: 0 | AH65: =IF(ISNA(MATCH($AG$2&$B65,InPos!$S:$S,0))=TRUE,,MATCH($AG$2&$B65,InPos!$S:$S,0)-1) -> 0
A66: 0 | AH66: =IF(ISNA(MATCH($AG$2&$B66,InPos!$S:$S,0))=TRUE,,MATCH($AG$2&$B66,InPos!$S:$S,0)-1) -> 0
A67: 0 | AH67: =IF(ISNA(MATCH($AG$2&$B67,InPos!$S:$S,0))=TRUE,,MATCH($AG$2&$B67,InPos!$S:$S,0)-1) -> 0
A68: 0 | AH68: =IF(ISNA(MATCH($AG$2&$B68,InPos!$S:$S,0))=TRUE,,MATCH($AG$2&$B68,InPos!$S:$S,0)-1) -> 0
A69: 0 | AH69: =IF(ISNA(MATCH($AG$2&$B69,InPos!$S:$S,0))=TRUE,,MATCH($AG$2&$B69,InPos!$S:$S,0)-1) -> 0
A70: 0 | AH70: =IF(ISNA(MATCH($AG$2&$B70,InPos!$S:$S,0))=TRUE,,MATCH($AG$2&$B70,InPos!$S:$S,0)-1) -> 0
A71: 0 | AH71: =IF(ISNA(MATCH($AG$2&$B71,InPos!$S:$S,0))=TRUE,,MATCH($AG$2&$B71,InPos!$S:$S,0)-1) -> 0
A72: 0 | AH72: =IF(ISNA(MATCH($AG$2&$B72,InPos!$S:$S,0))=TRUE,,MATCH($AG$2&$B72,InPos!$S:$S,0)-1) -> 0
A73: 0 | AH73: =IF(ISNA(MATCH($AG$2&$B73,InPos!$S:$S,0))=TRUE,,MATCH($AG$2&$B73,InPos!$S:$S,0)-1) -> 0
A74: 0 | AH74: =IF(ISNA(MATCH($AG$2&$B74,InPos!$S:$S,0))=TRUE,,MATCH($AG$2&$B74,InPos!$S:$S,0)-1) -> 0
A75: 0 | AH75: =IF(ISNA(MATCH($AG$2&$B75,InPos!$S:$S,0))=TRUE,,MATCH($AG$2&$B75,InPos!$S:$S,0)-1) -> 0
A76: 0 | AH76: =IF(ISNA(MATCH($AG$2&$B76,InPos!$S:$S,0))=TRUE,,MATCH($AG$2&$B76,InPos!$S:$S,0)-1) -> 0
A77: 0 | AH77: =IF(ISNA(MATCH($AG$2&$B77,InPos!$S:$S,0))=TRUE,,MATCH($AG$2&$B77,InPos!$S:$S,0)-1) -> 0
A78: 0 | AH78: =IF(ISNA(MATCH($AG$2&$B78,InPos!$S:$S,0))=TRUE,,MATCH($AG$2&$B78,InPos!$S:$S,0)-1) -> 0
A79: 0 | AH79: =IF(ISNA(MATCH($AG$2&$B79,InPos!$S:$S,0))=TRUE,,MATCH($AG$2&$B79,InPos!$S:$S,0)-1) -> 0
A80: 0 | AH80: =IF(ISNA(MATCH($AG$2&$B80,InPos!$S:$S,0))=TRUE,,MATCH($AG$2&$B80,InPos!$S:$S,0)-1) -> 0
A81: 0 | AH81: =IF(ISNA(MATCH($AG$2&$B81,InPos!$S:$S,0))=TRUE,,MATCH($AG$2&$B81,InPos!$S:$S,0)-1) -> 0
A82: 0 | AH82: =IF(ISNA(MATCH($AG$2&$B82,InPos!$S:$S,0))=TRUE,,MATCH($AG$2&$B82,InPos!$S:$S,0)-1) -> 0
A83: 0 | AH83: =IF(ISNA(MATCH($AG$2&$B83,InPos!$S:$S,0))=TRUE,,MATCH($AG$2&$B83,InPos!$S:$S,0)-1) -> 0
A84: 0 | AH84: =IF(ISNA(MATCH($AG$2&$B84,InPos!$S:$S,0))=TRUE,,MATCH($AG$2&$B84,InPos!$S:$S,0)-1) -> 0
A85: 0 | AH85: =IF(ISNA(MATCH($AG$2&$B85,InPos!$S:$S,0))=TRUE,,MATCH($AG$2&$B85,InPos!$S:$S,0)-1) -> 0
A86: 0 | AH86: =IF(ISNA(MATCH($AG$2&$B86,InPos!$S:$S,0))=TRUE,,MATCH($AG$2&$B86,InPos!$S:$S,0)-1) -> 0
A87: 0 | AH87: =IF(ISNA(MATCH($AG$2&$B87,InPos!$S:$S,0))=TRUE,,MATCH($AG$2&$B87,InPos!$S:$S,0)-1) -> 0
A88: 0 | AH88: =IF(ISNA(MATCH($AG$2&$B88,InPos!$S:$S,0))=TRUE,,MATCH($AG$2&$B88,InPos!$S:$S,0)-1) -> 0
A89: 0 | AH89: =IF(ISNA(MATCH($AG$2&$B89,InPos!$S:$S,0))=TRUE,,MATCH($AG$2&$B89,InPos!$S:$S,0)-1) -> 0
A90: 0 | AH90: =IF(ISNA(MATCH($AG$2&$B90,InPos!$S:$S,0))=TRUE,,MATCH($AG$2&$B90,InPos!$S:$S,0)-1) -> 0
A91: 0 | AH91: =IF(ISNA(MATCH($AG$2&$B91,InPos!$S:$S,0))=TRUE,,MATCH($AG$2&$B91,InPos!$S:$S,0)-1) -> 0
A92: 0 | AH92: =IF(ISNA(MATCH($AG$2&$B92,InPos!$S:$S,0))=TRUE,,MATCH($AG$2&$B92,InPos!$S:$S,0)-1) -> 0
A93: 0 | AH93: =IF(ISNA(MATCH($AG$2&$B93,InPos!$S:$S,0))=TRUE,,MATCH($AG$2&$B93,InPos!$S:$S,0)-1) -> 0
A94: 0 | AH94: =IF(ISNA(MATCH($AG$2&$B94,InPos!$S:$S,0))=TRUE,,MATCH($AG$2&$B94,InPos!$S:$S,0)-1) -> 0
A95: 0 | AH95: =IF(ISNA(MATCH($AG$2&$B95,InPos!$S:$S,0))=TRUE,,MATCH($AG$2&$B95,InPos!$S:$S,0)-1) -> 0
A96: 0 | AH96: =IF(ISNA(MATCH($AG$2&$B96,InPos!$S:$S,0))=TRUE,,MATCH($AG$2&$B96,InPos!$S:$S,0)-1) -> 0
A97: 0 | AH97: =IF(ISNA(MATCH($AG$2&$B97,InPos!$S:$S,0))=TRUE,,MATCH($AG$2&$B97,InPos!$S:$S,0)-1) -> 0
A98: 0 | AH98: =IF(ISNA(MATCH($AG$2&$B98,InPos!$S:$S,0))=TRUE,,MATCH($AG$2&$B98,InPos!$S:$S,0)-1) -> 0
A99: 0 | AH99: =IF(ISNA(MATCH($AG$2&$B99,InPos!$S:$S,0))=TRUE,,MATCH($AG$2&$B99,InPos!$S:$S,0)-1) -> 0
A100: 0 | AH100: =IF(ISNA(MATCH($AG$2&$B100,InPos!$S:$S,0))=TRUE,,MATCH($AG$2&$B100,InPos!$S:$S,0)-1) -> 0
A101: 0 | AH101: =IF(ISNA(MATCH($AG$2&$B101,InPos!$S:$S,0))=TRUE,,MATCH($AG$2&$B101,InPos!$S:$S,0)-1) -> 0
A102: 0 | AH102: =IF(ISNA(MATCH($AG$2&$B102,InPos!$S:$S,0))=TRUE,,MATCH($AG$2&$B102,InPos!$S:$S,0)-1) -> 0
A103: 0 | AH103: =IF(ISNA(MATCH($AG$2&$B103,InPos!$S:$S,0))=TRUE,,MATCH($AG$2&$B103,InPos!$S:$S,0)-1) -> 0
A104: 0 | AH104: =IF(ISNA(MATCH($AG$2&$B104,InPos!$S:$S,0))=TRUE,,MATCH($AG$2&$B104,InPos!$S:$S,0)-1) -> 0
A105: 0 | AH105: =IF(ISNA(MATCH($AG$2&$B105,InPos!$S:$S,0))=TRUE,,MATCH($AG$2&$B105,InPos!$S:$S,0)-1) -> 0
A106: 0 | AH106: =IF(ISNA(MATCH($AG$2&$B106,InPos!$S:$S,0))=TRUE,,MATCH($AG$2&$B106,InPos!$S:$S,0)-1) -> 0
A107: 0 | AH107: =IF(ISNA(MATCH($AG$2&$B107,InPos!$S:$S,0))=TRUE,,MATCH($AG$2&$B107,InPos!$S:$S,0)-1) -> 0
A108: 0 | AH108: =IF(ISNA(MATCH($AG$2&$B108,InPos!$S:$S,0))=TRUE,,MATCH($AG$2&$B108,InPos!$S:$S,0)-1) -> 0
A109: 0 | AH109: =IF(ISNA(MATCH($AG$2&$B109,InPos!$S:$S,0))=TRUE,,MATCH($AG$2&$B109,InPos!$S:$S,0)-1) -> 0
A110: 0 | AH110: =IF(ISNA(MATCH($AG$2&$B110,InPos!$S:$S,0))=TRUE,,MATCH($AG$2&$B110,InPos!$S:$S,0)-1) -> 0
A111: 0 | AH111: =IF(ISNA(MATCH($AG$2&$B111,InPos!$S:$S,0))=TRUE,,MATCH($AG$2&$B111,InPos!$S:$S,0)-1) -> 0
A112: 0 | B112: Total Core | E112: =+(SUMPRODUCT(E36:E110,J36:J110))/(J112) -> 1.999579253 | F112: =SUM(F36:F110) -> 195062088 | H112: =SUM(H36:H110) -> 847021904.1 | J112: =SUM(J36:J110) -> 781188704 | K112: =SUM(K36:K110) -> -65833200.1 | L112: =K112/H112 -> -0.07772313771 | M112: =IF(SUM($J$194,$J$262)=0,0,J112/SUM($J$194,$J$262)) -> 0.4927701372 | N112: =IF($J$266=0,0,J112/$J$266) -> 0.2961248822 | R112: =SUM(AD36:AD110) -> 0.03472600297 | S112: =SUM(AE36:AE110) -> 0.03765247117 | T112: =SUM(AA36:AA110) -> 0.4561613693 | U112: =SUM(AB36:AB110) -> 17.37530098 | V112: =SUM(AC36:AC110) -> 1.642242596 | AH112: =IF(ISNA(MATCH($AG$2&$B112,InPos!$S:$S,0))=TRUE,,MATCH($AG$2&$B112,InPos!$S:$S,0)-1) -> 0
A113: 0 | Q113: =IF(A113=0,"",OFFSET(Top,$A113,9)) ->  | AH113: =IF(ISNA(MATCH($AG$2&$B113,InPos!$S:$S,0))=TRUE,,MATCH($AG$2&$B113,InPos!$S:$S,0)-1) -> 0
A114: 0 | B114: Trading | AH114: =IF(ISNA(MATCH($AG$2&$B114,InPos!$S:$S,0))=TRUE,,MATCH($AG$2&$B114,InPos!$S:$S,0)-1) -> 0
A115: 0 | D115: =IF(A115=0,"",OFFSET(Top,$A115,3)) ->  | O115: =IF(OR(A115=0,A115=""),"",OFFSET(Top,$A115,12)/1000) ->  | AH115: =IF(ISNA(MATCH($AG$2&$B115,InPos!$S:$S,0))=TRUE,,MATCH($AG$2&$B115,InPos!$S:$S,0)-1) -> 0
A116: 0 | B116: 5099 | C116: =IF(A116=0,"",OFFSET(Top,$A116,2)) ->  | D116: =IF(A116=0,"",OFFSET(Top,$A116,3)) ->  | E116: =IF(ISNA(VLOOKUP(TEXT(B116,"0"),UniverseRange,2,0))=TRUE,"",VLOOKUP(TEXT(B116,"0"),UniverseRange,2,0)) -> 1900-01-02 | F116: =IF(A116=0,"",OFFSET(Top,$A116,6)) ->  | G116: =IF(OR(F116=0,H116=0,F116="",H116=""),"",H116/F116) ->  | H116: =IF(A116=0,"",OFFSET(Top,$A116,7)) ->  | I116: =IF(A116=0,"",OFFSET(Top,$A116,10)) ->  | J116: =IF(A116=0,"",OFFSET(Top,$A116,8)) ->  | K116: =IF(A116=0,"",OFFSET(Top,$A116,11)) ->  | L116: =IF(OR(H116=0,H116=""),"",K116/H116) ->  | M116: =IF(OR(SUM($J$194,$J$262)=0,J116=""),"",J116/SUM($J$194,$J$262)) ->  | N116: =IF(OR($J$266=0,J116=""),"",J116/$J$266) ->  | O116: =IF(OR(A116=0,A116=""),"",OFFSET(Top,$A116,12)/1000) ->  | P116: =IF(OR(O116=0,O116=""),"",F116/O116/1000) ->  | Q116: =IF(A116=0,"",OFFSET(Top,$A116,9)) ->  | R116: =IF(OR(G116=0,G116="",Z116=""),"",Z116/G116) ->  | S116: =IF(OR(I116=0,I116="",Z116=""),"",Z116/I116) ->  | T116: =IF(X116="","",X116) -> 0.44 | U116: =IF(OR(I116=0,I116="",X116="",X116=0),"",I116/X116) ->  | V116: =IF(OR(I116=0,I116="",Y116="",Y116=0),"",I116/Y116) ->  | X116: =IF(OR(B116=0,RIGHT(B116,2)="OR"),"",IF(ISNA(MATCH(TEXT(B116,"0000"),Valuations!$E:$E,0)),"",VLOOKUP(TEXT(B116,"0000"),Valuations!$E:$S,2,FALSE))) -> 0.44 | Y116: =IF(OR(B116=0,RIGHT(B116,2)="OR",X116=""),"",VLOOKUP(TEXT(B116,"0000"),Valuations!$E:$S,3,FALSE)) -> 1.95 | Z116: =IF(OR(B116=0,RIGHT(B116,2)="OR",X116=""),"",VLOOKUP(TEXT(B116,"0000"),Valuations!$E:$S,4,FALSE)) -> 0.09 | AA116: =IF(OR($J$192=0,$J$192="",J116="",T116=""),"",T116*J116/$J$192) ->  | AB116: =IF(OR($J$192=0,$J$192="",J116="",U116=""),"",U116*J116/$J$192) ->  | AC116: =IF(OR($J$192=0,$J$192="",J116="",V116=""),"",V116*J116/$J$192) ->  | AD116: =IF(OR($H$192=0,$H$192="",H116="",R116=""),"",R116*H116/$H$192) ->  | AE116: =IF(OR($J$192=0,$J$192="",J116="",S116=""),"",S116*J116/$J$192) ->  | AH116: =IF(ISNA(MATCH($AG$2&$B116,InPos!$S:$S,0))=TRUE,,MATCH($AG$2&$B116,InPos!$S:$S,0)-1) -> 0
A117: 0 | B117: 2291 | E117: 1900-01-01T16:48:00 | T117: 0.27 | X117: 0.27 | Y117: 5.54 | Z117: 0.05 | AH117: =IF(ISNA(MATCH($AG$2&$B117,InPos!$S:$S,0))=TRUE,,MATCH($AG$2&$B117,InPos!$S:$S,0)-1) -> 0
A118: 0 | B118: 7277 | E118: 1900-01-01T14:24:00 | T118: 0.07 | X118: 0.07 | Y118: 0.35 | Z118: 0.02 | AH118: =IF(ISNA(MATCH($AG$2&$B118,InPos!$S:$S,0))=TRUE,,MATCH($AG$2&$B118,InPos!$S:$S,0)-1) -> 0
A119: 0 | B119: 6139 | E119: 1900-01-01T12:00:00 | T119: 0.21 | X119: 0.21 | Y119: 0.97 | Z119: 0.08 | AH119: =IF(ISNA(MATCH($AG$2&$B119,InPos!$S:$S,0))=TRUE,,MATCH($AG$2&$B119,InPos!$S:$S,0)-1) -> 0
A120: 0 | B120: 7052 | E120: 1900-01-01T21:36:00 | T120: 0.17 | X120: 0.17 | Y120: 0.71 | Z120: 0.11 | AH120: =IF(ISNA(MATCH($AG$2&$B120,InPos!$S:$S,0))=TRUE,,MATCH($AG$2&$B120,InPos!$S:$S,0)-1) -> 0
A121: 0 | B121: 3417 | E121: 16:48:00 | T121: 0.03 | X121: 0.03 | Y121: 1.3 | Z121: 0.01 | AH121: =IF(ISNA(MATCH($AG$2&$B121,InPos!$S:$S,0))=TRUE,,MATCH($AG$2&$B121,InPos!$S:$S,0)-1) -> 0
A122: 0 | B122: 1066OR | AH122: =IF(ISNA(MATCH($AG$2&$B122,InPos!$S:$S,0))=TRUE,,MATCH($AG$2&$B122,InPos!$S:$S,0)-1) -> 0
A123: 0 | B123: 5819OR | AH123: =IF(ISNA(MATCH($AG$2&$B123,InPos!$S:$S,0))=TRUE,,MATCH($AG$2&$B123,InPos!$S:$S,0)-1) -> 0
A124: 0 | B124: 5398WE | AH124: =IF(ISNA(MATCH($AG$2&$B124,InPos!$S:$S,0))=TRUE,,MATCH($AG$2&$B124,InPos!$S:$S,0)-1) -> 0
A125: 0 | B125: 5168 | E125: 1900-01-02T07:12:00 | T125: 0.2 | X125: 0.2 | Y125: 0.95 | Z125: 0.09 | AH125: =IF(ISNA(MATCH($AG$2&$B125,InPos!$S:$S,0))=TRUE,,MATCH($AG$2&$B125,InPos!$S:$S,0)-1) -> 0
A126: 0 | B126: 7022 | E126: 1900-01-01T02:24:00 | T126: 0.11 | X126: 0.11 | Y126: 0.99 | Z126: 0.18 | AH126: =IF(ISNA(MATCH($AG$2&$B126,InPos!$S:$S,0))=TRUE,,MATCH($AG$2&$B126,InPos!$S:$S,0)-1) -> 0
A127: 0 | B127: 5183 | E127: 1900-01-02T07:12:00 | T127: 0.36 | X127: 0.36 | Y127: 3.31 | Z127: 0.18 | AH127: =IF(ISNA(MATCH($AG$2&$B127,InPos!$S:$S,0))=TRUE,,MATCH($AG$2&$B127,InPos!$S:$S,0)-1) -> 0
A128: 0 | B128: 5005 | E128: 1900-01-03T16:48:00 | T128: 0.2 | X128: 0.2 | Y128: 1.74 | Z128: 0.11 | AH128: =IF(ISNA(MATCH($AG$2&$B128,InPos!$S:$S,0))=TRUE,,MATCH($AG$2&$B128,InPos!$S:$S,0)-1) -> 0
A129: 0 | B129: 1171OR | AH129: =IF(ISNA(MATCH($AG$2&$B129,InPos!$S:$S,0))=TRUE,,MATCH($AG$2&$B129,InPos!$S:$S,0)-1) -> 0
A130: 0 | B130: 8664PR | AH130: =IF(ISNA(MATCH($AG$2&$B130,InPos!$S:$S,0))=TRUE,,MATCH($AG$2&$B130,InPos!$S:$S,0)-1) -> 0
A131: 0 | B131: 5205 | E131: 1900-01-01T07:12:00 | T131: 0.09 | X131: 0.09 | Y131: 1.3 | Z131: 0.02 | AH131: =IF(ISNA(MATCH($AG$2&$B131,InPos!$S:$S,0))=TRUE,,MATCH($AG$2&$B131,InPos!$S:$S,0)-1) -> 0
A132: 119 | B132: 1066 | C132: RHBBANK | D132: RHB BANK BERHAD | E132: 1900-01-02T21:36:00 | F132: 20789500 | G132: 5.662312704 | H132: 117716650 | I132: 5.4 | J132: 112263300 | K132: -5453349.97 | L132: -0.04632607173 | M132: 0.06349540021 | N132: 0.03603093393 | O132: 4010045.621 | P132: 0.005184354984 | Q132: FINANCIALS | R132: 0.02649094245 | S132: 0.02777777778 | T132: 0.48 | U132: 11.25 | V132: 1.02661597 | X132: 0.48 | Y132: 5.26 | Z132: 0.15 | AA132: 0.07592647863 | AB132: 1.779526843 | AC132: 0.1623902822 | AD132: 0.004066608264 | AE132: 0.004393893439 | AH132: =IF(ISNA(MATCH($AG$2&$B132,InPos!$S:$S,0))=TRUE,,MATCH($AG$2&$B132,InPos!$S:$S,0)-1) -> 91
A133: 121 | B133: 1171 | C133: MBSB | D133: Malaysia Building Society Bhd | E133: 1900-01-02T14:24:00 | F133: 73071600 | G133: 1.399506122 | H133: 102264151.6 | I133: 1.31 | J133: 95723796 | K133: -6540355.58 | L133: -0.0639555062 | M133: 0.05414076316 | N133: 0.03072257602 | O133: 5798774.158 | P133: 0.01260121502 | Q133: FINANCIALS | R133: 0.01429075563 | S133: 0.01526717557 | T133: 0.05 | U133: 26.2 | V133: 1.129310345 | X133: 0.05 | Y133: 1.16 | Z133: 0.02 | AA133: 0.006743791485 | AB133: 3.533746738 | AC133: 0.1523166697 | AD133: 0.001905792651 | AE133: 0.002059172972 | AH133: =IF(ISNA(MATCH($AG$2&$B133,InPos!$S:$S,0))=TRUE,,MATCH($AG$2&$B133,InPos!$S:$S,0)-1) -> 93
A134: 125 | B134: 3336 | C134: IJM | D134: IJM Corporation Bhd | E134: 1900-01-01T16:48:00 | F134: 26170300 | G134: 3.543738006 | H134: 92740686.73 | I134: 3.46 | J134: 90549238 | K134: -2191448.73 | L134: -0.0236298523 | M134: 0.05121406644 | N134: 0.02906180035 | O134: 3617318.92 | P134: 0.007234722893 | Q134: INDUSTRIALS | R134: 0.03104066944 | S134: 0.03179190751 | T134: 0.17 | U134: 20.35294118 | V134: 1.441666667 | X134: 0.17 | Y134: 2.4 | Z134: 0.11 | AA134: 0.02168941997 | AB134: 2.596726405 | AC134: 0.183934787 | AD134: 0.003754035902 | AE134: 0.004056164904 | AH134: =IF(ISNA(MATCH($AG$2&$B134,InPos!$S:$S,0))=TRUE,,MATCH($AG$2&$B134,InPos!$S:$S,0)-1) -> 97
A135: 111 | B135: 6947 | C135: DIGI | D135: Digi.com Berhad | E135: 1900-01-03T14:24:00 | F135: 17666900 | G135: 6.094366737 | H135: 107668567.7 | I135: 5.01 | J135: 88511169 | K135: -19157398.7 | L135: -0.177929354 | M135: 0.05006134773 | N135: 0.0284076816 | O135: 7775000 | P135: 0.002272270096 | Q135: TELCO | R135: 0.0360989106 | S135: 0.04391217565 | T135: 0.23 | U135: 21.7826087 | V135: 71.57142857 | X135: 0.23 | Y135: 0.07 | Z135: 0.22 | AA135: 0.02868402745 | AB135: 2.716578025 | AC135: 8.925899224 | AD135: 0.005068507192 | AE135: 0.005476426311 | AH135: =IF(ISNA(MATCH($AG$2&$B135,InPos!$S:$S,0))=TRUE,,MATCH($AG$2&$B135,InPos!$S:$S,0)-1) -> 124
A136: 109 | B136: 6033 | C136: PETGAS | D136: Petronas Gas Berhad | E136: 1900-01-02T02:24:00 | F136: 1958000 | G136: 19.61070736 | H136: 38397765.01 | I136: 19 | J136: 37202000 | K136: -1195765.01 | L136: -0.03114152633 | M136: 0.02104121185 | N136: 0.01193999111 | O136: 1978731.915 | P136: 0.0009895226257 | Q136: UTILITIES | R136: 0.03161538177 | S136: 0.03263157895 | T136: 0.92 | U136: 20.65217391 | V136: 3.069466882 | X136: 0.92 | Y136: 6.19 | Z136: 0.62 | AA136: 0.04822456651 | AB136: 1.082545798 | AC136: 0.1608953367 | AD136: 0.001583074715 | AE136: 0.001710482336 | AH136: =IF(ISNA(MATCH($AG$2&$B136,InPos!$S:$S,0))=TRUE,,MATCH($AG$2&$B136,InPos!$S:$S,0)-1) -> 122
A137: 102 | B137: 5211 | C137: SUNWAY | D137: Sunway Bhd | E137: 1900-01-02T14:24:00 | F137: 10212211 | G137: 3.658094341 | H137: 37357231.27 | I137: 3.6 | J137: 36763959.6 | K137: -593271.67 | L137: -0.01588103962 | M137: 0.02079345902 | N137: 0.01179940193 | O137: 2073475.769 | P137: 0.004925165344 | Q137: FINANCIALS | R137: 0.02186931023 | S137: 0.02222222222 | T137: 0.27 | U137: 13.33333333 | V137: 1.132075472 | X137: 0.27 | Y137: 3.18 | Z137: 0.08 | AA137: 0.01398621696 | AB137: 0.690677381 | AC137: 0.05864241914 | AD137: 0.001065385549 | AE137: 0.001151128968 | AH137: =IF(ISNA(MATCH($AG$2&$B137,InPos!$S:$S,0))=TRUE,,MATCH($AG$2&$B137,InPos!$S:$S,0)-1) -> 110
A138: 91 | B138: 4677 | C138: YTL | D138: YTL Corporation Berhad | E138: 1900-01-01T12:00:00 | F138: 23373700 | G138: 1.67179796 | H138: 39076103.97 | I138: 1.51 | J138: 35294287 | K138: -3781816.97 | L138: -0.09678080939 | M138: 0.01996222165 | N138: 0.01132771015 | O138: 10910559.43 | P138: 0.002142300782 | Q138: UTILITIES | R138: 0.05981584044 | S138: 0.06622516556 | T138: 0.13 | U138: 11.61538462 | V138: 1.04137931 | X138: 0.13 | Y138: 1.45 | Z138: 0.1 | AA138: 0.006464902536 | AB138: 0.5776333035 | AC138: 0.05178781342 | AD138: 0.003048066944 | AE138: 0.003293378775 | AH138: =IF(ISNA(MATCH($AG$2&$B138,InPos!$S:$S,0))=TRUE,,MATCH($AG$2&$B138,InPos!$S:$S,0)-1) -> 100
A139: 104 | B139: 5248 | C139: BAUTO | D139: Bermaz Auto Berhad | E139: 1900-01-01T09:36:00 | F139: 14029600 | G139: 2.103822869 | H139: 29515793.32 | I139: 2.07 | J139: 29041272 | K139: -474521.32 | L139: -0.01607686146 | M139: 0.0164255566 | N139: 0.009320803437 | O139: 1154080.488 | P139: 0.0121565178 | Q139: CONSUMER SERVICES | R139: 0.06654552628 | S139: 0.06763285024 | T139: 0.17 | U139: 12.17647059 | V139: 4.5 | X139: 0.17 | Y139: 0.46 | Z139: 0.14 | AA139: 0.006956307516 | AB139: 0.4982545522 | AC139: 0.1841375519 | AD139: 0.00256135845 | AE139: 0.002767499438 | AH139: =IF(ISNA(MATCH($AG$2&$B139,InPos!$S:$S,0))=TRUE,,MATCH($AG$2&$B139,InPos!$S:$S,0)-1) -> 115
A140: 115 | B140: 8206 | C140: ECOWLD | D140: Eco World Development Group Bhd | E140: 21:36:00 | F140: 16913900 | G140: 1.624568929 | H140: 27477796.41 | I140: 1.55 | J140: 26216545 | K140: -1261251.41 | L140: -0.04590074805 | M140: 0.01482790918 | N140: 0.008414206608 | O140: 2944368.381 | P140: 0.005744491793 | Q140: FINANCIALS | R140: 0 | S140: 0 | T140: 0.05 | U140: 31 | V140: 1.302521008 | X140: 0.05 | Y140: 1.19 | Z140: 0 | AA140: 0.001846969305 | AB140: 1.145120969 | AC140: 0.04811432642 | AD140: 0 | AE140: 0 | AH140: =IF(ISNA(MATCH($AG$2&$B140,InPos!$S:$S,0))=TRUE,,MATCH($AG$2&$B140,InPos!$S:$S,0)-1) -> 128
A141: 101 | B141: 5210 | C141: ARMADA | D141: Bumi Armada Bhd | E141: 1900-01-01T21:36:00 | F141: 33500000 | G141: 0.8155074648 | H141: 27319500.07 | I141: 0.775 | J141: 25962500 | K141: -1357000.07 | L141: -0.04967148251 | M141: 0.01468422296 | N141: 0.008332670802 | O141: 5866269.344 | P141: 0.005710614027 | Q141: OIL & GAS | R141: 0.0245246069 | S141: 0.02580645161 | T141: 0.04 | U141: 19.375 | V141: 0.8244680851 | X141: 0.04 | Y141: 0.94 | Z141: 0.02 | AA141: 0.001463257361 | AB141: 0.7087652843 | AC141: 0.03016022486 | AD141: 0.0008737191169 | AE141: 0.0009440370072 | AH141: =IF(ISNA(MATCH($AG$2&$B141,InPos!$S:$S,0))=TRUE,,MATCH($AG$2&$B141,InPos!$S:$S,0)-1) -> 109
A142: 107 | B142: 5398 | C142: GAMUDA | D142: Gamuda Berhad | E142: 1900-01-01T19:12:00 | F142: 4590500 | G142: 5.108075266 | H142: 23448619.51 | I142: 5.4 | J142: 24788700 | K142: 1340080.49 | L142: 0.05714965392 | M142: 0.01402032924 | N142: 0.007955939401 | O142: 2433637.743 | P142: 0.001886270877 | Q142: INDUSTRIALS | R142: 0.02349221453 | S142: 0.02222222222 | T142: 0.27 | U142: 20 | V142: 1.963636364 | X142: 0.27 | Y142: 2.75 | Z142: 0.12 | AA142: 0.009430435139 | AB142: 0.6985507511 | AC142: 0.06858498283 | AD142: 0.0007183536011 | AE142: 0.0007761675012 | AH142: =IF(ISNA(MATCH($AG$2&$B142,InPos!$S:$S,0))=TRUE,,MATCH($AG$2&$B142,InPos!$S:$S,0)-1) -> 121
A143: 92 | B143: 5015 | C143: APM | D143: APM AUTOMOTIVE HOLDINGS BHD | F143: 5895700 | G143: 4.856047479 | H143: 28629799.12 | I143: 4.18 | J143: 24644026 | K143: -3985773.12 | L143: -0.1392176418 | M143: 0.01393850255 | N143: 0.007909506245 | O143: 201600 | P143: 0.02924454365 | Q143: CONSUMER SERVICES | R143: 0.03088931907 | S143: 0.03588516746 | T143: 0.3 | U143: 13.93333333 | V143: 0.6741935484 | X143: 0.3 | Y143: 6.2 | Z143: 0.15 | AA143: 0.01041710711 | AB143: 0.4838167525 | AC143: 0.02341048803 | AD143: 0.001153250552 | AE143: 0.001246065444 | AH143: =IF(ISNA(MATCH($AG$2&$B143,InPos!$S:$S,0))=TRUE,,MATCH($AG$2&$B143,InPos!$S:$S,0)-1) -> 101
A144: 127 | B144: 3816 | C144: MISC | D144: MISC Bhd | E144: 1900-01-03 | F144: 2281900 | G144: 8.025765691 | H144: 18313994.73 | I144: 7.49 | J144: 17091431 | K144: -1222563.73 | L144: -0.06675571048 | M144: 0.009666803412 | N144: 0.00548549901 | O144: 4463793.103 | P144: 0.0005112020085 | Q144: INDUSTRIALS | R144: 0.01619783146 | S144: 0.0173564753 | T144: 0.53 | U144: 14.13207547 | V144: 0.8991596639 | X144: 0.53 | Y144: 8.33 | Z144: 0.13 | AA144: 0.01276346267 | AB144: 0.3403287126 | AC144: 0.02165356755 | AD144: 0.0003868450073 | AE144: 0.0004179787255 | AH144: =IF(ISNA(MATCH($AG$2&$B144,InPos!$S:$S,0))=TRUE,,MATCH($AG$2&$B144,InPos!$S:$S,0)-1) -> 99
A145: 117 | B145: 8664 | C145: SPSETIA | D145: S P Setia Berhad | F145: 4434709 | G145: 3.473726226 | H145: 15404964.96 | I145: 3.7 | J145: 16408423.3 | K145: 1003458.34 | L145: 0.06513863177 | M145: 0.009280498651 | N145: 0.00526628752 | O145: 2854327.414 | P145: 0.001553679153 | Q145: FINANCIALS | R145: 0.04030254282 | S145: 0.03783783784 | T145: 0.23 | U145: 16.08695652 | V145: 1.209150327 | X145: 0.23 | Y145: 3.06 | Z145: 0.14 | AA145: 0.005317517209 | AB145: 0.3719246441 | AC145: 0.02795512031 | AD145: 0.000809636723 | AE145: 0.0008747971906 | AH145: =IF(ISNA(MATCH($AG$2&$B145,InPos!$S:$S,0))=TRUE,,MATCH($AG$2&$B145,InPos!$S:$S,0)-1) -> 130
A146: 113 | B146: 7229 | C146: FAVCO | D146: Favelle Favco Berhad | E146: 12:00:00 | F146: 5224600 | G146: 2.86726393 | H146: 14980307.13 | I146: 2.85 | J146: 14890110 | K146: -90197.13 | L146: -0.006021046779 | M146: 0.008421750417 | N146: 0.00477898449 | O146: 221402.763 | P146: 0.02359771815 | Q146: INDUSTRIALS | R146: 0.05231468175 | S146: 0.05263157895 | T146: 0.36 | U146: 7.916666667 | V146: 1.244541485 | X146: 0.36 | Y146: 2.29 | Z146: 0.15 | AA146: 0.007552915459 | AB146: 0.1660942057 | AC146: 0.0261108795 | AD146: 0.001021977515 | AE146: 0.001104227406 | AH146: =IF(ISNA(MATCH($AG$2&$B146,InPos!$S:$S,0))=TRUE,,MATCH($AG$2&$B146,InPos!$S:$S,0)-1) -> 126
A147: 105 | B147: 5255 | C147: ICON | D147: ICON OFFSHORE BHD | E147: 1900-01-01T07:12:00 | F147: 47148200 | G147: 0.4640816856 | H147: 21880616.13 | I147: 0.305 | J147: 14380201 | K147: -7500415.13 | L147: -0.3427881137 | M147: 0.008133349167 | N147: 0.004615329071 | O147: 1177185.1 | P147: 0.04005164523 | Q147: OIL & GAS | R147: 0.0215479307 | S147: 0.03278688525 | T147: 0.01 | U147: 30.5 | V147: 0.5865384615 | X147: 0.01 | Y147: 0.52 | Z147: 0.01 | AA147: 0.000202618536 | AB147: 0.6179865349 | AC147: 0.01188435644 | AD147: 0.0006148400548 | AE147: 0.000664323069 | AH147: =IF(ISNA(MATCH($AG$2&$B147,InPos!$S:$S,0))=TRUE,,MATCH($AG$2&$B147,InPos!$S:$S,0)-1) -> 117
A148: 94 | B148: 5070 | C148: PRTASCO | D148: Protasco Berhad | E148: 1900-01-01T04:48:00 | F148: 5252625 | G148: 1.430039013 | H148: 7511458.67 | I148: 1.03 | J148: 5410203.75 | K148: -2101254.92 | L148: -0.2797399297 | M148: 0.003059976433 | N148: 0.001736406233 | O148: 424692.914 | P148: 0.01236805425 | Q148: INDUSTRIALS | R148: 0.06992816217 | S148: 0.09708737864 | T148: 0.24 | U148: 4.291666667 | V148: 0.7253521127 | X148: 0.24 | Y148: 1.42 | Z148: 0.1 | AA148: 0.00182952808 | AB148: 0.03271551949 | AC148: 0.005529383575 | AD148: 0.0006849729666 | AE148: 0.000740100356 | AH148: =IF(ISNA(MATCH($AG$2&$B148,InPos!$S:$S,0))=TRUE,,MATCH($AG$2&$B148,InPos!$S:$S,0)-1) -> 103
A149: 116 | B149: 8583 | C149: MAHSING | D149: Mah Sing Group Berhad | E149: 1900-01-01T12:00:00 | F149: 2964000 | G149: 1.5236475 | H149: 4516091.19 | I149: 1.53 | J149: 4534920 | K149: 18828.81 | L149: 0.004169271436 | M149: 0.002564921575 | N149: 0.001455483697 | O149: 2409421.907 | P149: 0.001230170603 | Q149: FINANCIALS | R149: 0.04594238497 | S149: 0.04575163399 | T149: 0.16 | U149: 9.5625 | V149: 0.950310559 | X149: 0.16 | Y149: 1.61 | Z149: 0.07 | AA149: 0.001022359953 | AB149: 0.06110198159 | AC149: 0.006072246617 | AD149: 0.0002705660334 | AE149: 0.0002923414899 | AH149: =IF(ISNA(MATCH($AG$2&$B149,InPos!$S:$S,0))=TRUE,,MATCH($AG$2&$B149,InPos!$S:$S,0)-1) -> 129
